{"text_format":"1","workbook":"xlsx","n_sheets":4,"sheets":["Overview","report","Modification Matrix","Validation List"],"not_rendered":{"charts":2,"images":1,"macros":1,"external_links":1,"defined_names":109,"comments":0,"pivot_tables":0},"unopened":[],"bounds":{"document_bytes":16777216,"sheet_cells":100000,"rows_first":2000,"rows_last":500,"rows_between":2000,"halvings":0,"cell_chars":16384,"cell_head_chars":4096},"cells_cut":0,"cells_raw":0,"read":"whole","date_system":"1900"}

{"sheet":"Overview","index":0,"n_rows":39,"n_cols":16,"rows_kept":39,"cut":false,"hidden":false,"merged":[[9,2,9,15]]}
[]
[]
[]
[]
["CENTRAL MODIFICATION REGISTER",null,null,null,null,null,null,null,null,null,null,null,null,"DATE PUBLISHED:",null,"2016-11-09"]
[]
["POPULATING THE SPREADSHEET"]
[]
["STEP 1"]
["Spreadsheet issued to Code Administrators for updates",null,"1 –    On the final Wednesday of the month, all Code Administrators will receive an email from the Joint Office of Gas Transporters (enquiries@gasgovenance.co.uk) (Support.MRA@Gemserv.com) with the template of the current Register, seeking updates."]
[null,null,"2 –    Code Administrators are to return the spreadsheet to the Joint Office (enquiries@gasgovernance.co.uk) by the first Wednesday of the month (5 Working Days).   "]
[null,null,"3 –    Code Administrators must complete the most current template received to ensure accuracy"]
[null,null,"4 –    Code Administrators must complete the CMR using the agreed standardised format and conventions."]
[]
["MRA Secretariat compiles responses ",null,"1 –    Once received, the Joint Office will compile the responses into an updated spreadsheet."]
[]
["STEP 3",null,"1 –     On the second Wednesday of each month, the updated Register will be uploaded onto the Joint Office website: https://www.gasgovernance.co.uk/CACoP/CMR"]
["Updated spreadsheet published on MRASCo website",null,"2 –     All Code Administrators, and relevant stakeholders will receive an email from the Joint Office (enquiries@gasgovernance.co.uk) informing them of the updated Register."]
[]
[]
[]
["INDUSTRY PANEL MEETINGS "]
[]
["Please note that the Register is updated following the process explained above. Any Changes/Modifications discussed at Panel meetings outside of these timescales will be included in next months Register. The Code Panel meetings dates and individual Code Registers are:"]
[]
["Industry Code","Meeting",null,null,"Date",null,"Modification/Change Register"]
[]
["Balancing and Settlement Code (BSC)","BSC Panel",null,null,"Second Thursday of the month",null,"https://www.elexon.co.uk/change/change-register/"]
["Connection and Use of System Code (CUSC) ","CUSC Panel",null,null,"Last Friday of the month",null,"http://www2.nationalgrid.com/UK/Industry-information/Electricity-codes/CUSC/Modifications/Modifications-register/"]
["Distribution Code (DCode) ","GB Distribution Code Review Panel",null,null,"Held quarterly, on second Thursday of the month ",null,"http://www.dcode.org.uk/distribution-code-modifications-2016.html"]
["Distribution Connection Use of System Agreement (DCUSA) ","DCUSA Panel",null,null,"Third Wednesday of the month",null,"https://www.dcusa.co.uk/SitePages/Activities/Change-Proposal-Register.aspx"]
["Grid Code ","Grid Code Panel",null,null,"Held bi-monthly, on third Wednesday of the month",null,"http://www2.nationalgrid.com/UK/Industry-information/Electricity-codes/Grid-code/Modifications/Progress-tracker/"]
["iGT Uniform Network Code (iGT UNC)","iGT UNC Modification Panel",null,null,"Third Friday of the month",null,"http://www.igt-unc.co.uk/Modifications"]
["Smart Energy Code (SEC)","SEC Panel*",null,null,"Second Friday of the month",null,"https://www.smartenergycodecompany.co.uk/modifications/modifications-register-information/modifications-register"]
["System Operator – Transmission Owner Code (STC) ","STC Panel",null,null,"Fourth Wednesday of the month",null,"http://www2.nationalgrid.com/UK/Industry-information/Electricity-codes/STC/Modifications/Modifications-register/"]
["Uniform Network Code (UNC) ","UNC Modification Panel",null,null,"Third Thursday of the month",null,"http://www.gasgovernance.co.uk/mods"]
[]
[]
["* Please note that the SEC Panel reviews Modifications Proposals, but the Change Board is responsible for voting on Modifications following the Modification Report Phase. "]

{"sheet":"report","index":1,"n_rows":410,"n_cols":16380,"rows_kept":69,"cut":true,"hidden":false,"merged":[[0,15,0,22],[0,0,0,2],[0,3,0,4],[0,6,0,9],[0,10,0,14]],"bounds":{"rows_first":31,"rows_last":7,"rows_between":31,"halvings":6}}
["MODIFICATION ",null,null,"ORIGIN",null,"STATUS","OVERVIEW",null,null,null,"DECISION",null,null,null,null,"PARTY TYPES IMPACTED",null,null,null,null,null,null,null,"DSC"]
["Code","Reference","Title","Proposer","Date raised","Current Status","Summary","Other Codes impacted","Does this impact MHHS?","Impacts an SCR?","Self-Governance?","Urgent?","Date submitted for decision","Date of decision","Implementation Date","Electricity Generators","Electricity Suppliers","Gas Suppliers","Gas Shippers","Electricity Distribution Network Operators","Gas Transporters","Supplier Agents","Other","XRN Number","Status Update"]
["Balancing and Settlement Code","CP1562","Amendments to the approved NETA Interface Definition Documents for P375\n","Elexon","2022-03-01","Within Consultation","CP1562 seeks to update the NETA Interface Definition Documents Part 1 and 2 that were approved under P375, to provide clarity to the relevant Parties that make use of the document.\n\nThrough internal design discussions, we have identified some inconsistencies in the Interface Design and Document Part 1 and 2 that were approved under P375. This CP seeks to address those inconsistencies,  maintaining the solution in P375, which is scheduled to be implemented in June.","No",null,"No","No","No","N/A","N/A","TBD","No","No","No","No","No","No","Yes","No"]
["Balancing and Settlement Code","CP1561","Updating the SVA Data Catalogue Volume 1 and 2 to reflect changes from CP1546","Elexon","2022-03-01","Within Consultation","CP1561 looks to update the Supplier Volume Allocation (SVA) Catalogue Volume 1 and 2 to include the approved data flows and data items from CP1546.\n\nCP1546 introduced two new mandatory data flows and their associated data items, for use in BSCP520 ‘Unmetered Supplies’ after June 2022. However, during the assessment of CP1546, the SVA Data Catalogue Volume 1 and 2 were missed from the impacted documents, therefore, not updated to reflect the new data flow and data items. This CP seeks to address those issues, making the SVA DC an accurate reference after June 2022.","No",null,"No","No","No","N/A","N/A","TBD","No","No","No","No","No","No","Yes","No"]
["Balancing and Settlement Code","CP1560","Demand Control Event Settlement Adjustment Process Clarifications","Elexon","2022-03-03","Within Consultation","This CP seeks to clarify the processes that take place after a Demand Control Event by amending the relevant Code Subsidiary Documents to ensure clarity and consistency. \n\nThe Settlement Adjustment Processes (SAPs) that were performed immediately after the Demand Control Event (DCE) that occurred in August 2019 (DCE00201) were hindered by a lack of clarity and consistency in the relevant Balancing and Settlement Code Procedures (BSCPs). This CP delivers against some of the recommendations of Issue 89 ‘Ensuring Demand Control Event procedures remain fit for purpose’, which was raised as a ‘lessons learned’ exercise after the DCE.","No",null,"No","No","No","N/A","N/A","TBD","No","No","No","No","Yes","No","Yes","No"]
["Balancing and Settlement Code","CP1559","Complex Sites Process Improvements","Elexon","2022-02-02","Under Development","Issue 88 identified a number of inefficiencies with the existing complex site processes. These included a lack of clarity on the process itself and a lack of a standardised Complex Site Supplementary Information Form (CSSIF).","REC",null,"No","No","No","N/A","N/A","TBD","No","Yes","No","No","Yes","No","No","No"]
["Balancing and Settlement Code","CP1558","New Registration data items and processes to support the MHHS transition","Elexon","2022-02-16","Under Development","The CCDG has set out all the required Registration Service data items needed for MHHS that will be part of the MHHS Design Baseline published in April 2022. However, it is concerned that starting migration in October 2024 with poor quality underlying data would lead to avoidable time and effort being spent trying to fix issues during the twelve month migration period. \n\nThe proposed solution is that a subset of items is introduced into the existing Supplier Meter Registration Service (SMRS) systems, in the period between November 2022 and February 2023. These items can be grouped into Distributor mastered and Meter Operator Agent (MOA) mastered data items. Some items can be initially populated by rule using existing data items and others can be populated and amended through modified existing interfaces supported by new processes. ","REC",null,"No","No","No","N/A","N/A","TBD","No","Yes","No","No","Yes","No","Yes","No"]
["Balancing and Settlement Code","CP1557","Housekeeping Change to CP1532 Solution","Elexon","2021-12-07","Agreed for Implementation","CP1532 ‘Reduce Half Hourly Change of Supplier timelines to meet the Initial Settlement Run’ was raised by Elexon on 8 July 2020 and approved by the Supplier Volume Allocation Group (SVG) on 1 September 2020 for implementation on 24 February 2022. As part of P420 ‘Retail Code Consolidation Significant Code Review’, Meter Operator Agents (MOA) were split between Supplier Volume Allocation (SVA) MOAs to the Retail Energy Code (REC) and Central Volume Allocation (CVA) MOA staying within the BSC – this was not considered in CP1532 and the current approved solution refers to “MOA”. The CP1532 solution is required to be updated to reflect changes made to BSCP502 ‘Half Hourly Data Collection for SVA Metering Systems Registered in SMRS’ following the implementation of P420.","None",null,"No","No","No","N/A","2021-12-07","2022-06-30","No","No","No","No","No","No","No","No"]
["Balancing and Settlement Code","CP1556","Adding the VLP testing process to BSCP70 CVA Qualification Testing","Elexon","2021-12-07","Agreed for Implementation","CP1556 looks to update the BSCP70 and Communication Requirements Document to include a test request process and a list of P-flows for VLPs and AMVLPs.","None",null,"No","No","No","N/A","2021-02-01","2022-06-30","No","Yes","No","No","No","No","No","Yes"]
["Balancing and Settlement Code","CP1554","Future proofing the measurement transformer standards","Elexon","2021-11-02","Agreed for Implementation","CP1554 looks to future proof the  measurement transformer standards in Code of Practices 1, 2, 3, 4, 5 and 10. Metering Codes of Practice (CoPs) rely on the British Standard Institution (BSI) / International Electrotechnical Commission (IEC) standards for measurement transformers (i.e. current transformers and voltage transformers). These standards are reviewed every five years and as a result, could be extended without amendments, amended by an industry expert group, or withdrawn. When they are amended, their reference number may change, creating issues for the relevant Balancing and Settlement Code (BSC) Party or Party Agents. These issues could lead to the stranding of measurement transformer stocks, which is costly to the BSC Parties and Party Agents.","None",null,"No","No","No","N/A","2022-01-11","2022-06-30","No","Yes","No","No","No","No","Yes","Yes"]
["Balancing and Settlement Code","CP1553","Tightening the minimum accuracy classes for Meters (CoP5) and CTs (CoPs 3,5 and 10)","Elexon","2021-11-02","Agreed for Implementation","Currently, the minimum accuracy class required for a Meter in CoP5 is class 2, which means the Meter must have an accuracy within ±2%. However, the overall accuracy limit for a CoP5 Metering System is ±1.5%. This makes it difficult for Meter Operator Agents (MOAs) to assure the overall accuracy of that Metering System, if the calibration certificates are not provided. Additionally, the minimum accuracy class for CTs in CoPs 3, 5 and 10 is 0.5, which means they can be tested to only 5% of the CT’s rated current. When the CT measures current below 1%, their errors and therefore contribution to the overall accuracy of the Metering System will not be known. CP1553 proposes to update CoPs 3, 5 and 10. This includes updating the class in CoP5 from 2 to 1 and updating the CT class in CoPs 3, 5 and 10 from 0.5 to 0.5s.\n","None",null,"No","No","No","N/A","2022-01-11","2022-06-30","No","No","No","No","No","No","Yes","No"]
["Balancing and Settlement Code","CP1552","Reflecting BSCP501 timeframes in BSCP520 processes","Elexon","2021-11-03","Agreed for Implementation","BSCP520 contains various actions for Suppliers, which have timescales for the same actions stated in BSCP501, but there are no timescales against them in BSCP520. UMSOs are having issues with Suppliers not completing these actions in time, but the Suppliers state that there are no timescales according to BSCP520. It is proposed to update the timescales for various sections of BSCP520 to reflect those found in BSCP501.","None",null,"No","No","No","N/A","2022-01-11","2022-06-30","No","Yes","No","No","No","No","Yes","Yes"]
["Balancing and Settlement Code","CP1550","Updates to monitoring of voltage failure alarms requirements","Elexon","2021-10-05","Agreed for Implementation","CP1550 seeks to clarify to Meter Agents how phase failures should be managed and to remove the outdated requirement currently outlined in section 5.1.3 of CoPs1 and 2. Currently, there is a lack of clarity around the technical requirements of monitoring Voltage Transformers (VTs) and whether voltage monitoring (i.e. phase failure) can or cannot be combined with other prevailing conditions before the phase failure alarm is activated. Also, the obligation where a separate Outstation (a data logger) is used that requires a phase failure alarm to be flagged in a manned location is obsolete for CoPs 1 and 2 Metering Systems. This is because most new Power Stations do not use separate Outstations nor have manned locations at the site.","None",null,"No","No","No","N/A","2021-12-07","2022-06-30","Yes","No","No","No","No","No","Yes"]
["Balancing and Settlement Code","CP1546","UMS Summary Inventory and Control File Data Flow","Elexon","2021-07-08","Agreed for Implementation","CP1546 intends to introduce two new mandatory dataflows to be sent over the Data Transfer Service (DTS). The two dataflows would be a combined Summary Inventory and Central Management System (CMS) Control File, sent from the UMSO to MA, and a UMS Response which would be sent from the MA to the UMSO to confirm successful processing or rejection.","None",null,"No","No","No","N/A","2021-10-05","2022-06-30","No","No","No","No","No","No","Yes"]
["Balancing and Settlement Code","CP1532","Reduce Half Hourly Change of Supplier timelines to meet the Initial Settlement Run","Elexon","2020-07-08","Agreed for Implementation","CP1532 intends to update CoS timescales within BSCP502, BSCP504 and BSCP514 to ensure that all activities can be completed by the Initial Settlement Run (SF). It will also align appointment and de-appointment timescales (in both the NHH and HH processes) with the expected changes introduced to facilitate the Switching programme.","None",null,"No","No","No","N/A","2020-09-01","2022-02-24","No","Yes","No","No","No","No","Yes","Yes"]
["Balancing and Settlement Code","CP1527","Increase the minimum data storage capacity for Settlement Outstations and Mandate specific selectable DPs for CoPs 3, 5, and 10","Elexon","2020-01-28","Agreed for Implementation","Increase the minimum data storage capacity requirements for Settlement Outstations to 250 days per channel at 30 minutes integration periods and this CP will also mandate selectable integration periods for CoPs 3, 5, and 10 and add a test for this requirement (and for CoPs 1 and 2) into BSCP601.","None",null,"No","No","Yes","N/A","2020-07-07","2022-06-30","Yes","Yes","No","No","Yes","No","Yes","Yes"]
["Balancing and Settlement Code","P438","Amending the BSC to BSC to address sanction orders","NGESO"," 29-Mar-22","Under Development","This Modification would allow Elexon to seamlessly give effect to sanctions orders.\n\nThe current wording of the BSC includes no reference to sanctions. Given this, there is a risk that implementing sanctions or complying with a sanctions order would put BSCCo in breach of the BSC and open BSCCo up to potential claims from the designated entity subject to any sanctions, or from other BSC Parties if steps were taken that were not authorised by the BSC. This Modification seeks to remove this risk by introducing the concept of sanctions into the BSC, as a new Event of Default.","None",null,"No","No","Yes","TBD","TBD","TBD","Yes","Yes","No","No","Yes","No","No","No"]
["Balancing and Settlement Code","P437","Allowing non-BSC Parties to request Metering Dispensations","BSC Panel","2022-03-10","Under Development","This Modification proposes to introduce a provision in Section L ‘Metering’ to allow the relevant Meter Operator Agent to apply for Metering Dispensations on behalf of a non-BSC Party.\n\nThe solution will see non-BSC Parties being able to request Metering Dispensations for the relevant MOA (Supplier Volume Allocation (SVA) for SVA sites, Central Volume Allocation (CVA) for CVA sites) to apply on their behalf.","None",null,"No","No","No","TBD","TBD","TBD","Yes","Yes","No","No","No","No","Yes","No"]
["Balancing and Settlement Code","P436","Consequential BSC changes for Switching SCR (REC 3.0)","Ofgem ","2022-02-02","Within Consultation","Ofgem’s Switching Significant Code Review (SCR) will introduce the new Central Switching Service (CSS) and version 3.0 of the Retail Energy Code (REC 3.0). P436 progresses the consequential BSC changes needed to align with REC 3.0. \nThis Modification sets out the new relationship between Supplier registrations in the REC’s CSS and the Supplier Meter Registration Service (SMRS) provided by Supplier Meter Registration Agents (SMRAs) under the BSC. It also includes ownership transfer of pre-existing SMRS provisions and data flows from the Master Registration Agreement (MRA) to the BSC, bringing all SMRS obligations under BSC governance where previously they were split across the two Codes.","REC",null,"Yes","No","No","TBD","TBD","TBD","No","Yes","No","No","Yes","No","Yes","No"]
["Balancing and Settlement Code","P435","Enabling EMRS to undertake preparatory work for potential future settlement services to LCCC","LCCC","2022-02-10","Within Consultation","This Modification proposes to extend Elexon Vires through its wholly-owned subsidiary company Electricity Market Reform Settlement (EMRS) Limited.","None",null,"No","No","No","TBD","TBD","TBD","No","No","No","No","No","No","No","No"]
["Balancing and Settlement Code","P434","Mandate to Half Hourly Settle the Non-Half Hourly Unmetered Supplies Metering Systems","Npower Commercial Gas Limited","2022-02-03","Under Development","The solution will see EMRS being enabled to complete the necessary preparatory work in relation to schemes established by, or proposed to be established by the Secretary of State (SoS) outside of the Capacity Market (CM) and Contracts for Difference (CfD).","None",null,"No","No","No","TBD","TBD","TBD","No","Yes","No","No","Yes","No","Yes","No"]
["Balancing and Settlement Code","P433","Updating the P375 legal text to align with the post-P420 BSC Baseline","BSC Panel","2021-12-09","Agreed for Implementation","P433 seeks to ensure that the Legal Text for Approved Modification P375 ‘Settlement of Secondary BM Units using metering behind the site Boundary Point’ is aligned with the BSC baseline introduced by the implementation of P420 ‘Retail Code Consolidation Significant Code Review’. This Modification will correct a number of manifest errors introduced into the P375 legal text by P420 and will therefore allow the implementation of the P375 Legal Text in the BSC on the P375 Implementation Date. ","None",null,"No","No","No","2022-01-13","2022-01-13","2022-06-30","No","No","No","No","No","No","No","No"]
["Balancing and Settlement Code","P432","Half Hourly Settlement for CT Advanced Meters","Npower Commercial Gas Limited","2021-12-02","Under Development","This Modification proposes to align the BSC definition of an Advanced Meter with that in the Standard License Conditions (SLC) and to set explicit Half Hourly (HH) Settlement obligations for Current Transformer (CT) Advanced Meters ahead of the migration to Market-wide Half-Hourly Settlement (MHHS).","None",null,"No","No","No","TBD","TBD","TBD","Yes","Yes","No","No","Yes","No","Yes","No"]
["Balancing and Settlement Code","P431","Post Brexit Agreement Updates","NGESO","2021-11-24","Agreed for Implementation","As a result of the UK leaving the EU, Great Britain (GB) is no longer part of the Internal Energy Market and updates are required to the BSC to ensure that the legal text appropriately reflects these changes.\nThe United Kingdom (UK) left the European Union (EU) on 31 January 2020, but the vast majority of energy-related issues remained unaffected until the end of the Implementation Period on 31 December 2020. \nP431 will not directly impact BSC Parties as these updates are only required to reflect changes that have already taken effect by the UK leaving the EU. None of the changes P431 proposes have an impact on the operation of the BSC – they are, essentially, administrative changes only. Due to the very minor impacts associated with this change, and the prioritisation of other Modifications in the change pipeline, this Modification has been raised at this stage rather than immediately after the UK withdrawal from the EU.","None",null,"No","Yes","No","2022-01-13","2022-01-13","2022-06-30","No","No","No","No","No","No","No","No"]
["Balancing and Settlement Code","P430","Allow Suppliers to use metering behind the site Boundary Point","Ecotricity","2021-11-19","Under Development","P430 seeks to extend the solution to approved Modification P375 ‘Settlement of Secondary BM Units using metering behind the site Boundary Point’ to allow Suppliers to register Asset Meters and allocate Asset Metering System Identifier (AMSID) Pairs to Secondary Balancing Mechanism (BM) Units. The Proposer believes this would address an unintended distortion in the market and enable the wider provision of Balancing Services to the system by enabling Suppliers to use metering equipment “behind” the defined Boundary Point for Settlement purposes. The P375 solution will only allow Asset Metering Virtual Lead Parties (AMVLPs) to register Asset Metering Systems in order to obtain AMSID Pairs and to allocate those AMSID Pairs to Secondary Balancing Mechanism Units (SBMUs). It is the Proposer’s view that the P375 solution is incomplete and should be extended to also apply to Suppliers to avoid a distortion in the market that gives one industry Party role an advantage over another, when both can provide Balancing Services from behind the Meter.","None",null,"No","No","No","TBD","TBD","TBD","No","Yes","No","No","No","No","Yes","No"]
["Balancing and Settlement Code","P428","Correction to P376 Legal Text","BSC Panel","2021-11-11","Agreed for Implementation","This Modification is required to correct an error contained within the approved legal drafting for P376. This Proposal will ensure that Virtual Lead Parties (VLPs) do not need to submit the status of Metering System Identifier (MSID) pairs contained within secondary Balancing Mechanism (BM) Units that do not use the baselining methodology introduced in the P376 solution.\nUnder the current approved P376 solution, VLPs with BM Units that have not been registered as a ‘Baselined BM Unit’ would be required to specify the ‘Inactive’ status of a non-baselined BM Unit. It is Elexon’s view that this new requirement was not intended, is expected to increase both system development costs associated with P376 as well as on-going operational costs for VLPs. This current requirement is not necessary, adds no value and does not better facilitate any of the Applicable BSC Objectives. The Proposer of P376 agrees that allowing non-baselined BM Units would cause a problem and suggested disallowing this functionality.","None",null,"No","Yes","No","2021-12-09","2021-12-09","2023-02-23","No","No","No","No","No","No","No","Yes"]
["Balancing and Settlement Code","P427","Publication of Performance Assurance Parties’ impact on Settlement Risk","BSC Panel","2021-10-14","Under Development","P427 seeks to amend BSC Section Z – Performance Assurance to allow the Performance Assurance Board (PAB) recommend that the Panel publish notices to industry in respect of Performance Assurance Parties’ (PAPs’) contribution to Settlement Risk along with relevant risk data. This will increase the effectiveness of all detective and investigative Performance Assurance Techniques (PATs) including Error and Failure Resolution (EFR) through greater incentives. Improved efficiency of Performance Assurance Framework (PAF) with swifter resolution rates to EFR plans and any other significant issues that impact Settlement is expected.","None",null,"No","No","No","TBD","TBD","TBD","No","Yes","No","No","No","No","Yes","Yes"]
["Balancing and Settlement Code","P426","Combining related BSC Parties’ Energy Indebtedness positions for the Credit Cover Percentage calculation","Drax Group PLC","2021-10-11","Under Development","This Modification proposes to remove inefficiencies with the Credit Cover calculation by allowing related BSC Parties to combine their Energy Indebtedness prior to calculating the Credit Cover Percentage.","None",null,"No","No","No","TBD","TBD","TBD","No","Yes","No","No","No","No","No","No"]
["Balancing and Settlement Code","P425","Amendment to the definition of Shared SVA Meter Arrangement","E.ON","2021-10-06","Under Development","This Modification aims to reduce the requirement from two or more Suppliers, to one or more Suppliers, to be involved in a Shared Supplier Volume Allocation (SVA) Metering Arrangement. This would allow multiple Suppliers to continue facilitating Shared SVA Metering Arrangements, while also allowing a single Supplier to make use of such an arrangement.","None",null,"No","No","No","TBD","TBD","TBD","No","Yes","No","No","No","No","Yes","No"]
["Balancing and Settlement Code","P421","Align the BSC with Grid Code Modification GC0144 for TERRE Market Suspension","NGESO","2021-07-01","Awaiting Authority Consent","This Modification aligns the BSC with the provisions introduced into the Grid Code under GC0144 ‘Alignment of Market Suspension Rights to the EU Emergency and Restoration Code Article 35.1(b)’","Grid Code",null,"No","No","No","2021-10-14","TBD","TBD","Yes","Yes","No","No","No","No","No","Yes"]
["Balancing and Settlement Code","P419"," Enhanced Reporting of demand data to NETSO to facilitate BSUoS Reform","NGESO","2021-05-06","Within Consultation","This Modification seeks to ensure that BSC Systems are responsible for managing the declaration of eligible facilities and that National Grid ESO receives Supplier BMU Metered Data that excludes Imports to declared eligible facilities.","CUSC",null,"No","No","No","TBD","TBD","TBD","No","No","No","No","No","No","No","Yes"]
["Balancing and Settlement Code","Issue 95","Assessing the continued use of TIBCO service as a source of data for market participants","Elexon","2021-06-17","Under Development","This Issue Group seeks to establish the future of the TIBCO messaging service with the migration of BMRS as part of Elexon’s transformation programme. Elexon is building a new Solution for BMRS and need to understand views from BSC Parties to improve value with regards to data publications. Elexon believe it is now important to re-examine the requirements of BSC Parties and BMRS users in relation to the longevity and current implementation of the BSC obligations with respect to TIBCO.","None",null,"No","No","No","N/A","N/A","N/A","No","No","No","No","No","No","No","Yes"]
["Connection and Use of System Code","CMP335","Transmission Demand Residual, billing and consequential changes to CUSC Section 3 and 11 (TCR)","National Grid ESO","2020-01-16","Agreed for Implementation","The Authority published on 21 November 2019 a Direction to\nNGESO to raise such modifications as are necessary to give effect to their Decision(s) under\nthe Targeted Charging Review (TCR) SCR. CMP332 is developing a methodology for the\nResidual to be applied only to ‘Final Demand’ on a ‘Site’ basis (as per the Direction);\nhowever it does not cover how/when the Residual is recovered from parties once the\nResidual charges are determined. Broadly, this modification therefore looks to revise existing\nprocesses to account for the CMP332 methodology post tariff creation and create new\nprocesses to ensure ‘Sites’ are allocated to the correct charging band (as created by\nCMP332).\n\n[10/03/22] Ofgem approved CMP343 WACM2 on 10 March 2022. WACM2 has four bands for transmission-connected final demand, and floors the forward-looking charge at £0 in negative locational TNUoS charging zones.  The Authority has also approved the related Modifications - namely CMP340 Original, CMP335 Original and CMP336 WACM1 (As per the Original but introduce an annual September review to confirm the new transmission connection site is in the correct band and reallocate if required). To be implemented 1 April 2023.","None",null,"Yes","No","No","2020-10-06","2022-03-10","2023-04-01","Yes","Yes","No ","No ","Yes","No","No",null,null,null,"-","ElectraLink Ltd","Live","Distribution Connection Use of System Agreement","DCP 325","Reviewing the requirements of Sections 35A, 35B, Schedule 15 and Schedule 20.","The intent of this Change Proposal is to combine, review and if appropriate, amend the requirements of Section 35A, Section 35B, Schedule 15 and Schedule 20 to improve transparency and efficiency in the data published by DNOs","Northern Powergrid","2018-07-11",null,null,"Standard Change Proposal","DCP 325 Change Proposal ","Under Development - Definition Stage",null,"-","-","ElectraLink Ltd","Live","Distribution Connection Use of System Agreement","DCP 325","Reviewing the requirements of Sections 35A, 35B, Schedule 15 and Schedule 20.","The intent of this Change Proposal is to combine, review and if appropriate, amend the requirements of Section 35A, Section 35B, Schedule 15 and Schedule 20 to improve transparency and efficiency in the data published by DNOs","Northern Powergrid","2018-07-11",null,null,"Standard Change Proposal","DCP 325 Change Proposal ","Under Development - Definition Stage",null,"-","-","ElectraLink Ltd","Live","Distribution Connection Use of System Agreement","DCP 325","Reviewing the requirements of Sections 35A, 35B, Schedule 15 and Schedule 20.","The intent of this Change Proposal is to combine, review and if appropriate, amend the requirements of Section 35A, Section 35B, Schedule 15 and Schedule 20 to improve transparency and efficiency in the data published by DNOs","Northern Powergrid","2018-07-11",null,null,"Standard Change Proposal","DCP 325 Change Proposal ","Under Development - Definition Stage",null,"-","-","ElectraLink Ltd","Live","Distribution Connection Use of System Agreement","DCP 325","Reviewing the requirements of Sections 35A, 35B, Schedule 15 and Schedule 20.","The intent of this Change Proposal is to combine, review and if appropriate, amend the requirements of Section 35A, Section 35B, Schedule 15 and Schedule 20 to improve transparency and efficiency in the data published by DNOs","Northern Powergrid","2018-07-11",null,null,"Standard Change Proposal","DCP 325 Change Proposal ","Under Development - Definition Stage",null,"-","-","ElectraLink Ltd","Live","Distribution Connection Use of System Agreement","DCP 325","Reviewing the requirements of Sections 35A, 35B, Schedule 15 and Schedule 20.","The intent of this Change Proposal is to combine, review and if appropriate, amend the requirements of Section 35A, Section 35B, Schedule 15 and Schedule 20 to improve transparency and efficiency in the data published by DNOs","Northern Powergrid","2018-07-11",null,null,"Standard Change Proposal","DCP 325 Change Proposal ","Under Development - Definition Stage",null,"-","-","ElectraLink Ltd","Live","Distribution Connection Use of System Agreement","DCP 325","Reviewing the requirements of Sections 35A, 35B, Schedule 15 and Schedule 20.","The intent of this Change Proposal is to combine, review and if appropriate, amend the requirements of Section 35A, Section 35B, Schedule 15 and Schedule 20 to improve transparency and efficiency in the data published by DNOs","Northern Powergrid","2018-07-11",null,null,"Standard Change Proposal","DCP 325 Change Proposal ","Under Development - Definition Stage",null,"-","-","ElectraLink Ltd","Live","Distribution Connection Use of System Agreement","DCP 325","Reviewing the requirements of Sections 35A, 35B, Schedule 15 and Schedule 20.","The intent of this Change Proposal is to combine, review and if appropriate, amend the requirements of Section 35A, Section 35B, Schedule 15 and Schedule 20 to improve transparency and efficiency in the data published by DNOs","Northern Powergrid","2018-07-11",null,null,"Standard Change Proposal","DCP 325 Change Proposal ","Under Development - Definition Stage",null,"-","-","ElectraLink Ltd","Live","Distribution Connection Use of System Agreement","DCP 325","Reviewing the requirements of Sections 35A, 35B, Schedule 15 and Schedule 20.","The intent of this Change Proposal is to combine, review and if appropriate, amend the requirements of Section 35A, Section 35B, Schedule 15 and Schedule 20 to improve transparency and efficiency in the data published by DNOs","Northern Powergrid","2018-07-11",null,null,"Standard Change Proposal","DCP 325 Change Proposal ","Under Development - Definition Stage",null,"-","-","ElectraLink Ltd","Live","Distribution Connection Use of System Agreement","DCP 325","Reviewing the requirements of Sections 35A, 35B, Schedule 15 and Schedule 20.","The intent of this Change Proposal is to combine, review and if appropriate, amend the requirements of Section 35A, Section 35B, Schedule 15 and Schedule 20 to improve transparency and efficiency in the data published by DNOs","Northern Powergrid","2018-07-11",null,null,"Standard Change Proposal","DCP 325 Change Proposal ","Under Development - Definition Stage",null,"-","-","ElectraLink Ltd","Live","Distribution Connection Use of System Agreement","DCP 325","Reviewing the requirements of Sections 35A, 35B, Schedule 15 and Schedule 20.","The intent of this Change Proposal is to combine, review and if appropriate, amend the requirements of Section 35A, Section 35B, Schedule 15 and Schedule 20 to improve transparency and efficiency in the data published by DNOs","Northern Powergrid","2018-07-11",null,null,"Standard Change Proposal","DCP 325 Change Proposal ","Under Development - Definition Stage",null,"-","-","ElectraLink Ltd","Live","Distribution Connection Use of System Agreement","DCP 325","Reviewing the requirements of Sections 35A, 35B, Schedule 15 and Schedule 20.","The intent of this Change Proposal is to combine, review and if appropriate, amend the requirements of Section 35A, Section 35B, Schedule 15 and Schedule 20 to improve transparency and efficiency in the data published by DNOs","Northern Powergrid","2018-07-11",null,null,"Standard Change Proposal","DCP 325 Change Proposal ","Under Development - Definition Stage",null,"-","-","ElectraLink Ltd","Live","Distribution Connection Use of System Agreement","DCP 325","Reviewing the requirements of Sections 35A, 35B, Schedule 15 and Schedule 20.","The intent of this Change Proposal is to combine, review and if appropriate, amend the requirements of Section 35A, Section 35B, Schedule 15 and Schedule 20 to improve transparency and efficiency in the data published by DNOs","Northern Powergrid","2018-07-11",null,null,"Standard Change Proposal","DCP 325 Change Proposal ","Under Development - Definition Stage",null,"-","-","ElectraLink Ltd","Live","Distribution Connection Use of System Agreement","DCP 325","Reviewing the requirements of Sections 35A, 35B, Schedule 15 and Schedule 20.","The intent of this Change Proposal is to combine, review and if appropriate, amend the requirements of Section 35A, Section 35B, Schedule 15 and Schedule 20 to improve transparency and efficiency in the data published by DNOs","Northern Powergrid","2018-07-11",null,null,"Standard Change Proposal","DCP 325 Change Proposal ","Under Development - Definition Stage",null,"-","-","ElectraLink Ltd","Live","Distribution Connection Use of System Agreement","DCP 325","Reviewing the requirements of Sections 35A, 35B, Schedule 15 and Schedule 20.","The intent of this Change Proposal is to combine, review and if appropriate, amend the requirements of Section 35A, Section 35B, Schedule 15 and Schedule 20 to improve transparency and efficiency in the data published by DNOs","Northern Powergrid","2018-07-11",null,null,"Standard Change Proposal","DCP 325 Change Proposal ","Under Development - Definition Stage",null,"-","-","ElectraLink Ltd","Live","Distribution Connection Use of System Agreement","DCP 325","Reviewing the requirements of Sections 35A, 35B, Schedule 15 and Schedule 20.","The intent of this Change Proposal is to combine, review and if appropriate, amend the requirements of Section 35A, Section 35B, Schedule 15 and Schedule 20 to improve transparency and efficiency in the data published by DNOs","Northern Powergrid","2018-07-11",null,null,"Standard Change Proposal","DCP 325 Change Proposal ","Under Development - Definition Stage",null,"-","-","ElectraLink Ltd","Live","Distribution Connection Use of System Agreement","DCP 325","Reviewing the requirements of Sections 35A, 35B, Schedule 15 and Schedule 20.","The intent of this Change Proposal is to combine, review and if appropriate, amend the requirements of Section 35A, Section 35B, Schedule 15 and Schedule 20 to improve transparency and efficiency in the data published by DNOs","Northern Powergrid","2018-07-11",null,null,"Standard Change Proposal","DCP 325 Change Proposal ","Under Development - Definition Stage",null,"-","-","ElectraLink Ltd","Live","Distribution Connection Use of System Agreement","DCP 325","Reviewing the requirements of Sections 35A, 35B, Schedule 15 and Schedule 20.","The intent of this Change Proposal is to combine, review and if appropriate, amend the requirements of Section 35A, Section 35B, Schedule 15 and Schedule 20 to improve transparency and efficiency in the data published by DNOs","Northern Powergrid","2018-07-11",null,null,"Standard Change Proposal","DCP 325 Change Proposal ","Under Development - Definition Stage",null,"-","-","ElectraLink Ltd","Live","Distribution Connection Use of System Agreement","DCP 325","Reviewing the requirements of Sections 35A, 35B, Schedule 15 and Schedule 20.","The intent of this Change Proposal is to combine, review and if appropriate, amend the requirements of Section 35A, Section 35B, Schedule 15 and Schedule 20 to improve transparency and efficiency in the data published by DNOs","Northern Powergrid","2018-07-11",null,null,"Standard Change Proposal","DCP 325 Change Proposal ","Under Development - Definition Stage",null,"-","-","ElectraLink Ltd","Live","Distribution Connection Use of System Agreement","DCP 325","Reviewing the requirements of Sections 35A, 35B, Schedule 15 and Schedule 20.","The intent of this Change Proposal is to combine, review and if appropriate, amend the requirements of Section 35A, Section 35B, Schedule 15 and Schedule 20 to improve transparency and efficiency in the data published by DNOs","Northern Powergrid","2018-07-11",null,null,"Standard Change Proposal","DCP 325 Change Proposal ","Under Development - Definition Stage",null,"-","-","ElectraLink Ltd","Live","Distribution Connection Use of System Agreement","DCP 325","Reviewing the requirements of Sections 35A, 35B, Schedule 15 and Schedule 20.","The intent of this Change Proposal is to combine, review and if appropriate, amend the requirements of Section 35A, Section 35B, Schedule 15 and Schedule 20 to improve transparency and efficiency in the data published by DNOs","Northern Powergrid","2018-07-11",null,null,"Standard Change Proposal","DCP 325 Change Proposal ","Under Development - Definition Stage",null,"-","-","ElectraLink Ltd","Live","Distribution Connection Use of System Agreement","DCP 325","Reviewing the requirements of Sections 35A, 35B, Schedule 15 and Schedule 20.","The intent of this Change Proposal is to combine, review and if appropriate, amend the requirements of Section 35A, Section 35B, Schedule 15 and Schedule 20 to improve transparency and efficiency in the data published by DNOs","Northern Powergrid","2018-07-11",null,null,"Standard Change Proposal","DCP 325 Change Proposal ","Under Development - Definition Stage",null,"-","-","ElectraLink Ltd","Live","Distribution Connection Use of System Agreement","DCP 325","Reviewing the requirements of Sections 35A, 35B, Schedule 15 and Schedule 20.","The intent of this Change Proposal is to combine, review and if appropriate, amend the requirements of Section 35A, Section 35B, Schedule 15 and Schedule 20 to improve transparency and efficiency in the data published by DNOs","Northern Powergrid","2018-07-11",null,null,"Standard Change Proposal","DCP 325 Change Proposal ","Under Development - Definition Stage",null,"-","-","ElectraLink Ltd","Live","Distribution Connection Use of System Agreement","DCP 325","Reviewing the requirements of Sections 35A, 35B, Schedule 15 and Schedule 20.","The intent of this Change Proposal is to combine, review and if appropriate, amend the requirements of Section 35A, Section 35B, Schedule 15 and Schedule 20 to improve transparency and efficiency in the data published by DNOs","Northern Powergrid","2018-07-11",null,null,"Standard Change Proposal","DCP 325 Change Proposal ","Under Development - Definition Stage",null,"-","-","ElectraLink Ltd","Live","Distribution Connection Use of System Agreement","DCP 325","Reviewing the requirements of Sections 35A, 35B, Schedule 15 and Schedule 20.","The intent of this Change Proposal is to combine, review and if appropriate, amend the requirements of Section 35A, Section 35B, Schedule 15 and Schedule 20 to improve transparency and efficiency in the data published by DNOs","Northern Powergrid","2018-07-11",null,null,"Standard Change Proposal","DCP 325 Change Proposal ","Under Development - Definition Stage",null,"-","-","ElectraLink Ltd","Live","Distribution Connection Use of System Agreement","DCP 325","Reviewing the requirements of Sections 35A, 35B, Schedule 15 and Schedule 20.","The intent of this Change Proposal is to combine, review and if appropriate, amend the requirements of Section 35A, Section 35B, Schedule 15 and Schedule 20 to improve transparency and efficiency in the data published by DNOs","Northern Powergrid","2018-07-11",null,null,"Standard Change Proposal","DCP 325 Change Proposal ","Under Development - Definition Stage",null,"-","-","ElectraLink Ltd","Live","Distribution Connection Use of System Agreement","DCP 325","Reviewing the requirements of Sections 35A, 35B, Schedule 15 and Schedule 20.","The intent of this Change Proposal is to combine, review and if appropriate, amend the requirements of Section 35A, Section 35B, Schedule 15 and Schedule 20 to improve transparency and efficiency in the data published by DNOs","Northern Powergrid","2018-07-11",null,null,"Standard Change Proposal","DCP 325 Change Proposal ","Under Development - Definition Stage",null,"-","-","ElectraLink Ltd","Live","Distribution Connection Use of System Agreement","DCP 325","Reviewing the requirements of Sections 35A, 35B, Schedule 15 and Schedule 20.","The intent of this Change Proposal is to combine, review and if appropriate, amend the requirements of Section 35A, Section 35B, Schedule 15 and Schedule 20 to improve transparency and efficiency in the data published by DNOs","Northern Powergrid","2018-07-11",null,null,"Standard Change Proposal","DCP 325 Change Proposal ","Under Development - Definition Stage",null,"-","-","ElectraLink Ltd","Live","Distribution Connection Use of System Agreement","DCP 325","Reviewing the requirements of Sections 35A, 35B, Schedule 15 and Schedule 20.","The intent of this Change Proposal is to combine, review and if appropriate, amend the requirements of Section 35A, Section 35B, Schedule 15 and Schedule 20 to improve transparency and efficiency in the data published by DNOs","Northern Powergrid","2018-07-11",null,null,"Standard Change Proposal","DCP 325 Change Proposal ","Under Development - Definition Stage",null,"-","-","ElectraLink Ltd","Live","Distribution Connection Use of System Agreement","DCP 325","Reviewing the requirements of Sections 35A, 35B, Schedule 15 and Schedule 20.","The intent of this Change Proposal is to combine, review and if appropriate, amend the requirements of Section 35A, Section 35B, Schedule 15 and Schedule 20 to improve transparency and efficiency in the data published by DNOs","Northern Powergrid","2018-07-11",null,null,"Standard Change Proposal","DCP 325 Change Proposal ","Under Development - Definition Stage",null,"-","-","ElectraLink Ltd","Live","Distribution Connection Use of System Agreement","DCP 325","Reviewing the requirements of Sections 35A, 35B, Schedule 15 and Schedule 20.","The intent of this Change Proposal is to combine, review and if appropriate, amend the requirements of Section 35A, Section 35B, Schedule 15 and Schedule 20 to improve transparency and efficiency in the data published by DNOs","Northern Powergrid","2018-07-11",null,null,"Standard Change Proposal","DCP 325 Change Proposal ","Under Development - Definition Stage",null,"-","-","ElectraLink Ltd","Live","Distribution Connection Use of System Agreement","DCP 325","Reviewing the requirements of Sections 35A, 35B, Schedule 15 and Schedule 20.","The intent of this Change Proposal is to combine, review and if appropriate, amend the requirements of Section 35A, Section 35B, Schedule 15 and Schedule 20 to improve transparency and efficiency in the data published by DNOs","Northern Powergrid","2018-07-11",null,null,"Standard Change Proposal","DCP 325 Change Proposal ","Under Development - Definition Stage",null,"-","-","ElectraLink Ltd","Live","Distribution Connection Use of System Agreement","DCP 325","Reviewing the requirements of Sections 35A, 35B, Schedule 15 and Schedule 20.","The intent of this Change Proposal is to combine, review and if appropriate, amend the requirements of Section 35A, Section 35B, Schedule 15 and Schedule 20 to improve transparency and efficiency in the data published by DNOs","Northern Powergrid","2018-07-11",null,null,"Standard Change Proposal","DCP 325 Change Proposal ","Under Development - Definition Stage",null,"-","-","ElectraLink Ltd","Live","Distribution Connection Use of System Agreement","DCP 325","Reviewing the requirements of Sections 35A, 35B, Schedule 15 and Schedule 20.","The intent of this Change Proposal is to combine, review and if appropriate, amend the requirements of Section 35A, Section 35B, Schedule 15 and Schedule 20 to improve transparency and efficiency in the data published by DNOs","Northern Powergrid","2018-07-11",null,null,"Standard Change Proposal","DCP 325 Change Proposal ","Under Development - Definition Stage",null,"-","-","ElectraLink Ltd","Live","Distribution Connection Use of System Agreement","DCP 325","Reviewing the requirements of Sections 35A, 35B, Schedule 15 and Schedule 20.","The intent of this Change Proposal is to combine, review and if appropriate, amend the requirements of Section 35A, Section 35B, Schedule 15 and Schedule 20 to improve transparency and efficiency in the data published by DNOs","Northern Powergrid","2018-07-11",null,null,"Standard Change Proposal","DCP 325 Change Proposal ","Under Development - Definition Stage",null,"-","-","ElectraLink Ltd","Live","Distribution Connection Use of System Agreement","DCP 325","Reviewing the requirements of Sections 35A, 35B, Schedule 15 and Schedule 20.","The intent of this Change Proposal is to combine, review and if appropriate, amend the requirements of Section 35A, Section 35B, Schedule 15 and Schedule 20 to improve transparency and efficiency in the data published by DNOs","Northern Powergrid","2018-07-11",null,null,"Standard Change Proposal","DCP 325 Change Proposal ","Under Development - Definition Stage",null,"-","-","ElectraLink Ltd","Live","Distribution Connection Use of System Agreement","DCP 325","Reviewing the requirements of Sections 35A, 35B, Schedule 15 and Schedule 20.","The intent of this Change Proposal is to combine, review and if appropriate, amend the requirements of Section 35A, Section 35B, Schedule 15 and Schedule 20 to improve transparency and efficiency in the data published by DNOs","Northern Powergrid","2018-07-11",null,null,"Standard Change Proposal","DCP 325 Change Proposal ","Under Development - Definition Stage",null,"-","-","ElectraLink Ltd","Live","Distribution Connection Use of System Agreement","DCP 325","Reviewing the requirements of Sections 35A, 35B, Schedule 15 and Schedule 20.","The intent of this Change Proposal is to combine, review and if appropriate, amend the requirements of Section 35A, Section 35B, Schedule 15 and Schedule 20 to improve transparency and efficiency in the data published by DNOs","Northern Powergrid","2018-07-11",null,null,"Standard Change Proposal","DCP 325 Change Proposal ","Under Development - Definition Stage",null,"-","-","ElectraLink Ltd","Live","Distribution Connection Use of System Agreement","DCP 325","Reviewing the requirements of Sections 35A, 35B, Schedule 15 and Schedule 20.","The intent of this Change Proposal is to combine, review and if appropriate, amend the requirements of Section 35A, Section 35B, Schedule 15 and Schedule 20 to improve transparency and efficiency in the data published by DNOs","Northern Powergrid","2018-07-11",null,null,"Standard Change Proposal","DCP 325 Change Proposal ","Under Development - Definition Stage",null,"-","-","ElectraLink Ltd","Live","Distribution Connection Use of System Agreement","DCP 325","Reviewing the requirements of Sections 35A, 35B, Schedule 15 and Schedule 20.","The intent of this Change Proposal is to combine, review and if appropriate, amend the requirements of Section 35A, Section 35B, Schedule 15 and Schedule 20 to improve transparency and efficiency in the data published by DNOs","Northern Powergrid","2018-07-11",null,null,"Standard Change Proposal","DCP 325 Change Proposal ","Under Development - Definition Stage",null,"-","-","ElectraLink Ltd","Live","Distribution Connection Use of System Agreement","DCP 325","Reviewing the requirements of Sections 35A, 35B, Schedule 15 and Schedule 20.","The intent of this Change Proposal is to combine, review and if appropriate, amend the requirements of Section 35A, Section 35B, Schedule 15 and Schedule 20 to improve transparency and efficiency in the data published by DNOs","Northern Powergrid","2018-07-11",null,null,"Standard Change Proposal","DCP 325 Change Proposal ","Under Development - Definition Stage",null,"-","-","ElectraLink Ltd","Live","Distribution Connection Use of System Agreement","DCP 325","Reviewing the requirements of Sections 35A, 35B, Schedule 15 and Schedule 20.","The intent of this Change Proposal is to combine, review and if appropriate, amend the requirements of Section 35A, Section 35B, Schedule 15 and Schedule 20 to improve transparency and efficiency in the data published by DNOs","Northern Powergrid","2018-07-11",null,null,"Standard Change Proposal","DCP 325 Change Proposal ","Under Development - Definition Stage",null,"-","-","ElectraLink Ltd","Live","Distribution Connection Use of System Agreement","DCP 325","Reviewing the requirements of Sections 35A, 35B, Schedule 15 and Schedule 20.","The intent of this Change Proposal is to combine, review and if appropriate, amend the requirements of Section 35A, Section 35B, Schedule 15 and Schedule 20 to improve transparency and efficiency in the data published by DNOs","Northern Powergrid","2018-07-11",null,null,"Standard Change Proposal","DCP 325 Change Proposal ","Under Development - Definition Stage",null,"-","-","ElectraLink Ltd","Live","Distribution Connection Use of System Agreement","DCP 325","Reviewing the requirements of Sections 35A, 35B, Schedule 15 and Schedule 20.","The intent of this Change Proposal is to combine, review and if appropriate, amend the requirements of Section 35A, Section 35B, Schedule 15 and Schedule 20 to improve transparency and efficiency in the data published by DNOs","Northern Powergrid","2018-07-11",null,null,"Standard Change Proposal","DCP 325 Change Proposal ","Under Development - Definition Stage",null,"-","-","ElectraLink Ltd","Live","Distribution Connection Use of System Agreement","DCP 325","Reviewing the requirements of Sections 35A, 35B, Schedule 15 and Schedule 20.","The intent of this Change Proposal is to combine, review and if appropriate, amend the requirements of Section 35A, Section 35B, Schedule 15 and Schedule 20 to improve transparency and efficiency in the data published by DNOs","Northern Powergrid","2018-07-11",null,null,"Standard Change Proposal","DCP 325 Change Proposal ","Under Development - Definition Stage",null,"-","-","ElectraLink Ltd","Live","Distribution Connection Use of System Agreement","DCP 325","Reviewing the requirements of Sections 35A, 35B, Schedule 15 and Schedule 20.","The intent of this Change Proposal is to combine, review and if appropriate, amend the requirements of Section 35A, Section 35B, Schedule 15 and Schedule 20 to improve transparency and efficiency in the data published by DNOs","Northern Powergrid","2018-07-11",null,null,"Standard Change Proposal","DCP 325 Change Proposal ","Under Development - Definition Stage",null,"-","-","ElectraLink Ltd","Live","Distribution Connection Use of System Agreement","DCP 325","Reviewing the requirements of Sections 35A, 35B, Schedule 15 and Schedule 20.","The intent of this Change Proposal is to combine, review and if appropriate, amend the requirements of Section 35A, Section 35B, Schedule 15 and Schedule 20 to improve transparency and efficiency in the data published by DNOs","Northern Powergrid","2018-07-11",null,null,"Standard Change Proposal","DCP 325 Change Proposal ","Under Development - Definition Stage",null,"-","-","ElectraLink Ltd","Live","Distribution Connection Use of System Agreement","DCP 325","Reviewing the requirements of Sections 35A, 35B, Schedule 15 and Schedule 20.","The intent of this Change Proposal is to combine, review and if appropriate, amend the requirements of Section 35A, Section 35B, Schedule 15 and Schedule 20 to improve transparency and efficiency in the data published by DNOs","Northern Powergrid","2018-07-11",null,null,"Standard Change Proposal","DCP 325 Change Proposal ","Under Development - Definition Stage",null,"-","-","ElectraLink Ltd","Live","Distribution Connection Use of System Agreement","DCP 325","Reviewing the requirements of Sections 35A, 35B, Schedule 15 and Schedule 20.","The intent of this Change Proposal is to combine, review and if appropriate, amend the requirements of Section 35A, Section 35B, Schedule 15 and Schedule 20 to improve transparency and efficiency in the data published by DNOs","Northern Powergrid","2018-07-11",null,null,"Standard Change Proposal","DCP 325 Change Proposal ","Under Development - Definition Stage",null,"-","-","ElectraLink Ltd","Live","Distribution Connection Use of System Agreement","DCP 325","Reviewing the requirements of Sections 35A, 35B, Schedule 15 and Schedule 20.","The intent of this Change Proposal is to combine, review and if appropriate, amend the requirements of Section 35A, Section 35B, Schedule 15 and Schedule 20 to improve transparency and efficiency in the data published by DNOs","Northern Powergrid","2018-07-11",null,null,"Standard Change Proposal","DCP 325 Change Proposal ","Under Development - Definition Stage",null,"-","-","ElectraLink Ltd","Live","Distribution Connection Use of System Agreement","DCP 325","Reviewing the requirements of Sections 35A, 35B, Schedule 15 and Schedule 20.","The intent of this Change Proposal is to combine, review and if appropriate, amend the requirements of Section 35A, Section 35B, Schedule 15 and Schedule 20 to improve transparency and efficiency in the data published by DNOs","Northern Powergrid","2018-07-11",null,null,"Standard Change Proposal","DCP 325 Change Proposal ","Under Development - Definition Stage",null,"-","-","ElectraLink Ltd","Live","Distribution Connection Use of System Agreement","DCP 325","Reviewing the requirements of Sections 35A, 35B, Schedule 15 and Schedule 20.","The intent of this Change Proposal is to combine, review and if appropriate, amend the requirements of Section 35A, Section 35B, Schedule 15 and Schedule 20 to improve transparency and efficiency in the data published by DNOs","Northern Powergrid","2018-07-11",null,null,"Standard Change Proposal","DCP 325 Change Proposal ","Under Development - Definition Stage",null,"-","-","ElectraLink Ltd","Live","Distribution Connection Use of System Agreement","DCP 325","Reviewing the requirements of Sections 35A, 35B, Schedule 15 and Schedule 20.","The intent of this Change Proposal is to combine, review and if appropriate, amend the requirements of Section 35A, Section 35B, Schedule 15 and Schedule 20 to improve transparency and efficiency in the data published by DNOs","Northern Powergrid","2018-07-11",null,null,"Standard Change Proposal","DCP 325 Change Proposal ","Under Development - Definition Stage",null,"-","-","ElectraLink Ltd","Live","Distribution Connection Use of System Agreement","DCP 325","Reviewing the requirements of Sections 35A, 35B, Schedule 15 and Schedule 20.","The intent of this Change Proposal is to combine, review and if appropriate, amend the requirements of Section 35A, Section 35B, Schedule 15 and Schedule 20 to improve transparency and efficiency in the data published by DNOs","Northern Powergrid","2018-07-11",null,null,"Standard Change Proposal","DCP 325 Change Proposal ","Under Development - Definition Stage",null,"-","-","ElectraLink Ltd","Live","Distribution Connection Use of System Agreement","DCP 325","Reviewing the requirements of Sections 35A, 35B, Schedule 15 and Schedule 20.","The intent of this Change Proposal is to combine, review and if appropriate, amend the requirements of Section 35A, Section 35B, Schedule 15 and Schedule 20 to improve transparency and efficiency in the data published by DNOs","Northern Powergrid","2018-07-11",null,null,"Standard Change Proposal","DCP 325 Change Proposal ","Under Development - Definition Stage",null,"-","-","ElectraLink Ltd","Live","Distribution Connection Use of System Agreement","DCP 325","Reviewing the requirements of Sections 35A, 35B, Schedule 15 and Schedule 20.","The intent of this Change Proposal is to combine, review and if appropriate, amend the requirements of Section 35A, Section 35B, Schedule 15 and Schedule 20 to improve transparency and efficiency in the data published by DNOs","Northern Powergrid","2018-07-11",null,null,"Standard Change Proposal","DCP 325 Change Proposal ","Under Development - Definition Stage",null,"-","-","ElectraLink Ltd","Live","Distribution Connection Use of System Agreement","DCP 325","Reviewing the requirements of Sections 35A, 35B, Schedule 15 and Schedule 20.","The intent of this Change Proposal is to combine, review and if appropriate, amend the requirements of Section 35A, Section 35B, Schedule 15 and Schedule 20 to improve transparency and efficiency in the data published by DNOs","Northern Powergrid","2018-07-11",null,null,"Standard Change Proposal","DCP 325 Change Proposal ","Under Development - Definition Stage",null,"-","-","ElectraLink Ltd","Live","Distribution Connection Use of System Agreement","DCP 325","Reviewing the requirements of Sections 35A, 35B, Schedule 15 and Schedule 20.","The intent of this Change Proposal is to combine, review and if appropriate, amend the requirements of Section 35A, Section 35B, Schedule 15 and Schedule 20 to improve transparency and efficiency in the data published by DNOs","Northern Powergrid","2018-07-11",null,null,"Standard Change Proposal","DCP 325 Change Proposal ","Under Development - Definition Stage",null,"-","-","ElectraLink Ltd","Live","Distribution Connection Use of System Agreement","DCP 325","Reviewing the requirements of Sections 35A, 35B, Schedule 15 and Schedule 20.","The intent of this Change Proposal is to combine, review and if appropriate, amend the requirements of Section 35A, Section 35B, Schedule 15 and Schedule 20 to improve transparency and efficiency in the data published by DNOs","Northern Powergrid","2018-07-11",null,null,"Standard Change Proposal","DCP 325 Change Proposal ","Under Development - Definition Stage",null,"-","-","ElectraLink Ltd","Live","Distribution Connection Use of System Agreement","DCP 325","Reviewing the requirements of Sections 35A, 35B, Schedule 15 and Schedule 20.","The intent of this Change Proposal is to combine, review and if appropriate, amend the requirements of Section 35A, Section 35B, Schedule 15 and Schedule 20 to improve transparency and efficiency in the data published by DNOs","Northern Powergrid","2018-07-11",null,null,"Standard Change Proposal","DCP 325 Change Proposal ","Under Development - Definition Stage",null,"-","-","ElectraLink Ltd","Live","Distribution Connection Use of System Agreement","DCP 325","Reviewing the requirements of Sections 35A, 35B, Schedule 15 and Schedule 20.","The intent of this Change Proposal is to combine, review and if appropriate, amend the requirements of Section 35A, Section 35B, Schedule 15 and Schedule 20 to improve transparency and efficiency in the data published by DNOs","Northern Powergrid","2018-07-11",null,null,"Standard Change Proposal","DCP 325 Change Proposal ","Under Development - Definition Stage",null,"-","-","ElectraLink Ltd","Live","Distribution Connection Use of System Agreement","DCP 325","Reviewing the requirements of Sections 35A, 35B, Schedule 15 and Schedule 20.","The intent of this Change Proposal is to combine, review and if appropriate, amend the requirements of Section 35A, Section 35B, Schedule 15 and Schedule 20 to improve transparency and efficiency in the data published by DNOs","Northern Powergrid","2018-07-11",null,null,"Standard Change Proposal","DCP 325 Change Proposal ","Under Development - Definition Stage",null,"-","-","ElectraLink Ltd","Live","Distribution Connection Use of System Agreement","DCP 325","Reviewing the requirements of Sections 35A, 35B, Schedule 15 and Schedule 20.","The intent of this Change Proposal is to combine, review and if appropriate, amend the requirements of Section 35A, Section 35B, Schedule 15 and Schedule 20 to improve transparency and efficiency in the data published by DNOs","Northern Powergrid","2018-07-11",null,null,"Standard Change Proposal","DCP 325 Change Proposal ","Under Development - Definition Stage",null,"-","-","ElectraLink Ltd","Live","Distribution Connection Use of System Agreement","DCP 325","Reviewing the requirements of Sections 35A, 35B, Schedule 15 and Schedule 20.","The intent of this Change Proposal is to combine, review and if appropriate, amend the requirements of Section 35A, Section 35B, Schedule 15 and Schedule 20 to improve transparency and efficiency in the data published by DNOs","Northern Powergrid","2018-07-11",null,null,"Standard Change Proposal","DCP 325 Change Proposal ","Under Development - Definition Stage",null,"-","-","ElectraLink Ltd","Live","Distribution Connection Use of System Agreement","DCP 325","Reviewing the requirements of Sections 35A, 35B, Schedule 15 and Schedule 20.","The intent of this Change Proposal is to combine, review and if appropriate, amend the requirements of Section 35A, Section 35B, Schedule 15 and Schedule 20 to improve transparency and efficiency in the data published by DNOs","Northern Powergrid","2018-07-11",null,null,"Standard Change Proposal","DCP 325 Change Proposal ","Under Development - Definition Stage",null,"-","-","ElectraLink Ltd","Live","Distribution Connection Use of System Agreement","DCP 325","Reviewing the requirements of Sections 35A, 35B, Schedule 15 and Schedule 20.","The intent of this Change Proposal is to combine, review and if appropriate, amend the requirements of Section 35A, Section 35B, Schedule 15 and Schedule 20 to improve transparency and efficiency in the data published by DNOs","Northern Powergrid","2018-07-11",null,null,"Standard Change Proposal","DCP 325 Change Proposal ","Under Development - Definition Stage",null,"-","-","ElectraLink Ltd","Live","Distribution Connection Use of System Agreement","DCP 325","Reviewing the requirements of Sections 35A, 35B, Schedule 15 and Schedule 20.","The intent of this Change Proposal is to combine, review and if appropriate, amend the requirements of Section 35A, Section 35B, Schedule 15 and Schedule 20 to improve transparency and efficiency in the data published by DNOs","Northern Powergrid","2018-07-11",null,null,"Standard Change Proposal","DCP 325 Change Proposal ","Under Development - Definition Stage",null,"-","-","ElectraLink Ltd","Live","Distribution Connection Use of System Agreement","DCP 325","Reviewing the requirements of Sections 35A, 35B, Schedule 15 and Schedule 20.","The intent of this Change Proposal is to combine, review and if appropriate, amend the requirements of Section 35A, Section 35B, Schedule 15 and Schedule 20 to improve transparency and efficiency in the data published by DNOs","Northern Powergrid","2018-07-11",null,null,"Standard Change Proposal","DCP 325 Change Proposal ","Under Development - Definition Stage",null,"-","-","ElectraLink Ltd","Live","Distribution Connection Use of System Agreement","DCP 325","Reviewing the requirements of Sections 35A, 35B, Schedule 15 and Schedule 20.","The intent of this Change Proposal is to combine, review and if appropriate, amend the requirements of Section 35A, Section 35B, Schedule 15 and Schedule 20 to improve transparency and efficiency in the data published by DNOs","Northern Powergrid","2018-07-11",null,null,"Standard Change Proposal","DCP 325 Change Proposal ","Under Development - Definition Stage",null,"-","-","ElectraLink Ltd","Live","Distribution Connection Use of System Agreement","DCP 325","Reviewing the requirements of Sections 35A, 35B, Schedule 15 and Schedule 20.","The intent of this Change Proposal is to combine, review and if appropriate, amend the requirements of Section 35A, Section 35B, Schedule 15 and Schedule 20 to improve transparency and efficiency in the data published by DNOs","Northern Powergrid","2018-07-11",null,null,"Standard Change Proposal","DCP 325 Change Proposal ","Under Development - Definition Stage",null,"-","-","ElectraLink Ltd","Live","Distribution Connection Use of System Agreement","DCP 325","Reviewing the requirements of Sections 35A, 35B, Schedule 15 and Schedule 20.","The intent of this Change Proposal is to combine, review and if appropriate, amend the requirements of Section 35A, Section 35B, Schedule 15 and Schedule 20 to improve transparency and efficiency in the data published by DNOs","Northern Powergrid","2018-07-11",null,null,"Standard Change Proposal","DCP 325 Change Proposal ","Under Development - Definition Stage",null,"-","-","ElectraLink Ltd","Live","Distribution Connection Use of System Agreement","DCP 325","Reviewing the requirements of Sections 35A, 35B, Schedule 15 and Schedule 20.","The intent of this Change Proposal is to combine, review and if appropriate, amend the requirements of Section 35A, Section 35B, Schedule 15 and Schedule 20 to improve transparency and efficiency in the data published by DNOs","Northern Powergrid","2018-07-11",null,null,"Standard Change Proposal","DCP 325 Change Proposal ","Under Development - Definition Stage",null,"-","-","ElectraLink Ltd","Live","Distribution Connection Use of System Agreement","DCP 325","Reviewing the requirements of Sections 35A, 35B, Schedule 15 and Schedule 20.","The intent of this Change Proposal is to combine, review and if appropriate, amend the requirements of Section 35A, Section 35B, Schedule 15 and Schedule 20 to improve transparency and efficiency in the data published by DNOs","Northern Powergrid","2018-07-11",null,null,"Standard Change Proposal","DCP 325 Change Proposal ","Under Development - Definition Stage",null,"-","-","ElectraLink Ltd","Live","Distribution Connection Use of System Agreement","DCP 325","Reviewing the requirements of Sections 35A, 35B, Schedule 15 and Schedule 20.","The intent of this Change Proposal is to combine, review and if appropriate, amend the requirements of Section 35A, Section 35B, Schedule 15 and Schedule 20 to improve transparency and efficiency in the data published by DNOs","Northern Powergrid","2018-07-11",null,null,"Standard Change Proposal","DCP 325 Change Proposal ","Under Development - Definition Stage",null,"-","-","ElectraLink Ltd","Live","Distribution Connection Use of System Agreement","DCP 325","Reviewing the requirements of Sections 35A, 35B, Schedule 15 and Schedule 20.","The intent of this Change Proposal is to combine, review and if appropriate, amend the requirements of Section 35A, Section 35B, Schedule 15 and Schedule 20 to improve transparency and efficiency in the data published by DNOs","Northern Powergrid","2018-07-11",null,null,"Standard Change Proposal","DCP 325 Change Proposal ","Under Development - Definition Stage",null,"-","-","ElectraLink Ltd","Live","Distribution Connection Use of System Agreement","DCP 325","Reviewing the requirements of Sections 35A, 35B, Schedule 15 and Schedule 20.","The intent of this Change Proposal is to combine, review and if appropriate, amend the requirements of Section 35A, Section 35B, Schedule 15 and Schedule 20 to improve transparency and efficiency in the data published by DNOs","Northern Powergrid","2018-07-11",null,null,"Standard Change Proposal","DCP 325 Change Proposal ","Under Development - Definition Stage",null,"-","-","ElectraLink Ltd","Live","Distribution Connection Use of System Agreement","DCP 325","Reviewing the requirements of Sections 35A, 35B, Schedule 15 and Schedule 20.","The intent of this Change Proposal is to combine, review and if appropriate, amend the requirements of Section 35A, Section 35B, Schedule 15 and Schedule 20 to improve transparency and efficiency in the data published by DNOs","Northern Powergrid","2018-07-11",null,null,"Standard Change Proposal","DCP 325 Change Proposal ","Under Development - Definition Stage",null,"-","-","ElectraLink Ltd","Live","Distribution Connection Use of System Agreement","DCP 325","Reviewing the requirements of Sections 35A, 35B, Schedule 15 and Schedule 20.","The intent of this Change Proposal is to combine, review and if appropriate, amend the requirements of Section 35A, Section 35B, Schedule 15 and Schedule 20 to improve transparency and efficiency in the data published by DNOs","Northern Powergrid","2018-07-11",null,null,"Standard Change Proposal","DCP 325 Change Proposal ","Under Development - Definition Stage",null,"-","-","ElectraLink Ltd","Live","Distribution Connection Use of System Agreement","DCP 325","Reviewing the requirements of Sections 35A, 35B, Schedule 15 and Schedule 20.","The intent of this Change Proposal is to combine, review and if appropriate, amend the requirements of Section 35A, Section 35B, Schedule 15 and Schedule 20 to improve transparency and efficiency in the data published by DNOs","Northern Powergrid","2018-07-11",null,null,"Standard Change Proposal","DCP 325 Change Proposal ","Under Development - Definition Stage",null,"-","-","ElectraLink Ltd","Live","Distribution Connection Use of System Agreement","DCP 325","Reviewing the requirements of Sections 35A, 35B, Schedule 15 and Schedule 20.","The intent of this Change Proposal is to combine, review and if appropriate, amend the requirements of Section 35A, Section 35B, Schedule 15 and Schedule 20 to improve transparency and efficiency in the data published by DNOs","Northern Powergrid","2018-07-11",null,null,"Standard Change Proposal","DCP 325 Change Proposal ","Under Development - Definition Stage",null,"-","-","ElectraLink Ltd","Live","Distribution Connection Use of System Agreement","DCP 325","Reviewing the requirements of Sections 35A, 35B, Schedule 15 and Schedule 20.","The intent of this Change Proposal is to combine, review and if appropriate, amend the requirements of Section 35A, Section 35B, Schedule 15 and Schedule 20 to improve transparency and efficiency in the data published by DNOs","Northern Powergrid","2018-07-11",null,null,"Standard Change Proposal","DCP 325 Change Proposal ","Under Development - Definition Stage",null,"-","-","ElectraLink Ltd","Live","Distribution Connection Use of System Agreement","DCP 325","Reviewing the requirements of Sections 35A, 35B, Schedule 15 and Schedule 20.","The intent of this Change Proposal is to combine, review and if appropriate, amend the requirements of Section 35A, Section 35B, Schedule 15 and Schedule 20 to improve transparency and efficiency in the data published by DNOs","Northern Powergrid","2018-07-11",null,null,"Standard Change Proposal","DCP 325 Change Proposal ","Under Development - Definition Stage",null,"-","-","ElectraLink Ltd","Live","Distribution Connection Use of System Agreement","DCP 325","Reviewing the requirements of Sections 35A, 35B, Schedule 15 and Schedule 20.","The intent of this Change Proposal is to combine, review and if appropriate, amend the requirements of Section 35A, Section 35B, Schedule 15 and Schedule 20 to improve transparency and efficiency in the data published by DNOs","Northern Powergrid","2018-07-11",null,null,"Standard Change Proposal","DCP 325 Change Proposal ","Under Development - Definition Stage",null,"-","-","ElectraLink Ltd","Live","Distribution Connection Use of System Agreement","DCP 325","Reviewing the requirements of Sections 35A, 35B, Schedule 15 and Schedule 20.","The intent of this Change Proposal is to combine, review and if appropriate, amend the requirements of Section 35A, Section 35B, Schedule 15 and Schedule 20 to improve transparency and efficiency in the data published by DNOs","Northern Powergrid","2018-07-11",null,null,"Standard Change Proposal","DCP 325 Change Proposal ","Under Development - Definition Stage",null,"-","-","ElectraLink Ltd","Live","Distribution Connection Use of System Agreement","DCP 325","Reviewing the requirements of Sections 35A, 35B, Schedule 15 and Schedule 20.","The intent of this Change Proposal is to combine, review and if appropriate, amend the requirements of Section 35A, Section 35B, Schedule 15 and Schedule 20 to improve transparency and efficiency in the data published by DNOs","Northern Powergrid","2018-07-11",null,null,"Standard Change Proposal","DCP 325 Change Proposal ","Under Development - Definition Stage",null,"-","-","ElectraLink Ltd","Live","Distribution Connection Use of System Agreement","DCP 325","Reviewing the requirements of Sections 35A, 35B, Schedule 15 and Schedule 20.","The intent of this Change Proposal is to combine, review and if appropriate, amend the requirements of Section 35A, Section 35B, Schedule 15 and Schedule 20 to improve transparency and efficiency in the data published by DNOs","Northern Powergrid","2018-07-11",null,null,"Standard Change Proposal","DCP 325 Change Proposal ","Under Development - Definition Stage",null,"-","-","ElectraLink Ltd","Live","Distribution Connection Use of System Agreement","DCP 325","Reviewing the requirements of Sections 35A, 35B, Schedule 15 and Schedule 20.","The intent of this Change Proposal is to combine, review and if appropriate, amend the requirements of Section 35A, Section 35B, Schedule 15 and Schedule 20 to improve transparency and efficiency in the data published by DNOs","Northern Powergrid","2018-07-11",null,null,"Standard Change Proposal","DCP 325 Change Proposal ","Under Development - Definition Stage",null,"-","-","ElectraLink Ltd","Live","Distribution Connection Use of System Agreement","DCP 325","Reviewing the requirements of Sections 35A, 35B, Schedule 15 and Schedule 20.","The intent of this Change Proposal is to combine, review and if appropriate, amend the requirements of Section 35A, Section 35B, Schedule 15 and Schedule 20 to improve transparency and efficiency in the data published by DNOs","Northern Powergrid","2018-07-11",null,null,"Standard Change Proposal","DCP 325 Change Proposal ","Under Development - Definition Stage",null,"-","-","ElectraLink Ltd","Live","Distribution Connection Use of System Agreement","DCP 325","Reviewing the requirements of Sections 35A, 35B, Schedule 15 and Schedule 20.","The intent of this Change Proposal is to combine, review and if appropriate, amend the requirements of Section 35A, Section 35B, Schedule 15 and Schedule 20 to improve transparency and efficiency in the data published by DNOs","Northern Powergrid","2018-07-11",null,null,"Standard Change Proposal","DCP 325 Change Proposal ","Under Development - Definition Stage",null,"-","-","ElectraLink Ltd","Live","Distribution Connection Use of System Agreement","DCP 325","Reviewing the requirements of Sections 35A, 35B, Schedule 15 and Schedule 20.","The intent of this Change Proposal is to combine, review and if appropriate, amend the requirements of Section 35A, Section 35B, Schedule 15 and Schedule 20 to improve transparency and efficiency in the data published by DNOs","Northern Powergrid","2018-07-11",null,null,"Standard Change Proposal","DCP 325 Change Proposal ","Under Development - Definition Stage",null,"-","-","ElectraLink Ltd","Live","Distribution Connection Use of System Agreement","DCP 325","Reviewing the requirements of Sections 35A, 35B, Schedule 15 and Schedule 20.","The intent of this Change Proposal is to combine, review and if appropriate, amend the requirements of Section 35A, Section 35B, Schedule 15 and Schedule 20 to improve transparency and efficiency in the data published by DNOs","Northern Powergrid","2018-07-11",null,null,"Standard Change Proposal","DCP 325 Change Proposal ","Under Development - Definition Stage",null,"-","-","ElectraLink Ltd","Live","Distribution Connection Use of System Agreement","DCP 325","Reviewing the requirements of Sections 35A, 35B, Schedule 15 and Schedule 20.","The intent of this Change Proposal is to combine, review and if appropriate, amend the requirements of Section 35A, Section 35B, Schedule 15 and Schedule 20 to improve transparency and efficiency in the data published by DNOs","Northern Powergrid","2018-07-11",null,null,"Standard Change Proposal","DCP 325 Change Proposal ","Under Development - Definition Stage",null,"-","-","ElectraLink Ltd","Live","Distribution Connection Use of System Agreement","DCP 325","Reviewing the requirements of Sections 35A, 35B, Schedule 15 and Schedule 20.","The intent of this Change Proposal is to combine, review and if appropriate, amend the requirements of Section 35A, Section 35B, Schedule 15 and Schedule 20 to improve transparency and efficiency in the data published by DNOs","Northern Powergrid","2018-07-11",null,null,"Standard Change Proposal","DCP 325 Change Proposal ","Under Development - Definition Stage",null,"-","-","ElectraLink Ltd","Live","Distribution Connection Use of System Agreement","DCP 325","Reviewing the requirements of Sections 35A, 35B, Schedule 15 and Schedule 20.","The intent of this Change Proposal is to combine, review and if appropriate, amend the requirements of Section 35A, Section 35B, Schedule 15 and Schedule 20 to improve transparency and efficiency in the data published by DNOs","Northern Powergrid","2018-07-11",null,null,"Standard Change Proposal","DCP 325 Change Proposal ","Under Development - Definition Stage",null,"-","-","ElectraLink Ltd","Live","Distribution Connection Use of System Agreement","DCP 325","Reviewing the requirements of Sections 35A, 35B, Schedule 15 and Schedule 20.","The intent of this Change Proposal is to combine, review and if appropriate, amend the requirements of Section 35A, Section 35B, Schedule 15 and Schedule 20 to improve transparency and efficiency in the data published by DNOs","Northern Powergrid","2018-07-11",null,null,"Standard Change Proposal","DCP 325 Change Proposal ","Under Development - Definition Stage",null,"-","-","ElectraLink Ltd","Live","Distribution Connection Use of System Agreement","DCP 325","Reviewing the requirements of Sections 35A, 35B, Schedule 15 and Schedule 20.","The intent of this Change Proposal is to combine, review and if appropriate, amend the requirements of Section 35A, Section 35B, Schedule 15 and Schedule 20 to improve transparency and efficiency in the data published by DNOs","Northern Powergrid","2018-07-11",null,null,"Standard Change Proposal","DCP 325 Change Proposal ","Under Development - Definition Stage",null,"-","-","ElectraLink Ltd","Live","Distribution Connection Use of System Agreement","DCP 325","Reviewing the requirements of Sections 35A, 35B, Schedule 15 and Schedule 20.","The intent of this Change Proposal is to combine, review and if appropriate, amend the requirements of Section 35A, Section 35B, Schedule 15 and Schedule 20 to improve transparency and efficiency in the data published by DNOs","Northern Powergrid","2018-07-11",null,null,"Standard Change Proposal","DCP 325 Change Proposal ","Under Development - Definition Stage",null,"-","-","ElectraLink Ltd","Live","Distribution Connection Use of System Agreement","DCP 325","Reviewing the requirements of Sections 35A, 35B, Schedule 15 and Schedule 20.","The intent of this Change Proposal is to combine, review and if appropriate, amend the requirements of Section 35A, Section 35B, Schedule 15 and Schedule 20 to improve transparency and efficiency in the data published by DNOs","Northern Powergrid","2018-07-11",null,null,"Standard Change Proposal","DCP 325 Change Proposal ","Under Development - Definition Stage",null,"-","-","ElectraLink Ltd","Live","Distribution Connection Use of System Agreement","DCP 325","Reviewing the requirements of Sections 35A, 35B, Schedule 15 and Schedule 20.","The intent of this Change Proposal is to combine, review and if appropriate, amend the requirements of Section 35A, Section 35B, Schedule 15 and Schedule 20 to improve transparency and efficiency in the data published by DNOs","Northern Powergrid","2018-07-11",null,null,"Standard Change Proposal","DCP 325 Change Proposal ","Under Development - Definition Stage",null,"-","-","ElectraLink Ltd","Live","Distribution Connection Use of System Agreement","DCP 325","Reviewing the requirements of Sections 35A, 35B, Schedule 15 and Schedule 20.","The intent of this Change Proposal is to combine, review and if appropriate, amend the requirements of Section 35A, Section 35B, Schedule 15 and Schedule 20 to improve transparency and efficiency in the data published by DNOs","Northern Powergrid","2018-07-11",null,null,"Standard Change Proposal","DCP 325 Change Proposal ","Under Development - Definition Stage",null,"-","-","ElectraLink Ltd","Live","Distribution Connection Use of System Agreement","DCP 325","Reviewing the requirements of Sections 35A, 35B, Schedule 15 and Schedule 20.","The intent of this Change Proposal is to combine, review and if appropriate, amend the requirements of Section 35A, Section 35B, Schedule 15 and Schedule 20 to improve transparency and efficiency in the data published by DNOs","Northern Powergrid","2018-07-11",null,null,"Standard Change Proposal","DCP 325 Change Proposal ","Under Development - Definition Stage",null,"-","-","ElectraLink Ltd","Live","Distribution Connection Use of System Agreement","DCP 325","Reviewing the requirements of Sections 35A, 35B, Schedule 15 and Schedule 20.","The intent of this Change Proposal is to combine, review and if appropriate, amend the requirements of Section 35A, Section 35B, Schedule 15 and Schedule 20 to improve transparency and efficiency in the data published by DNOs","Northern Powergrid","2018-07-11",null,null,"Standard Change Proposal","DCP 325 Change Proposal ","Under Development - Definition Stage",null,"-","-","ElectraLink Ltd","Live","Distribution Connection Use of System Agreement","DCP 325","Reviewing the requirements of Sections 35A, 35B, Schedule 15 and Schedule 20.","The intent of this Change Proposal is to combine, review and if appropriate, amend the requirements of Section 35A, Section 35B, Schedule 15 and Schedule 20 to improve transparency and efficiency in the data published by DNOs","Northern Powergrid","2018-07-11",null,null,"Standard Change Proposal","DCP 325 Change Proposal ","Under Development - Definition Stage",null,"-","-","ElectraLink Ltd","Live","Distribution Connection Use of System Agreement","DCP 325","Reviewing the requirements of Sections 35A, 35B, Schedule 15 and Schedule 20.","The intent of this Change Proposal is to combine, review and if appropriate, amend the requirements of Section 35A, Section 35B, Schedule 15 and Schedule 20 to improve transparency and efficiency in the data published by DNOs","Northern Powergrid","2018-07-11",null,null,"Standard Change Proposal","DCP 325 Change Proposal ","Under Development - Definition Stage",null,"-","-","ElectraLink Ltd","Live","Distribution Connection Use of System Agreement","DCP 325","Reviewing the requirements of Sections 35A, 35B, Schedule 15 and Schedule 20.","The intent of this Change Proposal is to combine, review and if appropriate, amend the requirements of Section 35A, Section 35B, Schedule 15 and Schedule 20 to improve transparency and efficiency in the data published by DNOs","Northern Powergrid","2018-07-11",null,null,"Standard Change Proposal","DCP 325 Change Proposal ","Under Development - Definition Stage",null,"-","-","ElectraLink Ltd","Live","Distribution Connection Use of System Agreement","DCP 325","Reviewing the requirements of Sections 35A, 35B, Schedule 15 and Schedule 20.","The intent of this Change Proposal is to combine, review and if appropriate, amend the requirements of Section 35A, Section 35B, Schedule 15 and Schedule 20 to improve transparency and efficiency in the data published by DNOs","Northern Powergrid","2018-07-11",null,null,"Standard Change Proposal","DCP 325 Change Proposal ","Under Development - Definition Stage",null,"-","-","ElectraLink Ltd","Live","Distribution Connection Use of System Agreement","DCP 325","Reviewing the requirements of Sections 35A, 35B, Schedule 15 and Schedule 20.","The intent of this Change Proposal is to combine, review and if appropriate, amend the requirements of Section 35A, Section 35B, Schedule 15 and Schedule 20 to improve transparency and efficiency in the data published by DNOs","Northern Powergrid","2018-07-11",null,null,"Standard Change Proposal","DCP 325 Change Proposal ","Under Development - Definition Stage",null,"-","-","ElectraLink Ltd","Live","Distribution Connection Use of System Agreement","DCP 325","Reviewing the requirements of Sections 35A, 35B, Schedule 15 and Schedule 20.","The intent of this Change Proposal is to combine, review and if appropriate, amend the requirements of Section 35A, Section 35B, Schedule 15 and Schedule 20 to improve transparency and efficiency in the data published by DNOs","Northern Powergrid","2018-07-11",null,null,"Standard Change Proposal","DCP 325 Change Proposal ","Under Development - Definition Stage",null,"-","-","ElectraLink Ltd","Live","Distribution Connection Use of System Agreement","DCP 325","Reviewing the requirements of Sections 35A, 35B, Schedule 15 and Schedule 20.","The intent of this Change Proposal is to combine, review and if appropriate, amend the requirements of Section 35A, Section 35B, Schedule 15 and Schedule 20 to improve transparency and efficiency in the data published by DNOs","Northern Powergrid","2018-07-11",null,null,"Standard Change Proposal","DCP 325 Change Proposal ","Under Development - Definition Stage",null,"-","-","ElectraLink Ltd","Live","Distribution Connection Use of System Agreement","DCP 325","Reviewing the requirements of Sections 35A, 35B, Schedule 15 and Schedule 20.","The intent of this Change Proposal is to combine, review and if appropriate, amend the requirements of Section 35A, Section 35B, Schedule 15 and Schedule 20 to improve transparency and efficiency in the data published by DNOs","Northern Powergrid","2018-07-11",null,null,"Standard Change Proposal","DCP 325 Change Proposal ","Under Development - Definition Stage",null,"-","-","ElectraLink Ltd","Live","Distribution Connection Use of System Agreement","DCP 325","Reviewing the requirements of Sections 35A, 35B, Schedule 15 and Schedule 20.","The intent of this Change Proposal is to combine, review and if appropriate, amend the requirements of Section 35A, Section 35B, Schedule 15 and Schedule 20 to improve transparency and efficiency in the data published by DNOs","Northern Powergrid","2018-07-11",null,null,"Standard Change Proposal","DCP 325 Change Proposal ","Under Development - Definition Stage",null,"-","-","ElectraLink Ltd","Live","Distribution Connection Use of System Agreement","DCP 325","Reviewing the requirements of Sections 35A, 35B, Schedule 15 and Schedule 20.","The intent of this Change Proposal is to combine, review and if appropriate, amend the requirements of Section 35A, Section 35B, Schedule 15 and Schedule 20 to improve transparency and efficiency in the data published by DNOs","Northern Powergrid","2018-07-11",null,null,"Standard Change Proposal","DCP 325 Change Proposal ","Under Development - Definition Stage",null,"-","-","ElectraLink Ltd","Live","Distribution Connection Use of System Agreement","DCP 325","Reviewing the requirements of Sections 35A, 35B, Schedule 15 and Schedule 20.","The intent of this Change Proposal is to combine, review and if appropriate, amend the requirements of Section 35A, Section 35B, Schedule 15 and Schedule 20 to improve transparency and efficiency in the data published by DNOs","Northern Powergrid","2018-07-11",null,null,"Standard Change Proposal","DCP 325 Change Proposal ","Under Development - Definition Stage",null,"-","-","ElectraLink Ltd","Live","Distribution Connection Use of System Agreement","DCP 325","Reviewing the requirements of Sections 35A, 35B, Schedule 15 and Schedule 20.","The intent of this Change Proposal is to combine, review and if appropriate, amend the requirements of Section 35A, Section 35B, Schedule 15 and Schedule 20 to improve transparency and efficiency in the data published by DNOs","Northern Powergrid","2018-07-11",null,null,"Standard Change Proposal","DCP 325 Change Proposal ","Under Development - Definition Stage",null,"-","-","ElectraLink Ltd","Live","Distribution Connection Use of System Agreement","DCP 325","Reviewing the requirements of Sections 35A, 35B, Schedule 15 and Schedule 20.","The intent of this Change Proposal is to combine, review and if appropriate, amend the requirements of Section 35A, Section 35B, Schedule 15 and Schedule 20 to improve transparency and efficiency in the data published by DNOs","Northern Powergrid","2018-07-11",null,null,"Standard Change Proposal","DCP 325 Change Proposal ","Under Development - Definition Stage",null,"-","-","ElectraLink Ltd","Live","Distribution Connection Use of System Agreement","DCP 325","Reviewing the requirements of Sections 35A, 35B, Schedule 15 and Schedule 20.","The intent of this Change Proposal is to combine, review and if appropriate, amend the requirements of Section 35A, Section 35B, Schedule 15 and Schedule 20 to improve transparency and efficiency in the data published by DNOs","Northern Powergrid","2018-07-11",null,null,"Standard Change Proposal","DCP 325 Change Proposal ","Under Development - Definition Stage",null,"-","-","ElectraLink Ltd","Live","Distribution Connection Use of System Agreement","DCP 325","Reviewing the requirements of Sections 35A, 35B, Schedule 15 and Schedule 20.","The intent of this Change Proposal is to combine, review and if appropriate, amend the requirements of Section 35A, Section 35B, Schedule 15 and Schedule 20 to improve transparency and efficiency in the data published by DNOs","Northern Powergrid","2018-07-11",null,null,"Standard Change Proposal","DCP 325 Change Proposal ","Under Development - Definition Stage",null,"-","-","ElectraLink Ltd","Live","Distribution Connection Use of System Agreement","DCP 325","Reviewing the requirements of Sections 35A, 35B, Schedule 15 and Schedule 20.","The intent of this Change Proposal is to combine, review and if appropriate, amend the requirements of Section 35A, Section 35B, Schedule 15 and Schedule 20 to improve transparency and efficiency in the data published by DNOs","Northern Powergrid","2018-07-11",null,null,"Standard Change Proposal","DCP 325 Change Proposal ","Under Development - Definition Stage",null,"-","-","ElectraLink Ltd","Live","Distribution Connection Use of System Agreement","DCP 325","Reviewing the requirements of Sections 35A, 35B, Schedule 15 and Schedule 20.","The intent of this Change Proposal is to combine, review and if appropriate, amend the requirements of Section 35A, Section 35B, Schedule 15 and Schedule 20 to improve transparency and efficiency in the data published by DNOs","Northern Powergrid","2018-07-11",null,null,"Standard Change Proposal","DCP 325 Change Proposal ","Under Development - Definition Stage",null,"-","-","ElectraLink Ltd","Live","Distribution Connection Use of System Agreement","DCP 325","Reviewing the requirements of Sections 35A, 35B, Schedule 15 and Schedule 20.","The intent of this Change Proposal is to combine, review and if appropriate, amend the requirements of Section 35A, Section 35B, Schedule 15 and Schedule 20 to improve transparency and efficiency in the data published by DNOs","Northern Powergrid","2018-07-11",null,null,"Standard Change Proposal","DCP 325 Change Proposal ","Under Development - Definition Stage",null,"-","-","ElectraLink Ltd","Live","Distribution Connection Use of System Agreement","DCP 325","Reviewing the requirements of Sections 35A, 35B, Schedule 15 and Schedule 20.","The intent of this Change Proposal is to combine, review and if appropriate, amend the requirements of Section 35A, Section 35B, Schedule 15 and Schedule 20 to improve transparency and efficiency in the data published by DNOs","Northern Powergrid","2018-07-11",null,null,"Standard Change Proposal","DCP 325 Change Proposal ","Under Development - Definition Stage",null,"-","-","ElectraLink Ltd","Live","Distribution Connection Use of System Agreement","DCP 325","Reviewing the requirements of Sections 35A, 35B, Schedule 15 and Schedule 20.","The intent of this Change Proposal is to combine, review and if appropriate, amend the requirements of Section 35A, Section 35B, Schedule 15 and Schedule 20 to improve transparency and efficiency in the data published by DNOs","Northern Powergrid","2018-07-11",null,null,"Standard Change Proposal","DCP 325 Change Proposal ","Under Development - Definition Stage",null,"-","-","ElectraLink Ltd","Live","Distribution Connection Use of System Agreement","DCP 325","Reviewing the requirements of Sections 35A, 35B, Schedule 15 and Schedule 20.","The intent of this Change Proposal is to combine, review and if appropriate, amend the requirements of Section 35A, Section 35B, Schedule 15 and Schedule 20 to improve transparency and efficiency in the data published by DNOs","Northern Powergrid","2018-07-11",null,null,"Standard Change Proposal","DCP 325 Change Proposal ","Under Development - Definition Stage",null,"-","-","ElectraLink Ltd","Live","Distribution Connection Use of System Agreement","DCP 325","Reviewing the requirements of Sections 35A, 35B, Schedule 15 and Schedule 20.","The intent of this Change Proposal is to combine, review and if appropriate, amend the requirements of Section 35A, Section 35B, Schedule 15 and Schedule 20 to improve transparency and efficiency in the data published by DNOs","Northern Powergrid","2018-07-11",null,null,"Standard Change Proposal","DCP 325 Change Proposal ","Under Development - Definition Stage",null,"-","-","ElectraLink Ltd","Live","Distribution Connection Use of System Agreement","DCP 325","Reviewing the requirements of Sections 35A, 35B, Schedule 15 and Schedule 20.","The intent of this Change Proposal is to combine, review and if appropriate, amend the requirements of Section 35A, Section 35B, Schedule 15 and Schedule 20 to improve transparency and efficiency in the data published by DNOs","Northern Powergrid","2018-07-11",null,null,"Standard Change Proposal","DCP 325 Change Proposal ","Under Development - Definition Stage",null,"-","-","ElectraLink Ltd","Live","Distribution Connection Use of System Agreement","DCP 325","Reviewing the requirements of Sections 35A, 35B, Schedule 15 and Schedule 20.","The intent of this Change Proposal is to combine, review and if appropriate, amend the requirements of Section 35A, Section 35B, Schedule 15 and Schedule 20 to improve transparency and efficiency in the data published by DNOs","Northern Powergrid","2018-07-11",null,null,"Standard Change Proposal","DCP 325 Change Proposal ","Under Development - Definition Stage",null,"-","-","ElectraLink Ltd","Live","Distribution Connection Use of System Agreement","DCP 325","Reviewing the requirements of Sections 35A, 35B, Schedule 15 and Schedule 20.","The intent of this Change Proposal is to combine, review and if appropriate, amend the requirements of Section 35A, Section 35B, Schedule 15 and Schedule 20 to improve transparency and efficiency in the data published by DNOs","Northern Powergrid","2018-07-11",null,null,"Standard Change Proposal","DCP 325 Change Proposal ","Under Development - Definition Stage",null,"-","-","ElectraLink Ltd","Live","Distribution Connection Use of System Agreement","DCP 325","Reviewing the requirements of Sections 35A, 35B, Schedule 15 and Schedule 20.","The intent of this Change Proposal is to combine, review and if appropriate, amend the requirements of Section 35A, Section 35B, Schedule 15 and Schedule 20 to improve transparency and efficiency in the data published by DNOs","Northern Powergrid","2018-07-11",null,null,"Standard Change Proposal","DCP 325 Change Proposal ","Under Development - Definition Stage",null,"-","-","ElectraLink Ltd","Live","Distribution Connection Use of System Agreement","DCP 325","Reviewing the requirements of Sections 35A, 35B, Schedule 15 and Schedule 20.","The intent of this Change Proposal is to combine, review and if appropriate, amend the requirements of Section 35A, Section 35B, Schedule 15 and Schedule 20 to improve transparency and efficiency in the data published by DNOs","Northern Powergrid","2018-07-11",null,null,"Standard Change Proposal","DCP 325 Change Proposal ","Under Development - Definition Stage",null,"-","-","ElectraLink Ltd","Live","Distribution Connection Use of System Agreement","DCP 325","Reviewing the requirements of Sections 35A, 35B, Schedule 15 and Schedule 20.","The intent of this Change Proposal is to combine, review and if appropriate, amend the requirements of Section 35A, Section 35B, Schedule 15 and Schedule 20 to improve transparency and efficiency in the data published by DNOs","Northern Powergrid","2018-07-11",null,null,"Standard Change Proposal","DCP 325 Change Proposal ","Under Development - Definition Stage",null,"-","-","ElectraLink Ltd","Live","Distribution Connection Use of System Agreement","DCP 325","Reviewing the requirements of Sections 35A, 35B, Schedule 15 and Schedule 20.","The intent of this Change Proposal is to combine, review and if appropriate, amend the requirements of Section 35A, Section 35B, Schedule 15 and Schedule 20 to improve transparency and efficiency in the data published by DNOs","Northern Powergrid","2018-07-11",null,null,"Standard Change Proposal","DCP 325 Change Proposal ","Under Development - Definition Stage",null,"-","-","ElectraLink Ltd","Live","Distribution Connection Use of System Agreement","DCP 325","Reviewing the requirements of Sections 35A, 35B, Schedule 15 and Schedule 20.","The intent of this Change Proposal is to combine, review and if appropriate, amend the requirements of Section 35A, Section 35B, Schedule 15 and Schedule 20 to improve transparency and efficiency in the data published by DNOs","Northern Powergrid","2018-07-11",null,null,"Standard Change Proposal","DCP 325 Change Proposal ","Under Development - Definition Stage",null,"-","-","ElectraLink Ltd","Live","Distribution Connection Use of System Agreement","DCP 325","Reviewing the requirements of Sections 35A, 35B, Schedule 15 and Schedule 20.","The intent of this Change Proposal is to combine, review and if appropriate, amend the requirements of Section 35A, Section 35B, Schedule 15 and Schedule 20 to improve transparency and efficiency in the data published by DNOs","Northern Powergrid","2018-07-11",null,null,"Standard Change Proposal","DCP 325 Change Proposal ","Under Development - Definition Stage",null,"-","-","ElectraLink Ltd","Live","Distribution Connection Use of System Agreement","DCP 325","Reviewing the requirements of Sections 35A, 35B, Schedule 15 and Schedule 20.","The intent of this Change Proposal is to combine, review and if appropriate, amend the requirements of Section 35A, Section 35B, Schedule 15 and Schedule 20 to improve transparency and efficiency in the data published by DNOs","Northern Powergrid","2018-07-11",null,null,"Standard Change Proposal","DCP 325 Change Proposal ","Under Development - Definition Stage",null,"-","-","ElectraLink Ltd","Live","Distribution Connection Use of System Agreement","DCP 325","Reviewing the requirements of Sections 35A, 35B, Schedule 15 and Schedule 20.","The intent of this Change Proposal is to combine, review and if appropriate, amend the requirements of Section 35A, Section 35B, Schedule 15 and Schedule 20 to improve transparency and efficiency in the data published by DNOs","Northern Powergrid","2018-07-11",null,null,"Standard Change Proposal","DCP 325 Change Proposal ","Under Development - Definition Stage",null,"-","-","ElectraLink Ltd","Live","Distribution Connection Use of System Agreement","DCP 325","Reviewing the requirements of Sections 35A, 35B, Schedule 15 and Schedule 20.","The intent of this Change Proposal is to combine, review and if appropriate, amend the requirements of Section 35A, Section 35B, Schedule 15 and Schedule 20 to improve transparency and efficiency in the data published by DNOs","Northern Powergrid","2018-07-11",null,null,"Standard Change Proposal","DCP 325 Change Proposal ","Under Development - Definition Stage",null,"-","-","ElectraLink Ltd","Live","Distribution Connection Use of System Agreement","DCP 325","Reviewing the requirements of Sections 35A, 35B, Schedule 15 and Schedule 20.","The intent of this Change Proposal is to combine, review and if appropriate, amend the requirements of Section 35A, Section 35B, Schedule 15 and Schedule 20 to improve transparency and efficiency in the data published by DNOs","Northern Powergrid","2018-07-11",null,null,"Standard Change Proposal","DCP 325 Change Proposal ","Under Development - Definition Stage",null,"-","-","ElectraLink Ltd","Live","Distribution Connection Use of System Agreement","DCP 325","Reviewing the requirements of Sections 35A, 35B, Schedule 15 and Schedule 20.","The intent of this Change Proposal is to combine, review and if appropriate, amend the requirements of Section 35A, Section 35B, Schedule 15 and Schedule 20 to improve transparency and efficiency in the data published by DNOs","Northern Powergrid","2018-07-11",null,null,"Standard Change Proposal","DCP 325 Change Proposal ","Under Development - Definition Stage",null,"-","-","ElectraLink Ltd","Live","Distribution Connection Use of System Agreement","DCP 325","Reviewing the requirements of Sections 35A, 35B, Schedule 15 and Schedule 20.","The intent of this Change Proposal is to combine, review and if appropriate, amend the requirements of Section 35A, Section 35B, Schedule 15 and Schedule 20 to improve transparency and efficiency in the data published by DNOs","Northern Powergrid","2018-07-11",null,null,"Standard Change Proposal","DCP 325 Change Proposal ","Under Development - Definition Stage",null,"-","-","ElectraLink Ltd","Live","Distribution Connection Use of System Agreement","DCP 325","Reviewing the requirements of Sections 35A, 35B, Schedule 15 and Schedule 20.","The intent of this Change Proposal is to combine, review and if appropriate, amend the requirements of Section 35A, Section 35B, Schedule 15 and Schedule 20 to improve transparency and efficiency in the data published by DNOs","Northern Powergrid","2018-07-11",null,null,"Standard Change Proposal","DCP 325 Change Proposal ","Under Development - Definition Stage",null,"-","-","ElectraLink Ltd","Live","Distribution Connection Use of System Agreement","DCP 325","Reviewing the requirements of Sections 35A, 35B, Schedule 15 and Schedule 20.","The intent of this Change Proposal is to combine, review and if appropriate, amend the requirements of Section 35A, Section 35B, Schedule 15 and Schedule 20 to improve transparency and efficiency in the data published by DNOs","Northern Powergrid","2018-07-11",null,null,"Standard Change Proposal","DCP 325 Change Proposal ","Under Development - Definition Stage",null,"-","-","ElectraLink Ltd","Live","Distribution Connection Use of System Agreement","DCP 325","Reviewing the requirements of Sections 35A, 35B, Schedule 15 and Schedule 20.","The intent of this Change Proposal is to combine, review and if appropriate, amend the requirements of Section 35A, Section 35B, Schedule 15 and Schedule 20 to improve transparency and efficiency in the data published by DNOs","Northern Powergrid","2018-07-11",null,null,"Standard Change Proposal","DCP 325 Change Proposal ","Under Development - Definition Stage",null,"-","-","ElectraLink Ltd","Live","Distribution Connection Use of System Agreement","DCP 325","Reviewing the requirements of Sections 35A, 35B, Schedule 15 and Schedule 20.","The intent of this Change Proposal is to combine, review and if appropriate, amend the requirements of Section 35A, Section 35B, Schedule 15 and Schedule 20 to improve transparency and efficiency in the data published by DNOs","Northern Powergrid","2018-07-11",null,null,"Standard Change Proposal","DCP 325 Change Proposal ","Under Development - Definition Stage",null,"-","-","ElectraLink Ltd","Live","Distribution Connection Use of System Agreement","DCP 325","Reviewing the requirements of Sections 35A, 35B, Schedule 15 and Schedule 20.","The intent of this Change Proposal is to combine, review and if appropriate, amend the requirements of Section 35A, Section 35B, Schedule 15 and Schedule 20 to improve transparency and efficiency in the data published by DNOs","Northern Powergrid","2018-07-11",null,null,"Standard Change Proposal","DCP 325 Change Proposal ","Under Development - Definition Stage",null,"-","-","ElectraLink Ltd","Live","Distribution Connection Use of System Agreement","DCP 325","Reviewing the requirements of Sections 35A, 35B, Schedule 15 and Schedule 20.","The intent of this Change Proposal is to combine, review and if appropriate, amend the requirements of Section 35A, Section 35B, Schedule 15 and Schedule 20 to improve transparency and efficiency in the data published by DNOs","Northern Powergrid","2018-07-11",null,null,"Standard Change Proposal","DCP 325 Change Proposal ","Under Development - Definition Stage",null,"-","-","ElectraLink Ltd","Live","Distribution Connection Use of System Agreement","DCP 325","Reviewing the requirements of Sections 35A, 35B, Schedule 15 and Schedule 20.","The intent of this Change Proposal is to combine, review and if appropriate, amend the requirements of Section 35A, Section 35B, Schedule 15 and Schedule 20 to improve transparency and efficiency in the data published by DNOs","Northern Powergrid","2018-07-11",null,null,"Standard Change Proposal","DCP 325 Change Proposal ","Under Development - Definition Stage",null,"-","-","ElectraLink Ltd","Live","Distribution Connection Use of System Agreement","DCP 325","Reviewing the requirements of Sections 35A, 35B, Schedule 15 and Schedule 20.","The intent of this Change Proposal is to combine, review and if appropriate, amend the requirements of Section 35A, Section 35B, Schedule 15 and Schedule 20 to improve transparency and efficiency in the data published by DNOs","Northern Powergrid","2018-07-11",null,null,"Standard Change Proposal","DCP 325 Change Proposal ","Under Development - Definition Stage",null,"-","-","ElectraLink Ltd","Live","Distribution Connection Use of System Agreement","DCP 325","Reviewing the requirements of Sections 35A, 35B, Schedule 15 and Schedule 20.","The intent of this Change Proposal is to combine, review and if appropriate, amend the requirements of Section 35A, Section 35B, Schedule 15 and Schedule 20 to improve transparency and efficiency in the data published by DNOs","Northern Powergrid","2018-07-11",null,null,"Standard Change Proposal","DCP 325 Change Proposal ","Under Development - Definition Stage",null,"-","-","ElectraLink Ltd","Live","Distribution Connection Use of System Agreement","DCP 325","Reviewing the requirements of Sections 35A, 35B, Schedule 15 and Schedule 20.","The intent of this Change Proposal is to combine, review and if appropriate, amend the requirements of Section 35A, Section 35B, Schedule 15 and Schedule 20 to improve transparency and efficiency in the data published by DNOs","Northern Powergrid","2018-07-11",null,null,"Standard Change Proposal","DCP 325 Change Proposal ","Under Development - Definition Stage",null,"-","-","ElectraLink Ltd","Live","Distribution Connection Use of System Agreement","DCP 325","Reviewing the requirements of Sections 35A, 35B, Schedule 15 and Schedule 20.","The intent of this Change Proposal is to combine, review and if appropriate, amend the requirements of Section 35A, Section 35B, Schedule 15 and Schedule 20 to improve transparency and efficiency in the data published by DNOs","Northern Powergrid","2018-07-11",null,null,"Standard Change Proposal","DCP 325 Change Proposal ","Under Development - Definition Stage",null,"-","-","ElectraLink Ltd","Live","Distribution Connection Use of System Agreement","DCP 325","Reviewing the requirements of Sections 35A, 35B, Schedule 15 and Schedule 20.","The intent of this Change Proposal is to combine, review and if appropriate, amend the requirements of Section 35A, Section 35B, Schedule 15 and Schedule 20 to improve transparency and efficiency in the data published by DNOs","Northern Powergrid","2018-07-11",null,null,"Standard Change Proposal","DCP 325 Change Proposal ","Under Development - Definition Stage",null,"-","-","ElectraLink Ltd","Live","Distribution Connection Use of System Agreement","DCP 325","Reviewing the requirements of Sections 35A, 35B, Schedule 15 and Schedule 20.","The intent of this Change Proposal is to combine, review and if appropriate, amend the requirements of Section 35A, Section 35B, Schedule 15 and Schedule 20 to improve transparency and efficiency in the data published by DNOs","Northern Powergrid","2018-07-11",null,null,"Standard Change Proposal","DCP 325 Change Proposal ","Under Development - Definition Stage",null,"-","-","ElectraLink Ltd","Live","Distribution Connection Use of System Agreement","DCP 325","Reviewing the requirements of Sections 35A, 35B, Schedule 15 and Schedule 20.","The intent of this Change Proposal is to combine, review and if appropriate, amend the requirements of Section 35A, Section 35B, Schedule 15 and Schedule 20 to improve transparency and efficiency in the data published by DNOs","Northern Powergrid","2018-07-11",null,null,"Standard Change Proposal","DCP 325 Change Proposal ","Under Development - Definition Stage",null,"-","-","ElectraLink Ltd","Live","Distribution Connection Use of System Agreement","DCP 325","Reviewing the requirements of Sections 35A, 35B, Schedule 15 and Schedule 20.","The intent of this Change Proposal is to combine, review and if appropriate, amend the requirements of Section 35A, Section 35B, Schedule 15 and Schedule 20 to improve transparency and efficiency in the data published by DNOs","Northern Powergrid","2018-07-11",null,null,"Standard Change Proposal","DCP 325 Change Proposal ","Under Development - Definition Stage",null,"-","-","ElectraLink Ltd","Live","Distribution Connection Use of System Agreement","DCP 325","Reviewing the requirements of Sections 35A, 35B, Schedule 15 and Schedule 20.","The intent of this Change Proposal is to combine, review and if appropriate, amend the requirements of Section 35A, Section 35B, Schedule 15 and Schedule 20 to improve transparency and efficiency in the data published by DNOs","Northern Powergrid","2018-07-11",null,null,"Standard Change Proposal","DCP 325 Change Proposal ","Under Development - Definition Stage",null,"-","-","ElectraLink Ltd","Live","Distribution Connection Use of System Agreement","DCP 325","Reviewing the requirements of Sections 35A, 35B, Schedule 15 and Schedule 20.","The intent of this Change Proposal is to combine, review and if appropriate, amend the requirements of Section 35A, Section 35B, Schedule 15 and Schedule 20 to improve transparency and efficiency in the data published by DNOs","Northern Powergrid","2018-07-11",null,null,"Standard Change Proposal","DCP 325 Change Proposal ","Under Development - Definition Stage",null,"-","-","ElectraLink Ltd","Live","Distribution Connection Use of System Agreement","DCP 325","Reviewing the requirements of Sections 35A, 35B, Schedule 15 and Schedule 20.","The intent of this Change Proposal is to combine, review and if appropriate, amend the requirements of Section 35A, Section 35B, Schedule 15 and Schedule 20 to improve transparency and efficiency in the data published by DNOs","Northern Powergrid","2018-07-11",null,null,"Standard Change Proposal","DCP 325 Change Proposal ","Under Development - Definition Stage",null,"-","-","ElectraLink Ltd","Live","Distribution Connection Use of System Agreement","DCP 325","Reviewing the requirements of Sections 35A, 35B, Schedule 15 and Schedule 20.","The intent of this Change Proposal is to combine, review and if appropriate, amend the requirements of Section 35A, Section 35B, Schedule 15 and Schedule 20 to improve transparency and efficiency in the data published by DNOs","Northern Powergrid","2018-07-11",null,null,"Standard Change Proposal","DCP 325 Change Proposal ","Under Development - Definition Stage",null,"-","-","ElectraLink Ltd","Live","Distribution Connection Use of System Agreement","DCP 325","Reviewing the requirements of Sections 35A, 35B, Schedule 15 and Schedule 20.","The intent of this Change Proposal is to combine, review and if appropriate, amend the requirements of Section 35A, Section 35B, Schedule 15 and Schedule 20 to improve transparency and efficiency in the data published by DNOs","Northern Powergrid","2018-07-11",null,null,"Standard Change Proposal","DCP 325 Change Proposal ","Under Development - Definition Stage",null,"-","-","ElectraLink Ltd","Live","Distribution Connection Use of System Agreement","DCP 325","Reviewing the requirements of Sections 35A, 35B, Schedule 15 and Schedule 20.","The intent of this Change Proposal is to combine, review and if appropriate, amend the requirements of Section 35A, Section 35B, Schedule 15 and Schedule 20 to improve transparency and efficiency in the data published by DNOs","Northern Powergrid","2018-07-11",null,null,"Standard Change Proposal","DCP 325 Change Proposal ","Under Development - Definition Stage",null,"-","-","ElectraLink Ltd","Live","Distribution Connection Use of System Agreement","DCP 325","Reviewing the requirements of Sections 35A, 35B, Schedule 15 and Schedule 20.","The intent of this Change Proposal is to combine, review and if appropriate, amend the requirements of Section 35A, Section 35B, Schedule 15 and Schedule 20 to improve transparency and efficiency in the data published by DNOs","Northern Powergrid","2018-07-11",null,null,"Standard Change Proposal","DCP 325 Change Proposal ","Under Development - Definition Stage",null,"-","-","ElectraLink Ltd","Live","Distribution Connection Use of System Agreement","DCP 325","Reviewing the requirements of Sections 35A, 35B, Schedule 15 and Schedule 20.","The intent of this Change Proposal is to combine, review and if appropriate, amend the requirements of Section 35A, Section 35B, Schedule 15 and Schedule 20 to improve transparency and efficiency in the data published by DNOs","Northern Powergrid","2018-07-11",null,null,"Standard Change Proposal","DCP 325 Change Proposal ","Under Development - Definition Stage",null,"-","-","ElectraLink Ltd","Live","Distribution Connection Use of System Agreement","DCP 325","Reviewing the requirements of Sections 35A, 35B, Schedule 15 and Schedule 20.","The intent of this Change Proposal is to combine, review and if appropriate, amend the requirements of Section 35A, Section 35B, Schedule 15 and Schedule 20 to improve transparency and efficiency in the data published by DNOs","Northern Powergrid","2018-07-11",null,null,"Standard Change Proposal","DCP 325 Change Proposal ","Under Development - Definition Stage",null,"-","-","ElectraLink Ltd","Live","Distribution Connection Use of System Agreement","DCP 325","Reviewing the requirements of Sections 35A, 35B, Schedule 15 and Schedule 20.","The intent of this Change Proposal is to combine, review and if appropriate, amend the requirements of Section 35A, Section 35B, Schedule 15 and Schedule 20 to improve transparency and efficiency in the data published by DNOs","Northern Powergrid","2018-07-11",null,null,"Standard Change Proposal","DCP 325 Change Proposal ","Under Development - Definition Stage",null,"-","-","ElectraLink Ltd","Live","Distribution Connection Use of System Agreement","DCP 325","Reviewing the requirements of Sections 35A, 35B, Schedule 15 and Schedule 20.","The intent of this Change Proposal is to combine, review and if appropriate, amend the requirements of Section 35A, Section 35B, Schedule 15 and Schedule 20 to improve transparency and efficiency in the data published by DNOs","Northern Powergrid","2018-07-11",null,null,"Standard Change Proposal","DCP 325 Change Proposal ","Under Development - Definition Stage",null,"-","-","ElectraLink Ltd","Live","Distribution Connection Use of System Agreement","DCP 325","Reviewing the requirements of Sections 35A, 35B, Schedule 15 and Schedule 20.","The intent of this Change Proposal is to combine, review and if appropriate, amend the requirements of Section 35A, Section 35B, Schedule 15 and Schedule 20 to improve transparency and efficiency in the data published by DNOs","Northern Powergrid","2018-07-11",null,null,"Standard Change Proposal","DCP 325 Change Proposal ","Under Development - Definition Stage",null,"-","-","ElectraLink Ltd","Live","Distribution Connection Use of System Agreement","DCP 325","Reviewing the requirements of Sections 35A, 35B, Schedule 15 and Schedule 20.","The intent of this Change Proposal is to combine, review and if appropriate, amend the requirements of Section 35A, Section 35B, Schedule 15 and Schedule 20 to improve transparency and efficiency in the data published by DNOs","Northern Powergrid","2018-07-11",null,null,"Standard Change Proposal","DCP 325 Change Proposal ","Under Development - Definition Stage",null,"-","-","ElectraLink Ltd","Live","Distribution Connection Use of System Agreement","DCP 325","Reviewing the requirements of Sections 35A, 35B, Schedule 15 and Schedule 20.","The intent of this Change Proposal is to combine, review and if appropriate, amend the requirements of Section 35A, Section 35B, Schedule 15 and Schedule 20 to improve transparency and efficiency in the data published by DNOs","Northern Powergrid","2018-07-11",null,null,"Standard Change Proposal","DCP 325 Change Proposal ","Under Development - Definition Stage",null,"-","-","ElectraLink Ltd","Live","Distribution Connection Use of System Agreement","DCP 325","Reviewing the requirements of Sections 35A, 35B, Schedule 15 and Schedule 20.","The intent of this Change Proposal is to combine, review and if appropriate, amend the requirements of Section 35A, Section 35B, Schedule 15 and Schedule 20 to improve transparency and efficiency in the data published by DNOs","Northern Powergrid","2018-07-11",null,null,"Standard Change Proposal","DCP 325 Change Proposal ","Under Development - Definition Stage",null,"-","-","ElectraLink Ltd","Live","Distribution Connection Use of System Agreement","DCP 325","Reviewing the requirements of Sections 35A, 35B, Schedule 15 and Schedule 20.","The intent of this Change Proposal is to combine, review and if appropriate, amend the requirements of Section 35A, Section 35B, Schedule 15 and Schedule 20 to improve transparency and efficiency in the data published by DNOs","Northern Powergrid","2018-07-11",null,null,"Standard Change Proposal","DCP 325 Change Proposal ","Under Development - Definition Stage",null,"-","-","ElectraLink Ltd","Live","Distribution Connection Use of System Agreement","DCP 325","Reviewing the requirements of Sections 35A, 35B, Schedule 15 and Schedule 20.","The intent of this Change Proposal is to combine, review and if appropriate, amend the requirements of Section 35A, Section 35B, Schedule 15 and Schedule 20 to improve transparency and efficiency in the data published by DNOs","Northern Powergrid","2018-07-11",null,null,"Standard Change Proposal","DCP 325 Change Proposal ","Under Development - Definition Stage",null,"-","-","ElectraLink Ltd","Live","Distribution Connection Use of System Agreement","DCP 325","Reviewing the requirements of Sections 35A, 35B, Schedule 15 and Schedule 20.","The intent of this Change Proposal is to combine, review and if appropriate, amend the requirements of Section 35A, Section 35B, Schedule 15 and Schedule 20 to improve transparency and efficiency in the data published by DNOs","Northern Powergrid","2018-07-11",null,null,"Standard Change Proposal","DCP 325 Change Proposal ","Under Development - Definition Stage",null,"-","-","ElectraLink Ltd","Live","Distribution Connection Use of System Agreement","DCP 325","Reviewing the requirements of Sections 35A, 35B, Schedule 15 and Schedule 20.","The intent of this Change Proposal is to combine, review and if appropriate, amend the requirements of Section 35A, Section 35B, Schedule 15 and Schedule 20 to improve transparency and efficiency in the data published by DNOs","Northern Powergrid","2018-07-11",null,null,"Standard Change Proposal","DCP 325 Change Proposal ","Under Development - Definition Stage",null,"-","-","ElectraLink Ltd","Live","Distribution Connection Use of System Agreement","DCP 325","Reviewing the requirements of Sections 35A, 35B, Schedule 15 and Schedule 20.","The intent of this Change Proposal is to combine, review and if appropriate, amend the requirements of Section 35A, Section 35B, Schedule 15 and Schedule 20 to improve transparency and efficiency in the data published by DNOs","Northern Powergrid","2018-07-11",null,null,"Standard Change Proposal","DCP 325 Change Proposal ","Under Development - Definition Stage",null,"-","-","ElectraLink Ltd","Live","Distribution Connection Use of System Agreement","DCP 325","Reviewing the requirements of Sections 35A, 35B, Schedule 15 and Schedule 20.","The intent of this Change Proposal is to combine, review and if appropriate, amend the requirements of Section 35A, Section 35B, Schedule 15 and Schedule 20 to improve transparency and efficiency in the data published by DNOs","Northern Powergrid","2018-07-11",null,null,"Standard Change Proposal","DCP 325 Change Proposal ","Under Development - Definition Stage",null,"-","-","ElectraLink Ltd","Live","Distribution Connection Use of System Agreement","DCP 325","Reviewing the requirements of Sections 35A, 35B, Schedule 15 and Schedule 20.","The intent of this Change Proposal is to combine, review and if appropriate, amend the requirements of Section 35A, Section 35B, Schedule 15 and Schedule 20 to improve transparency and efficiency in the data published by DNOs","Northern Powergrid","2018-07-11",null,null,"Standard Change Proposal","DCP 325 Change Proposal ","Under Development - Definition Stage",null,"-","-","ElectraLink Ltd","Live","Distribution Connection Use of System Agreement","DCP 325","Reviewing the requirements of Sections 35A, 35B, Schedule 15 and Schedule 20.","The intent of this Change Proposal is to combine, review and if appropriate, amend the requirements of Section 35A, Section 35B, Schedule 15 and Schedule 20 to improve transparency and efficiency in the data published by DNOs","Northern Powergrid","2018-07-11",null,null,"Standard Change Proposal","DCP 325 Change Proposal ","Under Development - Definition Stage",null,"-","-","ElectraLink Ltd","Live","Distribution Connection Use of System Agreement","DCP 325","Reviewing the requirements of Sections 35A, 35B, Schedule 15 and Schedule 20.","The intent of this Change Proposal is to combine, review and if appropriate, amend the requirements of Section 35A, Section 35B, Schedule 15 and Schedule 20 to improve transparency and efficiency in the data published by DNOs","Northern Powergrid","2018-07-11",null,null,"Standard Change Proposal","DCP 325 Change Proposal ","Under Development - Definition Stage",null,"-","-","ElectraLink Ltd","Live","Distribution Connection Use of System Agreement","DCP 325","Reviewing the requirements of Sections 35A, 35B, Schedule 15 and Schedule 20.","The intent of this Change Proposal is to combine, review and if appropriate, amend the requirements of Section 35A, Section 35B, Schedule 15 and Schedule 20 to improve transparency and efficiency in the data published by DNOs","Northern Powergrid","2018-07-11",null,null,"Standard Change Proposal","DCP 325 Change Proposal ","Under Development - Definition Stage",null,"-","-","ElectraLink Ltd","Live","Distribution Connection Use of System Agreement","DCP 325","Reviewing the requirements of Sections 35A, 35B, Schedule 15 and Schedule 20.","The intent of this Change Proposal is to combine, review and if appropriate, amend the requirements of Section 35A, Section 35B, Schedule 15 and Schedule 20 to improve transparency and efficiency in the data published by DNOs","Northern Powergrid","2018-07-11",null,null,"Standard Change Proposal","DCP 325 Change Proposal ","Under Development - Definition Stage",null,"-","-","ElectraLink Ltd","Live","Distribution Connection Use of System Agreement","DCP 325","Reviewing the requirements of Sections 35A, 35B, Schedule 15 and Schedule 20.","The intent of this Change Proposal is to combine, review and if appropriate, amend the requirements of Section 35A, Section 35B, Schedule 15 and Schedule 20 to improve transparency and efficiency in the data published by DNOs","Northern Powergrid","2018-07-11",null,null,"Standard Change Proposal","DCP 325 Change Proposal ","Under Development - Definition Stage",null,"-","-","ElectraLink Ltd","Live","Distribution Connection Use of System Agreement","DCP 325","Reviewing the requirements of Sections 35A, 35B, Schedule 15 and Schedule 20.","The intent of this Change Proposal is to combine, review and if appropriate, amend the requirements of Section 35A, Section 35B, Schedule 15 and Schedule 20 to improve transparency and efficiency in the data published by DNOs","Northern Powergrid","2018-07-11",null,null,"Standard Change Proposal","DCP 325 Change Proposal ","Under Development - Definition Stage",null,"-","-","ElectraLink Ltd","Live","Distribution Connection Use of System Agreement","DCP 325","Reviewing the requirements of Sections 35A, 35B, Schedule 15 and Schedule 20.","The intent of this Change Proposal is to combine, review and if appropriate, amend the requirements of Section 35A, Section 35B, Schedule 15 and Schedule 20 to improve transparency and efficiency in the data published by DNOs","Northern Powergrid","2018-07-11",null,null,"Standard Change Proposal","DCP 325 Change Proposal ","Under Development - Definition Stage",null,"-","-","ElectraLink Ltd","Live","Distribution Connection Use of System Agreement","DCP 325","Reviewing the requirements of Sections 35A, 35B, Schedule 15 and Schedule 20.","The intent of this Change Proposal is to combine, review and if appropriate, amend the requirements of Section 35A, Section 35B, Schedule 15 and Schedule 20 to improve transparency and efficiency in the data published by DNOs","Northern Powergrid","2018-07-11",null,null,"Standard Change Proposal","DCP 325 Change Proposal ","Under Development - Definition Stage",null,"-","-","ElectraLink Ltd","Live","Distribution Connection Use of System Agreement","DCP 325","Reviewing the requirements of Sections 35A, 35B, Schedule 15 and Schedule 20.","The intent of this Change Proposal is to combine, review and if appropriate, amend the requirements of Section 35A, Section 35B, Schedule 15 and Schedule 20 to improve transparency and efficiency in the data published by DNOs","Northern Powergrid","2018-07-11",null,null,"Standard Change Proposal","DCP 325 Change Proposal ","Under Development - Definition Stage",null,"-","-","ElectraLink Ltd","Live","Distribution Connection Use of System Agreement","DCP 325","Reviewing the requirements of Sections 35A, 35B, Schedule 15 and Schedule 20.","The intent of this Change Proposal is to combine, review and if appropriate, amend the requirements of Section 35A, Section 35B, Schedule 15 and Schedule 20 to improve transparency and efficiency in the data published by DNOs","Northern Powergrid","2018-07-11",null,null,"Standard Change Proposal","DCP 325 Change Proposal ","Under Development - Definition Stage",null,"-","-","ElectraLink Ltd","Live","Distribution Connection Use of System Agreement","DCP 325","Reviewing the requirements of Sections 35A, 35B, Schedule 15 and Schedule 20.","The intent of this Change Proposal is to combine, review and if appropriate, amend the requirements of Section 35A, Section 35B, Schedule 15 and Schedule 20 to improve transparency and efficiency in the data published by DNOs","Northern Powergrid","2018-07-11",null,null,"Standard Change Proposal","DCP 325 Change Proposal ","Under Development - Definition Stage",null,"-","-","ElectraLink Ltd","Live","Distribution Connection Use of System Agreement","DCP 325","Reviewing the requirements of Sections 35A, 35B, Schedule 15 and Schedule 20.","The intent of this Change Proposal is to combine, review and if appropriate, amend the requirements of Section 35A, Section 35B, Schedule 15 and Schedule 20 to improve transparency and efficiency in the data published by DNOs","Northern Powergrid","2018-07-11",null,null,"Standard Change Proposal","DCP 325 Change Proposal ","Under Development - Definition Stage",null,"-","-","ElectraLink Ltd","Live","Distribution Connection Use of System Agreement","DCP 325","Reviewing the requirements of Sections 35A, 35B, Schedule 15 and Schedule 20.","The intent of this Change Proposal is to combine, review and if appropriate, amend the requirements of Section 35A, Section 35B, Schedule 15 and Schedule 20 to improve transparency and efficiency in the data published by DNOs","Northern Powergrid","2018-07-11",null,null,"Standard Change Proposal","DCP 325 Change Proposal ","Under Development - Definition Stage",null,"-","-","ElectraLink Ltd","Live","Distribution Connection Use of System Agreement","DCP 325","Reviewing the requirements of Sections 35A, 35B, Schedule 15 and Schedule 20.","The intent of this Change Proposal is to combine, review and if appropriate, amend the requirements of Section 35A, Section 35B, Schedule 15 and Schedule 20 to improve transparency and efficiency in the data published by DNOs","Northern Powergrid","2018-07-11",null,null,"Standard Change Proposal","DCP 325 Change Proposal ","Under Development - Definition Stage",null,"-","-","ElectraLink Ltd","Live","Distribution Connection Use of System Agreement","DCP 325","Reviewing the requirements of Sections 35A, 35B, Schedule 15 and Schedule 20.","The intent of this Change Proposal is to combine, review and if appropriate, amend the requirements of Section 35A, Section 35B, Schedule 15 and Schedule 20 to improve transparency and efficiency in the data published by DNOs","Northern Powergrid","2018-07-11",null,null,"Standard Change Proposal","DCP 325 Change Proposal ","Under Development - Definition Stage",null,"-","-","ElectraLink Ltd","Live","Distribution Connection Use of System Agreement","DCP 325","Reviewing the requirements of Sections 35A, 35B, Schedule 15 and Schedule 20.","The intent of this Change Proposal is to combine, review and if appropriate, amend the requirements of Section 35A, Section 35B, Schedule 15 and Schedule 20 to improve transparency and efficiency in the data published by DNOs","Northern Powergrid","2018-07-11",null,null,"Standard Change Proposal","DCP 325 Change Proposal ","Under Development - Definition Stage",null,"-","-","ElectraLink Ltd","Live","Distribution Connection Use of System Agreement","DCP 325","Reviewing the requirements of Sections 35A, 35B, Schedule 15 and Schedule 20.","The intent of this Change Proposal is to combine, review and if appropriate, amend the requirements of Section 35A, Section 35B, Schedule 15 and Schedule 20 to improve transparency and efficiency in the data published by DNOs","Northern Powergrid","2018-07-11",null,null,"Standard Change Proposal","DCP 325 Change Proposal ","Under Development - Definition Stage",null,"-","-","ElectraLink Ltd","Live","Distribution Connection Use of System Agreement","DCP 325","Reviewing the requirements of Sections 35A, 35B, Schedule 15 and Schedule 20.","The intent of this Change Proposal is to combine, review and if appropriate, amend the requirements of Section 35A, Section 35B, Schedule 15 and Schedule 20 to improve transparency and efficiency in the data published by DNOs","Northern Powergrid","2018-07-11",null,null,"Standard Change Proposal","DCP 325 Change Proposal ","Under Development - Definition Stage",null,"-","-","ElectraLink Ltd","Live","Distribution Connection Use of System Agreement","DCP 325","Reviewing the requirements of Sections 35A, 35B, Schedule 15 and Schedule 20.","The intent of this Change Proposal is to combine, review and if appropriate, amend the requirements of Section 35A, Section 35B, Schedule 15 and Schedule 20 to improve transparency and efficiency in the data published by DNOs","Northern Powergrid","2018-07-11",null,null,"Standard Change Proposal","DCP 325 Change Proposal ","Under Development - Definition Stage",null,"-","-","ElectraLink Ltd","Live","Distribution Connection Use of System Agreement","DCP 325","Reviewing the requirements of Sections 35A, 35B, Schedule 15 and Schedule 20.","The intent of this Change Proposal is to combine, review and if appropriate, amend the requirements of Section 35A, Section 35B, Schedule 15 and Schedule 20 to improve transparency and efficiency in the data published by DNOs","Northern Powergrid","2018-07-11",null,null,"Standard Change Proposal","DCP 325 Change Proposal ","Under Development - Definition Stage",null,"-","-","ElectraLink Ltd","Live","Distribution Connection Use of System Agreement","DCP 325","Reviewing the requirements of Sections 35A, 35B, Schedule 15 and Schedule 20.","The intent of this Change Proposal is to combine, review and if appropriate, amend the requirements of Section 35A, Section 35B, Schedule 15 and Schedule 20 to improve transparency and efficiency in the data published by DNOs","Northern Powergrid","2018-07-11",null,null,"Standard Change Proposal","DCP 325 Change Proposal ","Under Development - Definition Stage",null,"-","-","ElectraLink Ltd","Live","Distribution Connection Use of System Agreement","DCP 325","Reviewing the requirements of Sections 35A, 35B, Schedule 15 and Schedule 20.","The intent of this Change Proposal is to combine, review and if appropriate, amend the requirements of Section 35A, Section 35B, Schedule 15 and Schedule 20 to improve transparency and efficiency in the data published by DNOs","Northern Powergrid","2018-07-11",null,null,"Standard Change Proposal","DCP 325 Change Proposal ","Under Development - Definition Stage",null,"-","-","ElectraLink Ltd","Live","Distribution Connection Use of System Agreement","DCP 325","Reviewing the requirements of Sections 35A, 35B, Schedule 15 and Schedule 20.","The intent of this Change Proposal is to combine, review and if appropriate, amend the requirements of Section 35A, Section 35B, Schedule 15 and Schedule 20 to improve transparency and efficiency in the data published by DNOs","Northern Powergrid","2018-07-11",null,null,"Standard Change Proposal","DCP 325 Change Proposal ","Under Development - Definition Stage",null,"-","-","ElectraLink Ltd","Live","Distribution Connection Use of System Agreement","DCP 325","Reviewing the requirements of Sections 35A, 35B, Schedule 15 and Schedule 20.","The intent of this Change Proposal is to combine, review and if appropriate, amend the requirements of Section 35A, Section 35B, Schedule 15 and Schedule 20 to improve transparency and efficiency in the data published by DNOs","Northern Powergrid","2018-07-11",null,null,"Standard Change Proposal","DCP 325 Change Proposal ","Under Development - Definition Stage",null,"-","-","ElectraLink Ltd","Live","Distribution Connection Use of System Agreement","DCP 325","Reviewing the requirements of Sections 35A, 35B, Schedule 15 and Schedule 20.","The intent of this Change Proposal is to combine, review and if appropriate, amend the requirements of Section 35A, Section 35B, Schedule 15 and Schedule 20 to improve transparency and efficiency in the data published by DNOs","Northern Powergrid","2018-07-11",null,null,"Standard Change Proposal","DCP 325 Change Proposal ","Under Development - Definition Stage",null,"-","-","ElectraLink Ltd","Live","Distribution Connection Use of System Agreement","DCP 325","Reviewing the requirements of Sections 35A, 35B, Schedule 15 and Schedule 20.","The intent of this Change Proposal is to combine, review and if appropriate, amend the requirements of Section 35A, Section 35B, Schedule 15 and Schedule 20 to improve transparency and efficiency in the data published by DNOs","Northern Powergrid","2018-07-11",null,null,"Standard Change Proposal","DCP 325 Change Proposal ","Under Development - Definition Stage",null,"-","-","ElectraLink Ltd","Live","Distribution Connection Use of System Agreement","DCP 325","Reviewing the requirements of Sections 35A, 35B, Schedule 15 and Schedule 20.","The intent of this Change Proposal is to combine, review and if appropriate, amend the requirements of Section 35A, Section 35B, Schedule 15 and Schedule 20 to improve transparency and efficiency in the data published by DNOs","Northern Powergrid","2018-07-11",null,null,"Standard Change Proposal","DCP 325 Change Proposal ","Under Development - Definition Stage",null,"-","-","ElectraLink Ltd","Live","Distribution Connection Use of System Agreement","DCP 325","Reviewing the requirements of Sections 35A, 35B, Schedule 15 and Schedule 20.","The intent of this Change Proposal is to combine, review and if appropriate, amend the requirements of Section 35A, Section 35B, Schedule 15 and Schedule 20 to improve transparency and efficiency in the data published by DNOs","Northern Powergrid","2018-07-11",null,null,"Standard Change Proposal","DCP 325 Change Proposal ","Under Development - Definition Stage",null,"-","-","ElectraLink Ltd","Live","Distribution Connection Use of System Agreement","DCP 325","Reviewing the requirements of Sections 35A, 35B, Schedule 15 and Schedule 20.","The intent of this Change Proposal is to combine, review and if appropriate, amend the requirements of Section 35A, Section 35B, Schedule 15 and Schedule 20 to improve transparency and efficiency in the data published by DNOs","Northern Powergrid","2018-07-11",null,null,"Standard Change Proposal","DCP 325 Change Proposal ","Under Development - Definition Stage",null,"-","-","ElectraLink Ltd","Live","Distribution Connection Use of System Agreement","DCP 325","Reviewing the requirements of Sections 35A, 35B, Schedule 15 and Schedule 20.","The intent of this Change Proposal is to combine, review and if appropriate, amend the requirements of Section 35A, Section 35B, Schedule 15 and Schedule 20 to improve transparency and efficiency in the data published by DNOs","Northern Powergrid","2018-07-11",null,null,"Standard Change Proposal","DCP 325 Change Proposal ","Under Development - Definition Stage",null,"-","-","ElectraLink Ltd","Live","Distribution Connection Use of System Agreement","DCP 325","Reviewing the requirements of Sections 35A, 35B, Schedule 15 and Schedule 20.","The intent of this Change Proposal is to combine, review and if appropriate, amend the requirements of Section 35A, Section 35B, Schedule 15 and Schedule 20 to improve transparency and efficiency in the data published by DNOs","Northern Powergrid","2018-07-11",null,null,"Standard Change Proposal","DCP 325 Change Proposal ","Under Development - Definition Stage",null,"-","-","ElectraLink Ltd","Live","Distribution Connection Use of System Agreement","DCP 325","Reviewing the requirements of Sections 35A, 35B, Schedule 15 and Schedule 20.","The intent of this Change Proposal is to combine, review and if appropriate, amend the requirements of Section 35A, Section 35B, Schedule 15 and Schedule 20 to improve transparency and efficiency in the data published by DNOs","Northern Powergrid","2018-07-11",null,null,"Standard Change Proposal","DCP 325 Change Proposal ","Under Development - Definition Stage",null,"-","-","ElectraLink Ltd","Live","Distribution Connection Use of System Agreement","DCP 325","Reviewing the requirements of Sections 35A, 35B, Schedule 15 and Schedule 20.","The intent of this Change Proposal is to combine, review and if appropriate, amend the requirements of Section 35A, Section 35B, Schedule 15 and Schedule 20 to improve transparency and efficiency in the data published by DNOs","Northern Powergrid","2018-07-11",null,null,"Standard Change Proposal","DCP 325 Change Proposal ","Under Development - Definition Stage",null,"-","-","ElectraLink Ltd","Live","Distribution Connection Use of System Agreement","DCP 325","Reviewing the requirements of Sections 35A, 35B, Schedule 15 and Schedule 20.","The intent of this Change Proposal is to combine, review and if appropriate, amend the requirements of Section 35A, Section 35B, Schedule 15 and Schedule 20 to improve transparency and efficiency in the data published by DNOs","Northern Powergrid","2018-07-11",null,null,"Standard Change Proposal","DCP 325 Change Proposal ","Under Development - Definition Stage",null,"-","-","ElectraLink Ltd","Live","Distribution Connection Use of System Agreement","DCP 325","Reviewing the requirements of Sections 35A, 35B, Schedule 15 and Schedule 20.","The intent of this Change Proposal is to combine, review and if appropriate, amend the requirements of Section 35A, Section 35B, Schedule 15 and Schedule 20 to improve transparency and efficiency in the data published by DNOs","Northern Powergrid","2018-07-11",null,null,"Standard Change Proposal","DCP 325 Change Proposal ","Under Development - Definition Stage",null,"-","-","ElectraLink Ltd","Live","Distribution Connection Use of System Agreement","DCP 325","Reviewing the requirements of Sections 35A, 35B, Schedule 15 and Schedule 20.","The intent of this Change Proposal is to combine, review and if appropriate, amend the requirements of Section 35A, Section 35B, Schedule 15 and Schedule 20 to improve transparency and efficiency in the data published by DNOs","Northern Powergrid","2018-07-11",null,null,"Standard Change Proposal","DCP 325 Change Proposal ","Under Development - Definition Stage",null,"-","-","ElectraLink Ltd","Live","Distribution Connection Use of System Agreement","DCP 325","Reviewing the requirements of Sections 35A, 35B, Schedule 15 and Schedule 20.","The intent of this Change Proposal is to combine, review and if appropriate, amend the requirements of Section 35A, Section 35B, Schedule 15 and Schedule 20 to improve transparency and efficiency in the data published by DNOs","Northern Powergrid","2018-07-11",null,null,"Standard Change Proposal","DCP 325 Change Proposal ","Under Development - Definition Stage",null,"-","-","ElectraLink Ltd","Live","Distribution Connection Use of System Agreement","DCP 325","Reviewing the requirements of Sections 35A, 35B, Schedule 15 and Schedule 20.","The intent of this Change Proposal is to combine, review and if appropriate, amend the requirements of Section 35A, Section 35B, Schedule 15 and Schedule 20 to improve transparency and efficiency in the data published by DNOs","Northern Powergrid","2018-07-11",null,null,"Standard Change Proposal","DCP 325 Change Proposal ","Under Development - Definition Stage",null,"-","-","ElectraLink Ltd","Live","Distribution Connection Use of System Agreement","DCP 325","Reviewing the requirements of Sections 35A, 35B, Schedule 15 and Schedule 20.","The intent of this Change Proposal is to combine, review and if appropriate, amend the requirements of Section 35A, Section 35B, Schedule 15 and Schedule 20 to improve transparency and efficiency in the data published by DNOs","Northern Powergrid","2018-07-11",null,null,"Standard Change Proposal","DCP 325 Change Proposal ","Under Development - Definition Stage",null,"-","-","ElectraLink Ltd","Live","Distribution Connection Use of System Agreement","DCP 325","Reviewing the requirements of Sections 35A, 35B, Schedule 15 and Schedule 20.","The intent of this Change Proposal is to combine, review and if appropriate, amend the requirements of Section 35A, Section 35B, Schedule 15 and Schedule 20 to improve transparency and efficiency in the data published by DNOs","Northern Powergrid","2018-07-11",null,null,"Standard Change Proposal","DCP 325 Change Proposal ","Under Development - Definition Stage",null,"-","-","ElectraLink Ltd","Live","Distribution Connection Use of System Agreement","DCP 325","Reviewing the requirements of Sections 35A, 35B, Schedule 15 and Schedule 20.","The intent of this Change Proposal is to combine, review and if appropriate, amend the requirements of Section 35A, Section 35B, Schedule 15 and Schedule 20 to improve transparency and efficiency in the data published by DNOs","Northern Powergrid","2018-07-11",null,null,"Standard Change Proposal","DCP 325 Change Proposal ","Under Development - Definition Stage",null,"-","-","ElectraLink Ltd","Live","Distribution Connection Use of System Agreement","DCP 325","Reviewing the requirements of Sections 35A, 35B, Schedule 15 and Schedule 20.","The intent of this Change Proposal is to combine, review and if appropriate, amend the requirements of Section 35A, Section 35B, Schedule 15 and Schedule 20 to improve transparency and efficiency in the data published by DNOs","Northern Powergrid","2018-07-11",null,null,"Standard Change Proposal","DCP 325 Change Proposal ","Under Development - Definition Stage",null,"-","-","ElectraLink Ltd","Live","Distribution Connection Use of System Agreement","DCP 325","Reviewing the requirements of Sections 35A, 35B, Schedule 15 and Schedule 20.","The intent of this Change Proposal is to combine, review and if appropriate, amend the requirements of Section 35A, Section 35B, Schedule 15 and Schedule 20 to improve transparency and efficiency in the data published by DNOs","Northern Powergrid","2018-07-11",null,null,"Standard Change Proposal","DCP 325 Change Proposal ","Under Development - Definition Stage",null,"-","-","ElectraLink Ltd","Live","Distribution Connection Use of System Agreement","DCP 325","Reviewing the requirements of Sections 35A, 35B, Schedule 15 and Schedule 20.","The intent of this Change Proposal is to combine, review and if appropriate, amend the requirements of Section 35A, Section 35B, Schedule 15 and Schedule 20 to improve transparency and efficiency in the data published by DNOs","Northern Powergrid","2018-07-11",null,null,"Standard Change Proposal","DCP 325 Change Proposal ","Under Development - Definition Stage",null,"-","-","ElectraLink Ltd","Live","Distribution Connection Use of System Agreement","DCP 325","Reviewing the requirements of Sections 35A, 35B, Schedule 15 and Schedule 20.","The intent of this Change Proposal is to combine, review and if appropriate, amend the requirements of Section 35A, Section 35B, Schedule 15 and Schedule 20 to improve transparency and efficiency in the data published by DNOs","Northern Powergrid","2018-07-11",null,null,"Standard Change Proposal","DCP 325 Change Proposal ","Under Development - Definition Stage",null,"-","-","ElectraLink Ltd","Live","Distribution Connection Use of System Agreement","DCP 325","Reviewing the requirements of Sections 35A, 35B, Schedule 15 and Schedule 20.","The intent of this Change Proposal is to combine, review and if appropriate, amend the requirements of Section 35A, Section 35B, Schedule 15 and Schedule 20 to improve transparency and efficiency in the data published by DNOs","Northern Powergrid","2018-07-11",null,null,"Standard Change Proposal","DCP 325 Change Proposal ","Under Development - Definition Stage",null,"-","-","ElectraLink Ltd","Live","Distribution Connection Use of System Agreement","DCP 325","Reviewing the requirements of Sections 35A, 35B, Schedule 15 and Schedule 20.","The intent of this Change Proposal is to combine, review and if appropriate, amend the requirements of Section 35A, Section 35B, Schedule 15 and Schedule 20 to improve transparency and efficiency in the data published by DNOs","Northern Powergrid","2018-07-11",null,null,"Standard Change Proposal","DCP 325 Change Proposal ","Under Development - Definition Stage",null,"-","-","ElectraLink Ltd","Live","Distribution Connection Use of System Agreement","DCP 325","Reviewing the requirements of Sections 35A, 35B, Schedule 15 and Schedule 20.","The intent of this Change Proposal is to combine, review and if appropriate, amend the requirements of Section 35A, Section 35B, Schedule 15 and Schedule 20 to improve transparency and efficiency in the data published by DNOs","Northern Powergrid","2018-07-11",null,null,"Standard Change Proposal","DCP 325 Change Proposal ","Under Development - Definition Stage",null,"-","-","ElectraLink Ltd","Live","Distribution Connection Use of System Agreement","DCP 325","Reviewing the requirements of Sections 35A, 35B, Schedule 15 and Schedule 20.","The intent of this Change Proposal is to combine, review and if appropriate, amend the requirements of Section 35A, Section 35B, Schedule 15 and Schedule 20 to improve transparency and efficiency in the data published by DNOs","Northern Powergrid","2018-07-11",null,null,"Standard Change Proposal","DCP 325 Change Proposal ","Under Development - Definition Stage",null,"-","-","ElectraLink Ltd","Live","Distribution Connection Use of System Agreement","DCP 325","Reviewing the requirements of Sections 35A, 35B, Schedule 15 and Schedule 20.","The intent of this Change Proposal is to combine, review and if appropriate, amend the requirements of Section 35A, Section 35B, Schedule 15 and Schedule 20 to improve transparency and efficiency in the data published by DNOs","Northern Powergrid","2018-07-11",null,null,"Standard Change Proposal","DCP 325 Change Proposal ","Under Development - Definition Stage",null,"-","-","ElectraLink Ltd","Live","Distribution Connection Use of System Agreement","DCP 325","Reviewing the requirements of Sections 35A, 35B, Schedule 15 and Schedule 20.","The intent of this Change Proposal is to combine, review and if appropriate, amend the requirements of Section 35A, Section 35B, Schedule 15 and Schedule 20 to improve transparency and efficiency in the data published by DNOs","Northern Powergrid","2018-07-11",null,null,"Standard Change Proposal","DCP 325 Change Proposal ","Under Development - Definition Stage",null,"-","-","ElectraLink Ltd","Live","Distribution Connection Use of System Agreement","DCP 325","Reviewing the requirements of Sections 35A, 35B, Schedule 15 and Schedule 20.","The intent of this Change Proposal is to combine, review and if appropriate, amend the requirements of Section 35A, Section 35B, Schedule 15 and Schedule 20 to improve transparency and efficiency in the data published by DNOs","Northern Powergrid","2018-07-11",null,null,"Standard Change Proposal","DCP 325 Change Proposal ","Under Development - Definition Stage",null,"-","-","ElectraLink Ltd","Live","Distribution Connection Use of System Agreement","DCP 325","Reviewing the requirements of Sections 35A, 35B, Schedule 15 and Schedule 20.","The intent of this Change Proposal is to combine, review and if appropriate, amend the requirements of Section 35A, Section 35B, Schedule 15 and Schedule 20 to improve transparency and efficiency in the data published by DNOs","Northern Powergrid","2018-07-11",null,null,"Standard Change Proposal","DCP 325 Change Proposal ","Under Development - Definition Stage",null,"-","-","ElectraLink Ltd","Live","Distribution Connection Use of System Agreement","DCP 325","Reviewing the requirements of Sections 35A, 35B, Schedule 15 and Schedule 20.","The intent of this Change Proposal is to combine, review and if appropriate, amend the requirements of Section 35A, Section 35B, Schedule 15 and Schedule 20 to improve transparency and efficiency in the data published by DNOs","Northern Powergrid","2018-07-11",null,null,"Standard Change Proposal","DCP 325 Change Proposal ","Under Development - Definition Stage",null,"-","-","ElectraLink Ltd","Live","Distribution Connection Use of System Agreement","DCP 325","Reviewing the requirements of Sections 35A, 35B, Schedule 15 and Schedule 20.","The intent of this Change Proposal is to combine, review and if appropriate, amend the requirements of Section 35A, Section 35B, Schedule 15 and Schedule 20 to improve transparency and efficiency in the data published by DNOs","Northern Powergrid","2018-07-11",null,null,"Standard Change Proposal","DCP 325 Change Proposal ","Under Development - Definition Stage",null,"-","-","ElectraLink Ltd","Live","Distribution Connection Use of System Agreement","DCP 325","Reviewing the requirements of Sections 35A, 35B, Schedule 15 and Schedule 20.","The intent of this Change Proposal is to combine, review and if appropriate, amend the requirements of Section 35A, Section 35B, Schedule 15 and Schedule 20 to improve transparency and efficiency in the data published by DNOs","Northern Powergrid","2018-07-11",null,null,"Standard Change Proposal","DCP 325 Change Proposal ","Under Development - Definition Stage",null,"-","-","ElectraLink Ltd","Live","Distribution Connection Use of System Agreement","DCP 325","Reviewing the requirements of Sections 35A, 35B, Schedule 15 and Schedule 20.","The intent of this Change Proposal is to combine, review and if appropriate, amend the requirements of Section 35A, Section 35B, Schedule 15 and Schedule 20 to improve transparency and efficiency in the data published by DNOs","Northern Powergrid","2018-07-11",null,null,"Standard Change Proposal","DCP 325 Change Proposal ","Under Development - Definition Stage",null,"-","-","ElectraLink Ltd","Live","Distribution Connection Use of System Agreement","DCP 325","Reviewing the requirements of Sections 35A, 35B, Schedule 15 and Schedule 20.","The intent of this Change Proposal is to combine, review and if appropriate, amend the requirements of Section 35A, Section 35B, Schedule 15 and Schedule 20 to improve transparency and efficiency in the data published by DNOs","Northern Powergrid","2018-07-11",null,null,"Standard Change Proposal","DCP 325 Change Proposal ","Under Development - Definition Stage",null,"-","-","ElectraLink Ltd","Live","Distribution Connection Use of System Agreement","DCP 325","Reviewing the requirements of Sections 35A, 35B, Schedule 15 and Schedule 20.","The intent of this Change Proposal is to combine, review and if appropriate, amend the requirements of Section 35A, Section 35B, Schedule 15 and Schedule 20 to improve transparency and efficiency in the data published by DNOs","Northern Powergrid","2018-07-11",null,null,"Standard Change Proposal","DCP 325 Change Proposal ","Under Development - Definition Stage",null,"-","-","ElectraLink Ltd","Live","Distribution Connection Use of System Agreement","DCP 325","Reviewing the requirements of Sections 35A, 35B, Schedule 15 and Schedule 20.","The intent of this Change Proposal is to combine, review and if appropriate, amend the requirements of Section 35A, Section 35B, Schedule 15 and Schedule 20 to improve transparency and efficiency in the data published by DNOs","Northern Powergrid","2018-07-11",null,null,"Standard Change Proposal","DCP 325 Change Proposal ","Under Development - Definition Stage",null,"-","-","ElectraLink Ltd","Live","Distribution Connection Use of System Agreement","DCP 325","Reviewing the requirements of Sections 35A, 35B, Schedule 15 and Schedule 20.","The intent of this Change Proposal is to combine, review and if appropriate, amend the requirements of Section 35A, Section 35B, Schedule 15 and Schedule 20 to improve transparency and efficiency in the data published by DNOs","Northern Powergrid","2018-07-11",null,null,"Standard Change Proposal","DCP 325 Change Proposal ","Under Development - Definition Stage",null,"-","-","ElectraLink Ltd","Live","Distribution Connection Use of System Agreement","DCP 325","Reviewing the requirements of Sections 35A, 35B, Schedule 15 and Schedule 20.","The intent of this Change Proposal is to combine, review and if appropriate, amend the requirements of Section 35A, Section 35B, Schedule 15 and Schedule 20 to improve transparency and efficiency in the data published by DNOs","Northern Powergrid","2018-07-11",null,null,"Standard Change Proposal","DCP 325 Change Proposal ","Under Development - Definition Stage",null,"-","-","ElectraLink Ltd","Live","Distribution Connection Use of System Agreement","DCP 325","Reviewing the requirements of Sections 35A, 35B, Schedule 15 and Schedule 20.","The intent of this Change Proposal is to combine, review and if appropriate, amend the requirements of Section 35A, Section 35B, Schedule 15 and Schedule 20 to improve transparency and efficiency in the data published by DNOs","Northern Powergrid","2018-07-11",null,null,"Standard Change Proposal","DCP 325 Change Proposal ","Under Development - Definition Stage",null,"-","-","ElectraLink Ltd","Live","Distribution Connection Use of System Agreement","DCP 325","Reviewing the requirements of Sections 35A, 35B, Schedule 15 and Schedule 20.","The intent of this Change Proposal is to combine, review and if appropriate, amend the requirements of Section 35A, Section 35B, Schedule 15 and Schedule 20 to improve transparency and efficiency in the data published by DNOs","Northern Powergrid","2018-07-11",null,null,"Standard Change Proposal","DCP 325 Change Proposal ","Under Development - Definition Stage",null,"-","-","ElectraLink Ltd","Live","Distribution Connection Use of System Agreement","DCP 325","Reviewing the requirements of Sections 35A, 35B, Schedule 15 and Schedule 20.","The intent of this Change Proposal is to combine, review and if appropriate, amend the requirements of Section 35A, Section 35B, Schedule 15 and Schedule 20 to improve transparency and efficiency in the data published by DNOs","Northern Powergrid","2018-07-11",null,null,"Standard Change Proposal","DCP 325 Change Proposal ","Under Development - Definition Stage",null,"-","-","ElectraLink Ltd","Live","Distribution Connection Use of System Agreement","DCP 325","Reviewing the requirements of Sections 35A, 35B, Schedule 15 and Schedule 20.","The intent of this Change Proposal is to combine, review and if appropriate, amend the requirements of Section 35A, Section 35B, Schedule 15 and Schedule 20 to improve transparency and efficiency in the data published by DNOs","Northern Powergrid","2018-07-11",null,null,"Standard Change Proposal","DCP 325 Change Proposal ","Under Development - Definition Stage",null,"-","-","ElectraLink Ltd","Live","Distribution Connection Use of System Agreement","DCP 325","Reviewing the requirements of Sections 35A, 35B, Schedule 15 and Schedule 20.","The intent of this Change Proposal is to combine, review and if appropriate, amend the requirements of Section 35A, Section 35B, Schedule 15 and Schedule 20 to improve transparency and efficiency in the data published by DNOs","Northern Powergrid","2018-07-11",null,null,"Standard Change Proposal","DCP 325 Change Proposal ","Under Development - Definition Stage",null,"-","-","ElectraLink Ltd","Live","Distribution Connection Use of System Agreement","DCP 325","Reviewing the requirements of Sections 35A, 35B, Schedule 15 and Schedule 20.","The intent of this Change Proposal is to combine, review and if appropriate, amend the requirements of Section 35A, Section 35B, Schedule 15 and Schedule 20 to improve transparency and efficiency in the data published by DNOs","Northern Powergrid","2018-07-11",null,null,"Standard Change Proposal","DCP 325 Change Proposal ","Under Development - Definition Stage",null,"-","-","ElectraLink Ltd","Live","Distribution Connection Use of System Agreement","DCP 325","Reviewing the requirements of Sections 35A, 35B, Schedule 15 and Schedule 20.","The intent of this Change Proposal is to combine, review and if appropriate, amend the requirements of Section 35A, Section 35B, Schedule 15 and Schedule 20 to improve transparency and efficiency in the data published by DNOs","Northern Powergrid","2018-07-11",null,null,"Standard Change Proposal","DCP 325 Change Proposal ","Under Development - Definition Stage",null,"-","-","ElectraLink Ltd","Live","Distribution Connection Use of System Agreement","DCP 325","Reviewing the requirements of Sections 35A, 35B, Schedule 15 and Schedule 20.","The intent of this Change Proposal is to combine, review and if appropriate, amend the requirements of Section 35A, Section 35B, Schedule 15 and Schedule 20 to improve transparency and efficiency in the data published by DNOs","Northern Powergrid","2018-07-11",null,null,"Standard Change Proposal","DCP 325 Change Proposal ","Under Development - Definition Stage",null,"-","-","ElectraLink Ltd","Live","Distribution Connection Use of System Agreement","DCP 325","Reviewing the requirements of Sections 35A, 35B, Schedule 15 and Schedule 20.","The intent of this Change Proposal is to combine, review and if appropriate, amend the requirements of Section 35A, Section 35B, Schedule 15 and Schedule 20 to improve transparency and efficiency in the data published by DNOs","Northern Powergrid","2018-07-11",null,null,"Standard Change Proposal","DCP 325 Change Proposal ","Under Development - Definition Stage",null,"-","-","ElectraLink Ltd","Live","Distribution Connection Use of System Agreement","DCP 325","Reviewing the requirements of Sections 35A, 35B, Schedule 15 and Schedule 20.","The intent of this Change Proposal is to combine, review and if appropriate, amend the requirements of Section 35A, Section 35B, Schedule 15 and Schedule 20 to improve transparency and efficiency in the data published by DNOs","Northern Powergrid","2018-07-11",null,null,"Standard Change Proposal","DCP 325 Change Proposal ","Under Development - Definition Stage",null,"-","-","ElectraLink Ltd","Live","Distribution Connection Use of System Agreement","DCP 325","Reviewing the requirements of Sections 35A, 35B, Schedule 15 and Schedule 20.","The intent of this Change Proposal is to combine, review and if appropriate, amend the requirements of Section 35A, Section 35B, Schedule 15 and Schedule 20 to improve transparency and efficiency in the data published by DNOs","Northern Powergrid","2018-07-11",null,null,"Standard Change Proposal","DCP 325 Change Proposal ","Under Development - Definition Stage",null,"-","-","ElectraLink Ltd","Live","Distribution Connection Use of System Agreement","DCP 325","Reviewing the requirements of Sections 35A, 35B, Schedule 15 and Schedule 20.","The intent of this Change Proposal is to combine, review and if appropriate, amend the requirements of Section 35A, Section 35B, Schedule 15 and Schedule 20 to improve transparency and efficiency in the data published by DNOs","Northern Powergrid","2018-07-11",null,null,"Standard Change Proposal","DCP 325 Change Proposal ","Under Development - Definition Stage",null,"-","-","ElectraLink Ltd","Live","Distribution Connection Use of System Agreement","DCP 325","Reviewing the requirements of Sections 35A, 35B, Schedule 15 and Schedule 20.","The intent of this Change Proposal is to combine, review and if appropriate, amend the requirements of Section 35A, Section 35B, Schedule 15 and Schedule 20 to improve transparency and efficiency in the data published by DNOs","Northern Powergrid","2018-07-11",null,null,"Standard Change Proposal","DCP 325 Change Proposal ","Under Development - Definition Stage",null,"-","-","ElectraLink Ltd","Live","Distribution Connection Use of System Agreement","DCP 325","Reviewing the requirements of Sections 35A, 35B, Schedule 15 and Schedule 20.","The intent of this Change Proposal is to combine, review and if appropriate, amend the requirements of Section 35A, Section 35B, Schedule 15 and Schedule 20 to improve transparency and efficiency in the data published by DNOs","Northern Powergrid","2018-07-11",null,null,"Standard Change Proposal","DCP 325 Change Proposal ","Under Development - Definition Stage",null,"-","-","ElectraLink Ltd","Live","Distribution Connection Use of System Agreement","DCP 325","Reviewing the requirements of Sections 35A, 35B, Schedule 15 and Schedule 20.","The intent of this Change Proposal is to combine, review and if appropriate, amend the requirements of Section 35A, Section 35B, Schedule 15 and Schedule 20 to improve transparency and efficiency in the data published by DNOs","Northern Powergrid","2018-07-11",null,null,"Standard Change Proposal","DCP 325 Change Proposal ","Under Development - Definition Stage",null,"-","-","ElectraLink Ltd","Live","Distribution Connection Use of System Agreement","DCP 325","Reviewing the requirements of Sections 35A, 35B, Schedule 15 and Schedule 20.","The intent of this Change Proposal is to combine, review and if appropriate, amend the requirements of Section 35A, Section 35B, Schedule 15 and Schedule 20 to improve transparency and efficiency in the data published by DNOs","Northern Powergrid","2018-07-11",null,null,"Standard Change Proposal","DCP 325 Change Proposal ","Under Development - Definition Stage",null,"-","-","ElectraLink Ltd","Live","Distribution Connection Use of System Agreement","DCP 325","Reviewing the requirements of Sections 35A, 35B, Schedule 15 and Schedule 20.","The intent of this Change Proposal is to combine, review and if appropriate, amend the requirements of Section 35A, Section 35B, Schedule 15 and Schedule 20 to improve transparency and efficiency in the data published by DNOs","Northern Powergrid","2018-07-11",null,null,"Standard Change Proposal","DCP 325 Change Proposal ","Under Development - Definition Stage",null,"-","-","ElectraLink Ltd","Live","Distribution Connection Use of System Agreement","DCP 325","Reviewing the requirements of Sections 35A, 35B, Schedule 15 and Schedule 20.","The intent of this Change Proposal is to combine, review and if appropriate, amend the requirements of Section 35A, Section 35B, Schedule 15 and Schedule 20 to improve transparency and efficiency in the data published by DNOs","Northern Powergrid","2018-07-11",null,null,"Standard Change Proposal","DCP 325 Change Proposal ","Under Development - Definition Stage",null,"-","-","ElectraLink Ltd","Live","Distribution Connection Use of System Agreement","DCP 325","Reviewing the requirements of Sections 35A, 35B, Schedule 15 and Schedule 20.","The intent of this Change Proposal is to combine, review and if appropriate, amend the requirements of Section 35A, Section 35B, Schedule 15 and Schedule 20 to improve transparency and efficiency in the data published by DNOs","Northern Powergrid","2018-07-11",null,null,"Standard Change Proposal","DCP 325 Change Proposal ","Under Development - Definition Stage",null,"-","-","ElectraLink Ltd","Live","Distribution Connection Use of System Agreement","DCP 325","Reviewing the requirements of Sections 35A, 35B, Schedule 15 and Schedule 20.","The intent of this Change Proposal is to combine, review and if appropriate, amend the requirements of Section 35A, Section 35B, Schedule 15 and Schedule 20 to improve transparency and efficiency in the data published by DNOs","Northern Powergrid","2018-07-11",null,null,"Standard Change Proposal","DCP 325 Change Proposal ","Under Development - Definition Stage",null,"-","-","ElectraLink Ltd","Live","Distribution Connection Use of System Agreement","DCP 325","Reviewing the requirements of Sections 35A, 35B, Schedule 15 and Schedule 20.","The intent of this Change Proposal is to combine, review and if appropriate, amend the requirements of Section 35A, Section 35B, Schedule 15 and Schedule 20 to improve transparency and efficiency in the data published by DNOs","Northern Powergrid","2018-07-11",null,null,"Standard Change Proposal","DCP 325 Change Proposal ","Under Development - Definition Stage",null,"-","-","ElectraLink Ltd","Live","Distribution Connection Use of System Agreement","DCP 325","Reviewing the requirements of Sections 35A, 35B, Schedule 15 and Schedule 20.","The intent of this Change Proposal is to combine, review and if appropriate, amend the requirements of Section 35A, Section 35B, Schedule 15 and Schedule 20 to improve transparency and efficiency in the data published by DNOs","Northern Powergrid","2018-07-11",null,null,"Standard Change Proposal","DCP 325 Change Proposal ","Under Development - Definition Stage",null,"-","-","ElectraLink Ltd","Live","Distribution Connection Use of System Agreement","DCP 325","Reviewing the requirements of Sections 35A, 35B, Schedule 15 and Schedule 20.","The intent of this Change Proposal is to combine, review and if appropriate, amend the requirements of Section 35A, Section 35B, Schedule 15 and Schedule 20 to improve transparency and efficiency in the data published by DNOs","Northern Powergrid","2018-07-11",null,null,"Standard Change Proposal","DCP 325 Change Proposal ","Under Development - Definition Stage",null,"-","-","ElectraLink Ltd","Live","Distribution Connection Use of System Agreement","DCP 325","Reviewing the requirements of Sections 35A, 35B, Schedule 15 and Schedule 20.","The intent of this Change Proposal is to combine, review and if appropriate, amend the requirements of Section 35A, Section 35B, Schedule 15 and Schedule 20 to improve transparency and efficiency in the data published by DNOs","Northern Powergrid","2018-07-11",null,null,"Standard Change Proposal","DCP 325 Change Proposal ","Under Development - Definition Stage",null,"-","-","ElectraLink Ltd","Live","Distribution Connection Use of System Agreement","DCP 325","Reviewing the requirements of Sections 35A, 35B, Schedule 15 and Schedule 20.","The intent of this Change Proposal is to combine, review and if appropriate, amend the requirements of Section 35A, Section 35B, Schedule 15 and Schedule 20 to improve transparency and efficiency in the data published by DNOs","Northern Powergrid","2018-07-11",null,null,"Standard Change Proposal","DCP 325 Change Proposal ","Under Development - Definition Stage",null,"-","-","ElectraLink Ltd","Live","Distribution Connection Use of System Agreement","DCP 325","Reviewing the requirements of Sections 35A, 35B, Schedule 15 and Schedule 20.","The intent of this Change Proposal is to combine, review and if appropriate, amend the requirements of Section 35A, Section 35B, Schedule 15 and Schedule 20 to improve transparency and efficiency in the data published by DNOs","Northern Powergrid","2018-07-11",null,null,"Standard Change Proposal","DCP 325 Change Proposal ","Under Development - Definition Stage",null,"-","-","ElectraLink Ltd","Live","Distribution Connection Use of System Agreement","DCP 325","Reviewing the requirements of Sections 35A, 35B, Schedule 15 and Schedule 20.","The intent of this Change Proposal is to combine, review and if appropriate, amend the requirements of Section 35A, Section 35B, Schedule 15 and Schedule 20 to improve transparency and efficiency in the data published by DNOs","Northern Powergrid","2018-07-11",null,null,"Standard Change Proposal","DCP 325 Change Proposal ","Under Development - Definition Stage",null,"-","-","ElectraLink Ltd","Live","Distribution Connection Use of System Agreement","DCP 325","Reviewing the requirements of Sections 35A, 35B, Schedule 15 and Schedule 20.","The intent of this Change Proposal is to combine, review and if appropriate, amend the requirements of Section 35A, Section 35B, Schedule 15 and Schedule 20 to improve transparency and efficiency in the data published by DNOs","Northern Powergrid","2018-07-11",null,null,"Standard Change Proposal","DCP 325 Change Proposal ","Under Development - Definition Stage",null,"-","-","ElectraLink Ltd","Live","Distribution Connection Use of System Agreement","DCP 325","Reviewing the requirements of Sections 35A, 35B, Schedule 15 and Schedule 20.","The intent of this Change Proposal is to combine, review and if appropriate, amend the requirements of Section 35A, Section 35B, Schedule 15 and Schedule 20 to improve transparency and efficiency in the data published by DNOs","Northern Powergrid","2018-07-11",null,null,"Standard Change Proposal","DCP 325 Change Proposal ","Under Development - Definition Stage",null,"-","-","ElectraLink Ltd","Live","Distribution Connection Use of System Agreement","DCP 325","Reviewing the requirements of Sections 35A, 35B, Schedule 15 and Schedule 20.","The intent of this Change Proposal is to combine, review and if appropriate, amend the requirements of Section 35A, Section 35B, Schedule 15 and Schedule 20 to improve transparency and efficiency in the data published by DNOs","Northern Powergrid","2018-07-11",null,null,"Standard Change Proposal","DCP 325 Change Proposal ","Under Development - Definition Stage",null,"-","-","ElectraLink Ltd","Live","Distribution Connection Use of System Agreement","DCP 325","Reviewing the requirements of Sections 35A, 35B, Schedule 15 and Schedule 20.","The intent of this Change Proposal is to combine, review and if appropriate, amend the requirements of Section 35A, Section 35B, Schedule 15 and Schedule 20 to improve transparency and efficiency in the data published by DNOs","Northern Powergrid","2018-07-11",null,null,"Standard Change Proposal","DCP 325 Change Proposal ","Under Development - Definition Stage",null,"-","-","ElectraLink Ltd","Live","Distribution Connection Use of System Agreement","DCP 325","Reviewing the requirements of Sections 35A, 35B, Schedule 15 and Schedule 20.","The intent of this Change Proposal is to combine, review and if appropriate, amend the requirements of Section 35A, Section 35B, Schedule 15 and Schedule 20 to improve transparency and efficiency in the data published by DNOs","Northern Powergrid","2018-07-11",null,null,"Standard Change Proposal","DCP 325 Change Proposal ","Under Development - Definition Stage",null,"-","-","ElectraLink Ltd","Live","Distribution Connection Use of System Agreement","DCP 325","Reviewing the requirements of Sections 35A, 35B, Schedule 15 and Schedule 20.","The intent of this Change Proposal is to combine, review and if appropriate, amend the requirements of Section 35A, Section 35B, Schedule 15 and Schedule 20 to improve transparency and efficiency in the data published by DNOs","Northern Powergrid","2018-07-11",null,null,"Standard Change Proposal","DCP 325 Change Proposal ","Under Development - Definition Stage",null,"-","-","ElectraLink Ltd","Live","Distribution Connection Use of System Agreement","DCP 325","Reviewing the requirements of Sections 35A, 35B, Schedule 15 and Schedule 20.","The intent of this Change Proposal is to combine, review and if appropriate, amend the requirements of Section 35A, Section 35B, Schedule 15 and Schedule 20 to improve transparency and efficiency in the data published by DNOs","Northern Powergrid","2018-07-11",null,null,"Standard Change Proposal","DCP 325 Change Proposal ","Under Development - Definition Stage",null,"-","-","ElectraLink Ltd","Live","Distribution Connection Use of System Agreement","DCP 325","Reviewing the requirements of Sections 35A, 35B, Schedule 15 and Schedule 20.","The intent of this Change Proposal is to combine, review and if appropriate, amend the requirements of Section 35A, Section 35B, Schedule 15 and Schedule 20 to improve transparency and efficiency in the data published by DNOs","Northern Powergrid","2018-07-11",null,null,"Standard Change Proposal","DCP 325 Change Proposal ","Under Development - Definition Stage",null,"-","-","ElectraLink Ltd","Live","Distribution Connection Use of System Agreement","DCP 325","Reviewing the requirements of Sections 35A, 35B, Schedule 15 and Schedule 20.","The intent of this Change Proposal is to combine, review and if appropriate, amend the requirements of Section 35A, Section 35B, Schedule 15 and Schedule 20 to improve transparency and efficiency in the data published by DNOs","Northern Powergrid","2018-07-11",null,null,"Standard Change Proposal","DCP 325 Change Proposal ","Under Development - Definition Stage",null,"-","-","ElectraLink Ltd","Live","Distribution Connection Use of System Agreement","DCP 325","Reviewing the requirements of Sections 35A, 35B, Schedule 15 and Schedule 20.","The intent of this Change Proposal is to combine, review and if appropriate, amend the requirements of Section 35A, Section 35B, Schedule 15 and Schedule 20 to improve transparency and efficiency in the data published by DNOs","Northern Powergrid","2018-07-11",null,null,"Standard Change Proposal","DCP 325 Change Proposal ","Under Development - Definition Stage",null,"-","-","ElectraLink Ltd","Live","Distribution Connection Use of System Agreement","DCP 325","Reviewing the requirements of Sections 35A, 35B, Schedule 15 and Schedule 20.","The intent of this Change Proposal is to combine, review and if appropriate, amend the requirements of Section 35A, Section 35B, Schedule 15 and Schedule 20 to improve transparency and efficiency in the data published by DNOs","Northern Powergrid","2018-07-11",null,null,"Standard Change Proposal","DCP 325 Change Proposal ","Under Development - Definition Stage",null,"-","-","ElectraLink Ltd","Live","Distribution Connection Use of System Agreement","DCP 325","Reviewing the requirements of Sections 35A, 35B, Schedule 15 and Schedule 20.","The intent of this Change Proposal is to combine, review and if appropriate, amend the requirements of Section 35A, Section 35B, Schedule 15 and Schedule 20 to improve transparency and efficiency in the data published by DNOs","Northern Powergrid","2018-07-11",null,null,"Standard Change Proposal","DCP 325 Change Proposal ","Under Development - Definition Stage",null,"-","-","ElectraLink Ltd","Live","Distribution Connection Use of System Agreement","DCP 325","Reviewing the requirements of Sections 35A, 35B, Schedule 15 and Schedule 20.","The intent of this Change Proposal is to combine, review and if appropriate, amend the requirements of Section 35A, Section 35B, Schedule 15 and Schedule 20 to improve transparency and efficiency in the data published by DNOs","Northern Powergrid","2018-07-11",null,null,"Standard Change Proposal","DCP 325 Change Proposal ","Under Development - Definition Stage",null,"-","-","ElectraLink Ltd","Live","Distribution Connection Use of System Agreement","DCP 325","Reviewing the requirements of Sections 35A, 35B, Schedule 15 and Schedule 20.","The intent of this Change Proposal is to combine, review and if appropriate, amend the requirements of Section 35A, Section 35B, Schedule 15 and Schedule 20 to improve transparency and efficiency in the data published by DNOs","Northern Powergrid","2018-07-11",null,null,"Standard Change Proposal","DCP 325 Change Proposal ","Under Development - Definition Stage",null,"-","-","ElectraLink Ltd","Live","Distribution Connection Use of System Agreement","DCP 325","Reviewing the requirements of Sections 35A, 35B, Schedule 15 and Schedule 20.","The intent of this Change Proposal is to combine, review and if appropriate, amend the requirements of Section 35A, Section 35B, Schedule 15 and Schedule 20 to improve transparency and efficiency in the data published by DNOs","Northern Powergrid","2018-07-11",null,null,"Standard Change Proposal","DCP 325 Change Proposal ","Under Development - Definition Stage",null,"-","-","ElectraLink Ltd","Live","Distribution Connection Use of System Agreement","DCP 325","Reviewing the requirements of Sections 35A, 35B, Schedule 15 and Schedule 20.","The intent of this Change Proposal is to combine, review and if appropriate, amend the requirements of Section 35A, Section 35B, Schedule 15 and Schedule 20 to improve transparency and efficiency in the data published by DNOs","Northern Powergrid","2018-07-11",null,null,"Standard Change Proposal","DCP 325 Change Proposal ","Under Development - Definition Stage",null,"-","-","ElectraLink Ltd","Live","Distribution Connection Use of System Agreement","DCP 325","Reviewing the requirements of Sections 35A, 35B, Schedule 15 and Schedule 20.","The intent of this Change Proposal is to combine, review and if appropriate, amend the requirements of Section 35A, Section 35B, Schedule 15 and Schedule 20 to improve transparency and efficiency in the data published by DNOs","Northern Powergrid","2018-07-11",null,null,"Standard Change Proposal","DCP 325 Change Proposal ","Under Development - Definition Stage",null,"-","-","ElectraLink Ltd","Live","Distribution Connection Use of System Agreement","DCP 325","Reviewing the requirements of Sections 35A, 35B, Schedule 15 and Schedule 20.","The intent of this Change Proposal is to combine, review and if appropriate, amend the requirements of Section 35A, Section 35B, Schedule 15 and Schedule 20 to improve transparency and efficiency in the data published by DNOs","Northern Powergrid","2018-07-11",null,null,"Standard Change Proposal","DCP 325 Change Proposal ","Under Development - Definition Stage",null,"-","-","ElectraLink Ltd","Live","Distribution Connection Use of System Agreement","DCP 325","Reviewing the requirements of Sections 35A, 35B, Schedule 15 and Schedule 20.","The intent of this Change Proposal is to combine, review and if appropriate, amend the requirements of Section 35A, Section 35B, Schedule 15 and Schedule 20 to improve transparency and efficiency in the data published by DNOs","Northern Powergrid","2018-07-11",null,null,"Standard Change Proposal","DCP 325 Change Proposal ","Under Development - Definition Stage",null,"-","-","ElectraLink Ltd","Live","Distribution Connection Use of System Agreement","DCP 325","Reviewing the requirements of Sections 35A, 35B, Schedule 15 and Schedule 20.","The intent of this Change Proposal is to combine, review and if appropriate, amend the requirements of Section 35A, Section 35B, Schedule 15 and Schedule 20 to improve transparency and efficiency in the data published by DNOs","Northern Powergrid","2018-07-11",null,null,"Standard Change Proposal","DCP 325 Change Proposal ","Under Development - Definition Stage",null,"-","-","ElectraLink Ltd","Live","Distribution Connection Use of System Agreement","DCP 325","Reviewing the requirements of Sections 35A, 35B, Schedule 15 and Schedule 20.","The intent of this Change Proposal is to combine, review and if appropriate, amend the requirements of Section 35A, Section 35B, Schedule 15 and Schedule 20 to improve transparency and efficiency in the data published by DNOs","Northern Powergrid","2018-07-11",null,null,"Standard Change Proposal","DCP 325 Change Proposal ","Under Development - Definition Stage",null,"-","-","ElectraLink Ltd","Live","Distribution Connection Use of System Agreement","DCP 325","Reviewing the requirements of Sections 35A, 35B, Schedule 15 and Schedule 20.","The intent of this Change Proposal is to combine, review and if appropriate, amend the requirements of Section 35A, Section 35B, Schedule 15 and Schedule 20 to improve transparency and efficiency in the data published by DNOs","Northern Powergrid","2018-07-11",null,null,"Standard Change Proposal","DCP 325 Change Proposal ","Under Development - Definition Stage",null,"-","-","ElectraLink Ltd","Live","Distribution Connection Use of System Agreement","DCP 325","Reviewing the requirements of Sections 35A, 35B, Schedule 15 and Schedule 20.","The intent of this Change Proposal is to combine, review and if appropriate, amend the requirements of Section 35A, Section 35B, Schedule 15 and Schedule 20 to improve transparency and efficiency in the data published by DNOs","Northern Powergrid","2018-07-11",null,null,"Standard Change Proposal","DCP 325 Change Proposal ","Under Development - Definition Stage",null,"-","-","ElectraLink Ltd","Live","Distribution Connection Use of System Agreement","DCP 325","Reviewing the requirements of Sections 35A, 35B, Schedule 15 and Schedule 20.","The intent of this Change Proposal is to combine, review and if appropriate, amend the requirements of Section 35A, Section 35B, Schedule 15 and Schedule 20 to improve transparency and efficiency in the data published by DNOs","Northern Powergrid","2018-07-11",null,null,"Standard Change Proposal","DCP 325 Change Proposal ","Under Development - Definition Stage",null,"-","-","ElectraLink Ltd","Live","Distribution Connection Use of System Agreement","DCP 325","Reviewing the requirements of Sections 35A, 35B, Schedule 15 and Schedule 20.","The intent of this Change Proposal is to combine, review and if appropriate, amend the requirements of Section 35A, Section 35B, Schedule 15 and Schedule 20 to improve transparency and efficiency in the data published by DNOs","Northern Powergrid","2018-07-11",null,null,"Standard Change Proposal","DCP 325 Change Proposal ","Under Development - Definition Stage",null,"-","-","ElectraLink Ltd","Live","Distribution Connection Use of System Agreement","DCP 325","Reviewing the requirements of Sections 35A, 35B, Schedule 15 and Schedule 20.","The intent of this Change Proposal is to combine, review and if appropriate, amend the requirements of Section 35A, Section 35B, Schedule 15 and Schedule 20 to improve transparency and efficiency in the data published by DNOs","Northern Powergrid","2018-07-11",null,null,"Standard Change Proposal","DCP 325 Change Proposal ","Under Development - Definition Stage",null,"-","-","ElectraLink Ltd","Live","Distribution Connection Use of System Agreement","DCP 325","Reviewing the requirements of Sections 35A, 35B, Schedule 15 and Schedule 20.","The intent of this Change Proposal is to combine, review and if appropriate, amend the requirements of Section 35A, Section 35B, Schedule 15 and Schedule 20 to improve transparency and efficiency in the data published by DNOs","Northern Powergrid","2018-07-11",null,null,"Standard Change Proposal","DCP 325 Change Proposal ","Under Development - Definition Stage",null,"-","-","ElectraLink Ltd","Live","Distribution Connection Use of System Agreement","DCP 325","Reviewing the requirements of Sections 35A, 35B, Schedule 15 and Schedule 20.","The intent of this Change Proposal is to combine, review and if appropriate, amend the requirements of Section 35A, Section 35B, Schedule 15 and Schedule 20 to improve transparency and efficiency in the data published by DNOs","Northern Powergrid","2018-07-11",null,null,"Standard Change Proposal","DCP 325 Change Proposal ","Under Development - Definition Stage",null,"-","-","ElectraLink Ltd","Live","Distribution Connection Use of System Agreement","DCP 325","Reviewing the requirements of Sections 35A, 35B, Schedule 15 and Schedule 20.","The intent of this Change Proposal is to combine, review and if appropriate, amend the requirements of Section 35A, Section 35B, Schedule 15 and Schedule 20 to improve transparency and efficiency in the data published by DNOs","Northern Powergrid","2018-07-11",null,null,"Standard Change Proposal","DCP 325 Change Proposal ","Under Development - Definition Stage",null,"-","-","ElectraLink Ltd","Live","Distribution Connection Use of System Agreement","DCP 325","Reviewing the requirements of Sections 35A, 35B, Schedule 15 and Schedule 20.","The intent of this Change Proposal is to combine, review and if appropriate, amend the requirements of Section 35A, Section 35B, Schedule 15 and Schedule 20 to improve transparency and efficiency in the data published by DNOs","Northern Powergrid","2018-07-11",null,null,"Standard Change Proposal","DCP 325 Change Proposal ","Under Development - Definition Stage",null,"-","-","ElectraLink Ltd","Live","Distribution Connection Use of System Agreement","DCP 325","Reviewing the requirements of Sections 35A, 35B, Schedule 15 and Schedule 20.","The intent of this Change Proposal is to combine, review and if appropriate, amend the requirements of Section 35A, Section 35B, Schedule 15 and Schedule 20 to improve transparency and efficiency in the data published by DNOs","Northern Powergrid","2018-07-11",null,null,"Standard Change Proposal","DCP 325 Change Proposal ","Under Development - Definition Stage",null,"-","-","ElectraLink Ltd","Live","Distribution Connection Use of System Agreement","DCP 325","Reviewing the requirements of Sections 35A, 35B, Schedule 15 and Schedule 20.","The intent of this Change Proposal is to combine, review and if appropriate, amend the requirements of Section 35A, Section 35B, Schedule 15 and Schedule 20 to improve transparency and efficiency in the data published by DNOs","Northern Powergrid","2018-07-11",null,null,"Standard Change Proposal","DCP 325 Change Proposal ","Under Development - Definition Stage",null,"-","-","ElectraLink Ltd","Live","Distribution Connection Use of System Agreement","DCP 325","Reviewing the requirements of Sections 35A, 35B, Schedule 15 and Schedule 20.","The intent of this Change Proposal is to combine, review and if appropriate, amend the requirements of Section 35A, Section 35B, Schedule 15 and Schedule 20 to improve transparency and efficiency in the data published by DNOs","Northern Powergrid","2018-07-11",null,null,"Standard Change Proposal","DCP 325 Change Proposal ","Under Development - Definition Stage",null,"-","-","ElectraLink Ltd","Live","Distribution Connection Use of System Agreement","DCP 325","Reviewing the requirements of Sections 35A, 35B, Schedule 15 and Schedule 20.","The intent of this Change Proposal is to combine, review and if appropriate, amend the requirements of Section 35A, Section 35B, Schedule 15 and Schedule 20 to improve transparency and efficiency in the data published by DNOs","Northern Powergrid","2018-07-11",null,null,"Standard Change Proposal","DCP 325 Change Proposal ","Under Development - Definition Stage",null,"-","-","ElectraLink Ltd","Live","Distribution Connection Use of System Agreement","DCP 325","Reviewing the requirements of Sections 35A, 35B, Schedule 15 and Schedule 20.","The intent of this Change Proposal is to combine, review and if appropriate, amend the requirements of Section 35A, Section 35B, Schedule 15 and Schedule 20 to improve transparency and efficiency in the data published by DNOs","Northern Powergrid","2018-07-11",null,null,"Standard Change Proposal","DCP 325 Change Proposal ","Under Development - Definition Stage",null,"-","-","ElectraLink Ltd","Live","Distribution Connection Use of System Agreement","DCP 325","Reviewing the requirements of Sections 35A, 35B, Schedule 15 and Schedule 20.","The intent of this Change Proposal is to combine, review and if appropriate, amend the requirements of Section 35A, Section 35B, Schedule 15 and Schedule 20 to improve transparency and efficiency in the data published by DNOs","Northern Powergrid","2018-07-11",null,null,"Standard Change Proposal","DCP 325 Change Proposal ","Under Development - Definition Stage",null,"-","-","ElectraLink Ltd","Live","Distribution Connection Use of System Agreement","DCP 325","Reviewing the requirements of Sections 35A, 35B, Schedule 15 and Schedule 20.","The intent of this Change Proposal is to combine, review and if appropriate, amend the requirements of Section 35A, Section 35B, Schedule 15 and Schedule 20 to improve transparency and efficiency in the data published by DNOs","Northern Powergrid","2018-07-11",null,null,"Standard Change Proposal","DCP 325 Change Proposal ","Under Development - Definition Stage",null,"-","-","ElectraLink Ltd","Live","Distribution Connection Use of System Agreement","DCP 325","Reviewing the requirements of Sections 35A, 35B, Schedule 15 and Schedule 20.","The intent of this Change Proposal is to combine, review and if appropriate, amend the requirements of Section 35A, Section 35B, Schedule 15 and Schedule 20 to improve transparency and efficiency in the data published by DNOs","Northern Powergrid","2018-07-11",null,null,"Standard Change Proposal","DCP 325 Change Proposal ","Under Development - Definition Stage",null,"-","-","ElectraLink Ltd","Live","Distribution Connection Use of System Agreement","DCP 325","Reviewing the requirements of Sections 35A, 35B, Schedule 15 and Schedule 20.","The intent of this Change Proposal is to combine, review and if appropriate, amend the requirements of Section 35A, Section 35B, Schedule 15 and Schedule 20 to improve transparency and efficiency in the data published by DNOs","Northern Powergrid","2018-07-11",null,null,"Standard Change Proposal","DCP 325 Change Proposal ","Under Development - Definition Stage",null,"-","-","ElectraLink Ltd","Live","Distribution Connection Use of System Agreement","DCP 325","Reviewing the requirements of Sections 35A, 35B, Schedule 15 and Schedule 20.","The intent of this Change Proposal is to combine, review and if appropriate, amend the requirements of Section 35A, Section 35B, Schedule 15 and Schedule 20 to improve transparency and efficiency in the data published by DNOs","Northern Powergrid","2018-07-11",null,null,"Standard Change Proposal","DCP 325 Change Proposal ","Under Development - Definition Stage",null,"-","-","ElectraLink Ltd","Live","Distribution Connection Use of System Agreement","DCP 325","Reviewing the requirements of Sections 35A, 35B, Schedule 15 and Schedule 20.","The intent of this Change Proposal is to combine, review and if appropriate, amend the requirements of Section 35A, Section 35B, Schedule 15 and Schedule 20 to improve transparency and efficiency in the data published by DNOs","Northern Powergrid","2018-07-11",null,null,"Standard Change Proposal","DCP 325 Change Proposal ","Under Development - Definition Stage",null,"-","-","ElectraLink Ltd","Live","Distribution Connection Use of System Agreement","DCP 325","Reviewing the requirements of Sections 35A, 35B, Schedule 15 and Schedule 20.","The intent of this Change Proposal is to combine, review and if appropriate, amend the requirements of Section 35A, Section 35B, Schedule 15 and Schedule 20 to improve transparency and efficiency in the data published by DNOs","Northern Powergrid","2018-07-11",null,null,"Standard Change Proposal","DCP 325 Change Proposal ","Under Development - Definition Stage",null,"-","-","ElectraLink Ltd","Live","Distribution Connection Use of System Agreement","DCP 325","Reviewing the requirements of Sections 35A, 35B, Schedule 15 and Schedule 20.","The intent of this Change Proposal is to combine, review and if appropriate, amend the requirements of Section 35A, Section 35B, Schedule 15 and Schedule 20 to improve transparency and efficiency in the data published by DNOs","Northern Powergrid","2018-07-11",null,null,"Standard Change Proposal","DCP 325 Change Proposal ","Under Development - Definition Stage",null,"-","-","ElectraLink Ltd","Live","Distribution Connection Use of System Agreement","DCP 325","Reviewing the requirements of Sections 35A, 35B, Schedule 15 and Schedule 20.","The intent of this Change Proposal is to combine, review and if appropriate, amend the requirements of Section 35A, Section 35B, Schedule 15 and Schedule 20 to improve transparency and efficiency in the data published by DNOs","Northern Powergrid","2018-07-11",null,null,"Standard Change Proposal","DCP 325 Change Proposal ","Under Development - Definition Stage",null,"-","-","ElectraLink Ltd","Live","Distribution Connection Use of System Agreement","DCP 325","Reviewing the requirements of Sections 35A, 35B, Schedule 15 and Schedule 20.","The intent of this Change Proposal is to combine, review and if appropriate, amend the requirements of Section 35A, Section 35B, Schedule 15 and Schedule 20 to improve transparency and efficiency in the data published by DNOs","Northern Powergrid","2018-07-11",null,null,"Standard Change Proposal","DCP 325 Change Proposal ","Under Development - Definition Stage",null,"-","-","ElectraLink Ltd","Live","Distribution Connection Use of System Agreement","DCP 325","Reviewing the requirements of Sections 35A, 35B, Schedule 15 and Schedule 20.","The intent of this Change Proposal is to combine, review and if appropriate, amend the requirements of Section 35A, Section 35B, Schedule 15 and Schedule 20 to improve transparency and efficiency in the data published by DNOs","Northern Powergrid","2018-07-11",null,null,"Standard Change Proposal","DCP 325 Change Proposal ","Under Development - Definition Stage",null,"-","-","ElectraLink Ltd","Live","Distribution Connection Use of System Agreement","DCP 325","Reviewing the requirements of Sections 35A, 35B, Schedule 15 and Schedule 20.","The intent of this Change Proposal is to combine, review and if appropriate, amend the requirements of Section 35A, Section 35B, Schedule 15 and Schedule 20 to improve transparency and efficiency in the data published by DNOs","Northern Powergrid","2018-07-11",null,null,"Standard Change Proposal","DCP 325 Change Proposal ","Under Development - Definition Stage",null,"-","-","ElectraLink Ltd","Live","Distribution Connection Use of System Agreement","DCP 325","Reviewing the requirements of Sections 35A, 35B, Schedule 15 and Schedule 20.","The intent of this Change Proposal is to combine, review and if appropriate, amend the requirements of Section 35A, Section 35B, Schedule 15 and Schedule 20 to improve transparency and efficiency in the data published by DNOs","Northern Powergrid","2018-07-11",null,null,"Standard Change Proposal","DCP 325 Change Proposal ","Under Development - Definition Stage",null,"-","-","ElectraLink Ltd","Live","Distribution Connection Use of System Agreement","DCP 325","Reviewing the requirements of Sections 35A, 35B, Schedule 15 and Schedule 20.","The intent of this Change Proposal is to combine, review and if appropriate, amend the requirements of Section 35A, Section 35B, Schedule 15 and Schedule 20 to improve transparency and efficiency in the data published by DNOs","Northern Powergrid","2018-07-11",null,null,"Standard Change Proposal","DCP 325 Change Proposal ","Under Development - Definition Stage",null,"-","-","ElectraLink Ltd","Live","Distribution Connection Use of System Agreement","DCP 325","Reviewing the requirements of Sections 35A, 35B, Schedule 15 and Schedule 20.","The intent of this Change Proposal is to combine, review and if appropriate, amend the requirements of Section 35A, Section 35B, Schedule 15 and Schedule 20 to improve transparency and efficiency in the data published by DNOs","Northern Powergrid","2018-07-11",null,null,"Standard Change Proposal","DCP 325 Change Proposal ","Under Development - Definition Stage",null,"-","-","ElectraLink Ltd","Live","Distribution Connection Use of System Agreement","DCP 325","Reviewing the requirements of Sections 35A, 35B, Schedule 15 and Schedule 20.","The intent of this Change Proposal is to combine, review and if appropriate, amend the requirements of Section 35A, Section 35B, Schedule 15 and Schedule 20 to improve transparency and efficiency in the data published by DNOs","Northern Powergrid","2018-07-11",null,null,"Standard Change Proposal","DCP 325 Change Proposal ","Under Development - Definition Stage",null,"-","-","ElectraLink Ltd","Live","Distribution Connection Use of System Agreement","DCP 325","Reviewing the requirements of Sections 35A, 35B, Schedule 15 and Schedule 20.","The intent of this Change Proposal is to combine, review and if appropriate, amend the requirements of Section 35A, Section 35B, Schedule 15 and Schedule 20 to improve transparency and efficiency in the data published by DNOs","Northern Powergrid","2018-07-11",null,null,"Standard Change Proposal","DCP 325 Change Proposal ","Under Development - Definition Stage",null,"-","-","ElectraLink Ltd","Live","Distribution Connection Use of System Agreement","DCP 325","Reviewing the requirements of Sections 35A, 35B, Schedule 15 and Schedule 20.","The intent of this Change Proposal is to combine, review and if appropriate, amend the requirements of Section 35A, Section 35B, Schedule 15 and Schedule 20 to improve transparency and efficiency in the data published by DNOs","Northern Powergrid","2018-07-11",null,null,"Standard Change Proposal","DCP 325 Change Proposal ","Under Development - Definition Stage",null,"-","-","ElectraLink Ltd","Live","Distribution Connection Use of System Agreement","DCP 325","Reviewing the requirements of Sections 35A, 35B, Schedule 15 and Schedule 20.","The intent of this Change Proposal is to combine, review and if appropriate, amend the requirements of Section 35A, Section 35B, Schedule 15 and Schedule 20 to improve transparency and efficiency in the data published by DNOs","Northern Powergrid","2018-07-11",null,null,"Standard Change Proposal","DCP 325 Change Proposal ","Under Development - Definition Stage",null,"-","-","ElectraLink Ltd","Live","Distribution Connection Use of System Agreement","DCP 325","Reviewing the requirements of Sections 35A, 35B, Schedule 15 and Schedule 20.","The intent of this Change Proposal is to combine, review and if appropriate, amend the requirements of Section 35A, Section 35B, Schedule 15 and Schedule 20 to improve transparency and efficiency in the data published by DNOs","Northern Powergrid","2018-07-11",null,null,"Standard Change Proposal","DCP 325 Change Proposal ","Under Development - Definition Stage",null,"-","-","ElectraLink Ltd","Live","Distribution Connection Use of System Agreement","DCP 325","Reviewing the requirements of Sections 35A, 35B, Schedule 15 and Schedule 20.","The intent of this Change Proposal is to combine, review and if appropriate, amend the requirements of Section 35A, Section 35B, Schedule 15 and Schedule 20 to improve transparency and efficiency in the data published by DNOs","Northern Powergrid","2018-07-11",null,null,"Standard Change Proposal","DCP 325 Change Proposal ","Under Development - Definition Stage",null,"-","-","ElectraLink Ltd","Live","Distribution Connection Use of System Agreement","DCP 325","Reviewing the requirements of Sections 35A, 35B, Schedule 15 and Schedule 20.","The intent of this Change Proposal is to combine, review and if appropriate, amend the requirements of Section 35A, Section 35B, Schedule 15 and Schedule 20 to improve transparency and efficiency in the data published by DNOs","Northern Powergrid","2018-07-11",null,null,"Standard Change Proposal","DCP 325 Change Proposal ","Under Development - Definition Stage",null,"-","-","ElectraLink Ltd","Live","Distribution Connection Use of System Agreement","DCP 325","Reviewing the requirements of Sections 35A, 35B, Schedule 15 and Schedule 20.","The intent of this Change Proposal is to combine, review and if appropriate, amend the requirements of Section 35A, Section 35B, Schedule 15 and Schedule 20 to improve transparency and efficiency in the data published by DNOs","Northern Powergrid","2018-07-11",null,null,"Standard Change Proposal","DCP 325 Change Proposal ","Under Development - Definition Stage",null,"-","-","ElectraLink Ltd","Live","Distribution Connection Use of System Agreement","DCP 325","Reviewing the requirements of Sections 35A, 35B, Schedule 15 and Schedule 20.","The intent of this Change Proposal is to combine, review and if appropriate, amend the requirements of Section 35A, Section 35B, Schedule 15 and Schedule 20 to improve transparency and efficiency in the data published by DNOs","Northern Powergrid","2018-07-11",null,null,"Standard Change Proposal","DCP 325 Change Proposal ","Under Development - Definition Stage",null,"-","-","ElectraLink Ltd","Live","Distribution Connection Use of System Agreement","DCP 325","Reviewing the requirements of Sections 35A, 35B, Schedule 15 and Schedule 20.","The intent of this Change Proposal is to combine, review and if appropriate, amend the requirements of Section 35A, Section 35B, Schedule 15 and Schedule 20 to improve transparency and efficiency in the data published by DNOs","Northern Powergrid","2018-07-11",null,null,"Standard Change Proposal","DCP 325 Change Proposal ","Under Development - Definition Stage",null,"-","-","ElectraLink Ltd","Live","Distribution Connection Use of System Agreement","DCP 325","Reviewing the requirements of Sections 35A, 35B, Schedule 15 and Schedule 20.","The intent of this Change Proposal is to combine, review and if appropriate, amend the requirements of Section 35A, Section 35B, Schedule 15 and Schedule 20 to improve transparency and efficiency in the data published by DNOs","Northern Powergrid","2018-07-11",null,null,"Standard Change Proposal","DCP 325 Change Proposal ","Under Development - Definition Stage",null,"-","-","ElectraLink Ltd","Live","Distribution Connection Use of System Agreement","DCP 325","Reviewing the requirements of Sections 35A, 35B, Schedule 15 and Schedule 20.","The intent of this Change Proposal is to combine, review and if appropriate, amend the requirements of Section 35A, Section 35B, Schedule 15 and Schedule 20 to improve transparency and efficiency in the data published by DNOs","Northern Powergrid","2018-07-11",null,null,"Standard Change Proposal","DCP 325 Change Proposal ","Under Development - Definition Stage",null,"-","-","ElectraLink Ltd","Live","Distribution Connection Use of System Agreement","DCP 325","Reviewing the requirements of Sections 35A, 35B, Schedule 15 and Schedule 20.","The intent of this Change Proposal is to combine, review and if appropriate, amend the requirements of Section 35A, Section 35B, Schedule 15 and Schedule 20 to improve transparency and efficiency in the data published by DNOs","Northern Powergrid","2018-07-11",null,null,"Standard Change Proposal","DCP 325 Change Proposal ","Under Development - Definition Stage",null,"-","-","ElectraLink Ltd","Live","Distribution Connection Use of System Agreement","DCP 325","Reviewing the requirements of Sections 35A, 35B, Schedule 15 and Schedule 20.","The intent of this Change Proposal is to combine, review and if appropriate, amend the requirements of Section 35A, Section 35B, Schedule 15 and Schedule 20 to improve transparency and efficiency in the data published by DNOs","Northern Powergrid","2018-07-11",null,null,"Standard Change Proposal","DCP 325 Change Proposal ","Under Development - Definition Stage",null,"-","-","ElectraLink Ltd","Live","Distribution Connection Use of System Agreement","DCP 325","Reviewing the requirements of Sections 35A, 35B, Schedule 15 and Schedule 20.","The intent of this Change Proposal is to combine, review and if appropriate, amend the requirements of Section 35A, Section 35B, Schedule 15 and Schedule 20 to improve transparency and efficiency in the data published by DNOs","Northern Powergrid","2018-07-11",null,null,"Standard Change Proposal","DCP 325 Change Proposal ","Under Development - Definition Stage",null,"-","-","ElectraLink Ltd","Live","Distribution Connection Use of System Agreement","DCP 325","Reviewing the requirements of Sections 35A, 35B, Schedule 15 and Schedule 20.","The intent of this Change Proposal is to combine, review and if appropriate, amend the requirements of Section 35A, Section 35B, Schedule 15 and Schedule 20 to improve transparency and efficiency in the data published by DNOs","Northern Powergrid","2018-07-11",null,null,"Standard Change Proposal","DCP 325 Change Proposal ","Under Development - Definition Stage",null,"-","-","ElectraLink Ltd","Live","Distribution Connection Use of System Agreement","DCP 325","Reviewing the requirements of Sections 35A, 35B, Schedule 15 and Schedule 20.","The intent of this Change Proposal is to combine, review and if appropriate, amend the requirements of Section 35A, Section 35B, Schedule 15 and Schedule 20 to improve transparency and efficiency in the data published by DNOs","Northern Powergrid","2018-07-11",null,null,"Standard Change Proposal","DCP 325 Change Proposal ","Under Development - Definition Stage",null,"-","-","ElectraLink Ltd","Live","Distribution Connection Use of System Agreement","DCP 325","Reviewing the requirements of Sections 35A, 35B, Schedule 15 and Schedule 20.","The intent of this Change Proposal is to combine, review and if appropriate, amend the requirements of Section 35A, Section 35B, Schedule 15 and Schedule 20 to improve transparency and efficiency in the data published by DNOs","Northern Powergrid","2018-07-11",null,null,"Standard Change Proposal","DCP 325 Change Proposal ","Under Development - Definition Stage",null,"-","-","ElectraLink Ltd","Live","Distribution Connection Use of System Agreement","DCP 325","Reviewing the requirements of Sections 35A, 35B, Schedule 15 and Schedule 20.","The intent of this Change Proposal is to combine, review and if appropriate, amend the requirements of Section 35A, Section 35B, Schedule 15 and Schedule 20 to improve transparency and efficiency in the data published by DNOs","Northern Powergrid","2018-07-11",null,null,"Standard Change Proposal","DCP 325 Change Proposal ","Under Development - Definition Stage",null,"-","-","ElectraLink Ltd","Live","Distribution Connection Use of System Agreement","DCP 325","Reviewing the requirements of Sections 35A, 35B, Schedule 15 and Schedule 20.","The intent of this Change Proposal is to combine, review and if appropriate, amend the requirements of Section 35A, Section 35B, Schedule 15 and Schedule 20 to improve transparency and efficiency in the data published by DNOs","Northern Powergrid","2018-07-11",null,null,"Standard Change Proposal","DCP 325 Change Proposal ","Under Development - Definition Stage",null,"-","-","ElectraLink Ltd","Live","Distribution Connection Use of System Agreement","DCP 325","Reviewing the requirements of Sections 35A, 35B, Schedule 15 and Schedule 20.","The intent of this Change Proposal is to combine, review and if appropriate, amend the requirements of Section 35A, Section 35B, Schedule 15 and Schedule 20 to improve transparency and efficiency in the data published by DNOs","Northern Powergrid","2018-07-11",null,null,"Standard Change Proposal","DCP 325 Change Proposal ","Under Development - Definition Stage",null,"-","-","ElectraLink Ltd","Live","Distribution Connection Use of System Agreement","DCP 325","Reviewing the requirements of Sections 35A, 35B, Schedule 15 and Schedule 20.","The intent of this Change Proposal is to combine, review and if appropriate, amend the requirements of Section 35A, Section 35B, Schedule 15 and Schedule 20 to improve transparency and efficiency in the data published by DNOs","Northern Powergrid","2018-07-11",null,null,"Standard Change Proposal","DCP 325 Change Proposal ","Under Development - Definition Stage",null,"-","-","ElectraLink Ltd","Live","Distribution Connection Use of System Agreement","DCP 325","Reviewing the requirements of Sections 35A, 35B, Schedule 15 and Schedule 20.","The intent of this Change Proposal is to combine, review and if appropriate, amend the requirements of Section 35A, Section 35B, Schedule 15 and Schedule 20 to improve transparency and efficiency in the data published by DNOs","Northern Powergrid","2018-07-11",null,null,"Standard Change Proposal","DCP 325 Change Proposal ","Under Development - Definition Stage",null,"-","-","ElectraLink Ltd","Live","Distribution Connection Use of System Agreement","DCP 325","Reviewing the requirements of Sections 35A, 35B, Schedule 15 and Schedule 20.","The intent of this Change Proposal is to combine, review and if appropriate, amend the requirements of Section 35A, Section 35B, Schedule 15 and Schedule 20 to improve transparency and efficiency in the data published by DNOs","Northern Powergrid","2018-07-11",null,null,"Standard Change Proposal","DCP 325 Change Proposal ","Under Development - Definition Stage",null,"-","-","ElectraLink Ltd","Live","Distribution Connection Use of System Agreement","DCP 325","Reviewing the requirements of Sections 35A, 35B, Schedule 15 and Schedule 20.","The intent of this Change Proposal is to combine, review and if appropriate, amend the requirements of Section 35A, Section 35B, Schedule 15 and Schedule 20 to improve transparency and efficiency in the data published by DNOs","Northern Powergrid","2018-07-11",null,null,"Standard Change Proposal","DCP 325 Change Proposal ","Under Development - Definition Stage",null,"-","-","ElectraLink Ltd","Live","Distribution Connection Use of System Agreement","DCP 325","Reviewing the requirements of Sections 35A, 35B, Schedule 15 and Schedule 20.","The intent of this Change Proposal is to combine, review and if appropriate, amend the requirements of Section 35A, Section 35B, Schedule 15 and Schedule 20 to improve transparency and efficiency in the data published by DNOs","Northern Powergrid","2018-07-11",null,null,"Standard Change Proposal","DCP 325 Change Proposal ","Under Development - Definition Stage",null,"-","-","ElectraLink Ltd","Live","Distribution Connection Use of System Agreement","DCP 325","Reviewing the requirements of Sections 35A, 35B, Schedule 15 and Schedule 20.","The intent of this Change Proposal is to combine, review and if appropriate, amend the requirements of Section 35A, Section 35B, Schedule 15 and Schedule 20 to improve transparency and efficiency in the data published by DNOs","Northern Powergrid","2018-07-11",null,null,"Standard Change Proposal","DCP 325 Change Proposal ","Under Development - Definition Stage",null,"-","-","ElectraLink Ltd","Live","Distribution Connection Use of System Agreement","DCP 325","Reviewing the requirements of Sections 35A, 35B, Schedule 15 and Schedule 20.","The intent of this Change Proposal is to combine, review and if appropriate, amend the requirements of Section 35A, Section 35B, Schedule 15 and Schedule 20 to improve transparency and efficiency in the data published by DNOs","Northern Powergrid","2018-07-11",null,null,"Standard Change Proposal","DCP 325 Change Proposal ","Under Development - Definition Stage",null,"-","-","ElectraLink Ltd","Live","Distribution Connection Use of System Agreement","DCP 325","Reviewing the requirements of Sections 35A, 35B, Schedule 15 and Schedule 20.","The intent of this Change Proposal is to combine, review and if appropriate, amend the requirements of Section 35A, Section 35B, Schedule 15 and Schedule 20 to improve transparency and efficiency in the data published by DNOs","Northern Powergrid","2018-07-11",null,null,"Standard Change Proposal","DCP 325 Change Proposal ","Under Development - Definition Stage",null,"-","-","ElectraLink Ltd","Live","Distribution Connection Use of System Agreement","DCP 325","Reviewing the requirements of Sections 35A, 35B, Schedule 15 and Schedule 20.","The intent of this Change Proposal is to combine, review and if appropriate, amend the requirements of Section 35A, Section 35B, Schedule 15 and Schedule 20 to improve transparency and efficiency in the data published by DNOs","Northern Powergrid","2018-07-11",null,null,"Standard Change Proposal","DCP 325 Change Proposal ","Under Development - Definition Stage",null,"-","-","ElectraLink Ltd","Live","Distribution Connection Use of System Agreement","DCP 325","Reviewing the requirements of Sections 35A, 35B, Schedule 15 and Schedule 20.","The intent of this Change Proposal is to combine, review and if appropriate, amend the requirements of Section 35A, Section 35B, Schedule 15 and Schedule 20 to improve transparency and efficiency in the data published by DNOs","Northern Powergrid","2018-07-11",null,null,"Standard Change Proposal","DCP 325 Change Proposal ","Under Development - Definition Stage",null,"-","-","ElectraLink Ltd","Live","Distribution Connection Use of System Agreement","DCP 325","Reviewing the requirements of Sections 35A, 35B, Schedule 15 and Schedule 20.","The intent of this Change Proposal is to combine, review and if appropriate, amend the requirements of Section 35A, Section 35B, Schedule 15 and Schedule 20 to improve transparency and efficiency in the data published by DNOs","Northern Powergrid","2018-07-11",null,null,"Standard Change Proposal","DCP 325 Change Proposal ","Under Development - Definition Stage",null,"-","-","ElectraLink Ltd","Live","Distribution Connection Use of System Agreement","DCP 325","Reviewing the requirements of Sections 35A, 35B, Schedule 15 and Schedule 20.","The intent of this Change Proposal is to combine, review and if appropriate, amend the requirements of Section 35A, Section 35B, Schedule 15 and Schedule 20 to improve transparency and efficiency in the data published by DNOs","Northern Powergrid","2018-07-11",null,null,"Standard Change Proposal","DCP 325 Change Proposal ","Under Development - Definition Stage",null,"-","-","ElectraLink Ltd","Live","Distribution Connection Use of System Agreement","DCP 325","Reviewing the requirements of Sections 35A, 35B, Schedule 15 and Schedule 20.","The intent of this Change Proposal is to combine, review and if appropriate, amend the requirements of Section 35A, Section 35B, Schedule 15 and Schedule 20 to improve transparency and efficiency in the data published by DNOs","Northern Powergrid","2018-07-11",null,null,"Standard Change Proposal","DCP 325 Change Proposal ","Under Development - Definition Stage",null,"-","-","ElectraLink Ltd","Live","Distribution Connection Use of System Agreement","DCP 325","Reviewing the requirements of Sections 35A, 35B, Schedule 15 and Schedule 20.","The intent of this Change Proposal is to combine, review and if appropriate, amend the requirements of Section 35A, Section 35B, Schedule 15 and Schedule 20 to improve transparency and efficiency in the data published by DNOs","Northern Powergrid","2018-07-11",null,null,"Standard Change Proposal","DCP 325 Change Proposal ","Under Development - Definition Stage",null,"-","-","ElectraLink Ltd","Live","Distribution Connection Use of System Agreement","DCP 325","Reviewing the requirements of Sections 35A, 35B, Schedule 15 and Schedule 20.","The intent of this Change Proposal is to combine, review and if appropriate, amend the requirements of Section 35A, Section 35B, Schedule 15 and Schedule 20 to improve transparency and efficiency in the data published by DNOs","Northern Powergrid","2018-07-11",null,null,"Standard Change Proposal","DCP 325 Change Proposal ","Under Development - Definition Stage",null,"-","-","ElectraLink Ltd","Live","Distribution Connection Use of System Agreement","DCP 325","Reviewing the requirements of Sections 35A, 35B, Schedule 15 and Schedule 20.","The intent of this Change Proposal is to combine, review and if appropriate, amend the requirements of Section 35A, Section 35B, Schedule 15 and Schedule 20 to improve transparency and efficiency in the data published by DNOs","Northern Powergrid","2018-07-11",null,null,"Standard Change Proposal","DCP 325 Change Proposal ","Under Development - Definition Stage",null,"-","-","ElectraLink Ltd","Live","Distribution Connection Use of System Agreement","DCP 325","Reviewing the requirements of Sections 35A, 35B, Schedule 15 and Schedule 20.","The intent of this Change Proposal is to combine, review and if appropriate, amend the requirements of Section 35A, Section 35B, Schedule 15 and Schedule 20 to improve transparency and efficiency in the data published by DNOs","Northern Powergrid","2018-07-11",null,null,"Standard Change Proposal","DCP 325 Change Proposal ","Under Development - Definition Stage",null,"-","-","ElectraLink Ltd","Live","Distribution Connection Use of System Agreement","DCP 325","Reviewing the requirements of Sections 35A, 35B, Schedule 15 and Schedule 20.","The intent of this Change Proposal is to combine, review and if appropriate, amend the requirements of Section 35A, Section 35B, Schedule 15 and Schedule 20 to improve transparency and efficiency in the data published by DNOs","Northern Powergrid","2018-07-11",null,null,"Standard Change Proposal","DCP 325 Change Proposal ","Under Development - Definition Stage",null,"-","-","ElectraLink Ltd","Live","Distribution Connection Use of System Agreement","DCP 325","Reviewing the requirements of Sections 35A, 35B, Schedule 15 and Schedule 20.","The intent of this Change Proposal is to combine, review and if appropriate, amend the requirements of Section 35A, Section 35B, Schedule 15 and Schedule 20 to improve transparency and efficiency in the data published by DNOs","Northern Powergrid","2018-07-11",null,null,"Standard Change Proposal","DCP 325 Change Proposal ","Under Development - Definition Stage",null,"-","-","ElectraLink Ltd","Live","Distribution Connection Use of System Agreement","DCP 325","Reviewing the requirements of Sections 35A, 35B, Schedule 15 and Schedule 20.","The intent of this Change Proposal is to combine, review and if appropriate, amend the requirements of Section 35A, Section 35B, Schedule 15 and Schedule 20 to improve transparency and efficiency in the data published by DNOs","Northern Powergrid","2018-07-11",null,null,"Standard Change Proposal","DCP 325 Change Proposal ","Under Development - Definition Stage",null,"-","-","ElectraLink Ltd","Live","Distribution Connection Use of System Agreement","DCP 325","Reviewing the requirements of Sections 35A, 35B, Schedule 15 and Schedule 20.","The intent of this Change Proposal is to combine, review and if appropriate, amend the requirements of Section 35A, Section 35B, Schedule 15 and Schedule 20 to improve transparency and efficiency in the data published by DNOs","Northern Powergrid","2018-07-11",null,null,"Standard Change Proposal","DCP 325 Change Proposal ","Under Development - Definition Stage",null,"-","-","ElectraLink Ltd","Live","Distribution Connection Use of System Agreement","DCP 325","Reviewing the requirements of Sections 35A, 35B, Schedule 15 and Schedule 20.","The intent of this Change Proposal is to combine, review and if appropriate, amend the requirements of Section 35A, Section 35B, Schedule 15 and Schedule 20 to improve transparency and efficiency in the data published by DNOs","Northern Powergrid","2018-07-11",null,null,"Standard Change Proposal","DCP 325 Change Proposal ","Under Development - Definition Stage",null,"-","-","ElectraLink Ltd","Live","Distribution Connection Use of System Agreement","DCP 325","Reviewing the requirements of Sections 35A, 35B, Schedule 15 and Schedule 20.","The intent of this Change Proposal is to combine, review and if appropriate, amend the requirements of Section 35A, Section 35B, Schedule 15 and Schedule 20 to improve transparency and efficiency in the data published by DNOs","Northern Powergrid","2018-07-11",null,null,"Standard Change Proposal","DCP 325 Change Proposal ","Under Development - Definition Stage",null,"-","-","ElectraLink Ltd","Live","Distribution Connection Use of System Agreement","DCP 325","Reviewing the requirements of Sections 35A, 35B, Schedule 15 and Schedule 20.","The intent of this Change Proposal is to combine, review and if appropriate, amend the requirements of Section 35A, Section 35B, Schedule 15 and Schedule 20 to improve transparency and efficiency in the data published by DNOs","Northern Powergrid","2018-07-11",null,null,"Standard Change Proposal","DCP 325 Change Proposal ","Under Development - Definition Stage",null,"-","-","ElectraLink Ltd","Live","Distribution Connection Use of System Agreement","DCP 325","Reviewing the requirements of Sections 35A, 35B, Schedule 15 and Schedule 20.","The intent of this Change Proposal is to combine, review and if appropriate, amend the requirements of Section 35A, Section 35B, Schedule 15 and Schedule 20 to improve transparency and efficiency in the data published by DNOs","Northern Powergrid","2018-07-11",null,null,"Standard Change Proposal","DCP 325 Change Proposal ","Under Development - Definition Stage",null,"-","-","ElectraLink Ltd","Live","Distribution Connection Use of System Agreement","DCP 325","Reviewing the requirements of Sections 35A, 35B, Schedule 15 and Schedule 20.","The intent of this Change Proposal is to combine, review and if appropriate, amend the requirements of Section 35A, Section 35B, Schedule 15 and Schedule 20 to improve transparency and efficiency in the data published by DNOs","Northern Powergrid","2018-07-11",null,null,"Standard Change Proposal","DCP 325 Change Proposal ","Under Development - Definition Stage",null,"-","-","ElectraLink Ltd","Live","Distribution Connection Use of System Agreement","DCP 325","Reviewing the requirements of Sections 35A, 35B, Schedule 15 and Schedule 20.","The intent of this Change Proposal is to combine, review and if appropriate, amend the requirements of Section 35A, Section 35B, Schedule 15 and Schedule 20 to improve transparency and efficiency in the data published by DNOs","Northern Powergrid","2018-07-11",null,null,"Standard Change Proposal","DCP 325 Change Proposal ","Under Development - Definition Stage",null,"-","-","ElectraLink Ltd","Live","Distribution Connection Use of System Agreement","DCP 325","Reviewing the requirements of Sections 35A, 35B, Schedule 15 and Schedule 20.","The intent of this Change Proposal is to combine, review and if appropriate, amend the requirements of Section 35A, Section 35B, Schedule 15 and Schedule 20 to improve transparency and efficiency in the data published by DNOs","Northern Powergrid","2018-07-11",null,null,"Standard Change Proposal","DCP 325 Change Proposal ","Under Development - Definition Stage",null,"-","-","ElectraLink Ltd","Live","Distribution Connection Use of System Agreement","DCP 325","Reviewing the requirements of Sections 35A, 35B, Schedule 15 and Schedule 20.","The intent of this Change Proposal is to combine, review and if appropriate, amend the requirements of Section 35A, Section 35B, Schedule 15 and Schedule 20 to improve transparency and efficiency in the data published by DNOs","Northern Powergrid","2018-07-11",null,null,"Standard Change Proposal","DCP 325 Change Proposal ","Under Development - Definition Stage",null,"-","-","ElectraLink Ltd","Live","Distribution Connection Use of System Agreement","DCP 325","Reviewing the requirements of Sections 35A, 35B, Schedule 15 and Schedule 20.","The intent of this Change Proposal is to combine, review and if appropriate, amend the requirements of Section 35A, Section 35B, Schedule 15 and Schedule 20 to improve transparency and efficiency in the data published by DNOs","Northern Powergrid","2018-07-11",null,null,"Standard Change Proposal","DCP 325 Change Proposal ","Under Development - Definition Stage",null,"-","-","ElectraLink Ltd","Live","Distribution Connection Use of System Agreement","DCP 325","Reviewing the requirements of Sections 35A, 35B, Schedule 15 and Schedule 20.","The intent of this Change Proposal is to combine, review and if appropriate, amend the requirements of Section 35A, Section 35B, Schedule 15 and Schedule 20 to improve transparency and efficiency in the data published by DNOs","Northern Powergrid","2018-07-11",null,null,"Standard Change Proposal","DCP 325 Change Proposal ","Under Development - Definition Stage",null,"-","-","ElectraLink Ltd","Live","Distribution Connection Use of System Agreement","DCP 325","Reviewing the requirements of Sections 35A, 35B, Schedule 15 and Schedule 20.","The intent of this Change Proposal is to combine, review and if appropriate, amend the requirements of Section 35A, Section 35B, Schedule 15 and Schedule 20 to improve transparency and efficiency in the data published by DNOs","Northern Powergrid","2018-07-11",null,null,"Standard Change Proposal","DCP 325 Change Proposal ","Under Development - Definition Stage",null,"-","-","ElectraLink Ltd","Live","Distribution Connection Use of System Agreement","DCP 325","Reviewing the requirements of Sections 35A, 35B, Schedule 15 and Schedule 20.","The intent of this Change Proposal is to combine, review and if appropriate, amend the requirements of Section 35A, Section 35B, Schedule 15 and Schedule 20 to improve transparency and efficiency in the data published by DNOs","Northern Powergrid","2018-07-11",null,null,"Standard Change Proposal","DCP 325 Change Proposal ","Under Development - Definition Stage",null,"-","-","ElectraLink Ltd","Live","Distribution Connection Use of System Agreement","DCP 325","Reviewing the requirements of Sections 35A, 35B, Schedule 15 and Schedule 20.","The intent of this Change Proposal is to combine, review and if appropriate, amend the requirements of Section 35A, Section 35B, Schedule 15 and Schedule 20 to improve transparency and efficiency in the data published by DNOs","Northern Powergrid","2018-07-11",null,null,"Standard Change Proposal","DCP 325 Change Proposal ","Under Development - Definition Stage",null,"-","-","ElectraLink Ltd","Live","Distribution Connection Use of System Agreement","DCP 325","Reviewing the requirements of Sections 35A, 35B, Schedule 15 and Schedule 20.","The intent of this Change Proposal is to combine, review and if appropriate, amend the requirements of Section 35A, Section 35B, Schedule 15 and Schedule 20 to improve transparency and efficiency in the data published by DNOs","Northern Powergrid","2018-07-11",null,null,"Standard Change Proposal","DCP 325 Change Proposal ","Under Development - Definition Stage",null,"-","-","ElectraLink Ltd","Live","Distribution Connection Use of System Agreement","DCP 325","Reviewing the requirements of Sections 35A, 35B, Schedule 15 and Schedule 20.","The intent of this Change Proposal is to combine, review and if appropriate, amend the requirements of Section 35A, Section 35B, Schedule 15 and Schedule 20 to improve transparency and efficiency in the data published by DNOs","Northern Powergrid","2018-07-11",null,null,"Standard Change Proposal","DCP 325 Change Proposal ","Under Development - Definition Stage",null,"-","-","ElectraLink Ltd","Live","Distribution Connection Use of System Agreement","DCP 325","Reviewing the requirements of Sections 35A, 35B, Schedule 15 and Schedule 20.","The intent of this Change Proposal is to combine, review and if appropriate, amend the requirements of Section 35A, Section 35B, Schedule 15 and Schedule 20 to improve transparency and efficiency in the data published by DNOs","Northern Powergrid","2018-07-11",null,null,"Standard Change Proposal","DCP 325 Change Proposal ","Under Development - Definition Stage",null,"-","-","ElectraLink Ltd","Live","Distribution Connection Use of System Agreement","DCP 325","Reviewing the requirements of Sections 35A, 35B, Schedule 15 and Schedule 20.","The intent of this Change Proposal is to combine, review and if appropriate, amend the requirements of Section 35A, Section 35B, Schedule 15 and Schedule 20 to improve transparency and efficiency in the data published by DNOs","Northern Powergrid","2018-07-11",null,null,"Standard Change Proposal","DCP 325 Change Proposal ","Under Development - Definition Stage",null,"-","-","ElectraLink Ltd","Live","Distribution Connection Use of System Agreement","DCP 325","Reviewing the requirements of Sections 35A, 35B, Schedule 15 and Schedule 20.","The intent of this Change Proposal is to combine, review and if appropriate, amend the requirements of Section 35A, Section 35B, Schedule 15 and Schedule 20 to improve transparency and efficiency in the data published by DNOs","Northern Powergrid","2018-07-11",null,null,"Standard Change Proposal","DCP 325 Change Proposal ","Under Development - Definition Stage",null,"-","-","ElectraLink Ltd","Live","Distribution Connection Use of System Agreement","DCP 325","Reviewing the requirements of Sections 35A, 35B, Schedule 15 and Schedule 20.","The intent of this Change Proposal is to combine, review and if appropriate, amend the requirements of Section 35A, Section 35B, Schedule 15 and Schedule 20 to improve transparency and efficiency in the data published by DNOs","Northern Powergrid","2018-07-11",null,null,"Standard Change Proposal","DCP 325 Change Proposal ","Under Development - Definition Stage",null,"-","-","ElectraLink Ltd","Live","Distribution Connection Use of System Agreement","DCP 325","Reviewing the requirements of Sections 35A, 35B, Schedule 15 and Schedule 20.","The intent of this Change Proposal is to combine, review and if appropriate, amend the requirements of Section 35A, Section 35B, Schedule 15 and Schedule 20 to improve transparency and efficiency in the data published by DNOs","Northern Powergrid","2018-07-11",null,null,"Standard Change Proposal","DCP 325 Change Proposal ","Under Development - Definition Stage",null,"-","-","ElectraLink Ltd","Live","Distribution Connection Use of System Agreement","DCP 325","Reviewing the requirements of Sections 35A, 35B, Schedule 15 and Schedule 20.","The intent of this Change Proposal is to combine, review and if appropriate, amend the requirements of Section 35A, Section 35B, Schedule 15 and Schedule 20 to improve transparency and efficiency in the data published by DNOs","Northern Powergrid","2018-07-11",null,null,"Standard Change Proposal","DCP 325 Change Proposal ","Under Development - Definition Stage",null,"-","-","ElectraLink Ltd","Live","Distribution Connection Use of System Agreement","DCP 325","Reviewing the requirements of Sections 35A, 35B, Schedule 15 and Schedule 20.","The intent of this Change Proposal is to combine, review and if appropriate, amend the requirements of Section 35A, Section 35B, Schedule 15 and Schedule 20 to improve transparency and efficiency in the data published by DNOs","Northern Powergrid","2018-07-11",null,null,"Standard Change Proposal","DCP 325 Change Proposal ","Under Development - Definition Stage",null,"-","-","ElectraLink Ltd","Live","Distribution Connection Use of System Agreement","DCP 325","Reviewing the requirements of Sections 35A, 35B, Schedule 15 and Schedule 20.","The intent of this Change Proposal is to combine, review and if appropriate, amend the requirements of Section 35A, Section 35B, Schedule 15 and Schedule 20 to improve transparency and efficiency in the data published by DNOs","Northern Powergrid","2018-07-11",null,null,"Standard Change Proposal","DCP 325 Change Proposal ","Under Development - Definition Stage",null,"-","-","ElectraLink Ltd","Live","Distribution Connection Use of System Agreement","DCP 325","Reviewing the requirements of Sections 35A, 35B, Schedule 15 and Schedule 20.","The intent of this Change Proposal is to combine, review and if appropriate, amend the requirements of Section 35A, Section 35B, Schedule 15 and Schedule 20 to improve transparency and efficiency in the data published by DNOs","Northern Powergrid","2018-07-11",null,null,"Standard Change Proposal","DCP 325 Change Proposal ","Under Development - Definition Stage",null,"-","-","ElectraLink Ltd","Live","Distribution Connection Use of System Agreement","DCP 325","Reviewing the requirements of Sections 35A, 35B, Schedule 15 and Schedule 20.","The intent of this Change Proposal is to combine, review and if appropriate, amend the requirements of Section 35A, Section 35B, Schedule 15 and Schedule 20 to improve transparency and efficiency in the data published by DNOs","Northern Powergrid","2018-07-11",null,null,"Standard Change Proposal","DCP 325 Change Proposal ","Under Development - Definition Stage",null,"-","-","ElectraLink Ltd","Live","Distribution Connection Use of System Agreement","DCP 325","Reviewing the requirements of Sections 35A, 35B, Schedule 15 and Schedule 20.","The intent of this Change Proposal is to combine, review and if appropriate, amend the requirements of Section 35A, Section 35B, Schedule 15 and Schedule 20 to improve transparency and efficiency in the data published by DNOs","Northern Powergrid","2018-07-11",null,null,"Standard Change Proposal","DCP 325 Change Proposal ","Under Development - Definition Stage",null,"-","-","ElectraLink Ltd","Live","Distribution Connection Use of System Agreement","DCP 325","Reviewing the requirements of Sections 35A, 35B, Schedule 15 and Schedule 20.","The intent of this Change Proposal is to combine, review and if appropriate, amend the requirements of Section 35A, Section 35B, Schedule 15 and Schedule 20 to improve transparency and efficiency in the data published by DNOs","Northern Powergrid","2018-07-11",null,null,"Standard Change Proposal","DCP 325 Change Proposal ","Under Development - Definition Stage",null,"-","-","ElectraLink Ltd","Live","Distribution Connection Use of System Agreement","DCP 325","Reviewing the requirements of Sections 35A, 35B, Schedule 15 and Schedule 20.","The intent of this Change Proposal is to combine, review and if appropriate, amend the requirements of Section 35A, Section 35B, Schedule 15 and Schedule 20 to improve transparency and efficiency in the data published by DNOs","Northern Powergrid","2018-07-11",null,null,"Standard Change Proposal","DCP 325 Change Proposal ","Under Development - Definition Stage",null,"-","-","ElectraLink Ltd","Live","Distribution Connection Use of System Agreement","DCP 325","Reviewing the requirements of Sections 35A, 35B, Schedule 15 and Schedule 20.","The intent of this Change Proposal is to combine, review and if appropriate, amend the requirements of Section 35A, Section 35B, Schedule 15 and Schedule 20 to improve transparency and efficiency in the data published by DNOs","Northern Powergrid","2018-07-11",null,null,"Standard Change Proposal","DCP 325 Change Proposal ","Under Development - Definition Stage",null,"-","-","ElectraLink Ltd","Live","Distribution Connection Use of System Agreement","DCP 325","Reviewing the requirements of Sections 35A, 35B, Schedule 15 and Schedule 20.","The intent of this Change Proposal is to combine, review and if appropriate, amend the requirements of Section 35A, Section 35B, Schedule 15 and Schedule 20 to improve transparency and efficiency in the data published by DNOs","Northern Powergrid","2018-07-11",null,null,"Standard Change Proposal","DCP 325 Change Proposal ","Under Development - Definition Stage",null,"-","-","ElectraLink Ltd","Live","Distribution Connection Use of System Agreement","DCP 325","Reviewing the requirements of Sections 35A, 35B, Schedule 15 and Schedule 20.","The intent of this Change Proposal is to combine, review and if appropriate, amend the requirements of Section 35A, Section 35B, Schedule 15 and Schedule 20 to improve transparency and efficiency in the data published by DNOs","Northern Powergrid","2018-07-11",null,null,"Standard Change Proposal","DCP 325 Change Proposal ","Under Development - Definition Stage",null,"-","-","ElectraLink Ltd","Live","Distribution Connection Use of System Agreement","DCP 325","Reviewing the requirements of Sections 35A, 35B, Schedule 15 and Schedule 20.","The intent of this Change Proposal is to combine, review and if appropriate, amend the requirements of Section 35A, Section 35B, Schedule 15 and Schedule 20 to improve transparency and efficiency in the data published by DNOs","Northern Powergrid","2018-07-11",null,null,"Standard Change Proposal","DCP 325 Change Proposal ","Under Development - Definition Stage",null,"-","-","ElectraLink Ltd","Live","Distribution Connection Use of System Agreement","DCP 325","Reviewing the requirements of Sections 35A, 35B, Schedule 15 and Schedule 20.","The intent of this Change Proposal is to combine, review and if appropriate, amend the requirements of Section 35A, Section 35B, Schedule 15 and Schedule 20 to improve transparency and efficiency in the data published by DNOs","Northern Powergrid","2018-07-11",null,null,"Standard Change Proposal","DCP 325 Change Proposal ","Under Development - Definition Stage",null,"-","-","ElectraLink Ltd","Live","Distribution Connection Use of System Agreement","DCP 325","Reviewing the requirements of Sections 35A, 35B, Schedule 15 and Schedule 20.","The intent of this Change Proposal is to combine, review and if appropriate, amend the requirements of Section 35A, Section 35B, Schedule 15 and Schedule 20 to improve transparency and efficiency in the data published by DNOs","Northern Powergrid","2018-07-11",null,null,"Standard Change Proposal","DCP 325 Change Proposal ","Under Development - Definition Stage",null,"-","-","ElectraLink Ltd","Live","Distribution Connection Use of System Agreement","DCP 325","Reviewing the requirements of Sections 35A, 35B, Schedule 15 and Schedule 20.","The intent of this Change Proposal is to combine, review and if appropriate, amend the requirements of Section 35A, Section 35B, Schedule 15 and Schedule 20 to improve transparency and efficiency in the data published by DNOs","Northern Powergrid","2018-07-11",null,null,"Standard Change Proposal","DCP 325 Change Proposal ","Under Development - Definition Stage",null,"-","-","ElectraLink Ltd","Live","Distribution Connection Use of System Agreement","DCP 325","Reviewing the requirements of Sections 35A, 35B, Schedule 15 and Schedule 20.","The intent of this Change Proposal is to combine, review and if appropriate, amend the requirements of Section 35A, Section 35B, Schedule 15 and Schedule 20 to improve transparency and efficiency in the data published by DNOs","Northern Powergrid","2018-07-11",null,null,"Standard Change Proposal","DCP 325 Change Proposal ","Under Development - Definition Stage",null,"-","-","ElectraLink Ltd","Live","Distribution Connection Use of System Agreement","DCP 325","Reviewing the requirements of Sections 35A, 35B, Schedule 15 and Schedule 20.","The intent of this Change Proposal is to combine, review and if appropriate, amend the requirements of Section 35A, Section 35B, Schedule 15 and Schedule 20 to improve transparency and efficiency in the data published by DNOs","Northern Powergrid","2018-07-11",null,null,"Standard Change Proposal","DCP 325 Change Proposal ","Under Development - Definition Stage",null,"-","-","ElectraLink Ltd","Live","Distribution Connection Use of System Agreement","DCP 325","Reviewing the requirements of Sections 35A, 35B, Schedule 15 and Schedule 20.","The intent of this Change Proposal is to combine, review and if appropriate, amend the requirements of Section 35A, Section 35B, Schedule 15 and Schedule 20 to improve transparency and efficiency in the data published by DNOs","Northern Powergrid","2018-07-11",null,null,"Standard Change Proposal","DCP 325 Change Proposal ","Under Development - Definition Stage",null,"-","-","ElectraLink Ltd","Live","Distribution Connection Use of System Agreement","DCP 325","Reviewing the requirements of Sections 35A, 35B, Schedule 15 and Schedule 20.","The intent of this Change Proposal is to combine, review and if appropriate, amend the requirements of Section 35A, Section 35B, Schedule 15 and Schedule 20 to improve transparency and efficiency in the data published by DNOs","Northern Powergrid","2018-07-11",null,null,"Standard Change Proposal","DCP 325 Change Proposal ","Under Development - Definition Stage",null,"-","-","ElectraLink Ltd","Live","Distribution Connection Use of System Agreement","DCP 325","Reviewing the requirements of Sections 35A, 35B, Schedule 15 and Schedule 20.","The intent of this Change Proposal is to combine, review and if appropriate, amend the requirements of Section 35A, Section 35B, Schedule 15 and Schedule 20 to improve transparency and efficiency in the data published by DNOs","Northern Powergrid","2018-07-11",null,null,"Standard Change Proposal","DCP 325 Change Proposal ","Under Development - Definition Stage",null,"-","-","ElectraLink Ltd","Live","Distribution Connection Use of System Agreement","DCP 325","Reviewing the requirements of Sections 35A, 35B, Schedule 15 and Schedule 20.","The intent of this Change Proposal is to combine, review and if appropriate, amend the requirements of Section 35A, Section 35B, Schedule 15 and Schedule 20 to improve transparency and efficiency in the data published by DNOs","Northern Powergrid","2018-07-11",null,null,"Standard Change Proposal","DCP 325 Change Proposal ","Under Development - Definition Stage",null,"-","-","ElectraLink Ltd","Live","Distribution Connection Use of System Agreement","DCP 325","Reviewing the requirements of Sections 35A, 35B, Schedule 15 and Schedule 20.","The intent of this Change Proposal is to combine, review and if appropriate, amend the requirements of Section 35A, Section 35B, Schedule 15 and Schedule 20 to improve transparency and efficiency in the data published by DNOs","Northern Powergrid","2018-07-11",null,null,"Standard Change Proposal","DCP 325 Change Proposal ","Under Development - Definition Stage",null,"-","-","ElectraLink Ltd","Live","Distribution Connection Use of System Agreement","DCP 325","Reviewing the requirements of Sections 35A, 35B, Schedule 15 and Schedule 20.","The intent of this Change Proposal is to combine, review and if appropriate, amend the requirements of Section 35A, Section 35B, Schedule 15 and Schedule 20 to improve transparency and efficiency in the data published by DNOs","Northern Powergrid","2018-07-11",null,null,"Standard Change Proposal","DCP 325 Change Proposal ","Under Development - Definition Stage",null,"-","-","ElectraLink Ltd","Live","Distribution Connection Use of System Agreement","DCP 325","Reviewing the requirements of Sections 35A, 35B, Schedule 15 and Schedule 20.","The intent of this Change Proposal is to combine, review and if appropriate, amend the requirements of Section 35A, Section 35B, Schedule 15 and Schedule 20 to improve transparency and efficiency in the data published by DNOs","Northern Powergrid","2018-07-11",null,null,"Standard Change Proposal","DCP 325 Change Proposal ","Under Development - Definition Stage",null,"-","-","ElectraLink Ltd","Live","Distribution Connection Use of System Agreement","DCP 325","Reviewing the requirements of Sections 35A, 35B, Schedule 15 and Schedule 20.","The intent of this Change Proposal is to combine, review and if appropriate, amend the requirements of Section 35A, Section 35B, Schedule 15 and Schedule 20 to improve transparency and efficiency in the data published by DNOs","Northern Powergrid","2018-07-11",null,null,"Standard Change Proposal","DCP 325 Change Proposal ","Under Development - Definition Stage",null,"-","-","ElectraLink Ltd","Live","Distribution Connection Use of System Agreement","DCP 325","Reviewing the requirements of Sections 35A, 35B, Schedule 15 and Schedule 20.","The intent of this Change Proposal is to combine, review and if appropriate, amend the requirements of Section 35A, Section 35B, Schedule 15 and Schedule 20 to improve transparency and efficiency in the data published by DNOs","Northern Powergrid","2018-07-11",null,null,"Standard Change Proposal","DCP 325 Change Proposal ","Under Development - Definition Stage",null,"-","-","ElectraLink Ltd","Live","Distribution Connection Use of System Agreement","DCP 325","Reviewing the requirements of Sections 35A, 35B, Schedule 15 and Schedule 20.","The intent of this Change Proposal is to combine, review and if appropriate, amend the requirements of Section 35A, Section 35B, Schedule 15 and Schedule 20 to improve transparency and efficiency in the data published by DNOs","Northern Powergrid","2018-07-11",null,null,"Standard Change Proposal","DCP 325 Change Proposal ","Under Development - Definition Stage",null,"-","-","ElectraLink Ltd","Live","Distribution Connection Use of System Agreement","DCP 325","Reviewing the requirements of Sections 35A, 35B, Schedule 15 and Schedule 20.","The intent of this Change Proposal is to combine, review and if appropriate, amend the requirements of Section 35A, Section 35B, Schedule 15 and Schedule 20 to improve transparency and efficiency in the data published by DNOs","Northern Powergrid","2018-07-11",null,null,"Standard Change Proposal","DCP 325 Change Proposal ","Under Development - Definition Stage",null,"-","-","ElectraLink Ltd","Live","Distribution Connection Use of System Agreement","DCP 325","Reviewing the requirements of Sections 35A, 35B, Schedule 15 and Schedule 20.","The intent of this Change Proposal is to combine, review and if appropriate, amend the requirements of Section 35A, Section 35B, Schedule 15 and Schedule 20 to improve transparency and efficiency in the data published by DNOs","Northern Powergrid","2018-07-11",null,null,"Standard Change Proposal","DCP 325 Change Proposal ","Under Development - Definition Stage",null,"-","-","ElectraLink Ltd","Live","Distribution Connection Use of System Agreement","DCP 325","Reviewing the requirements of Sections 35A, 35B, Schedule 15 and Schedule 20.","The intent of this Change Proposal is to combine, review and if appropriate, amend the requirements of Section 35A, Section 35B, Schedule 15 and Schedule 20 to improve transparency and efficiency in the data published by DNOs","Northern Powergrid","2018-07-11",null,null,"Standard Change Proposal","DCP 325 Change Proposal ","Under Development - Definition Stage",null,"-","-","ElectraLink Ltd","Live","Distribution Connection Use of System Agreement","DCP 325","Reviewing the requirements of Sections 35A, 35B, Schedule 15 and Schedule 20.","The intent of this Change Proposal is to combine, review and if appropriate, amend the requirements of Section 35A, Section 35B, Schedule 15 and Schedule 20 to improve transparency and efficiency in the data published by DNOs","Northern Powergrid","2018-07-11",null,null,"Standard Change Proposal","DCP 325 Change Proposal ","Under Development - Definition Stage",null,"-","-","ElectraLink Ltd","Live","Distribution Connection Use of System Agreement","DCP 325","Reviewing the requirements of Sections 35A, 35B, Schedule 15 and Schedule 20.","The intent of this Change Proposal is to combine, review and if appropriate, amend the requirements of Section 35A, Section 35B, Schedule 15 and Schedule 20 to improve transparency and efficiency in the data published by DNOs","Northern Powergrid","2018-07-11",null,null,"Standard Change Proposal","DCP 325 Change Proposal ","Under Development - Definition Stage",null,"-","-","ElectraLink Ltd","Live","Distribution Connection Use of System Agreement","DCP 325","Reviewing the requirements of Sections 35A, 35B, Schedule 15 and Schedule 20.","The intent of this Change Proposal is to combine, review and if appropriate, amend the requirements of Section 35A, Section 35B, Schedule 15 and Schedule 20 to improve transparency and efficiency in the data published by DNOs","Northern Powergrid","2018-07-11",null,null,"Standard Change Proposal","DCP 325 Change Proposal ","Under Development - Definition Stage",null,"-","-","ElectraLink Ltd","Live","Distribution Connection Use of System Agreement","DCP 325","Reviewing the requirements of Sections 35A, 35B, Schedule 15 and Schedule 20.","The intent of this Change Proposal is to combine, review and if appropriate, amend the requirements of Section 35A, Section 35B, Schedule 15 and Schedule 20 to improve transparency and efficiency in the data published by DNOs","Northern Powergrid","2018-07-11",null,null,"Standard Change Proposal","DCP 325 Change Proposal ","Under Development - Definition Stage",null,"-","-","ElectraLink Ltd","Live","Distribution Connection Use of System Agreement","DCP 325","Reviewing the requirements of Sections 35A, 35B, Schedule 15 and Schedule 20.","The intent of this Change Proposal is to combine, review and if appropriate, amend the requirements of Section 35A, Section 35B, Schedule 15 and Schedule 20 to improve transparency and efficiency in the data published by DNOs","Northern Powergrid","2018-07-11",null,null,"Standard Change Proposal","DCP 325 Change Proposal ","Under Development - Definition Stage",null,"-","-","ElectraLink Ltd","Live","Distribution Connection Use of System Agreement","DCP 325","Reviewing the requirements of Sections 35A, 35B, Schedule 15 and Schedule 20.","The intent of this Change Proposal is to combine, review and if appropriate, amend the requirements of Section 35A, Section 35B, Schedule 15 and Schedule 20 to improve transparency and efficiency in the data published by DNOs","Northern Powergrid","2018-07-11",null,null,"Standard Change Proposal","DCP 325 Change Proposal ","Under Development - Definition Stage",null,"-","-","ElectraLink Ltd","Live","Distribution Connection Use of System Agreement","DCP 325","Reviewing the requirements of Sections 35A, 35B, Schedule 15 and Schedule 20.","The intent of this Change Proposal is to combine, review and if appropriate, amend the requirements of Section 35A, Section 35B, Schedule 15 and Schedule 20 to improve transparency and efficiency in the data published by DNOs","Northern Powergrid","2018-07-11",null,null,"Standard Change Proposal","DCP 325 Change Proposal ","Under Development - Definition Stage",null,"-","-","ElectraLink Ltd","Live","Distribution Connection Use of System Agreement","DCP 325","Reviewing the requirements of Sections 35A, 35B, Schedule 15 and Schedule 20.","The intent of this Change Proposal is to combine, review and if appropriate, amend the requirements of Section 35A, Section 35B, Schedule 15 and Schedule 20 to improve transparency and efficiency in the data published by DNOs","Northern Powergrid","2018-07-11",null,null,"Standard Change Proposal","DCP 325 Change Proposal ","Under Development - Definition Stage",null,"-","-","ElectraLink Ltd","Live","Distribution Connection Use of System Agreement","DCP 325","Reviewing the requirements of Sections 35A, 35B, Schedule 15 and Schedule 20.","The intent of this Change Proposal is to combine, review and if appropriate, amend the requirements of Section 35A, Section 35B, Schedule 15 and Schedule 20 to improve transparency and efficiency in the data published by DNOs","Northern Powergrid","2018-07-11",null,null,"Standard Change Proposal","DCP 325 Change Proposal ","Under Development - Definition Stage",null,"-","-","ElectraLink Ltd","Live","Distribution Connection Use of System Agreement","DCP 325","Reviewing the requirements of Sections 35A, 35B, Schedule 15 and Schedule 20.","The intent of this Change Proposal is to combine, review and if appropriate, amend the requirements of Section 35A, Section 35B, Schedule 15 and Schedule 20 to improve transparency and efficiency in the data published by DNOs","Northern Powergrid","2018-07-11",null,null,"Standard Change Proposal","DCP 325 Change Proposal ","Under Development - Definition Stage",null,"-","-","ElectraLink Ltd","Live","Distribution Connection Use of System Agreement","DCP 325","Reviewing the requirements of Sections 35A, 35B, Schedule 15 and Schedule 20.","The intent of this Change Proposal is to combine, review and if appropriate, amend the requirements of Section 35A, Section 35B, Schedule 15 and Schedule 20 to improve transparency and efficiency in the data published by DNOs","Northern Powergrid","2018-07-11",null,null,"Standard Change Proposal","DCP 325 Change Proposal ","Under Development - Definition Stage",null,"-","-","ElectraLink Ltd","Live","Distribution Connection Use of System Agreement","DCP 325","Reviewing the requirements of Sections 35A, 35B, Schedule 15 and Schedule 20.","The intent of this Change Proposal is to combine, review and if appropriate, amend the requirements of Section 35A, Section 35B, Schedule 15 and Schedule 20 to improve transparency and efficiency in the data published by DNOs","Northern Powergrid","2018-07-11",null,null,"Standard Change Proposal","DCP 325 Change Proposal ","Under Development - Definition Stage",null,"-","-","ElectraLink Ltd","Live","Distribution Connection Use of System Agreement","DCP 325","Reviewing the requirements of Sections 35A, 35B, Schedule 15 and Schedule 20.","The intent of this Change Proposal is to combine, review and if appropriate, amend the requirements of Section 35A, Section 35B, Schedule 15 and Schedule 20 to improve transparency and efficiency in the data published by DNOs","Northern Powergrid","2018-07-11",null,null,"Standard Change Proposal","DCP 325 Change Proposal ","Under Development - Definition Stage",null,"-","-","ElectraLink Ltd","Live","Distribution Connection Use of System Agreement","DCP 325","Reviewing the requirements of Sections 35A, 35B, Schedule 15 and Schedule 20.","The intent of this Change Proposal is to combine, review and if appropriate, amend the requirements of Section 35A, Section 35B, Schedule 15 and Schedule 20 to improve transparency and efficiency in the data published by DNOs","Northern Powergrid","2018-07-11",null,null,"Standard Change Proposal","DCP 325 Change Proposal ","Under Development - Definition Stage",null,"-","-","ElectraLink Ltd","Live","Distribution Connection Use of System Agreement","DCP 325","Reviewing the requirements of Sections 35A, 35B, Schedule 15 and Schedule 20.","The intent of this Change Proposal is to combine, review and if appropriate, amend the requirements of Section 35A, Section 35B, Schedule 15 and Schedule 20 to improve transparency and efficiency in the data published by DNOs","Northern Powergrid","2018-07-11",null,null,"Standard Change Proposal","DCP 325 Change Proposal ","Under Development - Definition Stage",null,"-","-","ElectraLink Ltd","Live","Distribution Connection Use of System Agreement","DCP 325","Reviewing the requirements of Sections 35A, 35B, Schedule 15 and Schedule 20.","The intent of this Change Proposal is to combine, review and if appropriate, amend the requirements of Section 35A, Section 35B, Schedule 15 and Schedule 20 to improve transparency and efficiency in the data published by DNOs","Northern Powergrid","2018-07-11",null,null,"Standard Change Proposal","DCP 325 Change Proposal ","Under Development - Definition Stage",null,"-","-","ElectraLink Ltd","Live","Distribution Connection Use of System Agreement","DCP 325","Reviewing the requirements of Sections 35A, 35B, Schedule 15 and Schedule 20.","The intent of this Change Proposal is to combine, review and if appropriate, amend the requirements of Section 35A, Section 35B, Schedule 15 and Schedule 20 to improve transparency and efficiency in the data published by DNOs","Northern Powergrid","2018-07-11",null,null,"Standard Change Proposal","DCP 325 Change Proposal ","Under Development - Definition Stage",null,"-","-","ElectraLink Ltd","Live","Distribution Connection Use of System Agreement","DCP 325","Reviewing the requirements of Sections 35A, 35B, Schedule 15 and Schedule 20.","The intent of this Change Proposal is to combine, review and if appropriate, amend the requirements of Section 35A, Section 35B, Schedule 15 and Schedule 20 to improve transparency and efficiency in the data published by DNOs","Northern Powergrid","2018-07-11",null,null,"Standard Change Proposal","DCP 325 Change Proposal ","Under Development - Definition Stage",null,"-","-","ElectraLink Ltd","Live","Distribution Connection Use of System Agreement","DCP 325","Reviewing the requirements of Sections 35A, 35B, Schedule 15 and Schedule 20.","The intent of this Change Proposal is to combine, review and if appropriate, amend the requirements of Section 35A, Section 35B, Schedule 15 and Schedule 20 to improve transparency and efficiency in the data published by DNOs","Northern Powergrid","2018-07-11",null,null,"Standard Change Proposal","DCP 325 Change Proposal ","Under Development - Definition Stage",null,"-","-","ElectraLink Ltd","Live","Distribution Connection Use of System Agreement","DCP 325","Reviewing the requirements of Sections 35A, 35B, Schedule 15 and Schedule 20.","The intent of this Change Proposal is to combine, review and if appropriate, amend the requirements of Section 35A, Section 35B, Schedule 15 and Schedule 20 to improve transparency and efficiency in the data published by DNOs","Northern Powergrid","2018-07-11",null,null,"Standard Change Proposal","DCP 325 Change Proposal ","Under Development - Definition Stage",null,"-","-","ElectraLink Ltd","Live","Distribution Connection Use of System Agreement","DCP 325","Reviewing the requirements of Sections 35A, 35B, Schedule 15 and Schedule 20.","The intent of this Change Proposal is to combine, review and if appropriate, amend the requirements of Section 35A, Section 35B, Schedule 15 and Schedule 20 to improve transparency and efficiency in the data published by DNOs","Northern Powergrid","2018-07-11",null,null,"Standard Change Proposal","DCP 325 Change Proposal ","Under Development - Definition Stage",null,"-","-","ElectraLink Ltd","Live","Distribution Connection Use of System Agreement","DCP 325","Reviewing the requirements of Sections 35A, 35B, Schedule 15 and Schedule 20.","The intent of this Change Proposal is to combine, review and if appropriate, amend the requirements of Section 35A, Section 35B, Schedule 15 and Schedule 20 to improve transparency and efficiency in the data published by DNOs","Northern Powergrid","2018-07-11",null,null,"Standard Change Proposal","DCP 325 Change Proposal ","Under Development - Definition Stage",null,"-","-","ElectraLink Ltd","Live","Distribution Connection Use of System Agreement","DCP 325","Reviewing the requirements of Sections 35A, 35B, Schedule 15 and Schedule 20.","The intent of this Change Proposal is to combine, review and if appropriate, amend the requirements of Section 35A, Section 35B, Schedule 15 and Schedule 20 to improve transparency and efficiency in the data published by DNOs","Northern Powergrid","2018-07-11",null,null,"Standard Change Proposal","DCP 325 Change Proposal ","Under Development - Definition Stage",null,"-","-","ElectraLink Ltd","Live","Distribution Connection Use of System Agreement","DCP 325","Reviewing the requirements of Sections 35A, 35B, Schedule 15 and Schedule 20.","The intent of this Change Proposal is to combine, review and if appropriate, amend the requirements of Section 35A, Section 35B, Schedule 15 and Schedule 20 to improve transparency and efficiency in the data published by DNOs","Northern Powergrid","2018-07-11",null,null,"Standard Change Proposal","DCP 325 Change Proposal ","Under Development - Definition Stage",null,"-","-","ElectraLink Ltd","Live","Distribution Connection Use of System Agreement","DCP 325","Reviewing the requirements of Sections 35A, 35B, Schedule 15 and Schedule 20.","The intent of this Change Proposal is to combine, review and if appropriate, amend the requirements of Section 35A, Section 35B, Schedule 15 and Schedule 20 to improve transparency and efficiency in the data published by DNOs","Northern Powergrid","2018-07-11",null,null,"Standard Change Proposal","DCP 325 Change Proposal ","Under Development - Definition Stage",null,"-","-","ElectraLink Ltd","Live","Distribution Connection Use of System Agreement","DCP 325","Reviewing the requirements of Sections 35A, 35B, Schedule 15 and Schedule 20.","The intent of this Change Proposal is to combine, review and if appropriate, amend the requirements of Section 35A, Section 35B, Schedule 15 and Schedule 20 to improve transparency and efficiency in the data published by DNOs","Northern Powergrid","2018-07-11",null,null,"Standard Change Proposal","DCP 325 Change Proposal ","Under Development - Definition Stage",null,"-","-","ElectraLink Ltd","Live","Distribution Connection Use of System Agreement","DCP 325","Reviewing the requirements of Sections 35A, 35B, Schedule 15 and Schedule 20.","The intent of this Change Proposal is to combine, review and if appropriate, amend the requirements of Section 35A, Section 35B, Schedule 15 and Schedule 20 to improve transparency and efficiency in the data published by DNOs","Northern Powergrid","2018-07-11",null,null,"Standard Change Proposal","DCP 325 Change Proposal ","Under Development - Definition Stage",null,"-","-","ElectraLink Ltd","Live","Distribution Connection Use of System Agreement","DCP 325","Reviewing the requirements of Sections 35A, 35B, Schedule 15 and Schedule 20.","The intent of this Change Proposal is to combine, review and if appropriate, amend the requirements of Section 35A, Section 35B, Schedule 15 and Schedule 20 to improve transparency and efficiency in the data published by DNOs","Northern Powergrid","2018-07-11",null,null,"Standard Change Proposal","DCP 325 Change Proposal ","Under Development - Definition Stage",null,"-","-","ElectraLink Ltd","Live","Distribution Connection Use of System Agreement","DCP 325","Reviewing the requirements of Sections 35A, 35B, Schedule 15 and Schedule 20.","The intent of this Change Proposal is to combine, review and if appropriate, amend the requirements of Section 35A, Section 35B, Schedule 15 and Schedule 20 to improve transparency and efficiency in the data published by DNOs","Northern Powergrid","2018-07-11",null,null,"Standard Change Proposal","DCP 325 Change Proposal ","Under Development - Definition Stage",null,"-","-","ElectraLink Ltd","Live","Distribution Connection Use of System Agreement","DCP 325","Reviewing the requirements of Sections 35A, 35B, Schedule 15 and Schedule 20.","The intent of this Change Proposal is to combine, review and if appropriate, amend the requirements of Section 35A, Section 35B, Schedule 15 and Schedule 20 to improve transparency and efficiency in the data published by DNOs","Northern Powergrid","2018-07-11",null,null,"Standard Change Proposal","DCP 325 Change Proposal ","Under Development - Definition Stage",null,"-","-","ElectraLink Ltd","Live","Distribution Connection Use of System Agreement","DCP 325","Reviewing the requirements of Sections 35A, 35B, Schedule 15 and Schedule 20.","The intent of this Change Proposal is to combine, review and if appropriate, amend the requirements of Section 35A, Section 35B, Schedule 15 and Schedule 20 to improve transparency and efficiency in the data published by DNOs","Northern Powergrid","2018-07-11",null,null,"Standard Change Proposal","DCP 325 Change Proposal ","Under Development - Definition Stage",null,"-","-","ElectraLink Ltd","Live","Distribution Connection Use of System Agreement","DCP 325","Reviewing the requirements of Sections 35A, 35B, Schedule 15 and Schedule 20.","The intent of this Change Proposal is to combine, review and if appropriate, amend the requirements of Section 35A, Section 35B, Schedule 15 and Schedule 20 to improve transparency and efficiency in the data published by DNOs","Northern Powergrid","2018-07-11",null,null,"Standard Change Proposal","DCP 325 Change Proposal ","Under Development - Definition Stage",null,"-","-","ElectraLink Ltd","Live","Distribution Connection Use of System Agreement","DCP 325","Reviewing the requirements of Sections 35A, 35B, Schedule 15 and Schedule 20.","The intent of this Change Proposal is to combine, review and if appropriate, amend the requirements of Section 35A, Section 35B, Schedule 15 and Schedule 20 to improve transparency and efficiency in the data published by DNOs","Northern Powergrid","2018-07-11",null,null,"Standard Change Proposal","DCP 325 Change Proposal ","Under Development - Definition Stage",null,"-","-","ElectraLink Ltd","Live","Distribution Connection Use of System Agreement","DCP 325","Reviewing the requirements of Sections 35A, 35B, Schedule 15 and Schedule 20.","The intent of this Change Proposal is to combine, review and if appropriate, amend the requirements of Section 35A, Section 35B, Schedule 15 and Schedule 20 to improve transparency and efficiency in the data published by DNOs","Northern Powergrid","2018-07-11",null,null,"Standard Change Proposal","DCP 325 Change Proposal ","Under Development - Definition Stage",null,"-","-","ElectraLink Ltd","Live","Distribution Connection Use of System Agreement","DCP 325","Reviewing the requirements of Sections 35A, 35B, Schedule 15 and Schedule 20.","The intent of this Change Proposal is to combine, review and if appropriate, amend the requirements of Section 35A, Section 35B, Schedule 15 and Schedule 20 to improve transparency and efficiency in the data published by DNOs","Northern Powergrid","2018-07-11",null,null,"Standard Change Proposal","DCP 325 Change Proposal ","Under Development - Definition Stage",null,"-","-","ElectraLink Ltd","Live","Distribution Connection Use of System Agreement","DCP 325","Reviewing the requirements of Sections 35A, 35B, Schedule 15 and Schedule 20.","The intent of this Change Proposal is to combine, review and if appropriate, amend the requirements of Section 35A, Section 35B, Schedule 15 and Schedule 20 to improve transparency and efficiency in the data published by DNOs","Northern Powergrid","2018-07-11",null,null,"Standard Change Proposal","DCP 325 Change Proposal ","Under Development - Definition Stage",null,"-","-","ElectraLink Ltd","Live","Distribution Connection Use of System Agreement","DCP 325","Reviewing the requirements of Sections 35A, 35B, Schedule 15 and Schedule 20.","The intent of this Change Proposal is to combine, review and if appropriate, amend the requirements of Section 35A, Section 35B, Schedule 15 and Schedule 20 to improve transparency and efficiency in the data published by DNOs","Northern Powergrid","2018-07-11",null,null,"Standard Change Proposal","DCP 325 Change Proposal ","Under Development - Definition Stage",null,"-","-","ElectraLink Ltd","Live","Distribution Connection Use of System Agreement","DCP 325","Reviewing the requirements of Sections 35A, 35B, Schedule 15 and Schedule 20.","The intent of this Change Proposal is to combine, review and if appropriate, amend the requirements of Section 35A, Section 35B, Schedule 15 and Schedule 20 to improve transparency and efficiency in the data published by DNOs","Northern Powergrid","2018-07-11",null,null,"Standard Change Proposal","DCP 325 Change Proposal ","Under Development - Definition Stage",null,"-","-","ElectraLink Ltd","Live","Distribution Connection Use of System Agreement","DCP 325","Reviewing the requirements of Sections 35A, 35B, Schedule 15 and Schedule 20.","The intent of this Change Proposal is to combine, review and if appropriate, amend the requirements of Section 35A, Section 35B, Schedule 15 and Schedule 20 to improve transparency and efficiency in the data published by DNOs","Northern Powergrid","2018-07-11",null,null,"Standard Change Proposal","DCP 325 Change Proposal ","Under Development - Definition Stage",null,"-","-","ElectraLink Ltd","Live","Distribution Connection Use of System Agreement","DCP 325","Reviewing the requirements of Sections 35A, 35B, Schedule 15 and Schedule 20.","The intent of this Change Proposal is to combine, review and if appropriate, amend the requirements of Section 35A, Section 35B, Schedule 15 and Schedule 20 to improve transparency and efficiency in the data published by DNOs","Northern Powergrid","2018-07-11",null,null,"Standard Change Proposal","DCP 325 Change Proposal ","Under Development - Definition Stage",null,"-","-","ElectraLink Ltd","Live","Distribution Connection Use of System Agreement","DCP 325","Reviewing the requirements of Sections 35A, 35B, Schedule 15 and Schedule 20.","The intent of this Change Proposal is to combine, review and if appropriate, amend the requirements of Section 35A, Section 35B, Schedule 15 and Schedule 20 to improve transparency and efficiency in the data published by DNOs","Northern Powergrid","2018-07-11",null,null,"Standard Change Proposal","DCP 325 Change Proposal ","Under Development - Definition Stage",null,"-","-","ElectraLink Ltd","Live","Distribution Connection Use of System Agreement","DCP 325","Reviewing the requirements of Sections 35A, 35B, Schedule 15 and Schedule 20.","The intent of this Change Proposal is to combine, review and if appropriate, amend the requirements of Section 35A, Section 35B, Schedule 15 and Schedule 20 to improve transparency and efficiency in the data published by DNOs","Northern Powergrid","2018-07-11",null,null,"Standard Change Proposal","DCP 325 Change Proposal ","Under Development - Definition Stage",null,"-","-","ElectraLink Ltd","Live","Distribution Connection Use of System Agreement","DCP 325","Reviewing the requirements of Sections 35A, 35B, Schedule 15 and Schedule 20.","The intent of this Change Proposal is to combine, review and if appropriate, amend the requirements of Section 35A, Section 35B, Schedule 15 and Schedule 20 to improve transparency and efficiency in the data published by DNOs","Northern Powergrid","2018-07-11",null,null,"Standard Change Proposal","DCP 325 Change Proposal ","Under Development - Definition Stage",null,"-","-","ElectraLink Ltd","Live","Distribution Connection Use of System Agreement","DCP 325","Reviewing the requirements of Sections 35A, 35B, Schedule 15 and Schedule 20.","The intent of this Change Proposal is to combine, review and if appropriate, amend the requirements of Section 35A, Section 35B, Schedule 15 and Schedule 20 to improve transparency and efficiency in the data published by DNOs","Northern Powergrid","2018-07-11",null,null,"Standard Change Proposal","DCP 325 Change Proposal ","Under Development - Definition Stage",null,"-","-","ElectraLink Ltd","Live","Distribution Connection Use of System Agreement","DCP 325","Reviewing the requirements of Sections 35A, 35B, Schedule 15 and Schedule 20.","The intent of this Change Proposal is to combine, review and if appropriate, amend the requirements of Section 35A, Section 35B, Schedule 15 and Schedule 20 to improve transparency and efficiency in the data published by DNOs","Northern Powergrid","2018-07-11",null,null,"Standard Change Proposal","DCP 325 Change Proposal ","Under Development - Definition Stage",null,"-","-","ElectraLink Ltd","Live","Distribution Connection Use of System Agreement","DCP 325","Reviewing the requirements of Sections 35A, 35B, Schedule 15 and Schedule 20.","The intent of this Change Proposal is to combine, review and if appropriate, amend the requirements of Section 35A, Section 35B, Schedule 15 and Schedule 20 to improve transparency and efficiency in the data published by DNOs","Northern Powergrid","2018-07-11",null,null,"Standard Change Proposal","DCP 325 Change Proposal ","Under Development - Definition Stage",null,"-","-","ElectraLink Ltd","Live","Distribution Connection Use of System Agreement","DCP 325","Reviewing the requirements of Sections 35A, 35B, Schedule 15 and Schedule 20.","The intent of this Change Proposal is to combine, review and if appropriate, amend the requirements of Section 35A, Section 35B, Schedule 15 and Schedule 20 to improve transparency and efficiency in the data published by DNOs","Northern Powergrid","2018-07-11",null,null,"Standard Change Proposal","DCP 325 Change Proposal ","Under Development - Definition Stage",null,"-","-","ElectraLink Ltd","Live","Distribution Connection Use of System Agreement","DCP 325","Reviewing the requirements of Sections 35A, 35B, Schedule 15 and Schedule 20.","The intent of this Change Proposal is to combine, review and if appropriate, amend the requirements of Section 35A, Section 35B, Schedule 15 and Schedule 20 to improve transparency and efficiency in the data published by DNOs","Northern Powergrid","2018-07-11",null,null,"Standard Change Proposal","DCP 325 Change Proposal ","Under Development - Definition Stage",null,"-","-","ElectraLink Ltd","Live","Distribution Connection Use of System Agreement","DCP 325","Reviewing the requirements of Sections 35A, 35B, Schedule 15 and Schedule 20.","The intent of this Change Proposal is to combine, review and if appropriate, amend the requirements of Section 35A, Section 35B, Schedule 15 and Schedule 20 to improve transparency and efficiency in the data published by DNOs","Northern Powergrid","2018-07-11",null,null,"Standard Change Proposal","DCP 325 Change Proposal ","Under Development - Definition Stage",null,"-","-","ElectraLink Ltd","Live","Distribution Connection Use of System Agreement","DCP 325","Reviewing the requirements of Sections 35A, 35B, Schedule 15 and Schedule 20.","The intent of this Change Proposal is to combine, review and if appropriate, amend the requirements of Section 35A, Section 35B, Schedule 15 and Schedule 20 to improve transparency and efficiency in the data published by DNOs","Northern Powergrid","2018-07-11",null,null,"Standard Change Proposal","DCP 325 Change Proposal ","Under Development - Definition Stage",null,"-","-","ElectraLink Ltd","Live","Distribution Connection Use of System Agreement","DCP 325","Reviewing the requirements of Sections 35A, 35B, Schedule 15 and Schedule 20.","The intent of this Change Proposal is to combine, review and if appropriate, amend the requirements of Section 35A, Section 35B, Schedule 15 and Schedule 20 to improve transparency and efficiency in the data published by DNOs","Northern Powergrid","2018-07-11",null,null,"Standard Change Proposal","DCP 325 Change Proposal ","Under Development - Definition Stage",null,"-","-","ElectraLink Ltd","Live","Distribution Connection Use of System Agreement","DCP 325","Reviewing the requirements of Sections 35A, 35B, Schedule 15 and Schedule 20.","The intent of this Change Proposal is to combine, review and if appropriate, amend the requirements of Section 35A, Section 35B, Schedule 15 and Schedule 20 to improve transparency and efficiency in the data published by DNOs","Northern Powergrid","2018-07-11",null,null,"Standard Change Proposal","DCP 325 Change Proposal ","Under Development - Definition Stage",null,"-","-","ElectraLink Ltd","Live","Distribution Connection Use of System Agreement","DCP 325","Reviewing the requirements of Sections 35A, 35B, Schedule 15 and Schedule 20.","The intent of this Change Proposal is to combine, review and if appropriate, amend the requirements of Section 35A, Section 35B, Schedule 15 and Schedule 20 to improve transparency and efficiency in the data published by DNOs","Northern Powergrid","2018-07-11",null,null,"Standard Change Proposal","DCP 325 Change Proposal ","Under Development - Definition Stage",null,"-","-","ElectraLink Ltd","Live","Distribution Connection Use of System Agreement","DCP 325","Reviewing the requirements of Sections 35A, 35B, Schedule 15 and Schedule 20.","The intent of this Change Proposal is to combine, review and if appropriate, amend the requirements of Section 35A, Section 35B, Schedule 15 and Schedule 20 to improve transparency and efficiency in the data published by DNOs","Northern Powergrid","2018-07-11",null,null,"Standard Change Proposal","DCP 325 Change Proposal ","Under Development - Definition Stage",null,"-","-","ElectraLink Ltd","Live","Distribution Connection Use of System Agreement","DCP 325","Reviewing the requirements of Sections 35A, 35B, Schedule 15 and Schedule 20.","The intent of this Change Proposal is to combine, review and if appropriate, amend the requirements of Section 35A, Section 35B, Schedule 15 and Schedule 20 to improve transparency and efficiency in the data published by DNOs","Northern Powergrid","2018-07-11",null,null,"Standard Change Proposal","DCP 325 Change Proposal ","Under Development - Definition Stage",null,"-","-","ElectraLink Ltd","Live","Distribution Connection Use of System Agreement","DCP 325","Reviewing the requirements of Sections 35A, 35B, Schedule 15 and Schedule 20.","The intent of this Change Proposal is to combine, review and if appropriate, amend the requirements of Section 35A, Section 35B, Schedule 15 and Schedule 20 to improve transparency and efficiency in the data published by DNOs","Northern Powergrid","2018-07-11",null,null,"Standard Change Proposal","DCP 325 Change Proposal ","Under Development - Definition Stage",null,"-","-","ElectraLink Ltd","Live","Distribution Connection Use of System Agreement","DCP 325","Reviewing the requirements of Sections 35A, 35B, Schedule 15 and Schedule 20.","The intent of this Change Proposal is to combine, review and if appropriate, amend the requirements of Section 35A, Section 35B, Schedule 15 and Schedule 20 to improve transparency and efficiency in the data published by DNOs","Northern Powergrid","2018-07-11",null,null,"Standard Change Proposal","DCP 325 Change Proposal ","Under Development - Definition Stage",null,"-","-","ElectraLink Ltd","Live","Distribution Connection Use of System Agreement","DCP 325","Reviewing the requirements of Sections 35A, 35B, Schedule 15 and Schedule 20.","The intent of this Change Proposal is to combine, review and if appropriate, amend the requirements of Section 35A, Section 35B, Schedule 15 and Schedule 20 to improve transparency and efficiency in the data published by DNOs","Northern Powergrid","2018-07-11",null,null,"Standard Change Proposal","DCP 325 Change Proposal ","Under Development - Definition Stage",null,"-","-","ElectraLink Ltd","Live","Distribution Connection Use of System Agreement","DCP 325","Reviewing the requirements of Sections 35A, 35B, Schedule 15 and Schedule 20.","The intent of this Change Proposal is to combine, review and if appropriate, amend the requirements of Section 35A, Section 35B, Schedule 15 and Schedule 20 to improve transparency and efficiency in the data published by DNOs","Northern Powergrid","2018-07-11",null,null,"Standard Change Proposal","DCP 325 Change Proposal ","Under Development - Definition Stage",null,"-","-","ElectraLink Ltd","Live","Distribution Connection Use of System Agreement","DCP 325","Reviewing the requirements of Sections 35A, 35B, Schedule 15 and Schedule 20.","The intent of this Change Proposal is to combine, review and if appropriate, amend the requirements of Section 35A, Section 35B, Schedule 15 and Schedule 20 to improve transparency and efficiency in the data published by DNOs","Northern Powergrid","2018-07-11",null,null,"Standard Change Proposal","DCP 325 Change Proposal ","Under Development - Definition Stage",null,"-","-","ElectraLink Ltd","Live","Distribution Connection Use of System Agreement","DCP 325","Reviewing the requirements of Sections 35A, 35B, Schedule 15 and Schedule 20.","The intent of this Change Proposal is to combine, review and if appropriate, amend the requirements of Section 35A, Section 35B, Schedule 15 and Schedule 20 to improve transparency and efficiency in the data published by DNOs","Northern Powergrid","2018-07-11",null,null,"Standard Change Proposal","DCP 325 Change Proposal ","Under Development - Definition Stage",null,"-","-","ElectraLink Ltd","Live","Distribution Connection Use of System Agreement","DCP 325","Reviewing the requirements of Sections 35A, 35B, Schedule 15 and Schedule 20.","The intent of this Change Proposal is to combine, review and if appropriate, amend the requirements of Section 35A, Section 35B, Schedule 15 and Schedule 20 to improve transparency and efficiency in the data published by DNOs","Northern Powergrid","2018-07-11",null,null,"Standard Change Proposal","DCP 325 Change Proposal ","Under Development - Definition Stage",null,"-","-","ElectraLink Ltd","Live","Distribution Connection Use of System Agreement","DCP 325","Reviewing the requirements of Sections 35A, 35B, Schedule 15 and Schedule 20.","The intent of this Change Proposal is to combine, review and if appropriate, amend the requirements of Section 35A, Section 35B, Schedule 15 and Schedule 20 to improve transparency and efficiency in the data published by DNOs","Northern Powergrid","2018-07-11",null,null,"Standard Change Proposal","DCP 325 Change Proposal ","Under Development - Definition Stage",null,"-","-","ElectraLink Ltd","Live","Distribution Connection Use of System Agreement","DCP 325","Reviewing the requirements of Sections 35A, 35B, Schedule 15 and Schedule 20.","The intent of this Change Proposal is to combine, review and if appropriate, amend the requirements of Section 35A, Section 35B, Schedule 15 and Schedule 20 to improve transparency and efficiency in the data published by DNOs","Northern Powergrid","2018-07-11",null,null,"Standard Change Proposal","DCP 325 Change Proposal ","Under Development - Definition Stage",null,"-","-","ElectraLink Ltd","Live","Distribution Connection Use of System Agreement","DCP 325","Reviewing the requirements of Sections 35A, 35B, Schedule 15 and Schedule 20.","The intent of this Change Proposal is to combine, review and if appropriate, amend the requirements of Section 35A, Section 35B, Schedule 15 and Schedule 20 to improve transparency and efficiency in the data published by DNOs","Northern Powergrid","2018-07-11",null,null,"Standard Change Proposal","DCP 325 Change Proposal ","Under Development - Definition Stage",null,"-","-","ElectraLink Ltd","Live","Distribution Connection Use of System Agreement","DCP 325","Reviewing the requirements of Sections 35A, 35B, Schedule 15 and Schedule 20.","The intent of this Change Proposal is to combine, review and if appropriate, amend the requirements of Section 35A, Section 35B, Schedule 15 and Schedule 20 to improve transparency and efficiency in the data published by DNOs","Northern Powergrid","2018-07-11",null,null,"Standard Change Proposal","DCP 325 Change Proposal ","Under Development - Definition Stage",null,"-","-","ElectraLink Ltd","Live","Distribution Connection Use of System Agreement","DCP 325","Reviewing the requirements of Sections 35A, 35B, Schedule 15 and Schedule 20.","The intent of this Change Proposal is to combine, review and if appropriate, amend the requirements of Section 35A, Section 35B, Schedule 15 and Schedule 20 to improve transparency and efficiency in the data published by DNOs","Northern Powergrid","2018-07-11",null,null,"Standard Change Proposal","DCP 325 Change Proposal ","Under Development - Definition Stage",null,"-","-","ElectraLink Ltd","Live","Distribution Connection Use of System Agreement","DCP 325","Reviewing the requirements of Sections 35A, 35B, Schedule 15 and Schedule 20.","The intent of this Change Proposal is to combine, review and if appropriate, amend the requirements of Section 35A, Section 35B, Schedule 15 and Schedule 20 to improve transparency and efficiency in the data published by DNOs","Northern Powergrid","2018-07-11",null,null,"Standard Change Proposal","DCP 325 Change Proposal ","Under Development - Definition Stage",null,"-","-","ElectraLink Ltd","Live","Distribution Connection Use of System Agreement","DCP 325","Reviewing the requirements of Sections 35A, 35B, Schedule 15 and Schedule 20.","The intent of this Change Proposal is to combine, review and if appropriate, amend the requirements of Section 35A, Section 35B, Schedule 15 and Schedule 20 to improve transparency and efficiency in the data published by DNOs","Northern Powergrid","2018-07-11",null,null,"Standard Change Proposal","DCP 325 Change Proposal ","Under Development - Definition Stage",null,"-","-","ElectraLink Ltd","Live","Distribution Connection Use of System Agreement","DCP 325","Reviewing the requirements of Sections 35A, 35B, Schedule 15 and Schedule 20.","The intent of this Change Proposal is to combine, review and if appropriate, amend the requirements of Section 35A, Section 35B, Schedule 15 and Schedule 20 to improve transparency and efficiency in the data published by DNOs","Northern Powergrid","2018-07-11",null,null,"Standard Change Proposal","DCP 325 Change Proposal ","Under Development - Definition Stage",null,"-","-","ElectraLink Ltd","Live","Distribution Connection Use of System Agreement","DCP 325","Reviewing the requirements of Sections 35A, 35B, Schedule 15 and Schedule 20.","The intent of this Change Proposal is to combine, review and if appropriate, amend the requirements of Section 35A, Section 35B, Schedule 15 and Schedule 20 to improve transparency and efficiency in the data published by DNOs","Northern Powergrid","2018-07-11",null,null,"Standard Change Proposal","DCP 325 Change Proposal ","Under Development - Definition Stage",null,"-","-","ElectraLink Ltd","Live","Distribution Connection Use of System Agreement","DCP 325","Reviewing the requirements of Sections 35A, 35B, Schedule 15 and Schedule 20.","The intent of this Change Proposal is to combine, review and if appropriate, amend the requirements of Section 35A, Section 35B, Schedule 15 and Schedule 20 to improve transparency and efficiency in the data published by DNOs","Northern Powergrid","2018-07-11",null,null,"Standard Change Proposal","DCP 325 Change Proposal ","Under Development - Definition Stage",null,"-","-","ElectraLink Ltd","Live","Distribution Connection Use of System Agreement","DCP 325","Reviewing the requirements of Sections 35A, 35B, Schedule 15 and Schedule 20.","The intent of this Change Proposal is to combine, review and if appropriate, amend the requirements of Section 35A, Section 35B, Schedule 15 and Schedule 20 to improve transparency and efficiency in the data published by DNOs","Northern Powergrid","2018-07-11",null,null,"Standard Change Proposal","DCP 325 Change Proposal ","Under Development - Definition Stage",null,"-","-","ElectraLink Ltd","Live","Distribution Connection Use of System Agreement","DCP 325","Reviewing the requirements of Sections 35A, 35B, Schedule 15 and Schedule 20.","The intent of this Change Proposal is to combine, review and if appropriate, amend the requirements of Section 35A, Section 35B, Schedule 15 and Schedule 20 to improve transparency and efficiency in the data published by DNOs","Northern Powergrid","2018-07-11",null,null,"Standard Change Proposal","DCP 325 Change Proposal ","Under Development - Definition Stage",null,"-","-","ElectraLink Ltd","Live","Distribution Connection Use of System Agreement","DCP 325","Reviewing the requirements of Sections 35A, 35B, Schedule 15 and Schedule 20.","The intent of this Change Proposal is to combine, review and if appropriate, amend the requirements of Section 35A, Section 35B, Schedule 15 and Schedule 20 to improve transparency and efficiency in the data published by DNOs","Northern Powergrid","2018-07-11",null,null,"Standard Change Proposal","DCP 325 Change Proposal ","Under Development - Definition Stage",null,"-","-","ElectraLink Ltd","Live","Distribution Connection Use of System Agreement","DCP 325","Reviewing the requirements of Sections 35A, 35B, Schedule 15 and Schedule 20.","The intent of this Change Proposal is to combine, review and if appropriate, amend the requirements of Section 35A, Section 35B, Schedule 15 and Schedule 20 to improve transparency and efficiency in the data published by DNOs","Northern Powergrid","2018-07-11",null,null,"Standard Change Proposal","DCP 325 Change Proposal ","Under Development - Definition Stage",null,"-","-","ElectraLink Ltd","Live","Distribution Connection Use of System Agreement","DCP 325","Reviewing the requirements of Sections 35A, 35B, Schedule 15 and Schedule 20.","The intent of this Change Proposal is to combine, review and if appropriate, amend the requirements of Section 35A, Section 35B, Schedule 15 and Schedule 20 to improve transparency and efficiency in the data published by DNOs","Northern Powergrid","2018-07-11",null,null,"Standard Change Proposal","DCP 325 Change Proposal ","Under Development - Definition Stage",null,"-","-","ElectraLink Ltd","Live","Distribution Connection Use of System Agreement","DCP 325","Reviewing the requirements of Sections 35A, 35B, Schedule 15 and Schedule 20.","The intent of this Change Proposal is to combine, review and if appropriate, amend the requirements of Section 35A, Section 35B, Schedule 15 and Schedule 20 to improve transparency and efficiency in the data published by DNOs","Northern Powergrid","2018-07-11",null,null,"Standard Change Proposal","DCP 325 Change Proposal ","Under Development - Definition Stage",null,"-","-","ElectraLink Ltd","Live","Distribution Connection Use of System Agreement","DCP 325","Reviewing the requirements of Sections 35A, 35B, Schedule 15 and Schedule 20.","The intent of this Change Proposal is to combine, review and if appropriate, amend the requirements of Section 35A, Section 35B, Schedule 15 and Schedule 20 to improve transparency and efficiency in the data published by DNOs","Northern Powergrid","2018-07-11",null,null,"Standard Change Proposal","DCP 325 Change Proposal ","Under Development - Definition Stage",null,"-","-","ElectraLink Ltd","Live","Distribution Connection Use of System Agreement","DCP 325","Reviewing the requirements of Sections 35A, 35B, Schedule 15 and Schedule 20.","The intent of this Change Proposal is to combine, review and if appropriate, amend the requirements of Section 35A, Section 35B, Schedule 15 and Schedule 20 to improve transparency and efficiency in the data published by DNOs","Northern Powergrid","2018-07-11",null,null,"Standard Change Proposal","DCP 325 Change Proposal ","Under Development - Definition Stage",null,"-","-","ElectraLink Ltd","Live","Distribution Connection Use of System Agreement","DCP 325","Reviewing the requirements of Sections 35A, 35B, Schedule 15 and Schedule 20.","The intent of this Change Proposal is to combine, review and if appropriate, amend the requirements of Section 35A, Section 35B, Schedule 15 and Schedule 20 to improve transparency and efficiency in the data published by DNOs","Northern Powergrid","2018-07-11",null,null,"Standard Change Proposal","DCP 325 Change Proposal ","Under Development - Definition Stage",null,"-","-","ElectraLink Ltd","Live","Distribution Connection Use of System Agreement","DCP 325","Reviewing the requirements of Sections 35A, 35B, Schedule 15 and Schedule 20.","The intent of this Change Proposal is to combine, review and if appropriate, amend the requirements of Section 35A, Section 35B, Schedule 15 and Schedule 20 to improve transparency and efficiency in the data published by DNOs","Northern Powergrid","2018-07-11",null,null,"Standard Change Proposal","DCP 325 Change Proposal ","Under Development - Definition Stage",null,"-","-","ElectraLink Ltd","Live","Distribution Connection Use of System Agreement","DCP 325","Reviewing the requirements of Sections 35A, 35B, Schedule 15 and Schedule 20.","The intent of this Change Proposal is to combine, review and if appropriate, amend the requirements of Section 35A, Section 35B, Schedule 15 and Schedule 20 to improve transparency and efficiency in the data published by DNOs","Northern Powergrid","2018-07-11",null,null,"Standard Change Proposal","DCP 325 Change Proposal ","Under Development - Definition Stage",null,"-","-","ElectraLink Ltd","Live","Distribution Connection Use of System Agreement","DCP 325","Reviewing the requirements of Sections 35A, 35B, Schedule 15 and Schedule 20.","The intent of this Change Proposal is to combine, review and if appropriate, amend the requirements of Section 35A, Section 35B, Schedule 15 and Schedule 20 to improve transparency and efficiency in the data published by DNOs","Northern Powergrid","2018-07-11",null,null,"Standard Change Proposal","DCP 325 Change Proposal ","Under Development - Definition Stage",null,"-","-","ElectraLink Ltd","Live","Distribution Connection Use of System Agreement","DCP 325","Reviewing the requirements of Sections 35A, 35B, Schedule 15 and Schedule 20.","The intent of this Change Proposal is to combine, review and if appropriate, amend the requirements of Section 35A, Section 35B, Schedule 15 and Schedule 20 to improve transparency and efficiency in the data published by DNOs","Northern Powergrid","2018-07-11",null,null,"Standard Change Proposal","DCP 325 Change Proposal ","Under Development - Definition Stage",null,"-","-","ElectraLink Ltd","Live","Distribution Connection Use of System Agreement","DCP 325","Reviewing the requirements of Sections 35A, 35B, Schedule 15 and Schedule 20.","The intent of this Change Proposal is to combine, review and if appropriate, amend the requirements of Section 35A, Section 35B, Schedule 15 and Schedule 20 to improve transparency and efficiency in the data published by DNOs","Northern Powergrid","2018-07-11",null,null,"Standard Change Proposal","DCP 325 Change Proposal ","Under Development - Definition Stage",null,"-","-","ElectraLink Ltd","Live","Distribution Connection Use of System Agreement","DCP 325","Reviewing the requirements of Sections 35A, 35B, Schedule 15 and Schedule 20.","The intent of this Change Proposal is to combine, review and if appropriate, amend the requirements of Section 35A, Section 35B, Schedule 15 and Schedule 20 to improve transparency and efficiency in the data published by DNOs","Northern Powergrid","2018-07-11",null,null,"Standard Change Proposal","DCP 325 Change Proposal ","Under Development - Definition Stage",null,"-","-","ElectraLink Ltd","Live","Distribution Connection Use of System Agreement","DCP 325","Reviewing the requirements of Sections 35A, 35B, Schedule 15 and Schedule 20.","The intent of this Change Proposal is to combine, review and if appropriate, amend the requirements of Section 35A, Section 35B, Schedule 15 and Schedule 20 to improve transparency and efficiency in the data published by DNOs","Northern Powergrid","2018-07-11",null,null,"Standard Change Proposal","DCP 325 Change Proposal ","Under Development - Definition Stage",null,"-","-","ElectraLink Ltd","Live","Distribution Connection Use of System Agreement","DCP 325","Reviewing the requirements of Sections 35A, 35B, Schedule 15 and Schedule 20.","The intent of this Change Proposal is to combine, review and if appropriate, amend the requirements of Section 35A, Section 35B, Schedule 15 and Schedule 20 to improve transparency and efficiency in the data published by DNOs","Northern Powergrid","2018-07-11",null,null,"Standard Change Proposal","DCP 325 Change Proposal ","Under Development - Definition Stage",null,"-","-","ElectraLink Ltd","Live","Distribution Connection Use of System Agreement","DCP 325","Reviewing the requirements of Sections 35A, 35B, Schedule 15 and Schedule 20.","The intent of this Change Proposal is to combine, review and if appropriate, amend the requirements of Section 35A, Section 35B, Schedule 15 and Schedule 20 to improve transparency and efficiency in the data published by DNOs","Northern Powergrid","2018-07-11",null,null,"Standard Change Proposal","DCP 325 Change Proposal ","Under Development - Definition Stage",null,"-","-","ElectraLink Ltd","Live","Distribution Connection Use of System Agreement","DCP 325","Reviewing the requirements of Sections 35A, 35B, Schedule 15 and Schedule 20.","The intent of this Change Proposal is to combine, review and if appropriate, amend the requirements of Section 35A, Section 35B, Schedule 15 and Schedule 20 to improve transparency and efficiency in the data published by DNOs","Northern Powergrid","2018-07-11",null,null,"Standard Change Proposal","DCP 325 Change Proposal ","Under Development - Definition Stage",null,"-","-","ElectraLink Ltd","Live","Distribution Connection Use of System Agreement","DCP 325","Reviewing the requirements of Sections 35A, 35B, Schedule 15 and Schedule 20.","The intent of this Change Proposal is to combine, review and if appropriate, amend the requirements of Section 35A, Section 35B, Schedule 15 and Schedule 20 to improve transparency and efficiency in the data published by DNOs","Northern Powergrid","2018-07-11",null,null,"Standard Change Proposal","DCP 325 Change Proposal ","Under Development - Definition Stage",null,"-","-","ElectraLink Ltd","Live","Distribution Connection Use of System Agreement","DCP 325","Reviewing the requirements of Sections 35A, 35B, Schedule 15 and Schedule 20.","The intent of this Change Proposal is to combine, review and if appropriate, amend the requirements of Section 35A, Section 35B, Schedule 15 and Schedule 20 to improve transparency and efficiency in the data published by DNOs","Northern Powergrid","2018-07-11",null,null,"Standard Change Proposal","DCP 325 Change Proposal ","Under Development - Definition Stage",null,"-","-","ElectraLink Ltd","Live","Distribution Connection Use of System Agreement","DCP 325","Reviewing the requirements of Sections 35A, 35B, Schedule 15 and Schedule 20.","The intent of this Change Proposal is to combine, review and if appropriate, amend the requirements of Section 35A, Section 35B, Schedule 15 and Schedule 20 to improve transparency and efficiency in the data published by DNOs","Northern Powergrid","2018-07-11",null,null,"Standard Change Proposal","DCP 325 Change Proposal ","Under Development - Definition Stage",null,"-","-","ElectraLink Ltd","Live","Distribution Connection Use of System Agreement","DCP 325","Reviewing the requirements of Sections 35A, 35B, Schedule 15 and Schedule 20.","The intent of this Change Proposal is to combine, review and if appropriate, amend the requirements of Section 35A, Section 35B, Schedule 15 and Schedule 20 to improve transparency and efficiency in the data published by DNOs","Northern Powergrid","2018-07-11",null,null,"Standard Change Proposal","DCP 325 Change Proposal ","Under Development - Definition Stage",null,"-","-","ElectraLink Ltd","Live","Distribution Connection Use of System Agreement","DCP 325","Reviewing the requirements of Sections 35A, 35B, Schedule 15 and Schedule 20.","The intent of this Change Proposal is to combine, review and if appropriate, amend the requirements of Section 35A, Section 35B, Schedule 15 and Schedule 20 to improve transparency and efficiency in the data published by DNOs","Northern Powergrid","2018-07-11",null,null,"Standard Change Proposal","DCP 325 Change Proposal ","Under Development - Definition Stage",null,"-","-","ElectraLink Ltd","Live","Distribution Connection Use of System Agreement","DCP 325","Reviewing the requirements of Sections 35A, 35B, Schedule 15 and Schedule 20.","The intent of this Change Proposal is to combine, review and if appropriate, amend the requirements of Section 35A, Section 35B, Schedule 15 and Schedule 20 to improve transparency and efficiency in the data published by DNOs","Northern Powergrid","2018-07-11",null,null,"Standard Change Proposal","DCP 325 Change Proposal ","Under Development - Definition Stage",null,"-","-","ElectraLink Ltd","Live","Distribution Connection Use of System Agreement","DCP 325","Reviewing the requirements of Sections 35A, 35B, Schedule 15 and Schedule 20.","The intent of this Change Proposal is to combine, review and if appropriate, amend the requirements of Section 35A, Section 35B, Schedule 15 and Schedule 20 to improve transparency and efficiency in the data published by DNOs","Northern Powergrid","2018-07-11",null,null,"Standard Change Proposal","DCP 325 Change Proposal ","Under Development - Definition Stage",null,"-","-","ElectraLink Ltd","Live","Distribution Connection Use of System Agreement","DCP 325","Reviewing the requirements of Sections 35A, 35B, Schedule 15 and Schedule 20.","The intent of this Change Proposal is to combine, review and if appropriate, amend the requirements of Section 35A, Section 35B, Schedule 15 and Schedule 20 to improve transparency and efficiency in the data published by DNOs","Northern Powergrid","2018-07-11",null,null,"Standard Change Proposal","DCP 325 Change Proposal ","Under Development - Definition Stage",null,"-","-","ElectraLink Ltd","Live","Distribution Connection Use of System Agreement","DCP 325","Reviewing the requirements of Sections 35A, 35B, Schedule 15 and Schedule 20.","The intent of this Change Proposal is to combine, review and if appropriate, amend the requirements of Section 35A, Section 35B, Schedule 15 and Schedule 20 to improve transparency and efficiency in the data published by DNOs","Northern Powergrid","2018-07-11",null,null,"Standard Change Proposal","DCP 325 Change Proposal ","Under Development - Definition Stage",null,"-","-","ElectraLink Ltd","Live","Distribution Connection Use of System Agreement","DCP 325","Reviewing the requirements of Sections 35A, 35B, Schedule 15 and Schedule 20.","The intent of this Change Proposal is to combine, review and if appropriate, amend the requirements of Section 35A, Section 35B, Schedule 15 and Schedule 20 to improve transparency and efficiency in the data published by DNOs","Northern Powergrid","2018-07-11",null,null,"Standard Change Proposal","DCP 325 Change Proposal ","Under Development - Definition Stage",null,"-","-","ElectraLink Ltd","Live","Distribution Connection Use of System Agreement","DCP 325","Reviewing the requirements of Sections 35A, 35B, Schedule 15 and Schedule 20.","The intent of this Change Proposal is to combine, review and if appropriate, amend the requirements of Section 35A, Section 35B, Schedule 15 and Schedule 20 to improve transparency and efficiency in the data published by DNOs","Northern Powergrid","2018-07-11",null,null,"Standard Change Proposal","DCP 325 Change Proposal ","Under Development - Definition Stage",null,"-","-","ElectraLink Ltd","Live","Distribution Connection Use of System Agreement","DCP 325","Reviewing the requirements of Sections 35A, 35B, Schedule 15 and Schedule 20.","The intent of this Change Proposal is to combine, review and if appropriate, amend the requirements of Section 35A, Section 35B, Schedule 15 and Schedule 20 to improve transparency and efficiency in the data published by DNOs","Northern Powergrid","2018-07-11",null,null,"Standard Change Proposal","DCP 325 Change Proposal ","Under Development - Definition Stage",null,"-","-","ElectraLink Ltd","Live","Distribution Connection Use of System Agreement","DCP 325","Reviewing the requirements of Sections 35A, 35B, Schedule 15 and Schedule 20.","The intent of this Change Proposal is to combine, review and if appropriate, amend the requirements of Section 35A, Section 35B, Schedule 15 and Schedule 20 to improve transparency and efficiency in the data published by DNOs","Northern Powergrid","2018-07-11",null,null,"Standard Change Proposal","DCP 325 Change Proposal ","Under Development - Definition Stage",null,"-","-","ElectraLink Ltd","Live","Distribution Connection Use of System Agreement","DCP 325","Reviewing the requirements of Sections 35A, 35B, Schedule 15 and Schedule 20.","The intent of this Change Proposal is to combine, review and if appropriate, amend the requirements of Section 35A, Section 35B, Schedule 15 and Schedule 20 to improve transparency and efficiency in the data published by DNOs","Northern Powergrid","2018-07-11",null,null,"Standard Change Proposal","DCP 325 Change Proposal ","Under Development - Definition Stage",null,"-","-","ElectraLink Ltd","Live","Distribution Connection Use of System Agreement","DCP 325","Reviewing the requirements of Sections 35A, 35B, Schedule 15 and Schedule 20.","The intent of this Change Proposal is to combine, review and if appropriate, amend the requirements of Section 35A, Section 35B, Schedule 15 and Schedule 20 to improve transparency and efficiency in the data published by DNOs","Northern Powergrid","2018-07-11",null,null,"Standard Change Proposal","DCP 325 Change Proposal ","Under Development - Definition Stage",null,"-","-","ElectraLink Ltd","Live","Distribution Connection Use of System Agreement","DCP 325","Reviewing the requirements of Sections 35A, 35B, Schedule 15 and Schedule 20.","The intent of this Change Proposal is to combine, review and if appropriate, amend the requirements of Section 35A, Section 35B, Schedule 15 and Schedule 20 to improve transparency and efficiency in the data published by DNOs","Northern Powergrid","2018-07-11",null,null,"Standard Change Proposal","DCP 325 Change Proposal ","Under Development - Definition Stage",null,"-","-","ElectraLink Ltd","Live","Distribution Connection Use of System Agreement","DCP 325","Reviewing the requirements of Sections 35A, 35B, Schedule 15 and Schedule 20.","The intent of this Change Proposal is to combine, review and if appropriate, amend the requirements of Section 35A, Section 35B, Schedule 15 and Schedule 20 to improve transparency and efficiency in the data published by DNOs","Northern Powergrid","2018-07-11",null,null,"Standard Change Proposal","DCP 325 Change Proposal ","Under Development - Definition Stage",null,"-","-","ElectraLink Ltd","Live","Distribution Connection Use of System Agreement","DCP 325","Reviewing the requirements of Sections 35A, 35B, Schedule 15 and Schedule 20.","The intent of this Change Proposal is to combine, review and if appropriate, amend the requirements of Section 35A, Section 35B, Schedule 15 and Schedule 20 to improve transparency and efficiency in the data published by DNOs","Northern Powergrid","2018-07-11",null,null,"Standard Change Proposal","DCP 325 Change Proposal ","Under Development - Definition Stage",null,"-","-","ElectraLink Ltd","Live","Distribution Connection Use of System Agreement","DCP 325","Reviewing the requirements of Sections 35A, 35B, Schedule 15 and Schedule 20.","The intent of this Change Proposal is to combine, review and if appropriate, amend the requirements of Section 35A, Section 35B, Schedule 15 and Schedule 20 to improve transparency and efficiency in the data published by DNOs","Northern Powergrid","2018-07-11",null,null,"Standard Change Proposal","DCP 325 Change Proposal ","Under Development - Definition Stage",null,"-","-","ElectraLink Ltd","Live","Distribution Connection Use of System Agreement","DCP 325","Reviewing the requirements of Sections 35A, 35B, Schedule 15 and Schedule 20.","The intent of this Change Proposal is to combine, review and if appropriate, amend the requirements of Section 35A, Section 35B, Schedule 15 and Schedule 20 to improve transparency and efficiency in the data published by DNOs","Northern Powergrid","2018-07-11",null,null,"Standard Change Proposal","DCP 325 Change Proposal ","Under Development - Definition Stage",null,"-","-","ElectraLink Ltd","Live","Distribution Connection Use of System Agreement","DCP 325","Reviewing the requirements of Sections 35A, 35B, Schedule 15 and Schedule 20.","The intent of this Change Proposal is to combine, review and if appropriate, amend the requirements of Section 35A, Section 35B, Schedule 15 and Schedule 20 to improve transparency and efficiency in the data published by DNOs","Northern Powergrid","2018-07-11",null,null,"Standard Change Proposal","DCP 325 Change Proposal ","Under Development - Definition Stage",null,"-","-","ElectraLink Ltd","Live","Distribution Connection Use of System Agreement","DCP 325","Reviewing the requirements of Sections 35A, 35B, Schedule 15 and Schedule 20.","The intent of this Change Proposal is to combine, review and if appropriate, amend the requirements of Section 35A, Section 35B, Schedule 15 and Schedule 20 to improve transparency and efficiency in the data published by DNOs","Northern Powergrid","2018-07-11",null,null,"Standard Change Proposal","DCP 325 Change Proposal ","Under Development - Definition Stage",null,"-","-","ElectraLink Ltd","Live","Distribution Connection Use of System Agreement","DCP 325","Reviewing the requirements of Sections 35A, 35B, Schedule 15 and Schedule 20.","The intent of this Change Proposal is to combine, review and if appropriate, amend the requirements of Section 35A, Section 35B, Schedule 15 and Schedule 20 to improve transparency and efficiency in the data published by DNOs","Northern Powergrid","2018-07-11",null,null,"Standard Change Proposal","DCP 325 Change Proposal ","Under Development - Definition Stage",null,"-","-","ElectraLink Ltd","Live","Distribution Connection Use of System Agreement","DCP 325","Reviewing the requirements of Sections 35A, 35B, Schedule 15 and Schedule 20.","The intent of this Change Proposal is to combine, review and if appropriate, amend the requirements of Section 35A, Section 35B, Schedule 15 and Schedule 20 to improve transparency and efficiency in the data published by DNOs","Northern Powergrid","2018-07-11",null,null,"Standard Change Proposal","DCP 325 Change Proposal ","Under Development - Definition Stage",null,"-","-","ElectraLink Ltd","Live","Distribution Connection Use of System Agreement","DCP 325","Reviewing the requirements of Sections 35A, 35B, Schedule 15 and Schedule 20.","The intent of this Change Proposal is to combine, review and if appropriate, amend the requirements of Section 35A, Section 35B, Schedule 15 and Schedule 20 to improve transparency and efficiency in the data published by DNOs","Northern Powergrid","2018-07-11",null,null,"Standard Change Proposal","DCP 325 Change Proposal ","Under Development - Definition Stage",null,"-","-","ElectraLink Ltd","Live","Distribution Connection Use of System Agreement","DCP 325","Reviewing the requirements of Sections 35A, 35B, Schedule 15 and Schedule 20.","The intent of this Change Proposal is to combine, review and if appropriate, amend the requirements of Section 35A, Section 35B, Schedule 15 and Schedule 20 to improve transparency and efficiency in the data published by DNOs","Northern Powergrid","2018-07-11",null,null,"Standard Change Proposal","DCP 325 Change Proposal ","Under Development - Definition Stage",null,"-","-","ElectraLink Ltd","Live","Distribution Connection Use of System Agreement","DCP 325","Reviewing the requirements of Sections 35A, 35B, Schedule 15 and Schedule 20.","The intent of this Change Proposal is to combine, review and if appropriate, amend the requirements of Section 35A, Section 35B, Schedule 15 and Schedule 20 to improve transparency and efficiency in the data published by DNOs","Northern Powergrid","2018-07-11",null,null,"Standard Change Proposal","DCP 325 Change Proposal ","Under Development - Definition Stage",null,"-","-","ElectraLink Ltd","Live","Distribution Connection Use of System Agreement","DCP 325","Reviewing the requirements of Sections 35A, 35B, Schedule 15 and Schedule 20.","The intent of this Change Proposal is to combine, review and if appropriate, amend the requirements of Section 35A, Section 35B, Schedule 15 and Schedule 20 to improve transparency and efficiency in the data published by DNOs","Northern Powergrid","2018-07-11",null,null,"Standard Change Proposal","DCP 325 Change Proposal ","Under Development - Definition Stage",null,"-","-","ElectraLink Ltd","Live","Distribution Connection Use of System Agreement","DCP 325","Reviewing the requirements of Sections 35A, 35B, Schedule 15 and Schedule 20.","The intent of this Change Proposal is to combine, review and if appropriate, amend the requirements of Section 35A, Section 35B, Schedule 15 and Schedule 20 to improve transparency and efficiency in the data published by DNOs","Northern Powergrid","2018-07-11",null,null,"Standard Change Proposal","DCP 325 Change Proposal ","Under Development - Definition Stage",null,"-","-","ElectraLink Ltd","Live","Distribution Connection Use of System Agreement","DCP 325","Reviewing the requirements of Sections 35A, 35B, Schedule 15 and Schedule 20.","The intent of this Change Proposal is to combine, review and if appropriate, amend the requirements of Section 35A, Section 35B, Schedule 15 and Schedule 20 to improve transparency and efficiency in the data published by DNOs","Northern Powergrid","2018-07-11",null,null,"Standard Change Proposal","DCP 325 Change Proposal ","Under Development - Definition Stage",null,"-","-","ElectraLink Ltd","Live","Distribution Connection Use of System Agreement","DCP 325","Reviewing the requirements of Sections 35A, 35B, Schedule 15 and Schedule 20.","The intent of this Change Proposal is to combine, review and if appropriate, amend the requirements of Section 35A, Section 35B, Schedule 15 and Schedule 20 to improve transparency and efficiency in the data published by DNOs","Northern Powergrid","2018-07-11",null,null,"Standard Change Proposal","DCP 325 Change Proposal ","Under Development - Definition Stage",null,"-","-","ElectraLink Ltd","Live","Distribution Connection Use of System Agreement","DCP 325","Reviewing the requirements of Sections 35A, 35B, Schedule 15 and Schedule 20.","The intent of this Change Proposal is to combine, review and if appropriate, amend the requirements of Section 35A, Section 35B, Schedule 15 and Schedule 20 to improve transparency and efficiency in the data published by DNOs","Northern Powergrid","2018-07-11",null,null,"Standard Change Proposal","DCP 325 Change Proposal ","Under Development - Definition Stage",null,"-","-","ElectraLink Ltd","Live","Distribution Connection Use of System Agreement","DCP 325","Reviewing the requirements of Sections 35A, 35B, Schedule 15 and Schedule 20.","The intent of this Change Proposal is to combine, review and if appropriate, amend the requirements of Section 35A, Section 35B, Schedule 15 and Schedule 20 to improve transparency and efficiency in the data published by DNOs","Northern Powergrid","2018-07-11",null,null,"Standard Change Proposal","DCP 325 Change Proposal ","Under Development - Definition Stage",null,"-","-","ElectraLink Ltd","Live","Distribution Connection Use of System Agreement","DCP 325","Reviewing the requirements of Sections 35A, 35B, Schedule 15 and Schedule 20.","The intent of this Change Proposal is to combine, review and if appropriate, amend the requirements of Section 35A, Section 35B, Schedule 15 and Schedule 20 to improve transparency and efficiency in the data published by DNOs","Northern Powergrid","2018-07-11",null,null,"Standard Change Proposal","DCP 325 Change Proposal ","Under Development - Definition Stage",null,"-","-","ElectraLink Ltd","Live","Distribution Connection Use of System Agreement","DCP 325","Reviewing the requirements of Sections 35A, 35B, Schedule 15 and Schedule 20.","The intent of this Change Proposal is to combine, review and if appropriate, amend the requirements of Section 35A, Section 35B, Schedule 15 and Schedule 20 to improve transparency and efficiency in the data published by DNOs","Northern Powergrid","2018-07-11",null,null,"Standard Change Proposal","DCP 325 Change Proposal ","Under Development - Definition Stage",null,"-","-","ElectraLink Ltd","Live","Distribution Connection Use of System Agreement","DCP 325","Reviewing the requirements of Sections 35A, 35B, Schedule 15 and Schedule 20.","The intent of this Change Proposal is to combine, review and if appropriate, amend the requirements of Section 35A, Section 35B, Schedule 15 and Schedule 20 to improve transparency and efficiency in the data published by DNOs","Northern Powergrid","2018-07-11",null,null,"Standard Change Proposal","DCP 325 Change Proposal ","Under Development - Definition Stage",null,"-","-","ElectraLink Ltd","Live","Distribution Connection Use of System Agreement","DCP 325","Reviewing the requirements of Sections 35A, 35B, Schedule 15 and Schedule 20.","The intent of this Change Proposal is to combine, review and if appropriate, amend the requirements of Section 35A, Section 35B, Schedule 15 and Schedule 20 to improve transparency and efficiency in the data published by DNOs","Northern Powergrid","2018-07-11",null,null,"Standard Change Proposal","DCP 325 Change Proposal ","Under Development - Definition Stage",null,"-","-","ElectraLink Ltd","Live","Distribution Connection Use of System Agreement","DCP 325","Reviewing the requirements of Sections 35A, 35B, Schedule 15 and Schedule 20.","The intent of this Change Proposal is to combine, review and if appropriate, amend the requirements of Section 35A, Section 35B, Schedule 15 and Schedule 20 to improve transparency and efficiency in the data published by DNOs","Northern Powergrid","2018-07-11",null,null,"Standard Change Proposal","DCP 325 Change Proposal ","Under Development - Definition Stage",null,"-","-","ElectraLink Ltd","Live","Distribution Connection Use of System Agreement","DCP 325","Reviewing the requirements of Sections 35A, 35B, Schedule 15 and Schedule 20.","The intent of this Change Proposal is to combine, review and if appropriate, amend the requirements of Section 35A, Section 35B, Schedule 15 and Schedule 20 to improve transparency and efficiency in the data published by DNOs","Northern Powergrid","2018-07-11",null,null,"Standard Change Proposal","DCP 325 Change Proposal ","Under Development - Definition Stage",null,"-","-","ElectraLink Ltd","Live","Distribution Connection Use of System Agreement","DCP 325","Reviewing the requirements of Sections 35A, 35B, Schedule 15 and Schedule 20.","The intent of this Change Proposal is to combine, review and if appropriate, amend the requirements of Section 35A, Section 35B, Schedule 15 and Schedule 20 to improve transparency and efficiency in the data published by DNOs","Northern Powergrid","2018-07-11",null,null,"Standard Change Proposal","DCP 325 Change Proposal ","Under Development - Definition Stage",null,"-","-","ElectraLink Ltd","Live","Distribution Connection Use of System Agreement","DCP 325","Reviewing the requirements of Sections 35A, 35B, Schedule 15 and Schedule 20.","The intent of this Change Proposal is to combine, review and if appropriate, amend the requirements of Section 35A, Section 35B, Schedule 15 and Schedule 20 to improve transparency and efficiency in the data published by DNOs","Northern Powergrid","2018-07-11",null,null,"Standard Change Proposal","DCP 325 Change Proposal ","Under Development - Definition Stage",null,"-","-","ElectraLink Ltd","Live","Distribution Connection Use of System Agreement","DCP 325","Reviewing the requirements of Sections 35A, 35B, Schedule 15 and Schedule 20.","The intent of this Change Proposal is to combine, review and if appropriate, amend the requirements of Section 35A, Section 35B, Schedule 15 and Schedule 20 to improve transparency and efficiency in the data published by DNOs","Northern Powergrid","2018-07-11",null,null,"Standard Change Proposal","DCP 325 Change Proposal ","Under Development - Definition Stage",null,"-","-","ElectraLink Ltd","Live","Distribution Connection Use of System Agreement","DCP 325","Reviewing the requirements of Sections 35A, 35B, Schedule 15 and Schedule 20.","The intent of this Change Proposal is to combine, review and if appropriate, amend the requirements of Section 35A, Section 35B, Schedule 15 and Schedule 20 to improve transparency and efficiency in the data published by DNOs","Northern Powergrid","2018-07-11",null,null,"Standard Change Proposal","DCP 325 Change Proposal ","Under Development - Definition Stage",null,"-","-","ElectraLink Ltd","Live","Distribution Connection Use of System Agreement","DCP 325","Reviewing the requirements of Sections 35A, 35B, Schedule 15 and Schedule 20.","The intent of this Change Proposal is to combine, review and if appropriate, amend the requirements of Section 35A, Section 35B, Schedule 15 and Schedule 20 to improve transparency and efficiency in the data published by DNOs","Northern Powergrid","2018-07-11",null,null,"Standard Change Proposal","DCP 325 Change Proposal ","Under Development - Definition Stage",null,"-","-","ElectraLink Ltd","Live","Distribution Connection Use of System Agreement","DCP 325","Reviewing the requirements of Sections 35A, 35B, Schedule 15 and Schedule 20.","The intent of this Change Proposal is to combine, review and if appropriate, amend the requirements of Section 35A, Section 35B, Schedule 15 and Schedule 20 to improve transparency and efficiency in the data published by DNOs","Northern Powergrid","2018-07-11",null,null,"Standard Change Proposal","DCP 325 Change Proposal ","Under Development - Definition Stage",null,"-","-","ElectraLink Ltd","Live","Distribution Connection Use of System Agreement","DCP 325","Reviewing the requirements of Sections 35A, 35B, Schedule 15 and Schedule 20.","The intent of this Change Proposal is to combine, review and if appropriate, amend the requirements of Section 35A, Section 35B, Schedule 15 and Schedule 20 to improve transparency and efficiency in the data published by DNOs","Northern Powergrid","2018-07-11",null,null,"Standard Change Proposal","DCP 325 Change Proposal ","Under Development - Definition Stage",null,"-","-","ElectraLink Ltd","Live","Distribution Connection Use of System Agreement","DCP 325","Reviewing the requirements of Sections 35A, 35B, Schedule 15 and Schedule 20.","The intent of this Change Proposal is to combine, review and if appropriate, amend the requirements of Section 35A, Section 35B, Schedule 15 and Schedule 20 to improve transparency and efficiency in the data published by DNOs","Northern Powergrid","2018-07-11",null,null,"Standard Change Proposal","DCP 325 Change Proposal ","Under Development - Definition Stage",null,"-","-","ElectraLink Ltd","Live","Distribution Connection Use of System Agreement","DCP 325","Reviewing the requirements of Sections 35A, 35B, Schedule 15 and Schedule 20.","The intent of this Change Proposal is to combine, review and if appropriate, amend the requirements of Section 35A, Section 35B, Schedule 15 and Schedule 20 to improve transparency and efficiency in the data published by DNOs","Northern Powergrid","2018-07-11",null,null,"Standard Change Proposal","DCP 325 Change Proposal ","Under Development - Definition Stage",null,"-","-","ElectraLink Ltd","Live","Distribution Connection Use of System Agreement","DCP 325","Reviewing the requirements of Sections 35A, 35B, Schedule 15 and Schedule 20.","The intent of this Change Proposal is to combine, review and if appropriate, amend the requirements of Section 35A, Section 35B, Schedule 15 and Schedule 20 to improve transparency and efficiency in the data published by DNOs","Northern Powergrid","2018-07-11",null,null,"Standard Change Proposal","DCP 325 Change Proposal ","Under Development - Definition Stage",null,"-","-","ElectraLink Ltd","Live","Distribution Connection Use of System Agreement","DCP 325","Reviewing the requirements of Sections 35A, 35B, Schedule 15 and Schedule 20.","The intent of this Change Proposal is to combine, review and if appropriate, amend the requirements of Section 35A, Section 35B, Schedule 15 and Schedule 20 to improve transparency and efficiency in the data published by DNOs","Northern Powergrid","2018-07-11",null,null,"Standard Change Proposal","DCP 325 Change Proposal ","Under Development - Definition Stage",null,"-","-","ElectraLink Ltd","Live","Distribution Connection Use of System Agreement","DCP 325","Reviewing the requirements of Sections 35A, 35B, Schedule 15 and Schedule 20.","The intent of this Change Proposal is to combine, review and if appropriate, amend the requirements of Section 35A, Section 35B, Schedule 15 and Schedule 20 to improve transparency and efficiency in the data published by DNOs","Northern Powergrid","2018-07-11",null,null,"Standard Change Proposal","DCP 325 Change Proposal ","Under Development - Definition Stage",null,"-","-","ElectraLink Ltd","Live","Distribution Connection Use of System Agreement","DCP 325","Reviewing the requirements of Sections 35A, 35B, Schedule 15 and Schedule 20.","The intent of this Change Proposal is to combine, review and if appropriate, amend the requirements of Section 35A, Section 35B, Schedule 15 and Schedule 20 to improve transparency and efficiency in the data published by DNOs","Northern Powergrid","2018-07-11",null,null,"Standard Change Proposal","DCP 325 Change Proposal ","Under Development - Definition Stage",null,"-","-","ElectraLink Ltd","Live","Distribution Connection Use of System Agreement","DCP 325","Reviewing the requirements of Sections 35A, 35B, Schedule 15 and Schedule 20.","The intent of this Change Proposal is to combine, review and if appropriate, amend the requirements of Section 35A, Section 35B, Schedule 15 and Schedule 20 to improve transparency and efficiency in the data published by DNOs","Northern Powergrid","2018-07-11",null,null,"Standard Change Proposal","DCP 325 Change Proposal ","Under Development - Definition Stage",null,"-","-","ElectraLink Ltd","Live","Distribution Connection Use of System Agreement","DCP 325","Reviewing the requirements of Sections 35A, 35B, Schedule 15 and Schedule 20.","The intent of this Change Proposal is to combine, review and if appropriate, amend the requirements of Section 35A, Section 35B, Schedule 15 and Schedule 20 to improve transparency and efficiency in the data published by DNOs","Northern Powergrid","2018-07-11",null,null,"Standard Change Proposal","DCP 325 Change Proposal ","Under Development - Definition Stage",null,"-","-","ElectraLink Ltd","Live","Distribution Connection Use of System Agreement","DCP 325","Reviewing the requirements of Sections 35A, 35B, Schedule 15 and Schedule 20.","The intent of this Change Proposal is to combine, review and if appropriate, amend the requirements of Section 35A, Section 35B, Schedule 15 and Schedule 20 to improve transparency and efficiency in the data published by DNOs","Northern Powergrid","2018-07-11",null,null,"Standard Change Proposal","DCP 325 Change Proposal ","Under Development - Definition Stage",null,"-","-","ElectraLink Ltd","Live","Distribution Connection Use of System Agreement","DCP 325","Reviewing the requirements of Sections 35A, 35B, Schedule 15 and Schedule 20.","The intent of this Change Proposal is to combine, review and if appropriate, amend the requirements of Section 35A, Section 35B, Schedule 15 and Schedule 20 to improve transparency and efficiency in the data published by DNOs","Northern Powergrid","2018-07-11",null,null,"Standard Change Proposal","DCP 325 Change Proposal ","Under Development - Definition Stage",null,"-","-","ElectraLink Ltd","Live","Distribution Connection Use of System Agreement","DCP 325","Reviewing the requirements of Sections 35A, 35B, Schedule 15 and Schedule 20.","The intent of this Change Proposal is to combine, review and if appropriate, amend the requirements of Section 35A, Section 35B, Schedule 15 and Schedule 20 to improve transparency and efficiency in the data published by DNOs","Northern Powergrid","2018-07-11",null,null,"Standard Change Proposal","DCP 325 Change Proposal ","Under Development - Definition Stage",null,"-","-","ElectraLink Ltd","Live","Distribution Connection Use of System Agreement","DCP 325","Reviewing the requirements of Sections 35A, 35B, Schedule 15 and Schedule 20.","The intent of this Change Proposal is to combine, review and if appropriate, amend the requirements of Section 35A, Section 35B, Schedule 15 and Schedule 20 to improve transparency and efficiency in the data published by DNOs","Northern Powergrid","2018-07-11",null,null,"Standard Change Proposal","DCP 325 Change Proposal ","Under Development - Definition Stage",null,"-","-","ElectraLink Ltd","Live","Distribution Connection Use of System Agreement","DCP 325","Reviewing the requirements of Sections 35A, 35B, Schedule 15 and Schedule 20.","The intent of this Change Proposal is to combine, review and if appropriate, amend the requirements of Section 35A, Section 35B, Schedule 15 and Schedule 20 to improve transparency and efficiency in the data published by DNOs","Northern Powergrid","2018-07-11",null,null,"Standard Change Proposal","DCP 325 Change Proposal ","Under Development - Definition Stage",null,"-","-","ElectraLink Ltd","Live","Distribution Connection Use of System Agreement","DCP 325","Reviewing the requirements of Sections 35A, 35B, Schedule 15 and Schedule 20.","The intent of this Change Proposal is to combine, review and if appropriate, amend the requirements of Section 35A, Section 35B, Schedule 15 and Schedule 20 to improve transparency and efficiency in the data published by DNOs","Northern Powergrid","2018-07-11",null,null,"Standard Change Proposal","DCP 325 Change Proposal ","Under Development - Definition Stage",null,"-","-","ElectraLink Ltd","Live","Distribution Connection Use of System Agreement","DCP 325","Reviewing the requirements of Sections 35A, 35B, Schedule 15 and Schedule 20.","The intent of this Change Proposal is to combine, review and if appropriate, amend the requirements of Section 35A, Section 35B, Schedule 15 and Schedule 20 to improve transparency and efficiency in the data published by DNOs","Northern Powergrid","2018-07-11",null,null,"Standard Change Proposal","DCP 325 Change Proposal ","Under Development - Definition Stage",null,"-","-","ElectraLink Ltd","Live","Distribution Connection Use of System Agreement","DCP 325","Reviewing the requirements of Sections 35A, 35B, Schedule 15 and Schedule 20.","The intent of this Change Proposal is to combine, review and if appropriate, amend the requirements of Section 35A, Section 35B, Schedule 15 and Schedule 20 to improve transparency and efficiency in the data published by DNOs","Northern Powergrid","2018-07-11",null,null,"Standard Change Proposal","DCP 325 Change Proposal ","Under Development - Definition Stage",null,"-","-","ElectraLink Ltd","Live","Distribution Connection Use of System Agreement","DCP 325","Reviewing the requirements of Sections 35A, 35B, Schedule 15 and Schedule 20.","The intent of this Change Proposal is to combine, review and if appropriate, amend the requirements of Section 35A, Section 35B, Schedule 15 and Schedule 20 to improve transparency and efficiency in the data published by DNOs","Northern Powergrid","2018-07-11",null,null,"Standard Change Proposal","DCP 325 Change Proposal ","Under Development - Definition Stage",null,"-","-","ElectraLink Ltd","Live","Distribution Connection Use of System Agreement","DCP 325","Reviewing the requirements of Sections 35A, 35B, Schedule 15 and Schedule 20.","The intent of this Change Proposal is to combine, review and if appropriate, amend the requirements of Section 35A, Section 35B, Schedule 15 and Schedule 20 to improve transparency and efficiency in the data published by DNOs","Northern Powergrid","2018-07-11",null,null,"Standard Change Proposal","DCP 325 Change Proposal ","Under Development - Definition Stage",null,"-","-","ElectraLink Ltd","Live","Distribution Connection Use of System Agreement","DCP 325","Reviewing the requirements of Sections 35A, 35B, Schedule 15 and Schedule 20.","The intent of this Change Proposal is to combine, review and if appropriate, amend the requirements of Section 35A, Section 35B, Schedule 15 and Schedule 20 to improve transparency and efficiency in the data published by DNOs","Northern Powergrid","2018-07-11",null,null,"Standard Change Proposal","DCP 325 Change Proposal ","Under Development - Definition Stage",null,"-","-","ElectraLink Ltd","Live","Distribution Connection Use of System Agreement","DCP 325","Reviewing the requirements of Sections 35A, 35B, Schedule 15 and Schedule 20.","The intent of this Change Proposal is to combine, review and if appropriate, amend the requirements of Section 35A, Section 35B, Schedule 15 and Schedule 20 to improve transparency and efficiency in the data published by DNOs","Northern Powergrid","2018-07-11",null,null,"Standard Change Proposal","DCP 325 Change Proposal ","Under Development - Definition Stage",null,"-","-","ElectraLink Ltd","Live","Distribution Connection Use of System Agreement","DCP 325","Reviewing the requirements of Sections 35A, 35B, Schedule 15 and Schedule 20.","The intent of this Change Proposal is to combine, review and if appropriate, amend the requirements of Section 35A, Section 35B, Schedule 15 and Schedule 20 to improve transparency and efficiency in the data published by DNOs","Northern Powergrid","2018-07-11",null,null,"Standard Change Proposal","DCP 325 Change Proposal ","Under Development - Definition Stage",null,"-","-","ElectraLink Ltd","Live","Distribution Connection Use of System Agreement","DCP 325","Reviewing the requirements of Sections 35A, 35B, Schedule 15 and Schedule 20.","The intent of this Change Proposal is to combine, review and if appropriate, amend the requirements of Section 35A, Section 35B, Schedule 15 and Schedule 20 to improve transparency and efficiency in the data published by DNOs","Northern Powergrid","2018-07-11",null,null,"Standard Change Proposal","DCP 325 Change Proposal ","Under Development - Definition Stage",null,"-","-","ElectraLink Ltd","Live","Distribution Connection Use of System Agreement","DCP 325","Reviewing the requirements of Sections 35A, 35B, Schedule 15 and Schedule 20.","The intent of this Change Proposal is to combine, review and if appropriate, amend the requirements of Section 35A, Section 35B, Schedule 15 and Schedule 20 to improve transparency and efficiency in the data published by DNOs","Northern Powergrid","2018-07-11",null,null,"Standard Change Proposal","DCP 325 Change Proposal ","Under Development - Definition Stage",null,"-","-","ElectraLink Ltd","Live","Distribution Connection Use of System Agreement","DCP 325","Reviewing the requirements of Sections 35A, 35B, Schedule 15 and Schedule 20.","The intent of this Change Proposal is to combine, review and if appropriate, amend the requirements of Section 35A, Section 35B, Schedule 15 and Schedule 20 to improve transparency and efficiency in the data published by DNOs","Northern Powergrid","2018-07-11",null,null,"Standard Change Proposal","DCP 325 Change Proposal ","Under Development - Definition Stage",null,"-","-","ElectraLink Ltd","Live","Distribution Connection Use of System Agreement","DCP 325","Reviewing the requirements of Sections 35A, 35B, Schedule 15 and Schedule 20.","The intent of this Change Proposal is to combine, review and if appropriate, amend the requirements of Section 35A, Section 35B, Schedule 15 and Schedule 20 to improve transparency and efficiency in the data published by DNOs","Northern Powergrid","2018-07-11",null,null,"Standard Change Proposal","DCP 325 Change Proposal ","Under Development - Definition Stage",null,"-","-","ElectraLink Ltd","Live","Distribution Connection Use of System Agreement","DCP 325","Reviewing the requirements of Sections 35A, 35B, Schedule 15 and Schedule 20.","The intent of this Change Proposal is to combine, review and if appropriate, amend the requirements of Section 35A, Section 35B, Schedule 15 and Schedule 20 to improve transparency and efficiency in the data published by DNOs","Northern Powergrid","2018-07-11",null,null,"Standard Change Proposal","DCP 325 Change Proposal ","Under Development - Definition Stage",null,"-","-","ElectraLink Ltd","Live","Distribution Connection Use of System Agreement","DCP 325","Reviewing the requirements of Sections 35A, 35B, Schedule 15 and Schedule 20.","The intent of this Change Proposal is to combine, review and if appropriate, amend the requirements of Section 35A, Section 35B, Schedule 15 and Schedule 20 to improve transparency and efficiency in the data published by DNOs","Northern Powergrid","2018-07-11",null,null,"Standard Change Proposal","DCP 325 Change Proposal ","Under Development - Definition Stage",null,"-","-","ElectraLink Ltd","Live","Distribution Connection Use of System Agreement","DCP 325","Reviewing the requirements of Sections 35A, 35B, Schedule 15 and Schedule 20.","The intent of this Change Proposal is to combine, review and if appropriate, amend the requirements of Section 35A, Section 35B, Schedule 15 and Schedule 20 to improve transparency and efficiency in the data published by DNOs","Northern Powergrid","2018-07-11",null,null,"Standard Change Proposal","DCP 325 Change Proposal ","Under Development - Definition Stage",null,"-","-","ElectraLink Ltd","Live","Distribution Connection Use of System Agreement","DCP 325","Reviewing the requirements of Sections 35A, 35B, Schedule 15 and Schedule 20.","The intent of this Change Proposal is to combine, review and if appropriate, amend the requirements of Section 35A, Section 35B, Schedule 15 and Schedule 20 to improve transparency and efficiency in the data published by DNOs","Northern Powergrid","2018-07-11",null,null,"Standard Change Proposal","DCP 325 Change Proposal ","Under Development - Definition Stage",null,"-","-","ElectraLink Ltd","Live","Distribution Connection Use of System Agreement","DCP 325","Reviewing the requirements of Sections 35A, 35B, Schedule 15 and Schedule 20.","The intent of this Change Proposal is to combine, review and if appropriate, amend the requirements of Section 35A, Section 35B, Schedule 15 and Schedule 20 to improve transparency and efficiency in the data published by DNOs","Northern Powergrid","2018-07-11",null,null,"Standard Change Proposal","DCP 325 Change Proposal ","Under Development - Definition Stage",null,"-","-","ElectraLink Ltd","Live","Distribution Connection Use of System Agreement","DCP 325","Reviewing the requirements of Sections 35A, 35B, Schedule 15 and Schedule 20.","The intent of this Change Proposal is to combine, review and if appropriate, amend the requirements of Section 35A, Section 35B, Schedule 15 and Schedule 20 to improve transparency and efficiency in the data published by DNOs","Northern Powergrid","2018-07-11",null,null,"Standard Change Proposal","DCP 325 Change Proposal ","Under Development - Definition Stage",null,"-","-","ElectraLink Ltd","Live","Distribution Connection Use of System Agreement","DCP 325","Reviewing the requirements of Sections 35A, 35B, Schedule 15 and Schedule 20.","The intent of this Change Proposal is to combine, review and if appropriate, amend the requirements of Section 35A, Section 35B, Schedule 15 and Schedule 20 to improve transparency and efficiency in the data published by DNOs","Northern Powergrid","2018-07-11",null,null,"Standard Change Proposal","DCP 325 Change Proposal ","Under Development - Definition Stage",null,"-","-","ElectraLink Ltd","Live","Distribution Connection Use of System Agreement","DCP 325","Reviewing the requirements of Sections 35A, 35B, Schedule 15 and Schedule 20.","The intent of this Change Proposal is to combine, review and if appropriate, amend the requirements of Section 35A, Section 35B, Schedule 15 and Schedule 20 to improve transparency and efficiency in the data published by DNOs","Northern Powergrid","2018-07-11",null,null,"Standard Change Proposal","DCP 325 Change Proposal ","Under Development - Definition Stage",null,"-","-","ElectraLink Ltd","Live","Distribution Connection Use of System Agreement","DCP 325","Reviewing the requirements of Sections 35A, 35B, Schedule 15 and Schedule 20.","The intent of this Change Proposal is to combine, review and if appropriate, amend the requirements of Section 35A, Section 35B, Schedule 15 and Schedule 20 to improve transparency and efficiency in the data published by DNOs","Northern Powergrid","2018-07-11",null,null,"Standard Change Proposal","DCP 325 Change Proposal ","Under Development - Definition Stage",null,"-","-","ElectraLink Ltd","Live","Distribution Connection Use of System Agreement","DCP 325","Reviewing the requirements of Sections 35A, 35B, Schedule 15 and Schedule 20.","The intent of this Change Proposal is to combine, review and if appropriate, amend the requirements of Section 35A, Section 35B, Schedule 15 and Schedule 20 to improve transparency and efficiency in the data published by DNOs","Northern Powergrid","2018-07-11",null,null,"Standard Change Proposal","DCP 325 Change Proposal ","Under Development - Definition Stage",null,"-","-","ElectraLink Ltd","Live","Distribution Connection Use of System Agreement","DCP 325","Reviewing the requirements of Sections 35A, 35B, Schedule 15 and Schedule 20.","The intent of this Change Proposal is to combine, review and if appropriate, amend the requirements of Section 35A, Section 35B, Schedule 15 and Schedule 20 to improve transparency and efficiency in the data published by DNOs","Northern Powergrid","2018-07-11",null,null,"Standard Change Proposal","DCP 325 Change Proposal ","Under Development - Definition Stage",null,"-","-","ElectraLink Ltd","Live","Distribution Connection Use of System Agreement","DCP 325","Reviewing the requirements of Sections 35A, 35B, Schedule 15 and Schedule 20.","The intent of this Change Proposal is to combine, review and if appropriate, amend the requirements of Section 35A, Section 35B, Schedule 15 and Schedule 20 to improve transparency and efficiency in the data published by DNOs","Northern Powergrid","2018-07-11",null,null,"Standard Change Proposal","DCP 325 Change Proposal ","Under Development - Definition Stage",null,"-","-","ElectraLink Ltd","Live","Distribution Connection Use of System Agreement","DCP 325","Reviewing the requirements of Sections 35A, 35B, Schedule 15 and Schedule 20.","The intent of this Change Proposal is to combine, review and if appropriate, amend the requirements of Section 35A, Section 35B, Schedule 15 and Schedule 20 to improve transparency and efficiency in the data published by DNOs","Northern Powergrid","2018-07-11",null,null,"Standard Change Proposal","DCP 325 Change Proposal ","Under Development - Definition Stage",null,"-","-","ElectraLink Ltd","Live","Distribution Connection Use of System Agreement","DCP 325","Reviewing the requirements of Sections 35A, 35B, Schedule 15 and Schedule 20.","The intent of this Change Proposal is to combine, review and if appropriate, amend the requirements of Section 35A, Section 35B, Schedule 15 and Schedule 20 to improve transparency and efficiency in the data published by DNOs","Northern Powergrid","2018-07-11",null,null,"Standard Change Proposal","DCP 325 Change Proposal ","Under Development - Definition Stage",null,"-","-","ElectraLink Ltd","Live","Distribution Connection Use of System Agreement","DCP 325","Reviewing the requirements of Sections 35A, 35B, Schedule 15 and Schedule 20.","The intent of this Change Proposal is to combine, review and if appropriate, amend the requirements of Section 35A, Section 35B, Schedule 15 and Schedule 20 to improve transparency and efficiency in the data published by DNOs","Northern Powergrid","2018-07-11",null,null,"Standard Change Proposal","DCP 325 Change Proposal ","Under Development - Definition Stage",null,"-","-","ElectraLink Ltd","Live","Distribution Connection Use of System Agreement","DCP 325","Reviewing the requirements of Sections 35A, 35B, Schedule 15 and Schedule 20.","The intent of this Change Proposal is to combine, review and if appropriate, amend the requirements of Section 35A, Section 35B, Schedule 15 and Schedule 20 to improve transparency and efficiency in the data published by DNOs","Northern Powergrid","2018-07-11",null,null,"Standard Change Proposal","DCP 325 Change Proposal ","Under Development - Definition Stage",null,"-","-","ElectraLink Ltd","Live","Distribution Connection Use of System Agreement","DCP 325","Reviewing the requirements of Sections 35A, 35B, Schedule 15 and Schedule 20.","The intent of this Change Proposal is to combine, review and if appropriate, amend the requirements of Section 35A, Section 35B, Schedule 15 and Schedule 20 to improve transparency and efficiency in the data published by DNOs","Northern Powergrid","2018-07-11",null,null,"Standard Change Proposal","DCP 325 Change Proposal ","Under Development - Definition Stage",null,"-","-","ElectraLink Ltd","Live","Distribution Connection Use of System Agreement","DCP 325","Reviewing the requirements of Sections 35A, 35B, Schedule 15 and Schedule 20.","The intent of this Change Proposal is to combine, review and if appropriate, amend the requirements of Section 35A, Section 35B, Schedule 15 and Schedule 20 to improve transparency and efficiency in the data published by DNOs","Northern Powergrid","2018-07-11",null,null,"Standard Change Proposal","DCP 325 Change Proposal ","Under Development - Definition Stage",null,"-","-","ElectraLink Ltd","Live","Distribution Connection Use of System Agreement","DCP 325","Reviewing the requirements of Sections 35A, 35B, Schedule 15 and Schedule 20.","The intent of this Change Proposal is to combine, review and if appropriate, amend the requirements of Section 35A, Section 35B, Schedule 15 and Schedule 20 to improve transparency and efficiency in the data published by DNOs","Northern Powergrid","2018-07-11",null,null,"Standard Change Proposal","DCP 325 Change Proposal ","Under Development - Definition Stage",null,"-","-","ElectraLink Ltd","Live","Distribution Connection Use of System Agreement","DCP 325","Reviewing the requirements of Sections 35A, 35B, Schedule 15 and Schedule 20.","The intent of this Change Proposal is to combine, review and if appropriate, amend the requirements of Section 35A, Section 35B, Schedule 15 and Schedule 20 to improve transparency and efficiency in the data published by DNOs","Northern Powergrid","2018-07-11",null,null,"Standard Change Proposal","DCP 325 Change Proposal ","Under Development - Definition Stage",null,"-","-","ElectraLink Ltd","Live","Distribution Connection Use of System Agreement","DCP 325","Reviewing the requirements of Sections 35A, 35B, Schedule 15 and Schedule 20.","The intent of this Change Proposal is to combine, review and if appropriate, amend the requirements of Section 35A, Section 35B, Schedule 15 and Schedule 20 to improve transparency and efficiency in the data published by DNOs","Northern Powergrid","2018-07-11",null,null,"Standard Change Proposal","DCP 325 Change Proposal ","Under Development - Definition Stage",null,"-","-","ElectraLink Ltd","Live","Distribution Connection Use of System Agreement","DCP 325","Reviewing the requirements of Sections 35A, 35B, Schedule 15 and Schedule 20.","The intent of this Change Proposal is to combine, review and if appropriate, amend the requirements of Section 35A, Section 35B, Schedule 15 and Schedule 20 to improve transparency and efficiency in the data published by DNOs","Northern Powergrid","2018-07-11",null,null,"Standard Change Proposal","DCP 325 Change Proposal ","Under Development - Definition Stage",null,"-","-","ElectraLink Ltd","Live","Distribution Connection Use of System Agreement","DCP 325","Reviewing the requirements of Sections 35A, 35B, Schedule 15 and Schedule 20.","The intent of this Change Proposal is to combine, review and if appropriate, amend the requirements of Section 35A, Section 35B, Schedule 15 and Schedule 20 to improve transparency and efficiency in the data published by DNOs","Northern Powergrid","2018-07-11",null,null,"Standard Change Proposal","DCP 325 Change Proposal ","Under Development - Definition Stage",null,"-","-","ElectraLink Ltd","Live","Distribution Connection Use of System Agreement","DCP 325","Reviewing the requirements of Sections 35A, 35B, Schedule 15 and Schedule 20.","The intent of this Change Proposal is to combine, review and if appropriate, amend the requirements of Section 35A, Section 35B, Schedule 15 and Schedule 20 to improve transparency and efficiency in the data published by DNOs","Northern Powergrid","2018-07-11",null,null,"Standard Change Proposal","DCP 325 Change Proposal ","Under Development - Definition Stage",null,"-","-","ElectraLink Ltd","Live","Distribution Connection Use of System Agreement","DCP 325","Reviewing the requirements of Sections 35A, 35B, Schedule 15 and Schedule 20.","The intent of this Change Proposal is to combine, review and if appropriate, amend the requirements of Section 35A, Section 35B, Schedule 15 and Schedule 20 to improve transparency and efficiency in the data published by DNOs","Northern Powergrid","2018-07-11",null,null,"Standard Change Proposal","DCP 325 Change Proposal ","Under Development - Definition Stage",null,"-","-","ElectraLink Ltd","Live","Distribution Connection Use of System Agreement","DCP 325","Reviewing the requirements of Sections 35A, 35B, Schedule 15 and Schedule 20.","The intent of this Change Proposal is to combine, review and if appropriate, amend the requirements of Section 35A, Section 35B, Schedule 15 and Schedule 20 to improve transparency and efficiency in the data published by DNOs","Northern Powergrid","2018-07-11",null,null,"Standard Change Proposal","DCP 325 Change Proposal ","Under Development - Definition Stage",null,"-","-","ElectraLink Ltd","Live","Distribution Connection Use of System Agreement","DCP 325","Reviewing the requirements of Sections 35A, 35B, Schedule 15 and Schedule 20.","The intent of this Change Proposal is to combine, review and if appropriate, amend the requirements of Section 35A, Section 35B, Schedule 15 and Schedule 20 to improve transparency and efficiency in the data published by DNOs","Northern Powergrid","2018-07-11",null,null,"Standard Change Proposal","DCP 325 Change Proposal ","Under Development - Definition Stage",null,"-","-","ElectraLink Ltd","Live","Distribution Connection Use of System Agreement","DCP 325","Reviewing the requirements of Sections 35A, 35B, Schedule 15 and Schedule 20.","The intent of this Change Proposal is to combine, review and if appropriate, amend the requirements of Section 35A, Section 35B, Schedule 15 and Schedule 20 to improve transparency and efficiency in the data published by DNOs","Northern Powergrid","2018-07-11",null,null,"Standard Change Proposal","DCP 325 Change Proposal ","Under Development - Definition Stage",null,"-","-","ElectraLink Ltd","Live","Distribution Connection Use of System Agreement","DCP 325","Reviewing the requirements of Sections 35A, 35B, Schedule 15 and Schedule 20.","The intent of this Change Proposal is to combine, review and if appropriate, amend the requirements of Section 35A, Section 35B, Schedule 15 and Schedule 20 to improve transparency and efficiency in the data published by DNOs","Northern Powergrid","2018-07-11",null,null,"Standard Change Proposal","DCP 325 Change Proposal ","Under Development - Definition Stage",null,"-","-","ElectraLink Ltd","Live","Distribution Connection Use of System Agreement","DCP 325","Reviewing the requirements of Sections 35A, 35B, Schedule 15 and Schedule 20.","The intent of this Change Proposal is to combine, review and if appropriate, amend the requirements of Section 35A, Section 35B, Schedule 15 and Schedule 20 to improve transparency and efficiency in the data published by DNOs","Northern Powergrid","2018-07-11",null,null,"Standard Change Proposal","DCP 325 Change Proposal ","Under Development - Definition Stage",null,"-","-","ElectraLink Ltd","Live","Distribution Connection Use of System Agreement","DCP 325","Reviewing the requirements of Sections 35A, 35B, Schedule 15 and Schedule 20.","The intent of this Change Proposal is to combine, review and if appropriate, amend the requirements of Section 35A, Section 35B, Schedule 15 and Schedule 20 to improve transparency and efficiency in the data published by DNOs","Northern Powergrid","2018-07-11",null,null,"Standard Change Proposal","DCP 325 Change Proposal ","Under Development - Definition Stage",null,"-","-","ElectraLink Ltd","Live","Distribution Connection Use of System Agreement","DCP 325","Reviewing the requirements of Sections 35A, 35B, Schedule 15 and Schedule 20.","The intent of this Change Proposal is to combine, review and if appropriate, amend the requirements of Section 35A, Section 35B, Schedule 15 and Schedule 20 to improve transparency and efficiency in the data published by DNOs","Northern Powergrid","2018-07-11",null,null,"Standard Change Proposal","DCP 325 Change Proposal ","Under Development - Definition Stage",null,"-","-","ElectraLink Ltd","Live","Distribution Connection Use of System Agreement","DCP 325","Reviewing the requirements of Sections 35A, 35B, Schedule 15 and Schedule 20.","The intent of this Change Proposal is to combine, review and if appropriate, amend the requirements of Section 35A, Section 35B, Schedule 15 and Schedule 20 to improve transparency and efficiency in the data published by DNOs","Northern Powergrid","2018-07-11",null,null,"Standard Change Proposal","DCP 325 Change Proposal ","Under Development - Definition Stage",null,"-","-","ElectraLink Ltd","Live","Distribution Connection Use of System Agreement","DCP 325","Reviewing the requirements of Sections 35A, 35B, Schedule 15 and Schedule 20.","The intent of this Change Proposal is to combine, review and if appropriate, amend the requirements of Section 35A, Section 35B, Schedule 15 and Schedule 20 to improve transparency and efficiency in the data published by DNOs","Northern Powergrid","2018-07-11",null,null,"Standard Change Proposal","DCP 325 Change Proposal ","Under Development - Definition Stage",null,"-","-","ElectraLink Ltd","Live","Distribution Connection Use of System Agreement","DCP 325","Reviewing the requirements of Sections 35A, 35B, Schedule 15 and Schedule 20.","The intent of this Change Proposal is to combine, review and if appropriate, amend the requirements of Section 35A, Section 35B, Schedule 15 and Schedule 20 to improve transparency and efficiency in the data published by DNOs","Northern Powergrid","2018-07-11",null,null,"Standard Change Proposal","DCP 325 Change Proposal ","Under Development - Definition Stage",null,"-","-","ElectraLink Ltd","Live","Distribution Connection Use of System Agreement","DCP 325","Reviewing the requirements of Sections 35A, 35B, Schedule 15 and Schedule 20.","The intent of this Change Proposal is to combine, review and if appropriate, amend the requirements of Section 35A, Section 35B, Schedule 15 and Schedule 20 to improve transparency and efficiency in the data published by DNOs","Northern Powergrid","2018-07-11",null,null,"Standard Change Proposal","DCP 325 Change Proposal ","Under Development - Definition Stage",null,"-","-","ElectraLink Ltd","Live","Distribution Connection Use of System Agreement","DCP 325","Reviewing the requirements of Sections 35A, 35B, Schedule 15 and Schedule 20.","The intent of this Change Proposal is to combine, review and if appropriate, amend the requirements of Section 35A, Section 35B, Schedule 15 and Schedule 20 to improve transparency and efficiency in the data published by DNOs","Northern Powergrid","2018-07-11",null,null,"Standard Change Proposal","DCP 325 Change Proposal ","Under Development - Definition Stage",null,"-","-","ElectraLink Ltd","Live","Distribution Connection Use of System Agreement","DCP 325","Reviewing the requirements of Sections 35A, 35B, Schedule 15 and Schedule 20.","The intent of this Change Proposal is to combine, review and if appropriate, amend the requirements of Section 35A, Section 35B, Schedule 15 and Schedule 20 to improve transparency and efficiency in the data published by DNOs","Northern Powergrid","2018-07-11",null,null,"Standard Change Proposal","DCP 325 Change Proposal ","Under Development - Definition Stage",null,"-","-","ElectraLink Ltd","Live","Distribution Connection Use of System Agreement","DCP 325","Reviewing the requirements of Sections 35A, 35B, Schedule 15 and Schedule 20.","The intent of this Change Proposal is to combine, review and if appropriate, amend the requirements of Section 35A, Section 35B, Schedule 15 and Schedule 20 to improve transparency and efficiency in the data published by DNOs","Northern Powergrid","2018-07-11",null,null,"Standard Change Proposal","DCP 325 Change Proposal ","Under Development - Definition Stage",null,"-","-","ElectraLink Ltd","Live","Distribution Connection Use of System Agreement","DCP 325","Reviewing the requirements of Sections 35A, 35B, Schedule 15 and Schedule 20.","The intent of this Change Proposal is to combine, review and if appropriate, amend the requirements of Section 35A, Section 35B, Schedule 15 and Schedule 20 to improve transparency and efficiency in the data published by DNOs","Northern Powergrid","2018-07-11",null,null,"Standard Change Proposal","DCP 325 Change Proposal ","Under Development - Definition Stage",null,"-","-","ElectraLink Ltd","Live","Distribution Connection Use of System Agreement","DCP 325","Reviewing the requirements of Sections 35A, 35B, Schedule 15 and Schedule 20.","The intent of this Change Proposal is to combine, review and if appropriate, amend the requirements of Section 35A, Section 35B, Schedule 15 and Schedule 20 to improve transparency and efficiency in the data published by DNOs","Northern Powergrid","2018-07-11",null,null,"Standard Change Proposal","DCP 325 Change Proposal ","Under Development - Definition Stage",null,"-","-","ElectraLink Ltd","Live","Distribution Connection Use of System Agreement","DCP 325","Reviewing the requirements of Sections 35A, 35B, Schedule 15 and Schedule 20.","The intent of this Change Proposal is to combine, review and if appropriate, amend the requirements of Section 35A, Section 35B, Schedule 15 and Schedule 20 to improve transparency and efficiency in the data published by DNOs","Northern Powergrid","2018-07-11",null,null,"Standard Change Proposal","DCP 325 Change Proposal ","Under Development - Definition Stage",null,"-","-","ElectraLink Ltd","Live","Distribution Connection Use of System Agreement","DCP 325","Reviewing the requirements of Sections 35A, 35B, Schedule 15 and Schedule 20.","The intent of this Change Proposal is to combine, review and if appropriate, amend the requirements of Section 35A, Section 35B, Schedule 15 and Schedule 20 to improve transparency and efficiency in the data published by DNOs","Northern Powergrid","2018-07-11",null,null,"Standard Change Proposal","DCP 325 Change Proposal ","Under Development - Definition Stage",null,"-","-","ElectraLink Ltd","Live","Distribution Connection Use of System Agreement","DCP 325","Reviewing the requirements of Sections 35A, 35B, Schedule 15 and Schedule 20.","The intent of this Change Proposal is to combine, review and if appropriate, amend the requirements of Section 35A, Section 35B, Schedule 15 and Schedule 20 to improve transparency and efficiency in the data published by DNOs","Northern Powergrid","2018-07-11",null,null,"Standard Change Proposal","DCP 325 Change Proposal ","Under Development - Definition Stage",null,"-","-","ElectraLink Ltd","Live","Distribution Connection Use of System Agreement","DCP 325","Reviewing the requirements of Sections 35A, 35B, Schedule 15 and Schedule 20.","The intent of this Change Proposal is to combine, review and if appropriate, amend the requirements of Section 35A, Section 35B, Schedule 15 and Schedule 20 to improve transparency and efficiency in the data published by DNOs","Northern Powergrid","2018-07-11",null,null,"Standard Change Proposal","DCP 325 Change Proposal ","Under Development - Definition Stage",null,"-","-","ElectraLink Ltd","Live","Distribution Connection Use of System Agreement","DCP 325","Reviewing the requirements of Sections 35A, 35B, Schedule 15 and Schedule 20.","The intent of this Change Proposal is to combine, review and if appropriate, amend the requirements of Section 35A, Section 35B, Schedule 15 and Schedule 20 to improve transparency and efficiency in the data published by DNOs","Northern Powergrid","2018-07-11",null,null,"Standard Change Proposal","DCP 325 Change Proposal ","Under Development - Definition Stage",null,"-","-","ElectraLink Ltd","Live","Distribution Connection Use of System Agreement","DCP 325","Reviewing the requirements of Sections 35A, 35B, Schedule 15 and Schedule 20.","The intent of this Change Proposal is to combine, review and if appropriate, amend the requirements of Section 35A, Section 35B, Schedule 15 and Schedule 20 to improve transparency and efficiency in the data published by DNOs","Northern Powergrid","2018-07-11",null,null,"Standard Change Proposal","DCP 325 Change Proposal ","Under Development - Definition Stage",null,"-","-","ElectraLink Ltd","Live","Distribution Connection Use of System Agreement","DCP 325","Reviewing the requirements of Sections 35A, 35B, Schedule 15 and Schedule 20.","The intent of this Change Proposal is to combine, review and if appropriate, amend the requirements of Section 35A, Section 35B, Schedule 15 and Schedule 20 to improve transparency and efficiency in the data published by DNOs","Northern Powergrid","2018-07-11",null,null,"Standard Change Proposal","DCP 325 Change Proposal ","Under Development - Definition Stage",null,"-","-","ElectraLink Ltd","Live","Distribution Connection Use of System Agreement","DCP 325","Reviewing the requirements of Sections 35A, 35B, Schedule 15 and Schedule 20.","The intent of this Change Proposal is to combine, review and if appropriate, amend the requirements of Section 35A, Section 35B, Schedule 15 and Schedule 20 to improve transparency and efficiency in the data published by DNOs","Northern Powergrid","2018-07-11",null,null,"Standard Change Proposal","DCP 325 Change Proposal ","Under Development - Definition Stage",null,"-","-","ElectraLink Ltd","Live","Distribution Connection Use of System Agreement","DCP 325","Reviewing the requirements of Sections 35A, 35B, Schedule 15 and Schedule 20.","The intent of this Change Proposal is to combine, review and if appropriate, amend the requirements of Section 35A, Section 35B, Schedule 15 and Schedule 20 to improve transparency and efficiency in the data published by DNOs","Northern Powergrid","2018-07-11",null,null,"Standard Change Proposal","DCP 325 Change Proposal ","Under Development - Definition Stage",null,"-","-","ElectraLink Ltd","Live","Distribution Connection Use of System Agreement","DCP 325","Reviewing the requirements of Sections 35A, 35B, Schedule 15 and Schedule 20.","The intent of this Change Proposal is to combine, review and if appropriate, amend the requirements of Section 35A, Section 35B, Schedule 15 and Schedule 20 to improve transparency and efficiency in the data published by DNOs","Northern Powergrid","2018-07-11",null,null,"Standard Change Proposal","DCP 325 Change Proposal ","Under Development - Definition Stage",null,"-","-","ElectraLink Ltd","Live","Distribution Connection Use of System Agreement","DCP 325","Reviewing the requirements of Sections 35A, 35B, Schedule 15 and Schedule 20.","The intent of this Change Proposal is to combine, review and if appropriate, amend the requirements of Section 35A, Section 35B, Schedule 15 and Schedule 20 to improve transparency and efficiency in the data published by DNOs","Northern Powergrid","2018-07-11",null,null,"Standard Change Proposal","DCP 325 Change Proposal ","Under Development - Definition Stage",null,"-","-","ElectraLink Ltd","Live","Distribution Connection Use of System Agreement","DCP 325","Reviewing the requirements of Sections 35A, 35B, Schedule 15 and Schedule 20.","The intent of this Change Proposal is to combine, review and if appropriate, amend the requirements of Section 35A, Section 35B, Schedule 15 and Schedule 20 to improve transparency and efficiency in the data published by DNOs","Northern Powergrid","2018-07-11",null,null,"Standard Change Proposal","DCP 325 Change Proposal ","Under Development - Definition Stage",null,"-","-","ElectraLink Ltd","Live","Distribution Connection Use of System Agreement","DCP 325","Reviewing the requirements of Sections 35A, 35B, Schedule 15 and Schedule 20.","The intent of this Change Proposal is to combine, review and if appropriate, amend the requirements of Section 35A, Section 35B, Schedule 15 and Schedule 20 to improve transparency and efficiency in the data published by DNOs","Northern Powergrid","2018-07-11",null,null,"Standard Change Proposal","DCP 325 Change Proposal ","Under Development - Definition Stage",null,"-","-","ElectraLink Ltd","Live","Distribution Connection Use of System Agreement","DCP 325","Reviewing the requirements of Sections 35A, 35B, Schedule 15 and Schedule 20.","The intent of this Change Proposal is to combine, review and if appropriate, amend the requirements of Section 35A, Section 35B, Schedule 15 and Schedule 20 to improve transparency and efficiency in the data published by DNOs","Northern Powergrid","2018-07-11",null,null,"Standard Change Proposal","DCP 325 Change Proposal ","Under Development - Definition Stage",null,"-","-","ElectraLink Ltd","Live","Distribution Connection Use of System Agreement","DCP 325","Reviewing the requirements of Sections 35A, 35B, Schedule 15 and Schedule 20.","The intent of this Change Proposal is to combine, review and if appropriate, amend the requirements of Section 35A, Section 35B, Schedule 15 and Schedule 20 to improve transparency and efficiency in the data published by DNOs","Northern Powergrid","2018-07-11",null,null,"Standard Change Proposal","DCP 325 Change Proposal ","Under Development - Definition Stage",null,"-","-","ElectraLink Ltd","Live","Distribution Connection Use of System Agreement","DCP 325","Reviewing the requirements of Sections 35A, 35B, Schedule 15 and Schedule 20.","The intent of this Change Proposal is to combine, review and if appropriate, amend the requirements of Section 35A, Section 35B, Schedule 15 and Schedule 20 to improve transparency and efficiency in the data published by DNOs","Northern Powergrid","2018-07-11",null,null,"Standard Change Proposal","DCP 325 Change Proposal ","Under Development - Definition Stage",null,"-","-","ElectraLink Ltd","Live","Distribution Connection Use of System Agreement","DCP 325","Reviewing the requirements of Sections 35A, 35B, Schedule 15 and Schedule 20.","The intent of this Change Proposal is to combine, review and if appropriate, amend the requirements of Section 35A, Section 35B, Schedule 15 and Schedule 20 to improve transparency and efficiency in the data published by DNOs","Northern Powergrid","2018-07-11",null,null,"Standard Change Proposal","DCP 325 Change Proposal ","Under Development - Definition Stage",null,"-","-","ElectraLink Ltd","Live","Distribution Connection Use of System Agreement","DCP 325","Reviewing the requirements of Sections 35A, 35B, Schedule 15 and Schedule 20.","The intent of this Change Proposal is to combine, review and if appropriate, amend the requirements of Section 35A, Section 35B, Schedule 15 and Schedule 20 to improve transparency and efficiency in the data published by DNOs","Northern Powergrid","2018-07-11",null,null,"Standard Change Proposal","DCP 325 Change Proposal ","Under Development - Definition Stage",null,"-","-","ElectraLink Ltd","Live","Distribution Connection Use of System Agreement","DCP 325","Reviewing the requirements of Sections 35A, 35B, Schedule 15 and Schedule 20.","The intent of this Change Proposal is to combine, review and if appropriate, amend the requirements of Section 35A, Section 35B, Schedule 15 and Schedule 20 to improve transparency and efficiency in the data published by DNOs","Northern Powergrid","2018-07-11",null,null,"Standard Change Proposal","DCP 325 Change Proposal ","Under Development - Definition Stage",null,"-","-","ElectraLink Ltd","Live","Distribution Connection Use of System Agreement","DCP 325","Reviewing the requirements of Sections 35A, 35B, Schedule 15 and Schedule 20.","The intent of this Change Proposal is to combine, review and if appropriate, amend the requirements of Section 35A, Section 35B, Schedule 15 and Schedule 20 to improve transparency and efficiency in the data published by DNOs","Northern Powergrid","2018-07-11",null,null,"Standard Change Proposal","DCP 325 Change Proposal ","Under Development - Definition Stage",null,"-","-","ElectraLink Ltd","Live","Distribution Connection Use of System Agreement","DCP 325","Reviewing the requirements of Sections 35A, 35B, Schedule 15 and Schedule 20.","The intent of this Change Proposal is to combine, review and if appropriate, amend the requirements of Section 35A, Section 35B, Schedule 15 and Schedule 20 to improve transparency and efficiency in the data published by DNOs","Northern Powergrid","2018-07-11",null,null,"Standard Change Proposal","DCP 325 Change Proposal ","Under Development - Definition Stage",null,"-","-","ElectraLink Ltd","Live","Distribution Connection Use of System Agreement","DCP 325","Reviewing the requirements of Sections 35A, 35B, Schedule 15 and Schedule 20.","The intent of this Change Proposal is to combine, review and if appropriate, amend the requirements of Section 35A, Section 35B, Schedule 15 and Schedule 20 to improve transparency and efficiency in the data published by DNOs","Northern Powergrid","2018-07-11",null,null,"Standard Change Proposal","DCP 325 Change Proposal ","Under Development - Definition Stage",null,"-","-","ElectraLink Ltd","Live","Distribution Connection Use of System Agreement","DCP 325","Reviewing the requirements of Sections 35A, 35B, Schedule 15 and Schedule 20.","The intent of this Change Proposal is to combine, review and if appropriate, amend the requirements of Section 35A, Section 35B, Schedule 15 and Schedule 20 to improve transparency and efficiency in the data published by DNOs","Northern Powergrid","2018-07-11",null,null,"Standard Change Proposal","DCP 325 Change Proposal ","Under Development - Definition Stage",null,"-","-","ElectraLink Ltd","Live","Distribution Connection Use of System Agreement","DCP 325","Reviewing the requirements of Sections 35A, 35B, Schedule 15 and Schedule 20.","The intent of this Change Proposal is to combine, review and if appropriate, amend the requirements of Section 35A, Section 35B, Schedule 15 and Schedule 20 to improve transparency and efficiency in the data published by DNOs","Northern Powergrid","2018-07-11",null,null,"Standard Change Proposal","DCP 325 Change Proposal ","Under Development - Definition Stage",null,"-","-","ElectraLink Ltd","Live","Distribution Connection Use of System Agreement","DCP 325","Reviewing the requirements of Sections 35A, 35B, Schedule 15 and Schedule 20.","The intent of this Change Proposal is to combine, review and if appropriate, amend the requirements of Section 35A, Section 35B, Schedule 15 and Schedule 20 to improve transparency and efficiency in the data published by DNOs","Northern Powergrid","2018-07-11",null,null,"Standard Change Proposal","DCP 325 Change Proposal ","Under Development - Definition Stage",null,"-","-","ElectraLink Ltd","Live","Distribution Connection Use of System Agreement","DCP 325","Reviewing the requirements of Sections 35A, 35B, Schedule 15 and Schedule 20.","The intent of this Change Proposal is to combine, review and if appropriate, amend the requirements of Section 35A, Section 35B, Schedule 15 and Schedule 20 to improve transparency and efficiency in the data published by DNOs","Northern Powergrid","2018-07-11",null,null,"Standard Change Proposal","DCP 325 Change Proposal ","Under Development - Definition Stage",null,"-","-","ElectraLink Ltd","Live","Distribution Connection Use of System Agreement","DCP 325","Reviewing the requirements of Sections 35A, 35B, Schedule 15 and Schedule 20.","The intent of this Change Proposal is to combine, review and if appropriate, amend the requirements of Section 35A, Section 35B, Schedule 15 and Schedule 20 to improve transparency and efficiency in the data published by DNOs","Northern Powergrid","2018-07-11",null,null,"Standard Change Proposal","DCP 325 Change Proposal ","Under Development - Definition Stage",null,"-","-","ElectraLink Ltd","Live","Distribution Connection Use of System Agreement","DCP 325","Reviewing the requirements of Sections 35A, 35B, Schedule 15 and Schedule 20.","The intent of this Change Proposal is to combine, review and if appropriate, amend the requirements of Section 35A, Section 35B, Schedule 15 and Schedule 20 to improve transparency and efficiency in the data published by DNOs","Northern Powergrid","2018-07-11",null,null,"Standard Change Proposal","DCP 325 Change Proposal ","Under Development - Definition Stage",null,"-","-","ElectraLink Ltd","Live","Distribution Connection Use of System Agreement","DCP 325","Reviewing the requirements of Sections 35A, 35B, Schedule 15 and Schedule 20.","The intent of this Change Proposal is to combine, review and if appropriate, amend the requirements of Section 35A, Section 35B, Schedule 15 and Schedule 20 to improve transparency and efficiency in the data published by DNOs","Northern Powergrid","2018-07-11",null,null,"Standard Change Proposal","DCP 325 Change Proposal ","Under Development - Definition Stage",null,"-","-","ElectraLink Ltd","Live","Distribution Connection Use of System Agreement","DCP 325","Reviewing the requirements of Sections 35A, 35B, Schedule 15 and Schedule 20.","The intent of this Change Proposal is to combine, review and if appropriate, amend the requirements of Section 35A, Section 35B, Schedule 15 and Schedule 20 to improve transparency and efficiency in the data published by DNOs","Northern Powergrid","2018-07-11",null,null,"Standard Change Proposal","DCP 325 Change Proposal ","Under Development - Definition Stage",null,"-","-","ElectraLink Ltd","Live","Distribution Connection Use of System Agreement","DCP 325","Reviewing the requirements of Sections 35A, 35B, Schedule 15 and Schedule 20.","The intent of this Change Proposal is to combine, review and if appropriate, amend the requirements of Section 35A, Section 35B, Schedule 15 and Schedule 20 to improve transparency and efficiency in the data published by DNOs","Northern Powergrid","2018-07-11",null,null,"Standard Change Proposal","DCP 325 Change Proposal ","Under Development - Definition Stage",null,"-","-","ElectraLink Ltd","Live","Distribution Connection Use of System Agreement","DCP 325","Reviewing the requirements of Sections 35A, 35B, Schedule 15 and Schedule 20.","The intent of this Change Proposal is to combine, review and if appropriate, amend the requirements of Section 35A, Section 35B, Schedule 15 and Schedule 20 to improve transparency and efficiency in the data published by DNOs","Northern Powergrid","2018-07-11",null,null,"Standard Change Proposal","DCP 325 Change Proposal ","Under Development - Definition Stage",null,"-","-","ElectraLink Ltd","Live","Distribution Connection Use of System Agreement","DCP 325","Reviewing the requirements of Sections 35A, 35B, Schedule 15 and Schedule 20.","The intent of this Change Proposal is to combine, review and if appropriate, amend the requirements of Section 35A, Section 35B, Schedule 15 and Schedule 20 to improve transparency and efficiency in the data published by DNOs","Northern Powergrid","2018-07-11",null,null,"Standard Change Proposal","DCP 325 Change Proposal ","Under Development - Definition Stage",null,"-","-","ElectraLink Ltd","Live","Distribution Connection Use of System Agreement","DCP 325","Reviewing the requirements of Sections 35A, 35B, Schedule 15 and Schedule 20.","The intent of this Change Proposal is to combine, review and if appropriate, amend the requirements of Section 35A, Section 35B, Schedule 15 and Schedule 20 to improve transparency and efficiency in the data published by DNOs","Northern Powergrid","2018-07-11",null,null,"Standard Change Proposal","DCP 325 Change Proposal ","Under Development - Definition Stage",null,"-","-","ElectraLink Ltd","Live","Distribution Connection Use of System Agreement","DCP 325","Reviewing the requirements of Sections 35A, 35B, Schedule 15 and Schedule 20.","The intent of this Change Proposal is to combine, review and if appropriate, amend the requirements of Section 35A, Section 35B, Schedule 15 and Schedule 20 to improve transparency and efficiency in the data published by DNOs","Northern Powergrid","2018-07-11",null,null,"Standard Change Proposal","DCP 325 Change Proposal ","Under Development - Definition Stage",null,"-","-","ElectraLink Ltd","Live","Distribution Connection Use of System Agreement","DCP 325","Reviewing the requirements of Sections 35A, 35B, Schedule 15 and Schedule 20.","The intent of this Change Proposal is to combine, review and if appropriate, amend the requirements of Section 35A, Section 35B, Schedule 15 and Schedule 20 to improve transparency and efficiency in the data published by DNOs","Northern Powergrid","2018-07-11",null,null,"Standard Change Proposal","DCP 325 Change Proposal ","Under Development - Definition Stage",null,"-","-","ElectraLink Ltd","Live","Distribution Connection Use of System Agreement","DCP 325","Reviewing the requirements of Sections 35A, 35B, Schedule 15 and Schedule 20.","The intent of this Change Proposal is to combine, review and if appropriate, amend the requirements of Section 35A, Section 35B, Schedule 15 and Schedule 20 to improve transparency and efficiency in the data published by DNOs","Northern Powergrid","2018-07-11",null,null,"Standard Change Proposal","DCP 325 Change Proposal ","Under Development - Definition Stage",null,"-","-","ElectraLink Ltd","Live","Distribution Connection Use of System Agreement","DCP 325","Reviewing the requirements of Sections 35A, 35B, Schedule 15 and Schedule 20.","The intent of this Change Proposal is to combine, review and if appropriate, amend the requirements of Section 35A, Section 35B, Schedule 15 and Schedule 20 to improve transparency and efficiency in the data published by DNOs","Northern Powergrid","2018-07-11",null,null,"Standard Change Proposal","DCP 325 Change Proposal ","Under Development - Definition Stage",null,"-","-","ElectraLink Ltd","Live","Distribution Connection Use of System Agreement","DCP 325","Reviewing the requirements of Sections 35A, 35B, Schedule 15 and Schedule 20.","The intent of this Change Proposal is to combine, review and if appropriate, amend the requirements of Section 35A, Section 35B, Schedule 15 and Schedule 20 to improve transparency and efficiency in the data published by DNOs","Northern Powergrid","2018-07-11",null,null,"Standard Change Proposal","DCP 325 Change Proposal ","Under Development - Definition Stage",null,"-","-","ElectraLink Ltd","Live","Distribution Connection Use of System Agreement","DCP 325","Reviewing the requirements of Sections 35A, 35B, Schedule 15 and Schedule 20.","The intent of this Change Proposal is to combine, review and if appropriate, amend the requirements of Section 35A, Section 35B, Schedule 15 and Schedule 20 to improve transparency and efficiency in the data published by DNOs","Northern Powergrid","2018-07-11",null,null,"Standard Change Proposal","DCP 325 Change Proposal ","Under Development - Definition Stage",null,"-","-","ElectraLink Ltd","Live","Distribution Connection Use of System Agreement","DCP 325","Reviewing the requirements of Sections 35A, 35B, Schedule 15 and Schedule 20.","The intent of this Change Proposal is to combine, review and if appropriate, amend the requirements of Section 35A, Section 35B, Schedule 15 and Schedule 20 to improve transparency and efficiency in the data published by DNOs","Northern Powergrid","2018-07-11",null,null,"Standard Change Proposal","DCP 325 Change Proposal ","Under Development - Definition Stage",null,"-","-","ElectraLink Ltd","Live","Distribution Connection Use of System Agreement","DCP 325","Reviewing the requirements of Sections 35A, 35B, Schedule 15 and Schedule 20.","The intent of this Change Proposal is to combine, review and if appropriate, amend the requirements of Section 35A, Section 35B, Schedule 15 and Schedule 20 to improve transparency and efficiency in the data published by DNOs","Northern Powergrid","2018-07-11",null,null,"Standard Change Proposal","DCP 325 Change Proposal ","Under Development - Definition Stage",null,"-","-","ElectraLink Ltd","Live","Distribution Connection Use of System Agreement","DCP 325","Reviewing the requirements of Sections 35A, 35B, Schedule 15 and Schedule 20.","The intent of this Change Proposal is to combine, review and if appropriate, amend the requirements of Section 35A, Section 35B, Schedule 15 and Schedule 20 to improve transparency and efficiency in the data published by DNOs","Northern Powergrid","2018-07-11",null,null,"Standard Change Proposal","DCP 325 Change Proposal ","Under Development - Definition Stage",null,"-","-","ElectraLink Ltd","Live","Distribution Connection Use of System Agreement","DCP 325","Reviewing the requirements of Sections 35A, 35B, Schedule 15 and Schedule 20.","The intent of this Change Proposal is to combine, review and if appropriate, amend the requirements of Section 35A, Section 35B, Schedule 15 and Schedule 20 to improve transparency and efficiency in the data published by DNOs","Northern Powergrid","2018-07-11",null,null,"Standard Change Proposal","DCP 325 Change Proposal ","Under Development - Definition Stage",null,"-","-","ElectraLink Ltd","Live","Distribution Connection Use of System Agreement","DCP 325","Reviewing the requirements of Sections 35A, 35B, Schedule 15 and Schedule 20.","The intent of this Change Proposal is to combine, review and if appropriate, amend the requirements of Section 35A, Section 35B, Schedule 15 and Schedule 20 to improve transparency and efficiency in the data published by DNOs","Northern Powergrid","2018-07-11",null,null,"Standard Change Proposal","DCP 325 Change Proposal ","Under Development - Definition Stage",null,"-","-","ElectraLink Ltd","Live","Distribution Connection Use of System Agreement","DCP 325","Reviewing the requirements of Sections 35A, 35B, Schedule 15 and Schedule 20.","The intent of this Change Proposal is to combine, review and if appropriate, amend the requirements of Section 35A, Section 35B, Schedule 15 and Schedule 20 to improve transparency and efficiency in the data published by DNOs","Northern Powergrid","2018-07-11",null,null,"Standard Change Proposal","DCP 325 Change Proposal ","Under Development - Definition Stage",null,"-","-","ElectraLink Ltd","Live","Distribution Connection Use of System Agreement","DCP 325","Reviewing the requirements of Sections 35A, 35B, Schedule 15 and Schedule 20.","The intent of this Change Proposal is to combine, review and if appropriate, amend the requirements of Section 35A, Section 35B, Schedule 15 and Schedule 20 to improve transparency and efficiency in the data published by DNOs","Northern Powergrid","2018-07-11",null,null,"Standard Change Proposal","DCP 325 Change Proposal ","Under Development - Definition Stage",null,"-","-","ElectraLink Ltd","Live","Distribution Connection Use of System Agreement","DCP 325","Reviewing the requirements of Sections 35A, 35B, Schedule 15 and Schedule 20.","The intent of this Change Proposal is to combine, review and if appropriate, amend the requirements of Section 35A, Section 35B, Schedule 15 and Schedule 20 to improve transparency and efficiency in the data published by DNOs","Northern Powergrid","2018-07-11",null,null,"Standard Change Proposal","DCP 325 Change Proposal ","Under Development - Definition Stage",null,"-","-","ElectraLink Ltd","Live","Distribution Connection Use of System Agreement","DCP 325","Reviewing the requirements of Sections 35A, 35B, Schedule 15 and Schedule 20.","The intent of this Change Proposal is to combine, review and if appropriate, amend the requirements of Section 35A, Section 35B, Schedule 15 and Schedule 20 to improve transparency and efficiency in the data published by DNOs","Northern Powergrid","2018-07-11",null,null,"Standard Change Proposal","DCP 325 Change Proposal ","Under Development - Definition Stage",null,"-","-","ElectraLink Ltd","Live","Distribution Connection Use of System Agreement","DCP 325","Reviewing the requirements of Sections 35A, 35B, Schedule 15 and Schedule 20.","The intent of this Change Proposal is to combine, review and if appropriate, amend the requirements of Section 35A, Section 35B, Schedule 15 and Schedule 20 to improve transparency and efficiency in the data published by DNOs","Northern Powergrid","2018-07-11",null,null,"Standard Change Proposal","DCP 325 Change Proposal ","Under Development - Definition Stage",null,"-","-","ElectraLink Ltd","Live","Distribution Connection Use of System Agreement","DCP 325","Reviewing the requirements of Sections 35A, 35B, Schedule 15 and Schedule 20.","The intent of this Change Proposal is to combine, review and if appropriate, amend the requirements of Section 35A, Section 35B, Schedule 15 and Schedule 20 to improve transparency and efficiency in the data published by DNOs","Northern Powergrid","2018-07-11",null,null,"Standard Change Proposal","DCP 325 Change Proposal ","Under Development - Definition Stage",null,"-","-","ElectraLink Ltd","Live","Distribution Connection Use of System Agreement","DCP 325","Reviewing the requirements of Sections 35A, 35B, Schedule 15 and Schedule 20.","The intent of this Change Proposal is to combine, review and if appropriate, amend the requirements of Section 35A, Section 35B, Schedule 15 and Schedule 20 to improve transparency and efficiency in the data published by DNOs","Northern Powergrid","2018-07-11",null,null,"Standard Change Proposal","DCP 325 Change Proposal ","Under Development - Definition Stage",null,"-","-","ElectraLink Ltd","Live","Distribution Connection Use of System Agreement","DCP 325","Reviewing the requirements of Sections 35A, 35B, Schedule 15 and Schedule 20.","The intent of this Change Proposal is to combine, review and if appropriate, amend the requirements of Section 35A, Section 35B, Schedule 15 and Schedule 20 to improve transparency and efficiency in the data published by DNOs","Northern Powergrid","2018-07-11",null,null,"Standard Change Proposal","DCP 325 Change Proposal ","Under Development - Definition Stage",null,"-","-","ElectraLink Ltd","Live","Distribution Connection Use of System Agreement","DCP 325","Reviewing the requirements of Sections 35A, 35B, Schedule 15 and Schedule 20.","The intent of this Change Proposal is to combine, review and if appropriate, amend the requirements of Section 35A, Section 35B, Schedule 15 and Schedule 20 to improve transparency and efficiency in the data published by DNOs","Northern Powergrid","2018-07-11",null,null,"Standard Change Proposal","DCP 325 Change Proposal ","Under Development - Definition Stage",null,"-","-","ElectraLink Ltd","Live","Distribution Connection Use of System Agreement","DCP 325","Reviewing the requirements of Sections 35A, 35B, Schedule 15 and Schedule 20.","The intent of this Change Proposal is to combine, review and if appropriate, amend the requirements of Section 35A, Section 35B, Schedule 15 and Schedule 20 to improve transparency and efficiency in the data published by DNOs","Northern Powergrid","2018-07-11",null,null,"Standard Change Proposal","DCP 325 Change Proposal ","Under Development - Definition Stage",null,"-","-","ElectraLink Ltd","Live","Distribution Connection Use of System Agreement","DCP 325","Reviewing the requirements of Sections 35A, 35B, Schedule 15 and Schedule 20.","The intent of this Change Proposal is to combine, review and if appropriate, amend the requirements of Section 35A, Section 35B, Schedule 15 and Schedule 20 to improve transparency and efficiency in the data published by DNOs","Northern Powergrid","2018-07-11",null,null,"Standard Change Proposal","DCP 325 Change Proposal ","Under Development - Definition Stage",null,"-","-","ElectraLink Ltd","Live","Distribution Connection Use of System Agreement","DCP 325","Reviewing the requirements of Sections 35A, 35B, Schedule 15 and Schedule 20.","The intent of this Change Proposal is to combine, review and if appropriate, amend the requirements of Section 35A, Section 35B, Schedule 15 and Schedule 20 to improve transparency and efficiency in the data published by DNOs","Northern Powergrid","2018-07-11",null,null,"Standard Change Proposal","DCP 325 Change Proposal ","Under Development - Definition Stage",null,"-","-","ElectraLink Ltd","Live","Distribution Connection Use of System Agreement","DCP 325","Reviewing the requirements of Sections 35A, 35B, Schedule 15 and Schedule 20.","The intent of this Change Proposal is to combine, review and if appropriate, amend the requirements of Section 35A, Section 35B, Schedule 15 and Schedule 20 to improve transparency and efficiency in the data published by DNOs","Northern Powergrid","2018-07-11",null,null,"Standard Change Proposal","DCP 325 Change Proposal ","Under Development - Definition Stage",null,"-","-","ElectraLink Ltd","Live","Distribution Connection Use of System Agreement","DCP 325","Reviewing the requirements of Sections 35A, 35B, Schedule 15 and Schedule 20.","The intent of this Change Proposal is to combine, review and if appropriate, amend the requirements of Section 35A, Section 35B, Schedule 15 and Schedule 20 to improve transparency and efficiency in the data published by DNOs","Northern Powergrid","2018-07-11",null,null,"Standard Change Proposal","DCP 325 Change Proposal ","Under Development - Definition Stage",null,"-","-","ElectraLink Ltd","Live","Distribution Connection Use of System Agreement","DCP 325","Reviewing the requirements of Sections 35A, 35B, Schedule 15 and Schedule 20.","The intent of this Change Proposal is to combine, review and if appropriate, amend the requirements of Section 35A, Section 35B, Schedule 15 and Schedule 20 to improve transparency and efficiency in the data published by DNOs","Northern Powergrid","2018-07-11",null,null,"Standard Change Proposal","DCP 325 Change Proposal ","Under Development - Definition Stage",null,"-","-","ElectraLink Ltd","Live","Distribution Connection Use of System Agreement","DCP 325","Reviewing the requirements of Sections 35A, 35B, Schedule 15 and Schedule 20.","The intent of this Change Proposal is to combine, review and if appropriate, amend the requirements of Section 35A, Section 35B, Schedule 15 and Schedule 20 to improve transparency and efficiency in the data published by DNOs","Northern Powergrid","2018-07-11",null,null,"Standard Change Proposal","DCP 325 Change Proposal ","Under Development - Definition Stage",null,"-","-","ElectraLink Ltd","Live","Distribution Connection Use of System Agreement","DCP 325","Reviewing the requirements of Sections 35A, 35B, Schedule 15 and Schedule 20.","The intent of this Change Proposal is to combine, review and if appropriate, amend the requirements of Section 35A, Section 35B, Schedule 15 and Schedule 20 to improve transparency and efficiency in the data published by DNOs","Northern Powergrid","2018-07-11",null,null,"Standard Change Proposal","DCP 325 Change Proposal ","Under Development - Definition Stage",null,"-","-","ElectraLink Ltd","Live","Distribution Connection Use of System Agreement","DCP 325","Reviewing the requirements of Sections 35A, 35B, Schedule 15 and Schedule 20.","The intent of this Change Proposal is to combine, review and if appropriate, amend the requirements of Section 35A, Section 35B, Schedule 15 and Schedule 20 to improve transparency and efficiency in the data published by DNOs","Northern Powergrid","2018-07-11",null,null,"Standard Change Proposal","DCP 325 Change Proposal ","Under Development - Definition Stage",null,"-","-","ElectraLink Ltd","Live","Distribution Connection Use of System Agreement","DCP 325","Reviewing the requirements of Sections 35A, 35B, Schedule 15 and Schedule 20.","The intent of this Change Proposal is to combine, review and if appropriate, amend the requirements of Section 35A, Section 35B, Schedule 15 and Schedule 20 to improve transparency and efficiency in the data published by DNOs","Northern Powergrid","2018-07-11",null,null,"Standard Change Proposal","DCP 325 Change Proposal ","Under Development - Definition Stage",null,"-","-","ElectraLink Ltd","Live","Distribution Connection Use of System Agreement","DCP 325","Reviewing the requirements of Sections 35A, 35B, Schedule 15 and Schedule 20.","The intent of this Change Proposal is to combine, review and if appropriate, amend the requirements of Section 35A, Section 35B, Schedule 15 and Schedule 20 to improve transparency and efficiency in the data published by DNOs","Northern Powergrid","2018-07-11",null,null,"Standard Change Proposal","DCP 325 Change Proposal ","Under Development - Definition Stage",null,"-","-","ElectraLink Ltd","Live","Distribution Connection Use of System Agreement","DCP 325","Reviewing the requirements of Sections 35A, 35B, Schedule 15 and Schedule 20.","The intent of this Change Proposal is to combine, review and if appropriate, amend the requirements of Section 35A, Section 35B, Schedule 15 and Schedule 20 to improve transparency and efficiency in the data published by DNOs","Northern Powergrid","2018-07-11",null,null,"Standard Change Proposal","DCP 325 Change Proposal ","Under Development - Definition Stage",null,"-","-","ElectraLink Ltd","Live","Distribution Connection Use of System Agreement","DCP 325","Reviewing the requirements of Sections 35A, 35B, Schedule 15 and Schedule 20.","The intent of this Change Proposal is to combine, review and if appropriate, amend the requirements of Section 35A, Section 35B, Schedule 15 and Schedule 20 to improve transparency and efficiency in the data published by DNOs","Northern Powergrid","2018-07-11",null,null,"Standard Change Proposal","DCP 325 Change Proposal ","Under Development - Definition Stage",null,"-","-","ElectraLink Ltd","Live","Distribution Connection Use of System Agreement","DCP 325","Reviewing the requirements of Sections 35A, 35B, Schedule 15 and Schedule 20.","The intent of this Change Proposal is to combine, review and if appropriate, amend the requirements of Section 35A, Section 35B, Schedule 15 and Schedule 20 to improve transparency and efficiency in the data published by DNOs","Northern Powergrid","2018-07-11",null,null,"Standard Change Proposal","DCP 325 Change Proposal ","Under Development - Definition Stage",null,"-","-","ElectraLink Ltd","Live","Distribution Connection Use of System Agreement","DCP 325","Reviewing the requirements of Sections 35A, 35B, Schedule 15 and Schedule 20.","The intent of this Change Proposal is to combine, review and if appropriate, amend the requirements of Section 35A, Section 35B, Schedule 15 and Schedule 20 to improve transparency and efficiency in the data published by DNOs","Northern Powergrid","2018-07-11",null,null,"Standard Change Proposal","DCP 325 Change Proposal ","Under Development - Definition Stage",null,"-","-","ElectraLink Ltd","Live","Distribution Connection Use of System Agreement","DCP 325","Reviewing the requirements of Sections 35A, 35B, Schedule 15 and Schedule 20.","The intent of this Change Proposal is to combine, review and if appropriate, amend the requirements of Section 35A, Section 35B, Schedule 15 and Schedule 20 to improve transparency and efficiency in the data published by DNOs","Northern Powergrid","2018-07-11",null,null,"Standard Change Proposal","DCP 325 Change Proposal ","Under Development - Definition Stage",null,"-","-","ElectraLink Ltd","Live","Distribution Connection Use of System Agreement","DCP 325","Reviewing the requirements of Sections 35A, 35B, Schedule 15 and Schedule 20.","The intent of this Change Proposal is to combine, review and if appropriate, amend the requirements of Section 35A, Section 35B, Schedule 15 and Schedule 20 to improve transparency and efficiency in the data published by DNOs","Northern Powergrid","2018-07-11",null,null,"Standard Change Proposal","DCP 325 Change Proposal ","Under Development - Definition Stage",null,"-","-","ElectraLink Ltd","Live","Distribution Connection Use of System Agreement","DCP 325","Reviewing the requirements of Sections 35A, 35B, Schedule 15 and Schedule 20.","The intent of this Change Proposal is to combine, review and if appropriate, amend the requirements of Section 35A, Section 35B, Schedule 15 and Schedule 20 to improve transparency and efficiency in the data published by DNOs","Northern Powergrid","2018-07-11",null,null,"Standard Change Proposal","DCP 325 Change Proposal ","Under Development - Definition Stage",null,"-","-","ElectraLink Ltd","Live","Distribution Connection Use of System Agreement","DCP 325","Reviewing the requirements of Sections 35A, 35B, Schedule 15 and Schedule 20.","The intent of this Change Proposal is to combine, review and if appropriate, amend the requirements of Section 35A, Section 35B, Schedule 15 and Schedule 20 to improve transparency and efficiency in the data published by DNOs","Northern Powergrid","2018-07-11",null,null,"Standard Change Proposal","DCP 325 Change Proposal ","Under Development - Definition Stage",null,"-","-","ElectraLink Ltd","Live","Distribution Connection Use of System Agreement","DCP 325","Reviewing the requirements of Sections 35A, 35B, Schedule 15 and Schedule 20.","The intent of this Change Proposal is to combine, review and if appropriate, amend the requirements of Section 35A, Section 35B, Schedule 15 and Schedule 20 to improve transparency and efficiency in the data published by DNOs","Northern Powergrid","2018-07-11",null,null,"Standard Change Proposal","DCP 325 Change Proposal ","Under Development - Definition Stage",null,"-","-","ElectraLink Ltd","Live","Distribution Connection Use of System Agreement","DCP 325","Reviewing the requirements of Sections 35A, 35B, Schedule 15 and Schedule 20.","The intent of this Change Proposal is to combine, review and if appropriate, amend the requirements of Section 35A, Section 35B, Schedule 15 and Schedule 20 to improve transparency and efficiency in the data published by DNOs","Northern Powergrid","2018-07-11",null,null,"Standard Change Proposal","DCP 325 Change Proposal ","Under Development - Definition Stage",null,"-","-","ElectraLink Ltd","Live","Distribution Connection Use of System Agreement","DCP 325","Reviewing the requirements of Sections 35A, 35B, Schedule 15 and Schedule 20.","The intent of this Change Proposal is to combine, review and if appropriate, amend the requirements of Section 35A, Section 35B, Schedule 15 and Schedule 20 to improve transparency and efficiency in the data published by DNOs","Northern Powergrid","2018-07-11",null,null,"Standard Change Proposal","DCP 325 Change Proposal ","Under Development - Definition Stage",null,"-","-","ElectraLink Ltd","Live","Distribution Connection Use of System Agreement","DCP 325","Reviewing the requirements of Sections 35A, 35B, Schedule 15 and Schedule 20.","The intent of this Change Proposal is to combine, review and if appropriate, amend the requirements of Section 35A, Section 35B, Schedule 15 and Schedule 20 to improve transparency and efficiency in the data published by DNOs","Northern Powergrid","2018-07-11",null,null,"Standard Change Proposal","DCP 325 Change Proposal ","Under Development - Definition Stage",null,"-","-","ElectraLink Ltd","Live","Distribution Connection Use of System Agreement","DCP 325","Reviewing the requirements of Sections 35A, 35B, Schedule 15 and Schedule 20.","The intent of this Change Proposal is to combine, review and if appropriate, amend the requirements of Section 35A, Section 35B, Schedule 15 and Schedule 20 to improve transparency and efficiency in the data published by DNOs","Northern Powergrid","2018-07-11",null,null,"Standard Change Proposal","DCP 325 Change Proposal ","Under Development - Definition Stage",null,"-","-","ElectraLink Ltd","Live","Distribution Connection Use of System Agreement","DCP 325","Reviewing the requirements of Sections 35A, 35B, Schedule 15 and Schedule 20.","The intent of this Change Proposal is to combine, review and if appropriate, amend the requirements of Section 35A, Section 35B, Schedule 15 and Schedule 20 to improve transparency and efficiency in the data published by DNOs","Northern Powergrid","2018-07-11",null,null,"Standard Change Proposal","DCP 325 Change Proposal ","Under Development - Definition Stage",null,"-","-","ElectraLink Ltd","Live","Distribution Connection Use of System Agreement","DCP 325","Reviewing the requirements of Sections 35A, 35B, Schedule 15 and Schedule 20.","The intent of this Change Proposal is to combine, review and if appropriate, amend the requirements of Section 35A, Section 35B, Schedule 15 and Schedule 20 to improve transparency and efficiency in the data published by DNOs","Northern Powergrid","2018-07-11",null,null,"Standard Change Proposal","DCP 325 Change Proposal ","Under Development - Definition Stage",null,"-","-","ElectraLink Ltd","Live","Distribution Connection Use of System Agreement","DCP 325","Reviewing the requirements of Sections 35A, 35B, Schedule 15 and Schedule 20.","The intent of this Change Proposal is to combine, review and if appropriate, amend the requirements of Section 35A, Section 35B, Schedule 15 and Schedule 20 to improve transparency and efficiency in the data published by DNOs","Northern Powergrid","2018-07-11",null,null,"Standard Change Proposal","DCP 325 Change Proposal ","Under Development - Definition Stage",null,"-","-","ElectraLink Ltd","Live","Distribution Connection Use of System Agreement","DCP 325","Reviewing the requirements of Sections 35A, 35B, Schedule 15 and Schedule 20.","The intent of this Change Proposal is to combine, review and if appropriate, amend the requirements of Section 35A, Section 35B, Schedule 15 and Schedule 20 to improve transparency and efficiency in the data published by DNOs","Northern Powergrid","2018-07-11",null,null,"Standard Change Proposal","DCP 325 Change Proposal ","Under Development - Definition Stage",null,"-","-","ElectraLink Ltd","Live","Distribution Connection Use of System Agreement","DCP 325","Reviewing the requirements of Sections 35A, 35B, Schedule 15 and Schedule 20.","The intent of this Change Proposal is to combine, review and if appropriate, amend the requirements of Section 35A, Section 35B, Schedule 15 and Schedule 20 to improve transparency and efficiency in the data published by DNOs","Northern Powergrid","2018-07-11",null,null,"Standard Change Proposal","DCP 325 Change Proposal ","Under Development - Definition Stage",null,"-","-","ElectraLink Ltd","Live","Distribution Connection Use of System Agreement","DCP 325","Reviewing the requirements of Sections 35A, 35B, Schedule 15 and Schedule 20.","The intent of this Change Proposal is to combine, review and if appropriate, amend the requirements of Section 35A, Section 35B, Schedule 15 and Schedule 20 to improve transparency and efficiency in the data published by DNOs","Northern Powergrid","2018-07-11",null,null,"Standard Change Proposal","DCP 325 Change Proposal ","Under Development - Definition Stage",null,"-","-","ElectraLink Ltd","Live","Distribution Connection Use of System Agreement","DCP 325","Reviewing the requirements of Sections 35A, 35B, Schedule 15 and Schedule 20.","The intent of this Change Proposal is to combine, review and if appropriate, amend the requirements of Section 35A, Section 35B, Schedule 15 and Schedule 20 to improve transparency and efficiency in the data published by DNOs","Northern Powergrid","2018-07-11",null,null,"Standard Change Proposal","DCP 325 Change Proposal ","Under Development - Definition Stage",null,"-","-","ElectraLink Ltd","Live","Distribution Connection Use of System Agreement","DCP 325","Reviewing the requirements of Sections 35A, 35B, Schedule 15 and Schedule 20.","The intent of this Change Proposal is to combine, review and if appropriate, amend the requirements of Section 35A, Section 35B, Schedule 15 and Schedule 20 to improve transparency and efficiency in the data published by DNOs","Northern Powergrid","2018-07-11",null,null,"Standard Change Proposal","DCP 325 Change Proposal ","Under Development - Definition Stage",null,"-","-","ElectraLink Ltd","Live","Distribution Connection Use of System Agreement","DCP 325","Reviewing the requirements of Sections 35A, 35B, Schedule 15 and Schedule 20.","The intent of this Change Proposal is to combine, review and if appropriate, amend the requirements of Section 35A, Section 35B, Schedule 15 and Schedule 20 to improve transparency and efficiency in the data published by DNOs","Northern Powergrid","2018-07-11",null,null,"Standard Change Proposal","DCP 325 Change Proposal ","Under Development - Definition Stage",null,"-","-","ElectraLink Ltd","Live","Distribution Connection Use of System Agreement","DCP 325","Reviewing the requirements of Sections 35A, 35B, Schedule 15 and Schedule 20.","The intent of this Change Proposal is to combine, review and if appropriate, amend the requirements of Section 35A, Section 35B, Schedule 15 and Schedule 20 to improve transparency and efficiency in the data published by DNOs","Northern Powergrid","2018-07-11",null,null,"Standard Change Proposal","DCP 325 Change Proposal ","Under Development - Definition Stage",null,"-","-","ElectraLink Ltd","Live","Distribution Connection Use of System Agreement","DCP 325","Reviewing the requirements of Sections 35A, 35B, Schedule 15 and Schedule 20.","The intent of this Change Proposal is to combine, review and if appropriate, amend the requirements of Section 35A, Section 35B, Schedule 15 and Schedule 20 to improve transparency and efficiency in the data published by DNOs","Northern Powergrid","2018-07-11",null,null,"Standard Change Proposal","DCP 325 Change Proposal ","Under Development - Definition Stage",null,"-","-","ElectraLink Ltd","Live","Distribution Connection Use of System Agreement","DCP 325","Reviewing the requirements of Sections 35A, 35B, Schedule 15 and Schedule 20.","The intent of this Change Proposal is to combine, review and if appropriate, amend the requirements of Section 35A, Section 35B, Schedule 15 and Schedule 20 to improve transparency and efficiency in the data published by DNOs","Northern Powergrid","2018-07-11",null,null,"Standard Change Proposal","DCP 325 Change Proposal ","Under Development - Definition Stage",null,"-","-","ElectraLink Ltd","Live","Distribution Connection Use of System Agreement","DCP 325","Reviewing the requirements of Sections 35A, 35B, Schedule 15 and Schedule 20.","The intent of this Change Proposal is to combine, review and if appropriate, amend the requirements of Section 35A, Section 35B, Schedule 15 and Schedule 20 to improve transparency and efficiency in the data published by DNOs","Northern Powergrid","2018-07-11",null,null,"Standard Change Proposal","DCP 325 Change Proposal ","Under Development - Definition Stage",null,"-","-","ElectraLink Ltd","Live","Distribution Connection Use of System Agreement","DCP 325","Reviewing the requirements of Sections 35A, 35B, Schedule 15 and Schedule 20.","The intent of this Change Proposal is to combine, review and if appropriate, amend the requirements of Section 35A, Section 35B, Schedule 15 and Schedule 20 to improve transparency and efficiency in the data published by DNOs","Northern Powergrid","2018-07-11",null,null,"Standard Change Proposal","DCP 325 Change Proposal ","Under Development - Definition Stage",null,"-","-","ElectraLink Ltd","Live","Distribution Connection Use of System Agreement","DCP 325","Reviewing the requirements of Sections 35A, 35B, Schedule 15 and Schedule 20.","The intent of this Change Proposal is to combine, review and if appropriate, amend the requirements of Section 35A, Section 35B, Schedule 15 and Schedule 20 to improve transparency and efficiency in the data published by DNOs","Northern Powergrid","2018-07-11",null,null,"Standard Change Proposal","DCP 325 Change Proposal ","Under Development - Definition Stage",null,"-","-","ElectraLink Ltd","Live","Distribution Connection Use of System Agreement","DCP 325","Reviewing the requirements of Sections 35A, 35B, Schedule 15 and Schedule 20.","The intent of this Change Proposal is to combine, review and if appropriate, amend the requirements of Section 35A, Section 35B, Schedule 15 and Schedule 20 to improve transparency and efficiency in the data published by DNOs","Northern Powergrid","2018-07-11",null,null,"Standard Change Proposal","DCP 325 Change Proposal ","Under Development - Definition Stage",null,"-","-","ElectraLink Ltd","Live","Distribution Connection Use of System Agreement","DCP 325","Reviewing the requirements of Sections 35A, 35B, Schedule 15 and Schedule 20.","The intent of this Change Proposal is to combine, review and if appropriate, amend the requirements of Section 35A, Section 35B, Schedule 15 and Schedule 20 to improve transparency and efficiency in the data published by DNOs","Northern Powergrid","2018-07-11",null,null,"Standard Change Proposal","DCP 325 Change Proposal ","Under Development - Definition Stage",null,"-","-","ElectraLink Ltd","Live","Distribution Connection Use of System Agreement","DCP 325","Reviewing the requirements of Sections 35A, 35B, Schedule 15 and Schedule 20.","The intent of this Change Proposal is to combine, review and if appropriate, amend the requirements of Section 35A, Section 35B, Schedule 15 and Schedule 20 to improve transparency and efficiency in the data published by DNOs","Northern Powergrid","2018-07-11",null,null,"Standard Change Proposal","DCP 325 Change Proposal ","Under Development - Definition Stage",null,"-","-","ElectraLink Ltd","Live","Distribution Connection Use of System Agreement","DCP 325","Reviewing the requirements of Sections 35A, 35B, Schedule 15 and Schedule 20.","The intent of this Change Proposal is to combine, review and if appropriate, amend the requirements of Section 35A, Section 35B, Schedule 15 and Schedule 20 to improve transparency and efficiency in the data published by DNOs","Northern Powergrid","2018-07-11",null,null,"Standard Change Proposal","DCP 325 Change Proposal ","Under Development - Definition Stage",null,"-","-","ElectraLink Ltd","Live","Distribution Connection Use of System Agreement","DCP 325","Reviewing the requirements of Sections 35A, 35B, Schedule 15 and Schedule 20.","The intent of this Change Proposal is to combine, review and if appropriate, amend the requirements of Section 35A, Section 35B, Schedule 15 and Schedule 20 to improve transparency and efficiency in the data published by DNOs","Northern Powergrid","2018-07-11",null,null,"Standard Change Proposal","DCP 325 Change Proposal ","Under Development - Definition Stage",null,"-","-","ElectraLink Ltd","Live","Distribution Connection Use of System Agreement","DCP 325","Reviewing the requirements of Sections 35A, 35B, Schedule 15 and Schedule 20.","The intent of this Change Proposal is to combine, review and if appropriate, amend the requirements of Section 35A, Section 35B, Schedule 15 and Schedule 20 to improve transparency and efficiency in the data published by DNOs","Northern Powergrid","2018-07-11",null,null,"Standard Change Proposal","DCP 325 Change Proposal ","Under Development - Definition Stage",null,"-","-","ElectraLink Ltd","Live","Distribution Connection Use of System Agreement","DCP 325","Reviewing the requirements of Sections 35A, 35B, Schedule 15 and Schedule 20.","The intent of this Change Proposal is to combine, review and if appropriate, amend the requirements of Section 35A, Section 35B, Schedule 15 and Schedule 20 to improve transparency and efficiency in the data published by DNOs","Northern Powergrid","2018-07-11",null,null,"Standard Change Proposal","DCP 325 Change Proposal ","Under Development - Definition Stage",null,"-","-","ElectraLink Ltd","Live","Distribution Connection Use of System Agreement","DCP 325","Reviewing the requirements of Sections 35A, 35B, Schedule 15 and Schedule 20.","The intent of this Change Proposal is to combine, review and if appropriate, amend the requirements of Section 35A, Section 35B, Schedule 15 and Schedule 20 to improve transparency and efficiency in the data published by DNOs","Northern Powergrid","2018-07-11",null,null,"Standard Change Proposal","DCP 325 Change Proposal ","Under Development - Definition Stage",null,"-","-","ElectraLink Ltd","Live","Distribution Connection Use of System Agreement","DCP 325","Reviewing the requirements of Sections 35A, 35B, Schedule 15 and Schedule 20.","The intent of this Change Proposal is to combine, review and if appropriate, amend the requirements of Section 35A, Section 35B, Schedule 15 and Schedule 20 to improve transparency and efficiency in the data published by DNOs","Northern Powergrid","2018-07-11",null,null,"Standard Change Proposal","DCP 325 Change Proposal ","Under Development - Definition Stage",null,"-","-","ElectraLink Ltd","Live","Distribution Connection Use of System Agreement","DCP 325","Reviewing the requirements of Sections 35A, 35B, Schedule 15 and Schedule 20.","The intent of this Change Proposal is to combine, review and if appropriate, amend the requirements of Section 35A, Section 35B, Schedule 15 and Schedule 20 to improve transparency and efficiency in the data published by DNOs","Northern Powergrid","2018-07-11",null,null,"Standard Change Proposal","DCP 325 Change Proposal ","Under Development - Definition Stage",null,"-","-","ElectraLink Ltd","Live","Distribution Connection Use of System Agreement","DCP 325","Reviewing the requirements of Sections 35A, 35B, Schedule 15 and Schedule 20.","The intent of this Change Proposal is to combine, review and if appropriate, amend the requirements of Section 35A, Section 35B, Schedule 15 and Schedule 20 to improve transparency and efficiency in the data published by DNOs","Northern Powergrid","2018-07-11",null,null,"Standard Change Proposal","DCP 325 Change Proposal ","Under Development - Definition Stage",null,"-","-","ElectraLink Ltd","Live","Distribution Connection Use of System Agreement","DCP 325","Reviewing the requirements of Sections 35A, 35B, Schedule 15 and Schedule 20.","The intent of this Change Proposal is to combine, review and if appropriate, amend the requirements of Section 35A, Section 35B, Schedule 15 and Schedule 20 to improve transparency and efficiency in the data published by DNOs","Northern Powergrid","2018-07-11",null,null,"Standard Change Proposal","DCP 325 Change Proposal ","Under Development - Definition Stage",null,"-","-","ElectraLink Ltd","Live","Distribution Connection Use of System Agreement","DCP 325","Reviewing the requirements of Sections 35A, 35B, Schedule 15 and Schedule 20.","The intent of this Change Proposal is to combine, review and if appropriate, amend the requirements of Section 35A, Section 35B, Schedule 15 and Schedule 20 to improve transparency and efficiency in the data published by DNOs","Northern Powergrid","2018-07-11",null,null,"Standard Change Proposal","DCP 325 Change Proposal ","Under Development - Definition Stage",null,"-","-","ElectraLink Ltd","Live","Distribution Connection Use of System Agreement","DCP 325","Reviewing the requirements of Sections 35A, 35B, Schedule 15 and Schedule 20.","The intent of this Change Proposal is to combine, review and if appropriate, amend the requirements of Section 35A, Section 35B, Schedule 15 and Schedule 20 to improve transparency and efficiency in the data published by DNOs","Northern Powergrid","2018-07-11",null,null,"Standard Change Proposal","DCP 325 Change Proposal ","Under Development - Definition Stage",null,"-","-","ElectraLink Ltd","Live","Distribution Connection Use of System Agreement","DCP 325","Reviewing the requirements of Sections 35A, 35B, Schedule 15 and Schedule 20.","The intent of this Change Proposal is to combine, review and if appropriate, amend the requirements of Section 35A, Section 35B, Schedule 15 and Schedule 20 to improve transparency and efficiency in the data published by DNOs","Northern Powergrid","2018-07-11",null,null,"Standard Change Proposal","DCP 325 Change Proposal ","Under Development - Definition Stage",null,"-","-","ElectraLink Ltd","Live","Distribution Connection Use of System Agreement","DCP 325","Reviewing the requirements of Sections 35A, 35B, Schedule 15 and Schedule 20.","The intent of this Change Proposal is to combine, review and if appropriate, amend the requirements of Section 35A, Section 35B, Schedule 15 and Schedule 20 to improve transparency and efficiency in the data published by DNOs","Northern Powergrid","2018-07-11",null,null,"Standard Change Proposal","DCP 325 Change Proposal ","Under Development - Definition Stage",null,"-","-","ElectraLink Ltd","Live","Distribution Connection Use of System Agreement","DCP 325","Reviewing the requirements of Sections 35A, 35B, Schedule 15 and Schedule 20.","The intent of this Change Proposal is to combine, review and if appropriate, amend the requirements of Section 35A, Section 35B, Schedule 15 and Schedule 20 to improve transparency and efficiency in the data published by DNOs","Northern Powergrid","2018-07-11",null,null,"Standard Change Proposal","DCP 325 Change Proposal ","Under Development - Definition Stage",null,"-","-","ElectraLink Ltd","Live","Distribution Connection Use of System Agreement","DCP 325","Reviewing the requirements of Sections 35A, 35B, Schedule 15 and Schedule 20.","The intent of this Change Proposal is to combine, review and if appropriate, amend the requirements of Section 35A, Section 35B, Schedule 15 and Schedule 20 to improve transparency and efficiency in the data published by DNOs","Northern Powergrid","2018-07-11",null,null,"Standard Change Proposal","DCP 325 Change Proposal ","Under Development - Definition Stage",null,"-","-","ElectraLink Ltd","Live","Distribution Connection Use of System Agreement","DCP 325","Reviewing the requirements of Sections 35A, 35B, Schedule 15 and Schedule 20.","The intent of this Change Proposal is to combine, review and if appropriate, amend the requirements of Section 35A, Section 35B, Schedule 15 and Schedule 20 to improve transparency and efficiency in the data published by DNOs","Northern Powergrid","2018-07-11",null,null,"Standard Change Proposal","DCP 325 Change Proposal ","Under Development - Definition Stage",null,"-","-","ElectraLink Ltd","Live","Distribution Connection Use of System Agreement","DCP 325","Reviewing the requirements of Sections 35A, 35B, Schedule 15 and Schedule 20.","The intent of this Change Proposal is to combine, review and if appropriate, amend the requirements of Section 35A, Section 35B, Schedule 15 and Schedule 20 to improve transparency and efficiency in the data published by DNOs","Northern Powergrid","2018-07-11",null,null,"Standard Change Proposal","DCP 325 Change Proposal ","Under Development - Definition Stage",null,"-","-","ElectraLink Ltd","Live","Distribution Connection Use of System Agreement","DCP 325","Reviewing the requirements of Sections 35A, 35B, Schedule 15 and Schedule 20.","The intent of this Change Proposal is to combine, review and if appropriate, amend the requirements of Section 35A, Section 35B, Schedule 15 and Schedule 20 to improve transparency and efficiency in the data published by DNOs","Northern Powergrid","2018-07-11",null,null,"Standard Change Proposal","DCP 325 Change Proposal ","Under Development - Definition Stage",null,"-","-","ElectraLink Ltd","Live","Distribution Connection Use of System Agreement","DCP 325","Reviewing the requirements of Sections 35A, 35B, Schedule 15 and Schedule 20.","The intent of this Change Proposal is to combine, review and if appropriate, amend the requirements of Section 35A, Section 35B, Schedule 15 and Schedule 20 to improve transparency and efficiency in the data published by DNOs","Northern Powergrid","2018-07-11",null,null,"Standard Change Proposal","DCP 325 Change Proposal ","Under Development - Definition Stage",null,"-","-","ElectraLink Ltd","Live","Distribution Connection Use of System Agreement","DCP 325","Reviewing the requirements of Sections 35A, 35B, Schedule 15 and Schedule 20.","The intent of this Change Proposal is to combine, review and if appropriate, amend the requirements of Section 35A, Section 35B, Schedule 15 and Schedule 20 to improve transparency and efficiency in the data published by DNOs","Northern Powergrid","2018-07-11",null,null,"Standard Change Proposal","DCP 325 Change Proposal ","Under Development - Definition Stage",null,"-","-","ElectraLink Ltd","Live","Distribution Connection Use of System Agreement","DCP 325","Reviewing the requirements of Sections 35A, 35B, Schedule 15 and Schedule 20.","The intent of this Change Proposal is to combine, review and if appropriate, amend the requirements of Section 35A, Section 35B, Schedule 15 and Schedule 20 to improve transparency and efficiency in the data published by DNOs","Northern Powergrid","2018-07-11",null,null,"Standard Change Proposal","DCP 325 Change Proposal ","Under Development - Definition Stage",null,"-","-","ElectraLink Ltd","Live","Distribution Connection Use of System Agreement","DCP 325","Reviewing the requirements of Sections 35A, 35B, Schedule 15 and Schedule 20.","The intent of this Change Proposal is to combine, review and if appropriate, amend the requirements of Section 35A, Section 35B, Schedule 15 and Schedule 20 to improve transparency and efficiency in the data published by DNOs","Northern Powergrid","2018-07-11",null,null,"Standard Change Proposal","DCP 325 Change Proposal ","Under Development - Definition Stage",null,"-","-","ElectraLink Ltd","Live","Distribution Connection Use of System Agreement","DCP 325","Reviewing the requirements of Sections 35A, 35B, Schedule 15 and Schedule 20.","The intent of this Change Proposal is to combine, review and if appropriate, amend the requirements of Section 35A, Section 35B, Schedule 15 and Schedule 20 to improve transparency and efficiency in the data published by DNOs","Northern Powergrid","2018-07-11",null,null,"Standard Change Proposal","DCP 325 Change Proposal ","Under Development - Definition Stage",null,"-","-","ElectraLink Ltd","Live","Distribution Connection Use of System Agreement","DCP 325","Reviewing the requirements of Sections 35A, 35B, Schedule 15 and Schedule 20.","The intent of this Change Proposal is to combine, review and if appropriate, amend the requirements of Section 35A, Section 35B, Schedule 15 and Schedule 20 to improve transparency and efficiency in the data published by DNOs","Northern Powergrid","2018-07-11",null,null,"Standard Change Proposal","DCP 325 Change Proposal ","Under Development - Definition Stage",null,"-","-","ElectraLink Ltd","Live","Distribution Connection Use of System Agreement","DCP 325","Reviewing the requirements of Sections 35A, 35B, Schedule 15 and Schedule 20.","The intent of this Change Proposal is to combine, review and if appropriate, amend the requirements of Section 35A, Section 35B, Schedule 15 and Schedule 20 to improve transparency and efficiency in the data published by DNOs","Northern Powergrid","2018-07-11",null,null,"Standard Change Proposal","DCP 325 Change Proposal ","Under Development - Definition Stage",null,"-","-","ElectraLink Ltd","Live","Distribution Connection Use of System Agreement","DCP 325","Reviewing the requirements of Sections 35A, 35B, Schedule 15 and Schedule 20.","The intent of this Change Proposal is to combine, review and if appropriate, amend the requirements of Section 35A, Section 35B, Schedule 15 and Schedule 20 to improve transparency and efficiency in the data published by DNOs","Northern Powergrid","2018-07-11",null,null,"Standard Change Proposal","DCP 325 Change Proposal ","Under Development - Definition Stage",null,"-","-","ElectraLink Ltd","Live","Distribution Connection Use of System Agreement","DCP 325","Reviewing the requirements of Sections 35A, 35B, Schedule 15 and Schedule 20.","The intent of this Change Proposal is to combine, review and if appropriate, amend the requirements of Section 35A, Section 35B, Schedule 15 and Schedule 20 to improve transparency and efficiency in the data published by DNOs","Northern Powergrid","2018-07-11",null,null,"Standard Change Proposal","DCP 325 Change Proposal ","Under Development - Definition Stage",null,"-","-","ElectraLink Ltd","Live","Distribution Connection Use of System Agreement","DCP 325","Reviewing the requirements of Sections 35A, 35B, Schedule 15 and Schedule 20.","The intent of this Change Proposal is to combine, review and if appropriate, amend the requirements of Section 35A, Section 35B, Schedule 15 and Schedule 20 to improve transparency and efficiency in the data published by DNOs","Northern Powergrid","2018-07-11",null,null,"Standard Change Proposal","DCP 325 Change Proposal ","Under Development - Definition Stage",null,"-","-","ElectraLink Ltd","Live","Distribution Connection Use of System Agreement","DCP 325","Reviewing the requirements of Sections 35A, 35B, Schedule 15 and Schedule 20.","The intent of this Change Proposal is to combine, review and if appropriate, amend the requirements of Section 35A, Section 35B, Schedule 15 and Schedule 20 to improve transparency and efficiency in the data published by DNOs","Northern Powergrid","2018-07-11",null,null,"Standard Change Proposal","DCP 325 Change Proposal ","Under Development - Definition Stage",null,"-","-","ElectraLink Ltd","Live","Distribution Connection Use of System Agreement","DCP 325","Reviewing the requirements of Sections 35A, 35B, Schedule 15 and Schedule 20.","The intent of this Change Proposal is to combine, review and if appropriate, amend the requirements of Section 35A, Section 35B, Schedule 15 and Schedule 20 to improve transparency and efficiency in the data published by DNOs","Northern Powergrid","2018-07-11",null,null,"Standard Change Proposal","DCP 325 Change Proposal ","Under Development - Definition Stage",null,"-","-","ElectraLink Ltd","Live","Distribution Connection Use of System Agreement","DCP 325","Reviewing the requirements of Sections 35A, 35B, Schedule 15 and Schedule 20.","The intent of this Change Proposal is to combine, review and if appropriate, amend the requirements of Section 35A, Section 35B, Schedule 15 and Schedule 20 to improve transparency and efficiency in the data published by DNOs","Northern Powergrid","2018-07-11",null,null,"Standard Change Proposal","DCP 325 Change Proposal ","Under Development - Definition Stage",null,"-","-","ElectraLink Ltd","Live","Distribution Connection Use of System Agreement","DCP 325","Reviewing the requirements of Sections 35A, 35B, Schedule 15 and Schedule 20.","The intent of this Change Proposal is to combine, review and if appropriate, amend the requirements of Section 35A, Section 35B, Schedule 15 and Schedule 20 to improve transparency and efficiency in the data published by DNOs","Northern Powergrid","2018-07-11",null,null,"Standard Change Proposal","DCP 325 Change Proposal ","Under Development - Definition Stage",null,"-","-","ElectraLink Ltd","Live","Distribution Connection Use of System Agreement","DCP 325","Reviewing the requirements of Sections 35A, 35B, Schedule 15 and Schedule 20.","The intent of this Change Proposal is to combine, review and if appropriate, amend the requirements of Section 35A, Section 35B, Schedule 15 and Schedule 20 to improve transparency and efficiency in the data published by DNOs","Northern Powergrid","2018-07-11",null,null,"Standard Change Proposal","DCP 325 Change Proposal ","Under Development - Definition Stage",null,"-","-","ElectraLink Ltd","Live","Distribution Connection Use of System Agreement","DCP 325","Reviewing the requirements of Sections 35A, 35B, Schedule 15 and Schedule 20.","The intent of this Change Proposal is to combine, review and if appropriate, amend the requirements of Section 35A, Section 35B, Schedule 15 and Schedule 20 to improve transparency and efficiency in the data published by DNOs","Northern Powergrid","2018-07-11",null,null,"Standard Change Proposal","DCP 325 Change Proposal ","Under Development - Definition Stage",null,"-","-","ElectraLink Ltd","Live","Distribution Connection Use of System Agreement","DCP 325","Reviewing the requirements of Sections 35A, 35B, Schedule 15 and Schedule 20.","The intent of this Change Proposal is to combine, review and if appropriate, amend the requirements of Section 35A, Section 35B, Schedule 15 and Schedule 20 to improve transparency and efficiency in the data published by DNOs","Northern Powergrid","2018-07-11",null,null,"Standard Change Proposal","DCP 325 Change Proposal ","Under Development - Definition Stage",null,"-","-","ElectraLink Ltd","Live","Distribution Connection Use of System Agreement","DCP 325","Reviewing the requirements of Sections 35A, 35B, Schedule 15 and Schedule 20.","The intent of this Change Proposal is to combine, review and if appropriate, amend the requirements of Section 35A, Section 35B, Schedule 15 and Schedule 20 to improve transparency and efficiency in the data published by DNOs","Northern Powergrid","2018-07-11",null,null,"Standard Change Proposal","DCP 325 Change Proposal ","Under Development - Definition Stage",null,"-","-","ElectraLink Ltd","Live","Distribution Connection Use of System Agreement","DCP 325","Reviewing the requirements of Sections 35A, 35B, Schedule 15 and Schedule 20.","The intent of this Change Proposal is to combine, review and if appropriate, amend the requirements of Section 35A, Section 35B, Schedule 15 and Schedule 20 to improve transparency and efficiency in the data published by DNOs","Northern Powergrid","2018-07-11",null,null,"Standard Change Proposal","DCP 325 Change Proposal ","Under Development - Definition Stage",null,"-","-","ElectraLink Ltd","Live","Distribution Connection Use of System Agreement","DCP 325","Reviewing the requirements of Sections 35A, 35B, Schedule 15 and Schedule 20.","The intent of this Change Proposal is to combine, review and if appropriate, amend the requirements of Section 35A, Section 35B, Schedule 15 and Schedule 20 to improve transparency and efficiency in the data published by DNOs","Northern Powergrid","2018-07-11",null,null,"Standard Change Proposal","DCP 325 Change Proposal ","Under Development - Definition Stage",null,"-","-","ElectraLink Ltd","Live","Distribution Connection Use of System Agreement","DCP 325","Reviewing the requirements of Sections 35A, 35B, Schedule 15 and Schedule 20.","The intent of this Change Proposal is to combine, review and if appropriate, amend the requirements of Section 35A, Section 35B, Schedule 15 and Schedule 20 to improve transparency and efficiency in the data published by DNOs","Northern Powergrid","2018-07-11",null,null,"Standard Change Proposal","DCP 325 Change Proposal ","Under Development - Definition Stage",null,"-","-","ElectraLink Ltd","Live","Distribution Connection Use of System Agreement","DCP 325","Reviewing the requirements of Sections 35A, 35B, Schedule 15 and Schedule 20.","The intent of this Change Proposal is to combine, review and if appropriate, amend the requirements of Section 35A, Section 35B, Schedule 15 and Schedule 20 to improve transparency and efficiency in the data published by DNOs","Northern Powergrid","2018-07-11",null,null,"Standard Change Proposal","DCP 325 Change Proposal ","Under Development - Definition Stage",null,"-","-","ElectraLink Ltd","Live","Distribution Connection Use of System Agreement","DCP 325","Reviewing the requirements of Sections 35A, 35B, Schedule 15 and Schedule 20.","The intent of this Change Proposal is to combine, review and if appropriate, amend the requirements of Section 35A, Section 35B, Schedule 15 and Schedule 20 to improve transparency and efficiency in the data published by DNOs","Northern Powergrid","2018-07-11",null,null,"Standard Change Proposal","DCP 325 Change Proposal ","Under Development - Definition Stage",null,"-","-","ElectraLink Ltd","Live","Distribution Connection Use of System Agreement","DCP 325","Reviewing the requirements of Sections 35A, 35B, Schedule 15 and Schedule 20.","The intent of this Change Proposal is to combine, review and if appropriate, amend the requirements of Section 35A, Section 35B, Schedule 15 and Schedule 20 to improve transparency and efficiency in the data published by DNOs","Northern Powergrid","2018-07-11",null,null,"Standard Change Proposal","DCP 325 Change Proposal ","Under Development - Definition Stage",null,"-","-","ElectraLink Ltd","Live","Distribution Connection Use of System Agreement","DCP 325","Reviewing the requirements of Sections 35A, 35B, Schedule 15 and Schedule 20.","The intent of this Change Proposal is to combine, review and if appropriate, amend the requirements of Section 35A, Section 35B, Schedule 15 and Schedule 20 to improve transparency and efficiency in the data published by DNOs","Northern Powergrid","2018-07-11",null,null,"Standard Change Proposal","DCP 325 Change Proposal ","Under Development - Definition Stage",null,"-","-","ElectraLink Ltd","Live","Distribution Connection Use of System Agreement","DCP 325","Reviewing the requirements of Sections 35A, 35B, Schedule 15 and Schedule 20.","The intent of this Change Proposal is to combine, review and if appropriate, amend the requirements of Section 35A, Section 35B, Schedule 15 and Schedule 20 to improve transparency and efficiency in the data published by DNOs","Northern Powergrid","2018-07-11",null,null,"Standard Change Proposal","DCP 325 Change Proposal ","Under Development - Definition Stage",null,"-","-","ElectraLink Ltd","Live","Distribution Connection Use of System Agreement","DCP 325","Reviewing the requirements of Sections 35A, 35B, Schedule 15 and Schedule 20.","The intent of this Change Proposal is to combine, review and if appropriate, amend the requirements of Section 35A, Section 35B, Schedule 15 and Schedule 20 to improve transparency and efficiency in the data published by DNOs","Northern Powergrid","2018-07-11",null,null,"Standard Change Proposal","DCP 325 Change Proposal ","Under Development - Definition Stage",null,"-","-","ElectraLink Ltd","Live","Distribution Connection Use of System Agreement","DCP 325","Reviewing the requirements of Sections 35A, 35B, Schedule 15 and Schedule 20.","The intent of this Change Proposal is to combine, review and if appropriate, amend the requirements of Section 35A, Section 35B, Schedule 15 and Schedule 20 to improve transparency and efficiency in the data published by DNOs","Northern Powergrid","2018-07-11",null,null,"Standard Change Proposal","DCP 325 Change Proposal ","Under Development - Definition Stage",null,"-","-","ElectraLink Ltd","Live","Distribution Connection Use of System Agreement","DCP 325","Reviewing the requirements of Sections 35A, 35B, Schedule 15 and Schedule 20.","The intent of this Change Proposal is to combine, review and if appropriate, amend the requirements of Section 35A, Section 35B, Schedule 15 and Schedule 20 to improve transparency and efficiency in the data published by DNOs","Northern Powergrid","2018-07-11",null,null,"Standard Change Proposal","DCP 325 Change Proposal ","Under Development - Definition Stage",null,"-","-","ElectraLink Ltd","Live","Distribution Connection Use of System Agreement","DCP 325","Reviewing the requirements of Sections 35A, 35B, Schedule 15 and Schedule 20.","The intent of this Change Proposal is to combine, review and if appropriate, amend the requirements of Section 35A, Section 35B, Schedule 15 and Schedule 20 to improve transparency and efficiency in the data published by DNOs","Northern Powergrid","2018-07-11",null,null,"Standard Change Proposal","DCP 325 Change Proposal ","Under Development - Definition Stage",null,"-","-","ElectraLink Ltd","Live","Distribution Connection Use of System Agreement","DCP 325","Reviewing the requirements of Sections 35A, 35B, Schedule 15 and Schedule 20.","The intent of this Change Proposal is to combine, review and if appropriate, amend the requirements of Section 35A, Section 35B, Schedule 15 and Schedule 20 to improve transparency and efficiency in the data published by DNOs","Northern Powergrid","2018-07-11",null,null,"Standard Change Proposal","DCP 325 Change Proposal ","Under Development - Definition Stage",null,"-","-","ElectraLink Ltd","Live","Distribution Connection Use of System Agreement","DCP 325","Reviewing the requirements of Sections 35A, 35B, Schedule 15 and Schedule 20.","The intent of this Change Proposal is to combine, review and if appropriate, amend the requirements of Section 35A, Section 35B, Schedule 15 and Schedule 20 to improve transparency and efficiency in the data published by DNOs","Northern Powergrid","2018-07-11",null,null,"Standard Change Proposal","DCP 325 Change Proposal ","Under Development - Definition Stage",null,"-","-","ElectraLink Ltd","Live","Distribution Connection Use of System Agreement","DCP 325","Reviewing the requirements of Sections 35A, 35B, Schedule 15 and Schedule 20.","The intent of this Change Proposal is to combine, review and if appropriate, amend the requirements of Section 35A, Section 35B, Schedule 15 and Schedule 20 to improve transparency and efficiency in the data published by DNOs","Northern Powergrid","2018-07-11",null,null,"Standard Change Proposal","DCP 325 Change Proposal ","Under Development - Definition Stage",null,"-","-","ElectraLink Ltd","Live","Distribution Connection Use of System Agreement","DCP 325","Reviewing the requirements of Sections 35A, 35B, Schedule 15 and Schedule 20.","The intent of this Change Proposal is to combine, review and if appropriate, amend the requirements of Section 35A, Section 35B, Schedule 15 and Schedule 20 to improve transparency and efficiency in the data published by DNOs","Northern Powergrid","2018-07-11",null,null,"Standard Change Proposal","DCP 325 Change Proposal ","Under Development - Definition Stage",null,"-","-","ElectraLink Ltd","Live","Distribution Connection Use of System Agreement","DCP 325","Reviewing the requirements of Sections 35A, 35B, Schedule 15 and Schedule 20.","The intent of this Change Proposal is to combine, review and if appropriate, amend the requirements of Section 35A, Section 35B, Schedule 15 and Schedule 20 to improve transparency and efficiency in the data published by DNOs","Northern Powergrid","2018-07-11",null,null,"Standard Change Proposal","DCP 325 Change Proposal ","Under Development - Definition Stage",null,"-","-","ElectraLink Ltd","Live","Distribution Connection Use of System Agreement","DCP 325","Reviewing the requirements of Sections 35A, 35B, Schedule 15 and Schedule 20.","The intent of this Change Proposal is to combine, review and if appropriate, amend the requirements of Section 35A, Section 35B, Schedule 15 and Schedule 20 to improve transparency and efficiency in the data published by DNOs","Northern Powergrid","2018-07-11",null,null,"Standard Change Proposal","DCP 325 Change Proposal ","Under Development - Definition Stage",null,"-","-","ElectraLink Ltd","Live","Distribution Connection Use of System Agreement","DCP 325","Reviewing the requirements of Sections 35A, 35B, Schedule 15 and Schedule 20.","The intent of this Change Proposal is to combine, review and if appropriate, amend the requirements of Section 35A, Section 35B, Schedule 15 and Schedule 20 to improve transparency and efficiency in the data published by DNOs","Northern Powergrid","2018-07-11",null,null,"Standard Change Proposal","DCP 325 Change Proposal ","Under Development - Definition Stage",null,"-","-","ElectraLink Ltd","Live","Distribution Connection Use of System Agreement","DCP 325","Reviewing the requirements of Sections 35A, 35B, Schedule 15 and Schedule 20.","The intent of this Change Proposal is to combine, review and if appropriate, amend the requirements of Section 35A, Section 35B, Schedule 15 and Schedule 20 to improve transparency and efficiency in the data published by DNOs","Northern Powergrid","2018-07-11",null,null,"Standard Change Proposal","DCP 325 Change Proposal ","Under Development - Definition Stage",null,"-","-","ElectraLink Ltd","Live","Distribution Connection Use of System Agreement","DCP 325","Reviewing the requirements of Sections 35A, 35B, Schedule 15 and Schedule 20.","The intent of this Change Proposal is to combine, review and if appropriate, amend the requirements of Section 35A, Section 35B, Schedule 15 and Schedule 20 to improve transparency and efficiency in the data published by DNOs","Northern Powergrid","2018-07-11",null,null,"Standard Change Proposal","DCP 325 Change Proposal ","Under Development - Definition Stage",null,"-","-","ElectraLink Ltd","Live","Distribution Connection Use of System Agreement","DCP 325","Reviewing the requirements of Sections 35A, 35B, Schedule 15 and Schedule 20.","The intent of this Change Proposal is to combine, review and if appropriate, amend the requirements of Section 35A, Section 35B, Schedule 15 and Schedule 20 to improve transparency and efficiency in the data published by DNOs","Northern Powergrid","2018-07-11",null,null,"Standard Change Proposal","DCP 325 Change Proposal ","Under Development - Definition Stage",null,"-","-","ElectraLink Ltd","Live","Distribution Connection Use of System Agreement","DCP 325","Reviewing the requirements of Sections 35A, 35B, Schedule 15 and Schedule 20.","The intent of this Change Proposal is to combine, review and if appropriate, amend the requirements of Section 35A, Section 35B, Schedule 15 and Schedule 20 to improve transparency and efficiency in the data published by DNOs","Northern Powergrid","2018-07-11",null,null,"Standard Change Proposal","DCP 325 Change Proposal ","Under Development - Definition Stage",null,"-","-","ElectraLink Ltd","Live","Distribution Connection Use of System Agreement","DCP 325","Reviewing the requirements of Sections 35A, 35B, Schedule 15 and Schedule 20.","The intent of this Change Proposal is to combine, review and if appropriate, amend the requirements of Section 35A, Section 35B, Schedule 15 and Schedule 20 to improve transparency and efficiency in the data published by DNOs","Northern Powergrid","2018-07-11",null,null,"Standard Change Proposal","DCP 325 Change Proposal ","Under Development - Definition Stage",null,"-","-","ElectraLink Ltd","Live","Distribution Connection Use of System Agreement","DCP 325","Reviewing the requirements of Sections 35A, 35B, Schedule 15 and Schedule 20.","The intent of this Change Proposal is to combine, review and if appropriate, amend the requirements of Section 35A, Section 35B, Schedule 15 and Schedule 20 to improve transparency and efficiency in the data published by DNOs","Northern Powergrid","2018-07-11",null,null,"Standard Change Proposal","DCP 325 Change Proposal ","Under Development - Definition Stage",null,"-","-","ElectraLink Ltd","Live","Distribution Connection Use of System Agreement","DCP 325","Reviewing the requirements of Sections 35A, 35B, Schedule 15 and Schedule 20.","The intent of this Change Proposal is to combine, review and if appropriate, amend the requirements of Section 35A, Section 35B, Schedule 15 and Schedule 20 to improve transparency and efficiency in the data published by DNOs","Northern Powergrid","2018-07-11",null,null,"Standard Change Proposal","DCP 325 Change Proposal ","Under Development - Definition Stage",null,"-","-","ElectraLink Ltd","Live","Distribution Connection Use of System Agreement","DCP 325","Reviewing the requirements of Sections 35A, 35B, Schedule 15 and Schedule 20.","The intent of this Change Proposal is to combine, review and if appropriate, amend the requirements of Section 35A, Section 35B, Schedule 15 and Schedule 20 to improve transparency and efficiency in the data published by DNOs","Northern Powergrid","2018-07-11",null,null,"Standard Change Proposal","DCP 325 Change Proposal ","Under Development - Definition Stage",null,"-","-","ElectraLink Ltd","Live","Distribution Connection Use of System Agreement","DCP 325","Reviewing the requirements of Sections 35A, 35B, Schedule 15 and Schedule 20.","The intent of this Change Proposal is to combine, review and if appropriate, amend the requirements of Section 35A, Section 35B, Schedule 15 and Schedule 20 to improve transparency and efficiency in the data published by DNOs","Northern Powergrid","2018-07-11",null,null,"Standard Change Proposal","DCP 325 Change Proposal ","Under Development - Definition Stage",null,"-","-","ElectraLink Ltd","Live","Distribution Connection Use of System Agreement","DCP 325","Reviewing the requirements of Sections 35A, 35B, Schedule 15 and Schedule 20.","The intent of this Change Proposal is to combine, review and if appropriate, amend the requirements of Section 35A, Section 35B, Schedule 15 and Schedule 20 to improve transparency and efficiency in the data published by DNOs","Northern Powergrid","2018-07-11",null,null,"Standard Change Proposal","DCP 325 Change Proposal ","Under Development - Definition Stage",null,"-","-","ElectraLink Ltd","Live","Distribution Connection Use of System Agreement","DCP 325","Reviewing the requirements of Sections 35A, 35B, Schedule 15 and Schedule 20.","The intent of this Change Proposal is to combine, review and if appropriate, amend the requirements of Section 35A, Section 35B, Schedule 15 and Schedule 20 to improve transparency and efficiency in the data published by DNOs","Northern Powergrid","2018-07-11",null,null,"Standard Change Proposal","DCP 325 Change Proposal ","Under Development - Definition Stage",null,"-","-","ElectraLink Ltd","Live","Distribution Connection Use of System Agreement","DCP 325","Reviewing the requirements of Sections 35A, 35B, Schedule 15 and Schedule 20.","The intent of this Change Proposal is to combine, review and if appropriate, amend the requirements of Section 35A, Section 35B, Schedule 15 and Schedule 20 to improve transparency and efficiency in the data published by DNOs","Northern Powergrid","2018-07-11",null,null,"Standard Change Proposal","DCP 325 Change Proposal ","Under Development - Definition Stage",null,"-","-","ElectraLink Ltd","Live","Distribution Connection Use of System Agreement","DCP 325","Reviewing the requirements of Sections 35A, 35B, Schedule 15 and Schedule 20.","The intent of this Change Proposal is to combine, review and if appropriate, amend the requirements of Section 35A, Section 35B, Schedule 15 and Schedule 20 to improve transparency and efficiency in the data published by DNOs","Northern Powergrid","2018-07-11",null,null,"Standard Change Proposal","DCP 325 Change Proposal ","Under Development - Definition Stage",null,"-","-","ElectraLink Ltd","Live","Distribution Connection Use of System Agreement","DCP 325","Reviewing the requirements of Sections 35A, 35B, Schedule 15 and Schedule 20.","The intent of this Change Proposal is to combine, review and if appropriate, amend the requirements of Section 35A, Section 35B, Schedule 15 and Schedule 20 to improve transparency and efficiency in the data published by DNOs","Northern Powergrid","2018-07-11",null,null,"Standard Change Proposal","DCP 325 Change Proposal ","Under Development - Definition Stage",null,"-","-","ElectraLink Ltd","Live","Distribution Connection Use of System Agreement","DCP 325","Reviewing the requirements of Sections 35A, 35B, Schedule 15 and Schedule 20.","The intent of this Change Proposal is to combine, review and if appropriate, amend the requirements of Section 35A, Section 35B, Schedule 15 and Schedule 20 to improve transparency and efficiency in the data published by DNOs","Northern Powergrid","2018-07-11",null,null,"Standard Change Proposal","DCP 325 Change Proposal ","Under Development - Definition Stage",null,"-","-","ElectraLink Ltd","Live","Distribution Connection Use of System Agreement","DCP 325","Reviewing the requirements of Sections 35A, 35B, Schedule 15 and Schedule 20.","The intent of this Change Proposal is to combine, review and if appropriate, amend the requirements of Section 35A, Section 35B, Schedule 15 and Schedule 20 to improve transparency and efficiency in the data published by DNOs","Northern Powergrid","2018-07-11",null,null,"Standard Change Proposal","DCP 325 Change Proposal ","Under Development - Definition Stage",null,"-","-","ElectraLink Ltd","Live","Distribution Connection Use of System Agreement","DCP 325","Reviewing the requirements of Sections 35A, 35B, Schedule 15 and Schedule 20.","The intent of this Change Proposal is to combine, review and if appropriate, amend the requirements of Section 35A, Section 35B, Schedule 15 and Schedule 20 to improve transparency and efficiency in the data published by DNOs","Northern Powergrid","2018-07-11",null,null,"Standard Change Proposal","DCP 325 Change Proposal ","Under Development - Definition Stage",null,"-","-","ElectraLink Ltd","Live","Distribution Connection Use of System Agreement","DCP 325","Reviewing the requirements of Sections 35A, 35B, Schedule 15 and Schedule 20.","The intent of this Change Proposal is to combine, review and if appropriate, amend the requirements of Section 35A, Section 35B, Schedule 15 and Schedule 20 to improve transparency and efficiency in the data published by DNOs","Northern Powergrid","2018-07-11",null,null,"Standard Change Proposal","DCP 325 Change Proposal ","Under Development - Definition Stage",null,"-","-","ElectraLink Ltd","Live","Distribution Connection Use of System Agreement","DCP 325","Reviewing the requirements of Sections 35A, 35B, Schedule 15 and Schedule 20.","The intent of this Change Proposal is to combine, review and if appropriate, amend the requirements of Section 35A, Section 35B, Schedule 15 and Schedule 20 to improve transparency and efficiency in the data published by DNOs","Northern Powergrid","2018-07-11",null,null,"Standard Change Proposal","DCP 325 Change Proposal ","Under Development - Definition Stage",null,"-","-","ElectraLink Ltd","Live","Distribution Connection Use of System Agreement","DCP 325","Reviewing the requirements of Sections 35A, 35B, Schedule 15 and Schedule 20.","The intent of this Change Proposal is to combine, review and if appropriate, amend the requirements of Section 35A, Section 35B, Schedule 15 and Schedule 20 to improve transparency and efficiency in the data published by DNOs","Northern Powergrid","2018-07-11",null,null,"Standard Change Proposal","DCP 325 Change Proposal ","Under Development - Definition Stage",null,"-","-","ElectraLink Ltd","Live","Distribution Connection Use of System Agreement","DCP 325","Reviewing the requirements of Sections 35A, 35B, Schedule 15 and Schedule 20.","The intent of this Change Proposal is to combine, review and if appropriate, amend the requirements of Section 35A, Section 35B, Schedule 15 and Schedule 20 to improve transparency and efficiency in the data published by DNOs","Northern Powergrid","2018-07-11",null,null,"Standard Change Proposal","DCP 325 Change Proposal ","Under Development - Definition Stage",null,"-","-","ElectraLink Ltd","Live","Distribution Connection Use of System Agreement","DCP 325","Reviewing the requirements of Sections 35A, 35B, Schedule 15 and Schedule 20.","The intent of this Change Proposal is to combine, review and if appropriate, amend the requirements of Section 35A, Section 35B, Schedule 15 and Schedule 20 to improve transparency and efficiency in the data published by DNOs","Northern Powergrid","2018-07-11",null,null,"Standard Change Proposal","DCP 325 Change Proposal ","Under Development - Definition Stage",null,"-","-","ElectraLink Ltd","Live","Distribution Connection Use of System Agreement","DCP 325","Reviewing the requirements of Sections 35A, 35B, Schedule 15 and Schedule 20.","The intent of this Change Proposal is to combine, review and if appropriate, amend the requirements of Section 35A, Section 35B, Schedule 15 and Schedule 20 to improve transparency and efficiency in the data published by DNOs","Northern Powergrid","2018-07-11",null,null,"Standard Change Proposal","DCP 325 Change Proposal ","Under Development - Definition Stage",null,"-","-","ElectraLink Ltd","Live","Distribution Connection Use of System Agreement","DCP 325","Reviewing the requirements of Sections 35A, 35B, Schedule 15 and Schedule 20.","The intent of this Change Proposal is to combine, review and if appropriate, amend the requirements of Section 35A, Section 35B, Schedule 15 and Schedule 20 to improve transparency and efficiency in the data published by DNOs","Northern Powergrid","2018-07-11",null,null,"Standard Change Proposal","DCP 325 Change Proposal ","Under Development - Definition Stage",null,"-","-","ElectraLink Ltd","Live","Distribution Connection Use of System Agreement","DCP 325","Reviewing the requirements of Sections 35A, 35B, Schedule 15 and Schedule 20.","The intent of this Change Proposal is to combine, review and if appropriate, amend the requirements of Section 35A, Section 35B, Schedule 15 and Schedule 20 to improve transparency and efficiency in the data published by DNOs","Northern Powergrid","2018-07-11",null,null,"Standard Change Proposal","DCP 325 Change Proposal ","Under Development - Definition Stage",null,"-","-","ElectraLink Ltd","Live","Distribution Connection Use of System Agreement","DCP 325","Reviewing the requirements of Sections 35A, 35B, Schedule 15 and Schedule 20.","The intent of this Change Proposal is to combine, review and if appropriate, amend the requirements of Section 35A, Section 35B, Schedule 15 and Schedule 20 to improve transparency and efficiency in the data published by DNOs","Northern Powergrid","2018-07-11",null,null,"Standard Change Proposal","DCP 325 Change Proposal ","Under Development - Definition Stage",null,"-","-","ElectraLink Ltd","Live","Distribution Connection Use of System Agreement","DCP 325","Reviewing the requirements of Sections 35A, 35B, Schedule 15 and Schedule 20.","The intent of this Change Proposal is to combine, review and if appropriate, amend the requirements of Section 35A, Section 35B, Schedule 15 and Schedule 20 to improve transparency and efficiency in the data published by DNOs","Northern Powergrid","2018-07-11",null,null,"Standard Change Proposal","DCP 325 Change Proposal ","Under Development - Definition Stage",null,"-","-","ElectraLink Ltd","Live","Distribution Connection Use of System Agreement","DCP 325","Reviewing the requirements of Sections 35A, 35B, Schedule 15 and Schedule 20.","The intent of this Change Proposal is to combine, review and if appropriate, amend the requirements of Section 35A, Section 35B, Schedule 15 and Schedule 20 to improve transparency and efficiency in the data published by DNOs","Northern Powergrid","2018-07-11",null,null,"Standard Change Proposal","DCP 325 Change Proposal ","Under Development - Definition Stage",null,"-","-","ElectraLink Ltd","Live","Distribution Connection Use of System Agreement","DCP 325","Reviewing the requirements of Sections 35A, 35B, Schedule 15 and Schedule 20.","The intent of this Change Proposal is to combine, review and if appropriate, amend the requirements of Section 35A, Section 35B, Schedule 15 and Schedule 20 to improve transparency and efficiency in the data published by DNOs","Northern Powergrid","2018-07-11",null,null,"Standard Change Proposal","DCP 325 Change Proposal ","Under Development - Definition Stage",null,"-","-","ElectraLink Ltd","Live","Distribution Connection Use of System Agreement","DCP 325","Reviewing the requirements of Sections 35A, 35B, Schedule 15 and Schedule 20.","The intent of this Change Proposal is to combine, review and if appropriate, amend the requirements of Section 35A, Section 35B, Schedule 15 and Schedule 20 to improve transparency and efficiency in the data published by DNOs","Northern Powergrid","2018-07-11",null,null,"Standard Change Proposal","DCP 325 Change Proposal ","Under Development - Definition Stage",null,"-","-","ElectraLink Ltd","Live","Distribution Connection Use of System Agreement","DCP 325","Reviewing the requirements of Sections 35A, 35B, Schedule 15 and Schedule 20.","The intent of this Change Proposal is to combine, review and if appropriate, amend the requirements of Section 35A, Section 35B, Schedule 15 and Schedule 20 to improve transparency and efficiency in the data published by DNOs","Northern Powergrid","2018-07-11",null,null,"Standard Change Proposal","DCP 325 Change Proposal ","Under Development - Definition Stage",null,"-","-","ElectraLink Ltd","Live","Distribution Connection Use of System Agreement","DCP 325","Reviewing the requirements of Sections 35A, 35B, Schedule 15 and Schedule 20.","The intent of this Change Proposal is to combine, review and if appropriate, amend the requirements of Section 35A, Section 35B, Schedule 15 and Schedule 20 to improve transparency and efficiency in the data published by DNOs","Northern Powergrid","2018-07-11",null,null,"Standard Change Proposal","DCP 325 Change Proposal ","Under Development - Definition Stage",null,"-","-","ElectraLink Ltd","Live","Distribution Connection Use of System Agreement","DCP 325","Reviewing the requirements of Sections 35A, 35B, Schedule 15 and Schedule 20.","The intent of this Change Proposal is to combine, review and if appropriate, amend the requirements of Section 35A, Section 35B, Schedule 15 and Schedule 20 to improve transparency and efficiency in the data published by DNOs","Northern Powergrid","2018-07-11",null,null,"Standard Change Proposal","DCP 325 Change Proposal ","Under Development - Definition Stage",null,"-","-","ElectraLink Ltd","Live","Distribution Connection Use of System Agreement","DCP 325","Reviewing the requirements of Sections 35A, 35B, Schedule 15 and Schedule 20.","The intent of this Change Proposal is to combine, review and if appropriate, amend the requirements of Section 35A, Section 35B, Schedule 15 and Schedule 20 to improve transparency and efficiency in the data published by DNOs","Northern Powergrid","2018-07-11",null,null,"Standard Change Proposal","DCP 325 Change Proposal ","Under Development - Definition Stage",null,"-","-","ElectraLink Ltd","Live","Distribution Connection Use of System Agreement","DCP 325","Reviewing the requirements of Sections 35A, 35B, Schedule 15 and Schedule 20.","The intent of this Change Proposal is to combine, review and if appropriate, amend the requirements of Section 35A, Section 35B, Schedule 15 and Schedule 20 to improve transparency and efficiency in the data published by DNOs","Northern Powergrid","2018-07-11",null,null,"Standard Change Proposal","DCP 325 Change Proposal ","Under Development - Definition Stage",null,"-","-","ElectraLink Ltd","Live","Distribution Connection Use of System Agreement","DCP 325","Reviewing the requirements of Sections 35A, 35B, Schedule 15 and Schedule 20.","The intent of this Change Proposal is to combine, review and if appropriate, amend the requirements of Section 35A, Section 35B, Schedule 15 and Schedule 20 to improve transparency and efficiency in the data published by DNOs","Northern Powergrid","2018-07-11",null,null,"Standard Change Proposal","DCP 325 Change Proposal ","Under Development - Definition Stage",null,"-","-","ElectraLink Ltd","Live","Distribution Connection Use of System Agreement","DCP 325","Reviewing the requirements of Sections 35A, 35B, Schedule 15 and Schedule 20.","The intent of this Change Proposal is to combine, review and if appropriate, amend the requirements of Section 35A, Section 35B, Schedule 15 and Schedule 20 to improve transparency and efficiency in the data published by DNOs","Northern Powergrid","2018-07-11",null,null,"Standard Change Proposal","DCP 325 Change Proposal ","Under Development - Definition Stage",null,"-","-","ElectraLink Ltd","Live","Distribution Connection Use of System Agreement","DCP 325","Reviewing the requirements of Sections 35A, 35B, Schedule 15 and Schedule 20.","The intent of this Change Proposal is to combine, review and if appropriate, amend the requirements of Section 35A, Section 35B, Schedule 15 and Schedule 20 to improve transparency and efficiency in the data published by DNOs","Northern Powergrid","2018-07-11",null,null,"Standard Change Proposal","DCP 325 Change Proposal ","Under Development - Definition Stage",null,"-","-","ElectraLink Ltd","Live","Distribution Connection Use of System Agreement","DCP 325","Reviewing the requirements of Sections 35A, 35B, Schedule 15 and Schedule 20.","The intent of this Change Proposal is to combine, review and if appropriate, amend the requirements of Section 35A, Section 35B, Schedule 15 and Schedule 20 to improve transparency and efficiency in the data published by DNOs","Northern Powergrid","2018-07-11",null,null,"Standard Change Proposal","DCP 325 Change Proposal ","Under Development - Definition Stage",null,"-","-","ElectraLink Ltd","Live","Distribution Connection Use of System Agreement","DCP 325","Reviewing the requirements of Sections 35A, 35B, Schedule 15 and Schedule 20.","The intent of this Change Proposal is to combine, review and if appropriate, amend the requirements of Section 35A, Section 35B, Schedule 15 and Schedule 20 to improve transparency and efficiency in the data published by DNOs","Northern Powergrid","2018-07-11",null,null,"Standard Change Proposal","DCP 325 Change Proposal ","Under Development - Definition Stage",null,"-","-","ElectraLink Ltd","Live","Distribution Connection Use of System Agreement","DCP 325","Reviewing the requirements of Sections 35A, 35B, Schedule 15 and Schedule 20.","The intent of this Change Proposal is to combine, review and if appropriate, amend the requirements of Section 35A, Section 35B, Schedule 15 and Schedule 20 to improve transparency and efficiency in the data published by DNOs","Northern Powergrid","2018-07-11",null,null,"Standard Change Proposal","DCP 325 Change Proposal ","Under Development - Definition Stage",null,"-","-","ElectraLink Ltd","Live","Distribution Connection Use of System Agreement","DCP 325","Reviewing the requirements of Sections 35A, 35B, Schedule 15 and Schedule 20.","The intent of this Change Proposal is to combine, review and if appropriate, amend the requirements of Section 35A, Section 35B, Schedule 15 and Schedule 20 to improve transparency and efficiency in the data published by DNOs","Northern Powergrid","2018-07-11",null,null,"Standard Change Proposal","DCP 325 Change Proposal ","Under Development - Definition Stage",null,"-","-","ElectraLink Ltd","Live","Distribution Connection Use of System Agreement","DCP 325","Reviewing the requirements of Sections 35A, 35B, Schedule 15 and Schedule 20.","The intent of this Change Proposal is to combine, review and if appropriate, amend the requirements of Section 35A, Section 35B, Schedule 15 and Schedule 20 to improve transparency and efficiency in the data published by DNOs","Northern Powergrid","2018-07-11",null,null,"Standard Change Proposal","DCP 325 Change Proposal ","Under Development - Definition Stage",null,"-","-","ElectraLink Ltd","Live","Distribution Connection Use of System Agreement","DCP 325","Reviewing the requirements of Sections 35A, 35B, Schedule 15 and Schedule 20.","The intent of this Change Proposal is to combine, review and if appropriate, amend the requirements of Section 35A, Section 35B, Schedule 15 and Schedule 20 to improve transparency and efficiency in the data published by DNOs","Northern Powergrid","2018-07-11",null,null,"Standard Change Proposal","DCP 325 Change Proposal ","Under Development - Definition Stage",null,"-","-","ElectraLink Ltd","Live","Distribution Connection Use of System Agreement","DCP 325","Reviewing the requirements of Sections 35A, 35B, Schedule 15 and Schedule 20.","The intent of this Change Proposal is to combine, review and if appropriate, amend the requirements of Section 35A, Section 35B, Schedule 15 and Schedule 20 to improve transparency and efficiency in the data published by DNOs","Northern Powergrid","2018-07-11",null,null,"Standard Change Proposal","DCP 325 Change Proposal ","Under Development - Definition Stage",null,"-","-","ElectraLink Ltd","Live","Distribution Connection Use of System Agreement","DCP 325","Reviewing the requirements of Sections 35A, 35B, Schedule 15 and Schedule 20.","The intent of this Change Proposal is to combine, review and if appropriate, amend the requirements of Section 35A, Section 35B, Schedule 15 and Schedule 20 to improve transparency and efficiency in the data published by DNOs","Northern Powergrid","2018-07-11",null,null,"Standard Change Proposal","DCP 325 Change Proposal ","Under Development - Definition Stage",null,"-","-","ElectraLink Ltd","Live","Distribution Connection Use of System Agreement","DCP 325","Reviewing the requirements of Sections 35A, 35B, Schedule 15 and Schedule 20.","The intent of this Change Proposal is to combine, review and if appropriate, amend the requirements of Section 35A, Section 35B, Schedule 15 and Schedule 20 to improve transparency and efficiency in the data published by DNOs","Northern Powergrid","2018-07-11",null,null,"Standard Change Proposal","DCP 325 Change Proposal ","Under Development - Definition Stage",null,"-","-","ElectraLink Ltd","Live","Distribution Connection Use of System Agreement","DCP 325","Reviewing the requirements of Sections 35A, 35B, Schedule 15 and Schedule 20.","The intent of this Change Proposal is to combine, review and if appropriate, amend the requirements of Section 35A, Section 35B, Schedule 15 and Schedule 20 to improve transparency and efficiency in the data published by DNOs","Northern Powergrid","2018-07-11",null,null,"Standard Change Proposal","DCP 325 Change Proposal ","Under Development - Definition Stage",null,"-","-","ElectraLink Ltd","Live","Distribution Connection Use of System Agreement","DCP 325","Reviewing the requirements of Sections 35A, 35B, Schedule 15 and Schedule 20.","The intent of this Change Proposal is to combine, review and if appropriate, amend the requirements of Section 35A, Section 35B, Schedule 15 and Schedule 20 to improve transparency and efficiency in the data published by DNOs","Northern Powergrid","2018-07-11",null,null,"Standard Change Proposal","DCP 325 Change Proposal ","Under Development - Definition Stage",null,"-","-","ElectraLink Ltd","Live","Distribution Connection Use of System Agreement","DCP 325","Reviewing the requirements of Sections 35A, 35B, Schedule 15 and Schedule 20.","The intent of this Change Proposal is to combine, review and if appropriate, amend the requirements of Section 35A, Section 35B, Schedule 15 and Schedule 20 to improve transparency and efficiency in the data published by DNOs","Northern Powergrid","2018-07-11",null,null,"Standard Change Proposal","DCP 325 Change Proposal ","Under Development - Definition Stage",null,"-","-","ElectraLink Ltd","Live","Distribution Connection Use of System Agreement","DCP 325","Reviewing the requirements of Sections 35A, 35B, Schedule 15 and Schedule 20.","The intent of this Change Proposal is to combine, review and if appropriate, amend the requirements of Section 35A, Section 35B, Schedule 15 and Schedule 20 to improve transparency and efficiency in the data published by DNOs","Northern Powergrid","2018-07-11",null,null,"Standard Change Proposal","DCP 325 Change Proposal ","Under Development - Definition Stage",null,"-","-","ElectraLink Ltd","Live","Distribution Connection Use of System Agreement","DCP 325","Reviewing the requirements of Sections 35A, 35B, Schedule 15 and Schedule 20.","The intent of this Change Proposal is to combine, review and if appropriate, amend the requirements of Section 35A, Section 35B, Schedule 15 and Schedule 20 to improve transparency and efficiency in the data published by DNOs","Northern Powergrid","2018-07-11",null,null,"Standard Change Proposal","DCP 325 Change Proposal ","Under Development - Definition Stage",null,"-","-","ElectraLink Ltd","Live","Distribution Connection Use of System Agreement","DCP 325","Reviewing the requirements of Sections 35A, 35B, Schedule 15 and Schedule 20.","The intent of this Change Proposal is to combine, review and if appropriate, amend the requirements of Section 35A, Section 35B, Schedule 15 and Schedule 20 to improve transparency and efficiency in the data published by DNOs","Northern Powergrid","2018-07-11",null,null,"Standard Change Proposal","DCP 325 Change Proposal ","Under Development - Definition Stage",null,"-","-","ElectraLink Ltd","Live","Distribution Connection Use of System Agreement","DCP 325","Reviewing the requirements of Sections 35A, 35B, Schedule 15 and Schedule 20.","The intent of this Change Proposal is to combine, review and if appropriate, amend the requirements of Section 35A, Section 35B, Schedule 15 and Schedule 20 to improve transparency and efficiency in the data published by DNOs","Northern Powergrid","2018-07-11",null,null,"Standard Change Proposal","DCP 325 Change Proposal ","Under Development - Definition Stage",null,"-","-","ElectraLink Ltd","Live","Distribution Connection Use of System Agreement","DCP 325","Reviewing the requirements of Sections 35A, 35B, Schedule 15 and Schedule 20.","The intent of this Change Proposal is to combine, review and if appropriate, amend the requirements of Section 35A, Section 35B, Schedule 15 and Schedule 20 to improve transparency and efficiency in the data published by DNOs","Northern Powergrid","2018-07-11",null,null,"Standard Change Proposal","DCP 325 Change Proposal ","Under Development - Definition Stage",null,"-","-","ElectraLink Ltd","Live","Distribution Connection Use of System Agreement","DCP 325","Reviewing the requirements of Sections 35A, 35B, Schedule 15 and Schedule 20.","The intent of this Change Proposal is to combine, review and if appropriate, amend the requirements of Section 35A, Section 35B, Schedule 15 and Schedule 20 to improve transparency and efficiency in the data published by DNOs","Northern Powergrid","2018-07-11",null,null,"Standard Change Proposal","DCP 325 Change Proposal ","Under Development - Definition Stage",null,"-","-","ElectraLink Ltd","Live","Distribution Connection Use of System Agreement","DCP 325","Reviewing the requirements of Sections 35A, 35B, Schedule 15 and Schedule 20.","The intent of this Change Proposal is to combine, review and if appropriate, amend the requirements of Section 35A, Section 35B, Schedule 15 and Schedule 20 to improve transparency and efficiency in the data published by DNOs","Northern Powergrid","2018-07-11",null,null,"Standard Change Proposal","DCP 325 Change Proposal ","Under Development - Definition Stage",null,"-","-","ElectraLink Ltd","Live","Distribution Connection Use of System Agreement","DCP 325","Reviewing the requirements of Sections 35A, 35B, Schedule 15 and Schedule 20.","The intent of this Change Proposal is to combine, review and if appropriate, amend the requirements of Section 35A, Section 35B, Schedule 15 and Schedule 20 to improve transparency and efficiency in the data published by DNOs","Northern Powergrid","2018-07-11",null,null,"Standard Change Proposal","DCP 325 Change Proposal ","Under Development - Definition Stage",null,"-","-","ElectraLink Ltd","Live","Distribution Connection Use of System Agreement","DCP 325","Reviewing the requirements of Sections 35A, 35B, Schedule 15 and Schedule 20.","The intent of this Change Proposal is to combine, review and if appropriate, amend the requirements of Section 35A, Section 35B, Schedule 15 and Schedule 20 to improve transparency and efficiency in the data published by DNOs","Northern Powergrid","2018-07-11",null,null,"Standard Change Proposal","DCP 325 Change Proposal ","Under Development - Definition Stage",null,"-","-","ElectraLink Ltd","Live","Distribution Connection Use of System Agreement","DCP 325","Reviewing the requirements of Sections 35A, 35B, Schedule 15 and Schedule 20.","The intent of this Change Proposal is to combine, review and if appropriate, amend the requirements of Section 35A, Section 35B, Schedule 15 and Schedule 20 to improve transparency and efficiency in the data published by DNOs","Northern Powergrid","2018-07-11",null,null,"Standard Change Proposal","DCP 325 Change Proposal ","Under Development - Definition Stage",null,"-","-","ElectraLink Ltd","Live","Distribution Connection Use of System Agreement","DCP 325","Reviewing the requirements of Sections 35A, 35B, Schedule 15 and Schedule 20.","The intent of this Change Proposal is to combine, review and if appropriate, amend the requirements of Section 35A, Section 35B, Schedule 15 and Schedule 20 to improve transparency and efficiency in the data published by DNOs","Northern Powergrid","2018-07-11",null,null,"Standard Change Proposal","DCP 325 Change Proposal ","Under Development - Definition Stage",null,"-","-","ElectraLink Ltd","Live","Distribution Connection Use of System Agreement","DCP 325","Reviewing the requirements of Sections 35A, 35B, Schedule 15 and Schedule 20.","The intent of this Change Proposal is to combine, review and if appropriate, amend the requirements of Section 35A, Section 35B, Schedule 15 and Schedule 20 to improve transparency and efficiency in the data published by DNOs","Northern Powergrid","2018-07-11",null,null,"Standard Change Proposal","DCP 325 Change Proposal ","Under Development - Definition Stage",null,"-","-","ElectraLink Ltd","Live","Distribution Connection Use of System Agreement","DCP 325","Reviewing the requirements of Sections 35A, 35B, Schedule 15 and Schedule 20.","The intent of this Change Proposal is to combine, review and if appropriate, amend the requirements of Section 35A, Section 35B, Schedule 15 and Schedule 20 to improve transparency and efficiency in the data published by DNOs","Northern Powergrid","2018-07-11",null,null,"Standard Change Proposal","DCP 325 Change Proposal ","Under Development - Definition Stage",null,"-","-","ElectraLink Ltd","Live","Distribution Connection Use of System Agreement","DCP 325","Reviewing the requirements of Sections 35A, 35B, Schedule 15 and Schedule 20.","The intent of this Change Proposal is to combine, review and if appropriate, amend the requirements of Section 35A, Section 35B, Schedule 15 and Schedule 20 to improve transparency and efficiency in the data published by DNOs","Northern Powergrid","2018-07-11",null,null,"Standard Change Proposal","DCP 325 Change Proposal ","Under Development - Definition Stage",null,"-","-","ElectraLink Ltd","Live","Distribution Connection Use of System Agreement","DCP 325","Reviewing the requirements of Sections 35A, 35B, Schedule 15 and Schedule 20.","The intent of this Change Proposal is to combine, review and if appropriate, amend the requirements of Section 35A, Section 35B, Schedule 15 and Schedule 20 to improve transparency and efficiency in the data published by DNOs","Northern Powergrid","2018-07-11",null,null,"Standard Change Proposal","DCP 325 Change Proposal ","Under Development - Definition Stage",null,"-","-","ElectraLink Ltd","Live","Distribution Connection Use of System Agreement","DCP 325","Reviewing the requirements of Sections 35A, 35B, Schedule 15 and Schedule 20.","The intent of this Change Proposal is to combine, review and if appropriate, amend the requirements of Section 35A, Section 35B, Schedule 15 and Schedule 20 to improve transparency and efficiency in the data published by DNOs","Northern Powergrid","2018-07-11",null,null,"Standard Change Proposal","DCP 325 Change Proposal ","Under Development - Definition Stage",null,"-","-","ElectraLink Ltd","Live","Distribution Connection Use of System Agreement","DCP 325","Reviewing the requirements of Sections 35A, 35B, Schedule 15 and Schedule 20.","The intent of this Change Proposal is to combine, review and if appropriate, amend the requirements of Section 35A, Section 35B, Schedule 15 and Schedule 20 to improve transparency and efficiency in the data published by DNOs","Northern Powergrid","2018-07-11",null,null,"Standard Change Proposal","DCP 325 Change Proposal ","Under Development - Definition Stage",null,"-","-","ElectraLink Ltd","Live","Distribution Connection Use of System Agreement","DCP 325","Reviewing the requirements of Sections 35A, 35B, Schedule 15 and Schedule 20.","The intent of this Change Proposal is to combine, review and if appropriate, amend the requirements of Section 35A, Section 35B, Schedule 15 and Schedule 20 to improve transparency and efficiency in the data published by DNOs","Northern Powergrid","2018-07-11",null,null,"Standard Change Proposal","DCP 325 Change Proposal ","Under Development - Definition Stage",null,"-","-","ElectraLink Ltd","Live","Distribution Connection Use of System Agreement","DCP 325","Reviewing the requirements of Sections 35A, 35B, Schedule 15 and Schedule 20.","The intent of this Change Proposal is to combine, review and if appropriate, amend the requirements of Section 35A, Section 35B, Schedule 15 and Schedule 20 to improve transparency and efficiency in the data published by DNOs","Northern Powergrid","2018-07-11",null,null,"Standard Change Proposal","DCP 325 Change Proposal ","Under Development - Definition Stage",null,"-","-","ElectraLink Ltd","Live","Distribution Connection Use of System Agreement","DCP 325","Reviewing the requirements of Sections 35A, 35B, Schedule 15 and Schedule 20.","The intent of this Change Proposal is to combine, review and if appropriate, amend the requirements of Section 35A, Section 35B, Schedule 15 and Schedule 20 to improve transparency and efficiency in the data published by DNOs","Northern Powergrid","2018-07-11",null,null,"Standard Change Proposal","DCP 325 Change Proposal ","Under Development - Definition Stage",null,"-","-","ElectraLink Ltd","Live","Distribution Connection Use of System Agreement","DCP 325","Reviewing the requirements of Sections 35A, 35B, Schedule 15 and Schedule 20.","The intent of this Change Proposal is to combine, review and if appropriate, amend the requirements of Section 35A, Section 35B, Schedule 15 and Schedule 20 to improve transparency and efficiency in the data published by DNOs","Northern Powergrid","2018-07-11",null,null,"Standard Change Proposal","DCP 325 Change Proposal ","Under Development - Definition Stage",null,"-","-","ElectraLink Ltd","Live","Distribution Connection Use of System Agreement","DCP 325","Reviewing the requirements of Sections 35A, 35B, Schedule 15 and Schedule 20.","The intent of this Change Proposal is to combine, review and if appropriate, amend the requirements of Section 35A, Section 35B, Schedule 15 and Schedule 20 to improve transparency and efficiency in the data published by DNOs","Northern Powergrid","2018-07-11",null,null,"Standard Change Proposal","DCP 325 Change Proposal ","Under Development - Definition Stage",null,"-","-","ElectraLink Ltd","Live","Distribution Connection Use of System Agreement","DCP 325","Reviewing the requirements of Sections 35A, 35B, Schedule 15 and Schedule 20.","The intent of this Change Proposal is to combine, review and if appropriate, amend the requirements of Section 35A, Section 35B, Schedule 15 and Schedule 20 to improve transparency and efficiency in the data published by DNOs","Northern Powergrid","2018-07-11",null,null,"Standard Change Proposal","DCP 325 Change Proposal ","Under Development - Definition Stage",null,"-","-","ElectraLink Ltd","Live","Distribution Connection Use of System Agreement","DCP 325","Reviewing the requirements of Sections 35A, 35B, Schedule 15 and Schedule 20.","The intent of this Change Proposal is to combine, review and if appropriate, amend the requirements of Section 35A, Section 35B, Schedule 15 and Schedule 20 to improve transparency and efficiency in the data published by DNOs","Northern Powergrid","2018-07-11",null,null,"Standard Change Proposal","DCP 325 Change Proposal ","Under Development - Definition Stage",null,"-","-","ElectraLink Ltd","Live","Distribution Connection Use of System Agreement","DCP 325","Reviewing the requirements of Sections 35A, 35B, Schedule 15 and Schedule 20.","The intent of this Change Proposal is to combine, review and if appropriate, amend the requirements of Section 35A, Section 35B, Schedule 15 and Schedule 20 to improve transparency and efficiency in the data published by DNOs","Northern Powergrid","2018-07-11",null,null,"Standard Change Proposal","DCP 325 Change Proposal ","Under Development - Definition Stage",null,"-","-","ElectraLink Ltd","Live","Distribution Connection Use of System Agreement","DCP 325","Reviewing the requirements of Sections 35A, 35B, Schedule 15 and Schedule 20.","The intent of this Change Proposal is to combine, review and if appropriate, amend the requirements of Section 35A, Section 35B, Schedule 15 and Schedule 20 to improve transparency and efficiency in the data published by DNOs","Northern Powergrid","2018-07-11",null,null,"Standard Change Proposal","DCP 325 Change Proposal ","Under Development - Definition Stage",null,"-","-","ElectraLink Ltd","Live","Distribution Connection Use of System Agreement","DCP 325","Reviewing the requirements of Sections 35A, 35B, Schedule 15 and Schedule 20.","The intent of this Change Proposal is to combine, review and if appropriate, amend the requirements of Section 35A, Section 35B, Schedule 15 and Schedule 20 to improve transparency and efficiency in the data published by DNOs","Northern Powergrid","2018-07-11",null,null,"Standard Change Proposal","DCP 325 Change Proposal ","Under Development - Definition Stage",null,"-","-","ElectraLink Ltd","Live","Distribution Connection Use of System Agreement","DCP 325","Reviewing the requirements of Sections 35A, 35B, Schedule 15 and Schedule 20.","The intent of this Change Proposal is to combine, review and if appropriate, amend the requirements of Section 35A, Section 35B, Schedule 15 and Schedule 20 to improve transparency and efficiency in the data published by DNOs","Northern Powergrid","2018-07-11",null,null,"Standard Change Proposal","DCP 325 Change Proposal ","Under Development - Definition Stage",null,"-","-","ElectraLink Ltd","Live","Distribution Connection Use of System Agreement","DCP 325","Reviewing the requirements of Sections 35A, 35B, Schedule 15 and Schedule 20.","The intent of this Change Proposal is to combine, review and if appropriate, amend the requirements of Section 35A, Section 35B, Schedule 15 and Schedule 20 to improve transparency and efficiency in the data published by DNOs","Northern Powergrid","2018-07-11",null,null,"Standard Change Proposal","DCP 325 Change Proposal ","Under Development - Definition Stage",null,"-","-","ElectraLink Ltd","Live","Distribution Connection Use of System Agreement","DCP 325","Reviewing the requirements of Sections 35A, 35B, Schedule 15 and Schedule 20.","The intent of this Change Proposal is to combine, review and if appropriate, amend the requirements of Section 35A, Section 35B, Schedule 15 and Schedule 20 to improve transparency and efficiency in the data published by DNOs","Northern Powergrid","2018-07-11",null,null,"Standard Change Proposal","DCP 325 Change Proposal ","Under Development - Definition Stage",null,"-","-","ElectraLink Ltd","Live","Distribution Connection Use of System Agreement","DCP 325","Reviewing the requirements of Sections 35A, 35B, Schedule 15 and Schedule 20.","The intent of this Change Proposal is to combine, review and if appropriate, amend the requirements of Section 35A, Section 35B, Schedule 15 and Schedule 20 to improve transparency and efficiency in the data published by DNOs","Northern Powergrid","2018-07-11",null,null,"Standard Change Proposal","DCP 325 Change Proposal ","Under Development - Definition Stage",null,"-","-","ElectraLink Ltd","Live","Distribution Connection Use of System Agreement","DCP 325","Reviewing the requirements of Sections 35A, 35B, Schedule 15 and Schedule 20.","The intent of this Change Proposal is to combine, review and if appropriate, amend the requirements of Section 35A, Section 35B, Schedule 15 and Schedule 20 to improve transparency and efficiency in the data published by DNOs","Northern Powergrid","2018-07-11",null,null,"Standard Change Proposal","DCP 325 Change Proposal ","Under Development - Definition Stage",null,"-","-","ElectraLink Ltd","Live","Distribution Connection Use of System Agreement","DCP 325","Reviewing the requirements of Sections 35A, 35B, Schedule 15 and Schedule 20.","The intent of this Change Proposal is to combine, review and if appropriate, amend the requirements of Section 35A, Section 35B, Schedule 15 and Schedule 20 to improve transparency and efficiency in the data published by DNOs","Northern Powergrid","2018-07-11",null,null,"Standard Change Proposal","DCP 325 Change Proposal ","Under Development - Definition Stage",null,"-","-","ElectraLink Ltd","Live","Distribution Connection Use of System Agreement","DCP 325","Reviewing the requirements of Sections 35A, 35B, Schedule 15 and Schedule 20.","The intent of this Change Proposal is to combine, review and if appropriate, amend the requirements of Section 35A, Section 35B, Schedule 15 and Schedule 20 to improve transparency and efficiency in the data published by DNOs","Northern Powergrid","2018-07-11",null,null,"Standard Change Proposal","DCP 325 Change Proposal ","Under Development - Definition Stage",null,"-","-","ElectraLink Ltd","Live","Distribution Connection Use of System Agreement","DCP 325","Reviewing the requirements of Sections 35A, 35B, Schedule 15 and Schedule 20.","The intent of this Change Proposal is to combine, review and if appropriate, amend the requirements of Section 35A, Section 35B, Schedule 15 and Schedule 20 to improve transparency and efficiency in the data published by DNOs","Northern Powergrid","2018-07-11",null,null,"Standard Change Proposal","DCP 325 Change Proposal ","Under Development - Definition Stage",null,"-","-","ElectraLink Ltd","Live","Distribution Connection Use of System Agreement","DCP 325","Reviewing the requirements of Sections 35A, 35B, Schedule 15 and Schedule 20.","The intent of this Change Proposal is to combine, review and if appropriate, amend the requirements of Section 35A, Section 35B, Schedule 15 and Schedule 20 to improve transparency and efficiency in the data published by DNOs","Northern Powergrid","2018-07-11",null,null,"Standard Change Proposal","DCP 325 Change Proposal ","Under Development - Definition Stage",null,"-","-","ElectraLink Ltd","Live","Distribution Connection Use of System Agreement","DCP 325","Reviewing the requirements of Sections 35A, 35B, Schedule 15 and Schedule 20.","The intent of this Change Proposal is to combine, review and if appropriate, amend the requirements of Section 35A, Section 35B, Schedule 15 and Schedule 20 to improve transparency and efficiency in the data published by DNOs","Northern Powergrid","2018-07-11",null,null,"Standard Change Proposal","DCP 325 Change Proposal ","Under Development - Definition Stage",null,"-","-","ElectraLink Ltd","Live","Distribution Connection Use of System Agreement","DCP 325","Reviewing the requirements of Sections 35A, 35B, Schedule 15 and Schedule 20.","The intent of this Change Proposal is to combine, review and if appropriate, amend the requirements of Section 35A, Section 35B, Schedule 15 and Schedule 20 to improve transparency and efficiency in the data published by DNOs","Northern Powergrid","2018-07-11",null,null,"Standard Change Proposal","DCP 325 Change Proposal ","Under Development - Definition Stage",null,"-","-","ElectraLink Ltd","Live","Distribution Connection Use of System Agreement","DCP 325","Reviewing the requirements of Sections 35A, 35B, Schedule 15 and Schedule 20.","The intent of this Change Proposal is to combine, review and if appropriate, amend the requirements of Section 35A, Section 35B, Schedule 15 and Schedule 20 to improve transparency and efficiency in the data published by DNOs","Northern Powergrid","2018-07-11",null,null,"Standard Change Proposal","DCP 325 Change Proposal ","Under Development - Definition Stage",null,"-","-","ElectraLink Ltd","Live","Distribution Connection Use of System Agreement","DCP 325","Reviewing the requirements of Sections 35A, 35B, Schedule 15 and Schedule 20.","The intent of this Change Proposal is to combine, review and if appropriate, amend the requirements of Section 35A, Section 35B, Schedule 15 and Schedule 20 to improve transparency and efficiency in the data published by DNOs","Northern Powergrid","2018-07-11",null,null,"Standard Change Proposal","DCP 325 Change Proposal ","Under Development - Definition Stage",null,"-","-","ElectraLink Ltd","Live","Distribution Connection Use of System Agreement","DCP 325","Reviewing the requirements of Sections 35A, 35B, Schedule 15 and Schedule 20.","The intent of this Change Proposal is to combine, review and if appropriate, amend the requirements of Section 35A, Section 35B, Schedule 15 and Schedule 20 to improve transparency and efficiency in the data published by DNOs","Northern Powergrid","2018-07-11",null,null,"Standard Change Proposal","DCP 325 Change Proposal ","Under Development - Definition Stage",null,"-","-","ElectraLink Ltd","Live","Distribution Connection Use of System Agreement","DCP 325","Reviewing the requirements of Sections 35A, 35B, Schedule 15 and Schedule 20.","The intent of this Change Proposal is to combine, review and if appropriate, amend the requirements of Section 35A, Section 35B, Schedule 15 and Schedule 20 to improve transparency and efficiency in the data published by DNOs","Northern Powergrid","2018-07-11",null,null,"Standard Change Proposal","DCP 325 Change Proposal ","Under Development - Definition Stage",null,"-","-","ElectraLink Ltd","Live","Distribution Connection Use of System Agreement","DCP 325","Reviewing the requirements of Sections 35A, 35B, Schedule 15 and Schedule 20.","The intent of this Change Proposal is to combine, review and if appropriate, amend the requirements of Section 35A, Section 35B, Schedule 15 and Schedule 20 to improve transparency and efficiency in the data published by DNOs","Northern Powergrid","2018-07-11",null,null,"Standard Change Proposal","DCP 325 Change Proposal ","Under Development - Definition Stage",null,"-","-","ElectraLink Ltd","Live","Distribution Connection Use of System Agreement","DCP 325","Reviewing the requirements of Sections 35A, 35B, Schedule 15 and Schedule 20.","The intent of this Change Proposal is to combine, review and if appropriate, amend the requirements of Section 35A, Section 35B, Schedule 15 and Schedule 20 to improve transparency and efficiency in the data published by DNOs","Northern Powergrid","2018-07-11",null,null,"Standard Change Proposal","DCP 325 Change Proposal ","Under Development - Definition Stage",null,"-","-","ElectraLink Ltd","Live","Distribution Connection Use of System Agreement","DCP 325","Reviewing the requirements of Sections 35A, 35B, Schedule 15 and Schedule 20.","The intent of this Change Proposal is to combine, review and if appropriate, amend the requirements of Section 35A, Section 35B, Schedule 15 and Schedule 20 to improve transparency and efficiency in the data published by DNOs","Northern Powergrid","2018-07-11",null,null,"Standard Change Proposal","DCP 325 Change Proposal ","Under Development - Definition Stage",null,"-","-","ElectraLink Ltd","Live","Distribution Connection Use of System Agreement","DCP 325","Reviewing the requirements of Sections 35A, 35B, Schedule 15 and Schedule 20.","The intent of this Change Proposal is to combine, review and if appropriate, amend the requirements of Section 35A, Section 35B, Schedule 15 and Schedule 20 to improve transparency and efficiency in the data published by DNOs","Northern Powergrid","2018-07-11",null,null,"Standard Change Proposal","DCP 325 Change Proposal ","Under Development - Definition Stage",null,"-","-","ElectraLink Ltd","Live","Distribution Connection Use of System Agreement","DCP 325","Reviewing the requirements of Sections 35A, 35B, Schedule 15 and Schedule 20.","The intent of this Change Proposal is to combine, review and if appropriate, amend the requirements of Section 35A, Section 35B, Schedule 15 and Schedule 20 to improve transparency and efficiency in the data published by DNOs","Northern Powergrid","2018-07-11",null,null,"Standard Change Proposal","DCP 325 Change Proposal ","Under Development - Definition Stage",null,"-","-","ElectraLink Ltd","Live","Distribution Connection Use of System Agreement","DCP 325","Reviewing the requirements of Sections 35A, 35B, Schedule 15 and Schedule 20.","The intent of this Change Proposal is to combine, review and if appropriate, amend the requirements of Section 35A, Section 35B, Schedule 15 and Schedule 20 to improve transparency and efficiency in the data published by DNOs","Northern Powergrid","2018-07-11",null,null,"Standard Change Proposal","DCP 325 Change Proposal ","Under Development - Definition Stage",null,"-","-","ElectraLink Ltd","Live","Distribution Connection Use of System Agreement","DCP 325","Reviewing the requirements of Sections 35A, 35B, Schedule 15 and Schedule 20.","The intent of this Change Proposal is to combine, review and if appropriate, amend the requirements of Section 35A, Section 35B, Schedule 15 and Schedule 20 to improve transparency and efficiency in the data published by DNOs","Northern Powergrid","2018-07-11",null,null,"Standard Change Proposal","DCP 325 Change Proposal ","Under Development - Definition Stage",null,"-","-","ElectraLink Ltd","Live","Distribution Connection Use of System Agreement","DCP 325","Reviewing the requirements of Sections 35A, 35B, Schedule 15 and Schedule 20.","The intent of this Change Proposal is to combine, review and if appropriate, amend the requirements of Section 35A, Section 35B, Schedule 15 and Schedule 20 to improve transparency and efficiency in the data published by DNOs","Northern Powergrid","2018-07-11",null,null,"Standard Change Proposal","DCP 325 Change Proposal ","Under Development - Definition Stage",null,"-","-","ElectraLink Ltd","Live","Distribution Connection Use of System Agreement","DCP 325","Reviewing the requirements of Sections 35A, 35B, Schedule 15 and Schedule 20.","The intent of this Change Proposal is to combine, review and if appropriate, amend the requirements of Section 35A, Section 35B, Schedule 15 and Schedule 20 to improve transparency and efficiency in the data published by DNOs","Northern Powergrid","2018-07-11",null,null,"Standard Change Proposal","DCP 325 Change Proposal ","Under Development - Definition Stage",null,"-","-","ElectraLink Ltd","Live","Distribution Connection Use of System Agreement","DCP 325","Reviewing the requirements of Sections 35A, 35B, Schedule 15 and Schedule 20.","The intent of this Change Proposal is to combine, review and if appropriate, amend the requirements of Section 35A, Section 35B, Schedule 15 and Schedule 20 to improve transparency and efficiency in the data published by DNOs","Northern Powergrid","2018-07-11",null,null,"Standard Change Proposal","DCP 325 Change Proposal ","Under Development - Definition Stage",null,"-","-","ElectraLink Ltd","Live","Distribution Connection Use of System Agreement","DCP 325","Reviewing the requirements of Sections 35A, 35B, Schedule 15 and Schedule 20.","The intent of this Change Proposal is to combine, review and if appropriate, amend the requirements of Section 35A, Section 35B, Schedule 15 and Schedule 20 to improve transparency and efficiency in the data published by DNOs","Northern Powergrid","2018-07-11",null,null,"Standard Change Proposal","DCP 325 Change Proposal ","Under Development - Definition Stage",null,"-","-","ElectraLink Ltd","Live","Distribution Connection Use of System Agreement","DCP 325","Reviewing the requirements of Sections 35A, 35B, Schedule 15 and Schedule 20.","The intent of this Change Proposal is to combine, review and if appropriate, amend the requirements of Section 35A, Section 35B, Schedule 15 and Schedule 20 to improve transparency and efficiency in the data published by DNOs","Northern Powergrid","2018-07-11",null,null,"Standard Change Proposal","DCP 325 Change Proposal ","Under Development - Definition Stage",null,"-","-","ElectraLink Ltd","Live","Distribution Connection Use of System Agreement","DCP 325","Reviewing the requirements of Sections 35A, 35B, Schedule 15 and Schedule 20.","The intent of this Change Proposal is to combine, review and if appropriate, amend the requirements of Section 35A, Section 35B, Schedule 15 and Schedule 20 to improve transparency and efficiency in the data published by DNOs","Northern Powergrid","2018-07-11",null,null,"Standard Change Proposal","DCP 325 Change Proposal ","Under Development - Definition Stage",null,"-","-","ElectraLink Ltd","Live","Distribution Connection Use of System Agreement","DCP 325","Reviewing the requirements of Sections 35A, 35B, Schedule 15 and Schedule 20.","The intent of this Change Proposal is to combine, review and if appropriate, amend the requirements of Section 35A, Section 35B, Schedule 15 and Schedule 20 to improve transparency and efficiency in the data published by DNOs","Northern Powergrid","2018-07-11",null,null,"Standard Change Proposal","DCP 325 Change Proposal ","Under Development - Definition Stage",null,"-","-","ElectraLink Ltd","Live","Distribution Connection Use of System Agreement","DCP 325","Reviewing the requirements of Sections 35A, 35B, Schedule 15 and Schedule 20.","The intent of this Change Proposal is to combine, review and if appropriate, amend the requirements of Section 35A, Section 35B, Schedule 15 and Schedule 20 to improve transparency and efficiency in the data published by DNOs","Northern Powergrid","2018-07-11",null,null,"Standard Change Proposal","DCP 325 Change Proposal ","Under Development - Definition Stage",null,"-","-","ElectraLink Ltd","Live","Distribution Connection Use of System Agreement","DCP 325","Reviewing the requirements of Sections 35A, 35B, Schedule 15 and Schedule 20.","The intent of this Change Proposal is to combine, review and if appropriate, amend the requirements of Section 35A, Section 35B, Schedule 15 and Schedule 20 to improve transparency and efficiency in the data published by DNOs","Northern Powergrid","2018-07-11",null,null,"Standard Change Proposal","DCP 325 Change Proposal ","Under Development - Definition Stage",null,"-","-","ElectraLink Ltd","Live","Distribution Connection Use of System Agreement","DCP 325","Reviewing the requirements of Sections 35A, 35B, Schedule 15 and Schedule 20.","The intent of this Change Proposal is to combine, review and if appropriate, amend the requirements of Section 35A, Section 35B, Schedule 15 and Schedule 20 to improve transparency and efficiency in the data published by DNOs","Northern Powergrid","2018-07-11",null,null,"Standard Change Proposal","DCP 325 Change Proposal ","Under Development - Definition Stage",null,"-","-","ElectraLink Ltd","Live","Distribution Connection Use of System Agreement","DCP 325","Reviewing the requirements of Sections 35A, 35B, Schedule 15 and Schedule 20.","The intent of this Change Proposal is to combine, review and if appropriate, amend the requirements of Section 35A, Section 35B, Schedule 15 and Schedule 20 to improve transparency and efficiency in the data published by DNOs","Northern Powergrid","2018-07-11",null,null,"Standard Change Proposal","DCP 325 Change Proposal ","Under Development - Definition Stage",null,"-","-","ElectraLink Ltd","Live","Distribution Connection Use of System Agreement","DCP 325","Reviewing the requirements of Sections 35A, 35B, Schedule 15 and Schedule 20.","The intent of this Change Proposal is to combine, review and if appropriate, amend the requirements of Section 35A, Section 35B, Schedule 15 and Schedule 20 to improve transparency and efficiency in the data published by DNOs","Northern Powergrid","2018-07-11",null,null,"Standard Change Proposal","DCP 325 Change Proposal ","Under Development - Definition Stage",null,"-","-","ElectraLink Ltd","Live","Distribution Connection Use of System Agreement","DCP 325","Reviewing the requirements of Sections 35A, 35B, Schedule 15 and Schedule 20.","The intent of this Change Proposal is to combine, review and if appropriate, amend the requirements of Section 35A, Section 35B, Schedule 15 and Schedule 20 to improve transparency and efficiency in the data published by DNOs","Northern Powergrid","2018-07-11",null,null,"Standard Change Proposal","DCP 325 Change Proposal ","Under Development - Definition Stage",null,"-","-","ElectraLink Ltd","Live","Distribution Connection Use of System Agreement","DCP 325","Reviewing the requirements of Sections 35A, 35B, Schedule 15 and Schedule 20.","The intent of this Change Proposal is to combine, review and if appropriate, amend the requirements of Section 35A, Section 35B, Schedule 15 and Schedule 20 to improve transparency and efficiency in the data published by DNOs","Northern Powergrid","2018-07-11",null,null,"Standard Change Proposal","DCP 325 Change Proposal ","Under Development - Definition Stage",null,"-","-","ElectraLink Ltd","Live","Distribution Connection Use of System Agreement","DCP 325","Reviewing the requirements of Sections 35A, 35B, Schedule 15 and Schedule 20.","The intent of this Change Proposal is to combine, review and if appropriate, amend the requirements of Section 35A, Section 35B, Schedule 15 and Schedule 20 to improve transparency and efficiency in the data published by DNOs","Northern Powergrid","2018-07-11",null,null,"Standard Change Proposal","DCP 325 Change Proposal ","Under Development - Definition Stage",null,"-","-","ElectraLink Ltd","Live","Distribution Connection Use of System Agreement","DCP 325","Reviewing the requirements of Sections 35A, 35B, Schedule 15 and Schedule 20.","The intent of this Change Proposal is to combine, review and if appropriate, amend the requirements of Section 35A, Section 35B, Schedule 15 and Schedule 20 to improve transparency and efficiency in the data published by DNOs","Northern Powergrid","2018-07-11",null,null,"Standard Change Proposal","DCP 325 Change Proposal ","Under Development - Definition Stage",null,"-","-","ElectraLink Ltd","Live","Distribution Connection Use of System Agreement","DCP 325","Reviewing the requirements of Sections 35A, 35B, Schedule 15 and Schedule 20.","The intent of this Change Proposal is to combine, review and if appropriate, amend the requirements of Section 35A, Section 35B, Schedule 15 and Schedule 20 to improve transparency and efficiency in the data published by DNOs","Northern Powergrid","2018-07-11",null,null,"Standard Change Proposal","DCP 325 Change Proposal ","Under Development - Definition Stage",null,"-","-","ElectraLink Ltd","Live","Distribution Connection Use of System Agreement","DCP 325","Reviewing the requirements of Sections 35A, 35B, Schedule 15 and Schedule 20.","The intent of this Change Proposal is to combine, review and if appropriate, amend the requirements of Section 35A, Section 35B, Schedule 15 and Schedule 20 to improve transparency and efficiency in the data published by DNOs","Northern Powergrid","2018-07-11",null,null,"Standard Change Proposal","DCP 325 Change Proposal ","Under Development - Definition Stage",null,"-","-","ElectraLink Ltd","Live","Distribution Connection Use of System Agreement","DCP 325","Reviewing the requirements of Sections 35A, 35B, Schedule 15 and Schedule 20.","The intent of this Change Proposal is to combine, review and if appropriate, amend the requirements of Section 35A, Section 35B, Schedule 15 and Schedule 20 to improve transparency and efficiency in the data published by DNOs","Northern Powergrid","2018-07-11",null,null,"Standard Change Proposal","DCP 325 Change Proposal ","Under Development - Definition Stage",null,"-","-","ElectraLink Ltd","Live","Distribution Connection Use of System Agreement","DCP 325","Reviewing the requirements of Sections 35A, 35B, Schedule 15 and Schedule 20.","The intent of this Change Proposal is to combine, review and if appropriate, amend the requirements of Section 35A, Section 35B, Schedule 15 and Schedule 20 to improve transparency and efficiency in the data published by DNOs","Northern Powergrid","2018-07-11",null,null,"Standard Change Proposal","DCP 325 Change Proposal ","Under Development - Definition Stage",null,"-","-","ElectraLink Ltd","Live","Distribution Connection Use of System Agreement","DCP 325","Reviewing the requirements of Sections 35A, 35B, Schedule 15 and Schedule 20.","The intent of this Change Proposal is to combine, review and if appropriate, amend the requirements of Section 35A, Section 35B, Schedule 15 and Schedule 20 to improve transparency and efficiency in the data published by DNOs","Northern Powergrid","2018-07-11",null,null,"Standard Change Proposal","DCP 325 Change Proposal ","Under Development - Definition Stage",null,"-","-","ElectraLink Ltd","Live","Distribution Connection Use of System Agreement","DCP 325","Reviewing the requirements of Sections 35A, 35B, Schedule 15 and Schedule 20.","The intent of this Change Proposal is to combine, review and if appropriate, amend the requirements of Section 35A, Section 35B, Schedule 15 and Schedule 20 to improve transparency and efficiency in the data published by DNOs","Northern Powergrid","2018-07-11",null,null,"Standard Change Proposal","DCP 325 Change Proposal ","Under Development - Definition Stage",null,"-","-","ElectraLink Ltd","Live","Distribution Connection Use of System Agreement","DCP 325","Reviewing the requirements of Sections 35A, 35B, Schedule 15 and Schedule 20.","The intent of this Change Proposal is to combine, review and if appropriate, amend the requirements of Section 35A, Section 35B, Schedule 15 and Schedule 20 to improve transparency and efficiency in the data published by DNOs","Northern Powergrid","2018-07-11",null,null,"Standard Change Proposal","DCP 325 Change Proposal ","Under Development - Definition Stage",null,"-","-","ElectraLink Ltd","Live","Distribution Connection Use of System Agreement","DCP 325","Reviewing the requirements of Sections 35A, 35B, Schedule 15 and Schedule 20.","The intent of this Change Proposal is to combine, review and if appropriate, amend the requirements of Section 35A, Section 35B, Schedule 15 and Schedule 20 to improve transparency and efficiency in the data published by DNOs","Northern Powergrid","2018-07-11",null,null,"Standard Change Proposal","DCP 325 Change Proposal ","Under Development - Definition Stage",null,"-","-","ElectraLink Ltd","Live","Distribution Connection Use of System Agreement","DCP 325","Reviewing the requirements of Sections 35A, 35B, Schedule 15 and Schedule 20.","The intent of this Change Proposal is to combine, review and if appropriate, amend the requirements of Section 35A, Section 35B, Schedule 15 and Schedule 20 to improve transparency and efficiency in the data published by DNOs","Northern Powergrid","2018-07-11",null,null,"Standard Change Proposal","DCP 325 Change Proposal ","Under Development - Definition Stage",null,"-","-","ElectraLink Ltd","Live","Distribution Connection Use of System Agreement","DCP 325","Reviewing the requirements of Sections 35A, 35B, Schedule 15 and Schedule 20.","The intent of this Change Proposal is to combine, review and if appropriate, amend the requirements of Section 35A, Section 35B, Schedule 15 and Schedule 20 to improve transparency and efficiency in the data published by DNOs","Northern Powergrid","2018-07-11",null,null,"Standard Change Proposal","DCP 325 Change Proposal ","Under Development - Definition Stage",null,"-","-","ElectraLink Ltd","Live","Distribution Connection Use of System Agreement","DCP 325","Reviewing the requirements of Sections 35A, 35B, Schedule 15 and Schedule 20.","The intent of this Change Proposal is to combine, review and if appropriate, amend the requirements of Section 35A, Section 35B, Schedule 15 and Schedule 20 to improve transparency and efficiency in the data published by DNOs","Northern Powergrid","2018-07-11",null,null,"Standard Change Proposal","DCP 325 Change Proposal ","Under Development - Definition Stage",null,"-","-","ElectraLink Ltd","Live","Distribution Connection Use of System Agreement","DCP 325","Reviewing the requirements of Sections 35A, 35B, Schedule 15 and Schedule 20.","The intent of this Change Proposal is to combine, review and if appropriate, amend the requirements of Section 35A, Section 35B, Schedule 15 and Schedule 20 to improve transparency and efficiency in the data published by DNOs","Northern Powergrid","2018-07-11",null,null,"Standard Change Proposal","DCP 325 Change Proposal ","Under Development - Definition Stage",null,"-","-","ElectraLink Ltd","Live","Distribution Connection Use of System Agreement","DCP 325","Reviewing the requirements of Sections 35A, 35B, Schedule 15 and Schedule 20.","The intent of this Change Proposal is to combine, review and if appropriate, amend the requirements of Section 35A, Section 35B, Schedule 15 and Schedule 20 to improve transparency and efficiency in the data published by DNOs","Northern Powergrid","2018-07-11",null,null,"Standard Change Proposal","DCP 325 Change Proposal ","Under Development - Definition Stage",null,"-","-","ElectraLink Ltd","Live","Distribution Connection Use of System Agreement","DCP 325","Reviewing the requirements of Sections 35A, 35B, Schedule 15 and Schedule 20.","The intent of this Change Proposal is to combine, review and if appropriate, amend the requirements of Section 35A, Section 35B, Schedule 15 and Schedule 20 to improve transparency and efficiency in the data published by DNOs","Northern Powergrid","2018-07-11",null,null,"Standard Change Proposal","DCP 325 Change Proposal ","Under Development - Definition Stage",null,"-","-","ElectraLink Ltd","Live","Distribution Connection Use of System Agreement","DCP 325","Reviewing the requirements of Sections 35A, 35B, Schedule 15 and Schedule 20.","The intent of this Change Proposal is to combine, review and if appropriate, amend the requirements of Section 35A, Section 35B, Schedule 15 and Schedule 20 to improve transparency and efficiency in the data published by DNOs","Northern Powergrid","2018-07-11",null,null,"Standard Change Proposal","DCP 325 Change Proposal ","Under Development - Definition Stage",null,"-","-","ElectraLink Ltd","Live","Distribution Connection Use of System Agreement","DCP 325","Reviewing the requirements of Sections 35A, 35B, Schedule 15 and Schedule 20.","The intent of this Change Proposal is to combine, review and if appropriate, amend the requirements of Section 35A, Section 35B, Schedule 15 and Schedule 20 to improve transparency and efficiency in the data published by DNOs","Northern Powergrid","2018-07-11",null,null,"Standard Change Proposal","DCP 325 Change Proposal ","Under Development - Definition Stage",null,"-","-","ElectraLink Ltd","Live","Distribution Connection Use of System Agreement","DCP 325","Reviewing the requirements of Sections 35A, 35B, Schedule 15 and Schedule 20.","The intent of this Change Proposal is to combine, review and if appropriate, amend the requirements of Section 35A, Section 35B, Schedule 15 and Schedule 20 to improve transparency and efficiency in the data published by DNOs","Northern Powergrid","2018-07-11",null,null,"Standard Change Proposal","DCP 325 Change Proposal ","Under Development - Definition Stage",null,"-","-","ElectraLink Ltd","Live","Distribution Connection Use of System Agreement","DCP 325","Reviewing the requirements of Sections 35A, 35B, Schedule 15 and Schedule 20.","The intent of this Change Proposal is to combine, review and if appropriate, amend the requirements of Section 35A, Section 35B, Schedule 15 and Schedule 20 to improve transparency and efficiency in the data published by DNOs","Northern Powergrid","2018-07-11",null,null,"Standard Change Proposal","DCP 325 Change Proposal ","Under Development - Definition Stage",null,"-","-","ElectraLink Ltd","Live","Distribution Connection Use of System Agreement","DCP 325","Reviewing the requirements of Sections 35A, 35B, Schedule 15 and Schedule 20.","The intent of this Change Proposal is to combine, review and if appropriate, amend the requirements of Section 35A, Section 35B, Schedule 15 and Schedule 20 to improve transparency and efficiency in the data published by DNOs","Northern Powergrid","2018-07-11",null,null,"Standard Change Proposal","DCP 325 Change Proposal ","Under Development - Definition Stage",null,"-","-","ElectraLink Ltd","Live","Distribution Connection Use of System Agreement","DCP 325","Reviewing the requirements of Sections 35A, 35B, Schedule 15 and Schedule 20.","The intent of this Change Proposal is to combine, review and if appropriate, amend the requirements of Section 35A, Section 35B, Schedule 15 and Schedule 20 to improve transparency and efficiency in the data published by DNOs","Northern Powergrid","2018-07-11",null,null,"Standard Change Proposal","DCP 325 Change Proposal ","Under Development - Definition Stage",null,"-","-","ElectraLink Ltd","Live","Distribution Connection Use of System Agreement","DCP 325","Reviewing the requirements of Sections 35A, 35B, Schedule 15 and Schedule 20.","The intent of this Change Proposal is to combine, review and if appropriate, amend the requirements of Section 35A, Section 35B, Schedule 15 and Schedule 20 to improve transparency and efficiency in the data published by DNOs","Northern Powergrid","2018-07-11",null,null,"Standard Change Proposal","DCP 325 Change Proposal ","Under Development - Definition Stage",null,"-","-","ElectraLink Ltd","Live","Distribution Connection Use of System Agreement","DCP 325","Reviewing the requirements of Sections 35A, 35B, Schedule 15 and Schedule 20.","The intent of this Change Proposal is to combine, review and if appropriate, amend the requirements of Section 35A, Section 35B, Schedule 15 and Schedule 20 to improve transparency and efficiency in the data published by DNOs","Northern Powergrid","2018-07-11",null,null,"Standard Change Proposal","DCP 325 Change Proposal ","Under Development - Definition Stage",null,"-","-","ElectraLink Ltd","Live","Distribution Connection Use of System Agreement","DCP 325","Reviewing the requirements of Sections 35A, 35B, Schedule 15 and Schedule 20.","The intent of this Change Proposal is to combine, review and if appropriate, amend the requirements of Section 35A, Section 35B, Schedule 15 and Schedule 20 to improve transparency and efficiency in the data published by DNOs","Northern Powergrid","2018-07-11",null,null,"Standard Change Proposal","DCP 325 Change Proposal ","Under Development - Definition Stage",null,"-","-","ElectraLink Ltd","Live","Distribution Connection Use of System Agreement","DCP 325","Reviewing the requirements of Sections 35A, 35B, Schedule 15 and Schedule 20.","The intent of this Change Proposal is to combine, review and if appropriate, amend the requirements of Section 35A, Section 35B, Schedule 15 and Schedule 20 to improve transparency and efficiency in the data published by DNOs","Northern Powergrid","2018-07-11",null,null,"Standard Change Proposal","DCP 325 Change Proposal ","Under Development - Definition Stage",null,"-","-","ElectraLink Ltd","Live","Distribution Connection Use of System Agreement","DCP 325","Reviewing the requirements of Sections 35A, 35B, Schedule 15 and Schedule 20.","The intent of this Change Proposal is to combine, review and if appropriate, amend the requirements of Section 35A, Section 35B, Schedule 15 and Schedule 20 to improve transparency and efficiency in the data published by DNOs","Northern Powergrid","2018-07-11",null,null,"Standard Change Proposal","DCP 325 Change Proposal ","Under Development - Definition Stage",null,"-","-","ElectraLink Ltd","Live","Distribution Connection Use of System Agreement","DCP 325","Reviewing the requirements of Sections 35A, 35B, Schedule 15 and Schedule 20.","The intent of this Change Proposal is to combine, review and if appropriate, amend the requirements of Section 35A, Section 35B, Schedule 15 and Schedule 20 to improve transparency and efficiency in the data published by DNOs","Northern Powergrid","2018-07-11",null,null,"Standard Change Proposal","DCP 325 Change Proposal ","Under Development - Definition Stage",null,"-","-","ElectraLink Ltd","Live","Distribution Connection Use of System Agreement","DCP 325","Reviewing the requirements of Sections 35A, 35B, Schedule 15 and Schedule 20.","The intent of this Change Proposal is to combine, review and if appropriate, amend the requirements of Section 35A, Section 35B, Schedule 15 and Schedule 20 to improve transparency and efficiency in the data published by DNOs","Northern Powergrid","2018-07-11",null,null,"Standard Change Proposal","DCP 325 Change Proposal ","Under Development - Definition Stage",null,"-","-","ElectraLink Ltd","Live","Distribution Connection Use of System Agreement","DCP 325","Reviewing the requirements of Sections 35A, 35B, Schedule 15 and Schedule 20.","The intent of this Change Proposal is to combine, review and if appropriate, amend the requirements of Section 35A, Section 35B, Schedule 15 and Schedule 20 to improve transparency and efficiency in the data published by DNOs","Northern Powergrid","2018-07-11",null,null,"Standard Change Proposal","DCP 325 Change Proposal ","Under Development - Definition Stage",null,"-","-","ElectraLink Ltd","Live","Distribution Connection Use of System Agreement","DCP 325","Reviewing the requirements of Sections 35A, 35B, Schedule 15 and Schedule 20.","The intent of this Change Proposal is to combine, review and if appropriate, amend the requirements of Section 35A, Section 35B, Schedule 15 and Schedule 20 to improve transparency and efficiency in the data published by DNOs","Northern Powergrid","2018-07-11",null,null,"Standard Change Proposal","DCP 325 Change Proposal ","Under Development - Definition Stage",null,"-","-","ElectraLink Ltd","Live","Distribution Connection Use of System Agreement","DCP 325","Reviewing the requirements of Sections 35A, 35B, Schedule 15 and Schedule 20.","The intent of this Change Proposal is to combine, review and if appropriate, amend the requirements of Section 35A, Section 35B, Schedule 15 and Schedule 20 to improve transparency and efficiency in the data published by DNOs","Northern Powergrid","2018-07-11",null,null,"Standard Change Proposal","DCP 325 Change Proposal ","Under Development - Definition Stage",null,"-","-","ElectraLink Ltd","Live","Distribution Connection Use of System Agreement","DCP 325","Reviewing the requirements of Sections 35A, 35B, Schedule 15 and Schedule 20.","The intent of this Change Proposal is to combine, review and if appropriate, amend the requirements of Section 35A, Section 35B, Schedule 15 and Schedule 20 to improve transparency and efficiency in the data published by DNOs","Northern Powergrid","2018-07-11",null,null,"Standard Change Proposal","DCP 325 Change Proposal ","Under Development - Definition Stage",null,"-","-","ElectraLink Ltd","Live","Distribution Connection Use of System Agreement","DCP 325","Reviewing the requirements of Sections 35A, 35B, Schedule 15 and Schedule 20.","The intent of this Change Proposal is to combine, review and if appropriate, amend the requirements of Section 35A, Section 35B, Schedule 15 and Schedule 20 to improve transparency and efficiency in the data published by DNOs","Northern Powergrid","2018-07-11",null,null,"Standard Change Proposal","DCP 325 Change Proposal ","Under Development - Definition Stage",null,"-","-","ElectraLink Ltd","Live","Distribution Connection Use of System Agreement","DCP 325","Reviewing the requirements of Sections 35A, 35B, Schedule 15 and Schedule 20.","The intent of this Change Proposal is to combine, review and if appropriate, amend the requirements of Section 35A, Section 35B, Schedule 15 and Schedule 20 to improve transparency and efficiency in the data published by DNOs","Northern Powergrid","2018-07-11",null,null,"Standard Change Proposal","DCP 325 Change Proposal ","Under Development - Definition Stage",null,"-","-","ElectraLink Ltd","Live","Distribution Connection Use of System Agreement","DCP 325","Reviewing the requirements of Sections 35A, 35B, Schedule 15 and Schedule 20.","The intent of this Change Proposal is to combine, review and if appropriate, amend the requirements of Section 35A, Section 35B, Schedule 15 and Schedule 20 to improve transparency and efficiency in the data published by DNOs","Northern Powergrid","2018-07-11",null,null,"Standard Change Proposal","DCP 325 Change Proposal ","Under Development - Definition Stage",null,"-","-","ElectraLink Ltd","Live","Distribution Connection Use of System Agreement","DCP 325","Reviewing the requirements of Sections 35A, 35B, Schedule 15 and Schedule 20.","The intent of this Change Proposal is to combine, review and if appropriate, amend the requirements of Section 35A, Section 35B, Schedule 15 and Schedule 20 to improve transparency and efficiency in the data published by DNOs","Northern Powergrid","2018-07-11",null,null,"Standard Change Proposal","DCP 325 Change Proposal ","Under Development - Definition Stage",null,"-","-","ElectraLink Ltd","Live","Distribution Connection Use of System Agreement","DCP 325","Reviewing the requirements of Sections 35A, 35B, Schedule 15 and Schedule 20.","The intent of this Change Proposal is to combine, review and if appropriate, amend the requirements of Section 35A, Section 35B, Schedule 15 and Schedule 20 to improve transparency and efficiency in the data published by DNOs","Northern Powergrid","2018-07-11",null,null,"Standard Change Proposal","DCP 325 Change Proposal ","Under Development - Definition Stage",null,"-","-","ElectraLink Ltd","Live","Distribution Connection Use of System Agreement","DCP 325","Reviewing the requirements of Sections 35A, 35B, Schedule 15 and Schedule 20.","The intent of this Change Proposal is to combine, review and if appropriate, amend the requirements of Section 35A, Section 35B, Schedule 15 and Schedule 20 to improve transparency and efficiency in the data published by DNOs","Northern Powergrid","2018-07-11",null,null,"Standard Change Proposal","DCP 325 Change Proposal ","Under Development - Definition Stage",null,"-","-","ElectraLink Ltd","Live","Distribution Connection Use of System Agreement","DCP 325","Reviewing the requirements of Sections 35A, 35B, Schedule 15 and Schedule 20.","The intent of this Change Proposal is to combine, review and if appropriate, amend the requirements of Section 35A, Section 35B, Schedule 15 and Schedule 20 to improve transparency and efficiency in the data published by DNOs","Northern Powergrid","2018-07-11",null,null,"Standard Change Proposal","DCP 325 Change Proposal ","Under Development - Definition Stage",null,"-","-","ElectraLink Ltd","Live","Distribution Connection Use of System Agreement","DCP 325","Reviewing the requirements of Sections 35A, 35B, Schedule 15 and Schedule 20.","The intent of this Change Proposal is to combine, review and if appropriate, amend the requirements of Section 35A, Section 35B, Schedule 15 and Schedule 20 to improve transparency and efficiency in the data published by DNOs","Northern Powergrid","2018-07-11",null,null,"Standard Change Proposal","DCP 325 Change Proposal ","Under Development - Definition Stage",null,"-","-","ElectraLink Ltd","Live","Distribution Connection Use of System Agreement","DCP 325","Reviewing the requirements of Sections 35A, 35B, Schedule 15 and Schedule 20.","The intent of this Change Proposal is to combine, review and if appropriate, amend the requirements of Section 35A, Section 35B, Schedule 15 and Schedule 20 to improve transparency and efficiency in the data published by DNOs","Northern Powergrid","2018-07-11",null,null,"Standard Change Proposal","DCP 325 Change Proposal ","Under Development - Definition Stage",null,"-","-","ElectraLink Ltd","Live","Distribution Connection Use of System Agreement","DCP 325","Reviewing the requirements of Sections 35A, 35B, Schedule 15 and Schedule 20.","The intent of this Change Proposal is to combine, review and if appropriate, amend the requirements of Section 35A, Section 35B, Schedule 15 and Schedule 20 to improve transparency and efficiency in the data published by DNOs","Northern Powergrid","2018-07-11",null,null,"Standard Change Proposal","DCP 325 Change Proposal ","Under Development - Definition Stage",null,"-","-","ElectraLink Ltd","Live","Distribution Connection Use of System Agreement","DCP 325","Reviewing the requirements of Sections 35A, 35B, Schedule 15 and Schedule 20.","The intent of this Change Proposal is to combine, review and if appropriate, amend the requirements of Section 35A, Section 35B, Schedule 15 and Schedule 20 to improve transparency and efficiency in the data published by DNOs","Northern Powergrid","2018-07-11",null,null,"Standard Change Proposal","DCP 325 Change Proposal ","Under Development - Definition Stage",null,"-","-","ElectraLink Ltd","Live","Distribution Connection Use of System Agreement","DCP 325","Reviewing the requirements of Sections 35A, 35B, Schedule 15 and Schedule 20.","The intent of this Change Proposal is to combine, review and if appropriate, amend the requirements of Section 35A, Section 35B, Schedule 15 and Schedule 20 to improve transparency and efficiency in the data published by DNOs","Northern Powergrid","2018-07-11",null,null,"Standard Change Proposal","DCP 325 Change Proposal ","Under Development - Definition Stage",null,"-","-","ElectraLink Ltd","Live","Distribution Connection Use of System Agreement","DCP 325","Reviewing the requirements of Sections 35A, 35B, Schedule 15 and Schedule 20.","The intent of this Change Proposal is to combine, review and if appropriate, amend the requirements of Section 35A, Section 35B, Schedule 15 and Schedule 20 to improve transparency and efficiency in the data published by DNOs","Northern Powergrid","2018-07-11",null,null,"Standard Change Proposal","DCP 325 Change Proposal ","Under Development - Definition Stage",null,"-","-","ElectraLink Ltd","Live","Distribution Connection Use of System Agreement","DCP 325","Reviewing the requirements of Sections 35A, 35B, Schedule 15 and Schedule 20.","The intent of this Change Proposal is to combine, review and if appropriate, amend the requirements of Section 35A, Section 35B, Schedule 15 and Schedule 20 to improve transparency and efficiency in the data published by DNOs","Northern Powergrid","2018-07-11",null,null,"Standard Change Proposal","DCP 325 Change Proposal ","Under Development - Definition Stage",null,"-","-","ElectraLink Ltd","Live","Distribution Connection Use of System Agreement","DCP 325","Reviewing the requirements of Sections 35A, 35B, Schedule 15 and Schedule 20.","The intent of this Change Proposal is to combine, review and if appropriate, amend the requirements of Section 35A, Section 35B, Schedule 15 and Schedule 20 to improve transparency and efficiency in the data published by DNOs","Northern Powergrid","2018-07-11",null,null,"Standard Change Proposal","DCP 325 Change Proposal ","Under Development - Definition Stage",null,"-","-","ElectraLink Ltd","Live","Distribution Connection Use of System Agreement","DCP 325","Reviewing the requirements of Sections 35A, 35B, Schedule 15 and Schedule 20.","The intent of this Change Proposal is to combine, review and if appropriate, amend the requirements of Section 35A, Section 35B, Schedule 15 and Schedule 20 to improve transparency and efficiency in the data published by DNOs","Northern Powergrid","2018-07-11",null,null,"Standard Change Proposal","DCP 325 Change Proposal ","Under Development - Definition Stage",null,"-","-","ElectraLink Ltd","Live","Distribution Connection Use of System Agreement","DCP 325","Reviewing the requirements of Sections 35A, 35B, Schedule 15 and Schedule 20.","The intent of this Change Proposal is to combine, review and if appropriate, amend the requirements of Section 35A, Section 35B, Schedule 15 and Schedule 20 to improve transparency and efficiency in the data published by DNOs","Northern Powergrid","2018-07-11",null,null,"Standard Change Proposal","DCP 325 Change Proposal ","Under Development - Definition Stage",null,"-","-","ElectraLink Ltd","Live","Distribution Connection Use of System Agreement","DCP 325","Reviewing the requirements of Sections 35A, 35B, Schedule 15 and Schedule 20.","The intent of this Change Proposal is to combine, review and if appropriate, amend the requirements of Section 35A, Section 35B, Schedule 15 and Schedule 20 to improve transparency and efficiency in the data published by DNOs","Northern Powergrid","2018-07-11",null,null,"Standard Change Proposal","DCP 325 Change Proposal ","Under Development - Definition Stage",null,"-","-","ElectraLink Ltd","Live","Distribution Connection Use of System Agreement","DCP 325","Reviewing the requirements of Sections 35A, 35B, Schedule 15 and Schedule 20.","The intent of this Change Proposal is to combine, review and if appropriate, amend the requirements of Section 35A, Section 35B, Schedule 15 and Schedule 20 to improve transparency and efficiency in the data published by DNOs","Northern Powergrid","2018-07-11",null,null,"Standard Change Proposal","DCP 325 Change Proposal ","Under Development - Definition Stage",null,"-","-","ElectraLink Ltd","Live","Distribution Connection Use of System Agreement","DCP 325","Reviewing the requirements of Sections 35A, 35B, Schedule 15 and Schedule 20.","The intent of this Change Proposal is to combine, review and if appropriate, amend the requirements of Section 35A, Section 35B, Schedule 15 and Schedule 20 to improve transparency and efficiency in the data published by DNOs","Northern Powergrid","2018-07-11",null,null,"Standard Change Proposal","DCP 325 Change Proposal ","Under Development - Definition Stage",null,"-","-","ElectraLink Ltd","Live","Distribution Connection Use of System Agreement","DCP 325","Reviewing the requirements of Sections 35A, 35B, Schedule 15 and Schedule 20.","The intent of this Change Proposal is to combine, review and if appropriate, amend the requirements of Section 35A, Section 35B, Schedule 15 and Schedule 20 to improve transparency and efficiency in the data published by DNOs","Northern Powergrid","2018-07-11",null,null,"Standard Change Proposal","DCP 325 Change Proposal ","Under Development - Definition Stage",null,"-","-","ElectraLink Ltd","Live","Distribution Connection Use of System Agreement","DCP 325","Reviewing the requirements of Sections 35A, 35B, Schedule 15 and Schedule 20.","The intent of this Change Proposal is to combine, review and if appropriate, amend the requirements of Section 35A, Section 35B, Schedule 15 and Schedule 20 to improve transparency and efficiency in the data published by DNOs","Northern Powergrid","2018-07-11",null,null,"Standard Change Proposal","DCP 325 Change Proposal ","Under Development - Definition Stage",null,"-","-","ElectraLink Ltd","Live","Distribution Connection Use of System Agreement","DCP 325","Reviewing the requirements of Sections 35A, 35B, Schedule 15 and Schedule 20.","The intent of this Change Proposal is to combine, review and if appropriate, amend the requirements of Section 35A, Section 35B, Schedule 15 and Schedule 20 to improve transparency and efficiency in the data published by DNOs","Northern Powergrid","2018-07-11",null,null,"Standard Change Proposal","DCP 325 Change Proposal ","Under Development - Definition Stage",null,"-","-","ElectraLink Ltd","Live","Distribution Connection Use of System Agreement","DCP 325","Reviewing the requirements of Sections 35A, 35B, Schedule 15 and Schedule 20.","The intent of this Change Proposal is to combine, review and if appropriate, amend the requirements of Section 35A, Section 35B, Schedule 15 and Schedule 20 to improve transparency and efficiency in the data published by DNOs","Northern Powergrid","2018-07-11",null,null,"Standard Change Proposal","DCP 325 Change Proposal ","Under Development - Definition Stage",null,"-","-","ElectraLink Ltd","Live","Distribution Connection Use of System Agreement","DCP 325","Reviewing the requirements of Sections 35A, 35B, Schedule 15 and Schedule 20.","The intent of this Change Proposal is to combine, review and if appropriate, amend the requirements of Section 35A, Section 35B, Schedule 15 and Schedule 20 to improve transparency and efficiency in the data published by DNOs","Northern Powergrid","2018-07-11",null,null,"Standard Change Proposal","DCP 325 Change Proposal ","Under Development - Definition Stage",null,"-","-","ElectraLink Ltd","Live","Distribution Connection Use of System Agreement","DCP 325","Reviewing the requirements of Sections 35A, 35B, Schedule 15 and Schedule 20.","The intent of this Change Proposal is to combine, review and if appropriate, amend the requirements of Section 35A, Section 35B, Schedule 15 and Schedule 20 to improve transparency and efficiency in the data published by DNOs","Northern Powergrid","2018-07-11",null,null,"Standard Change Proposal","DCP 325 Change Proposal ","Under Development - Definition Stage",null,"-","-","ElectraLink Ltd","Live","Distribution Connection Use of System Agreement","DCP 325","Reviewing the requirements of Sections 35A, 35B, Schedule 15 and Schedule 20.","The intent of this Change Proposal is to combine, review and if appropriate, amend the requirements of Section 35A, Section 35B, Schedule 15 and Schedule 20 to improve transparency and efficiency in the data published by DNOs","Northern Powergrid","2018-07-11",null,null,"Standard Change Proposal","DCP 325 Change Proposal ","Under Development - Definition Stage",null,"-","-","ElectraLink Ltd","Live","Distribution Connection Use of System Agreement","DCP 325","Reviewing the requirements of Sections 35A, 35B, Schedule 15 and Schedule 20.","The intent of this Change Proposal is to combine, review and if appropriate, amend the requirements of Section 35A, Section 35B, Schedule 15 and Schedule 20 to improve transparency and efficiency in the data published by DNOs","Northern Powergrid","2018-07-11",null,null,"Standard Change Proposal","DCP 325 Change Proposal ","Under Development - Definition Stage",null,"-","-","ElectraLink Ltd","Live","Distribution Connection Use of System Agreement","DCP 325","Reviewing the requirements of Sections 35A, 35B, Schedule 15 and Schedule 20.","The intent of this Change Proposal is to combine, review and if appropriate, amend the requirements of Section 35A, Section 35B, Schedule 15 and Schedule 20 to improve transparency and efficiency in the data published by DNOs","Northern Powergrid","2018-07-11",null,null,"Standard Change Proposal","DCP 325 Change Proposal ","Under Development - Definition Stage",null,"-","-","ElectraLink Ltd","Live","Distribution Connection Use of System Agreement","DCP 325","Reviewing the requirements of Sections 35A, 35B, Schedule 15 and Schedule 20.","The intent of this Change Proposal is to combine, review and if appropriate, amend the requirements of Section 35A, Section 35B, Schedule 15 and Schedule 20 to improve transparency and efficiency in the data published by DNOs","Northern Powergrid","2018-07-11",null,null,"Standard Change Proposal","DCP 325 Change Proposal ","Under Development - Definition Stage",null,"-","-","ElectraLink Ltd","Live","Distribution Connection Use of System Agreement","DCP 325","Reviewing the requirements of Sections 35A, 35B, Schedule 15 and Schedule 20.","The intent of this Change Proposal is to combine, review and if appropriate, amend the requirements of Section 35A, Section 35B, Schedule 15 and Schedule 20 to improve transparency and efficiency in the data published by DNOs","Northern Powergrid","2018-07-11",null,null,"Standard Change Proposal","DCP 325 Change Proposal ","Under Development - Definition Stage",null,"-","-","ElectraLink Ltd","Live","Distribution Connection Use of System Agreement","DCP 325","Reviewing the requirements of Sections 35A, 35B, Schedule 15 and Schedule 20.","The intent of this Change Proposal is to combine, review and if appropriate, amend the requirements of Section 35A, Section 35B, Schedule 15 and Schedule 20 to improve transparency and efficiency in the data published by DNOs","Northern Powergrid","2018-07-11",null,null,"Standard Change Proposal","DCP 325 Change Proposal ","Under Development - Definition Stage",null,"-","-","ElectraLink Ltd","Live","Distribution Connection Use of System Agreement","DCP 325","Reviewing the requirements of Sections 35A, 35B, Schedule 15 and Schedule 20.","The intent of this Change Proposal is to combine, review and if appropriate, amend the requirements of Section 35A, Section 35B, Schedule 15 and Schedule 20 to improve transparency and efficiency in the data published by DNOs","Northern Powergrid","2018-07-11",null,null,"Standard Change Proposal","DCP 325 Change Proposal ","Under Development - Definition Stage",null,"-","-","ElectraLink Ltd","Live","Distribution Connection Use of System Agreement","DCP 325","Reviewing the requirements of Sections 35A, 35B, Schedule 15 and Schedule 20.","The intent of this Change Proposal is to combine, review and if appropriate, amend the requirements of Section 35A, Section 35B, Schedule 15 and Schedule 20 to improve transparency and efficiency in the data published by DNOs","Northern Powergrid","2018-07-11",null,null,"Standard Change Proposal","DCP 325 Change Proposal ","Under Development - Definition Stage",null,"-","-","ElectraLink Ltd","Live","Distribution Connection Use of System Agreement","DCP 325","Reviewing the requirements of Sections 35A, 35B, Schedule 15 and Schedule 20.","The intent of this Change Proposal is to combine, review and if appropriate, amend the requirements of Section 35A, Section 35B, Schedule 15 and Schedule 20 to improve transparency and efficiency in the data published by DNOs","Northern Powergrid","2018-07-11",null,null,"Standard Change Proposal","DCP 325 Change Proposal ","Under Development - Definition Stage",null,"-","-","ElectraLink Ltd","Live","Distribution Connection Use of System Agreement","DCP 325","Reviewing the requirements of Sections 35A, 35B, Schedule 15 and Schedule 20.","The intent of this Change Proposal is to combine, review and if appropriate, amend the requirements of Section 35A, Section 35B, Schedule 15 and Schedule 20 to improve transparency and efficiency in the data published by DNOs","Northern Powergrid","2018-07-11",null,null,"Standard Change Proposal","DCP 325 Change Proposal ","Under Development - Definition Stage",null,"-","-","ElectraLink Ltd","Live","Distribution Connection Use of System Agreement","DCP 325","Reviewing the requirements of Sections 35A, 35B, Schedule 15 and Schedule 20.","The intent of this Change Proposal is to combine, review and if appropriate, amend the requirements of Section 35A, Section 35B, Schedule 15 and Schedule 20 to improve transparency and efficiency in the data published by DNOs","Northern Powergrid","2018-07-11",null,null,"Standard Change Proposal","DCP 325 Change Proposal ","Under Development - Definition Stage",null,"-","-","ElectraLink Ltd","Live","Distribution Connection Use of System Agreement","DCP 325","Reviewing the requirements of Sections 35A, 35B, Schedule 15 and Schedule 20.","The intent of this Change Proposal is to combine, review and if appropriate, amend the requirements of Section 35A, Section 35B, Schedule 15 and Schedule 20 to improve transparency and efficiency in the data published by DNOs","Northern Powergrid","2018-07-11",null,null,"Standard Change Proposal","DCP 325 Change Proposal ","Under Development - Definition Stage",null,"-","-","ElectraLink Ltd","Live","Distribution Connection Use of System Agreement","DCP 325","Reviewing the requirements of Sections 35A, 35B, Schedule 15 and Schedule 20.","The intent of this Change Proposal is to combine, review and if appropriate, amend the requirements of Section 35A, Section 35B, Schedule 15 and Schedule 20 to improve transparency and efficiency in the data published by DNOs","Northern Powergrid","2018-07-11",null,null,"Standard Change Proposal","DCP 325 Change Proposal ","Under Development - Definition Stage",null,"-","-","ElectraLink Ltd","Live","Distribution Connection Use of System Agreement","DCP 325","Reviewing the requirements of Sections 35A, 35B, Schedule 15 and Schedule 20.","The intent of this Change Proposal is to combine, review and if appropriate, amend the requirements of Section 35A, Section 35B, Schedule 15 and Schedule 20 to improve transparency and efficiency in the data published by DNOs","Northern Powergrid","2018-07-11",null,null,"Standard Change Proposal","DCP 325 Change Proposal ","Under Development - Definition Stage",null,"-","-","ElectraLink Ltd","Live","Distribution Connection Use of System Agreement","DCP 325","Reviewing the requirements of Sections 35A, 35B, Schedule 15 and Schedule 20.","The intent of this Change Proposal is to combine, review and if appropriate, amend the requirements of Section 35A, Section 35B, Schedule 15 and Schedule 20 to improve transparency and efficiency in the data published by DNOs","Northern Powergrid","2018-07-11",null,null,"Standard Change Proposal","DCP 325 Change Proposal ","Under Development - Definition Stage",null,"-","-","ElectraLink Ltd","Live","Distribution Connection Use of System Agreement","DCP 325","Reviewing the requirements of Sections 35A, 35B, Schedule 15 and Schedule 20.","The intent of this Change Proposal is to combine, review and if appropriate, amend the requirements of Section 35A, Section 35B, Schedule 15 and Schedule 20 to improve transparency and efficiency in the data published by DNOs","Northern Powergrid","2018-07-11",null,null,"Standard Change Proposal","DCP 325 Change Proposal ","Under Development - Definition Stage",null,"-","-","ElectraLink Ltd","Live","Distribution Connection Use of System Agreement","DCP 325","Reviewing the requirements of Sections 35A, 35B, Schedule 15 and Schedule 20.","The intent of this Change Proposal is to combine, review and if appropriate, amend the requirements of Section 35A, Section 35B, Schedule 15 and Schedule 20 to improve transparency and efficiency in the data published by DNOs","Northern Powergrid","2018-07-11",null,null,"Standard Change Proposal","DCP 325 Change Proposal ","Under Development - Definition Stage",null,"-","-","ElectraLink Ltd","Live","Distribution Connection Use of System Agreement","DCP 325","Reviewing the requirements of Sections 35A, 35B, Schedule 15 and Schedule 20.","The intent of this Change Proposal is to combine, review and if appropriate, amend the requirements of Section 35A, Section 35B, Schedule 15 and Schedule 20 to improve transparency and efficiency in the data published by DNOs","Northern Powergrid","2018-07-11",null,null,"Standard Change Proposal","DCP 325 Change Proposal ","Under Development - Definition Stage",null,"-","-","ElectraLink Ltd","Live","Distribution Connection Use of System Agreement","DCP 325","Reviewing the requirements of Sections 35A, 35B, Schedule 15 and Schedule 20.","The intent of this Change Proposal is to combine, review and if appropriate, amend the requirements of Section 35A, Section 35B, Schedule 15 and Schedule 20 to improve transparency and efficiency in the data published by DNOs","Northern Powergrid","2018-07-11",null,null,"Standard Change Proposal","DCP 325 Change Proposal ","Under Development - Definition Stage",null,"-","-","ElectraLink Ltd","Live","Distribution Connection Use of System Agreement","DCP 325","Reviewing the requirements of Sections 35A, 35B, Schedule 15 and Schedule 20.","The intent of this Change Proposal is to combine, review and if appropriate, amend the requirements of Section 35A, Section 35B, Schedule 15 and Schedule 20 to improve transparency and efficiency in the data published by DNOs","Northern Powergrid","2018-07-11",null,null,"Standard Change Proposal","DCP 325 Change Proposal ","Under Development - Definition Stage",null,"-","-","ElectraLink Ltd","Live","Distribution Connection Use of System Agreement","DCP 325","Reviewing the requirements of Sections 35A, 35B, Schedule 15 and Schedule 20.","The intent of this Change Proposal is to combine, review and if appropriate, amend the requirements of Section 35A, Section 35B, Schedule 15 and Schedule 20 to improve transparency and efficiency in the data published by DNOs","Northern Powergrid","2018-07-11",null,null,"Standard Change Proposal","DCP 325 Change Proposal ","Under Development - Definition Stage",null,"-","-","ElectraLink Ltd","Live","Distribution Connection Use of System Agreement","DCP 325","Reviewing the requirements of Sections 35A, 35B, Schedule 15 and Schedule 20.","The intent of this Change Proposal is to combine, review and if appropriate, amend the requirements of Section 35A, Section 35B, Schedule 15 and Schedule 20 to improve transparency and efficiency in the data published by DNOs","Northern Powergrid","2018-07-11",null,null,"Standard Change Proposal","DCP 325 Change Proposal ","Under Development - Definition Stage",null,"-","-","ElectraLink Ltd","Live","Distribution Connection Use of System Agreement","DCP 325","Reviewing the requirements of Sections 35A, 35B, Schedule 15 and Schedule 20.","The intent of this Change Proposal is to combine, review and if appropriate, amend the requirements of Section 35A, Section 35B, Schedule 15 and Schedule 20 to improve transparency and efficiency in the data published by DNOs","Northern Powergrid","2018-07-11",null,null,"Standard Change Proposal","DCP 325 Change Proposal ","Under Development - Definition Stage",null,"-","-","ElectraLink Ltd","Live","Distribution Connection Use of System Agreement","DCP 325","Reviewing the requirements of Sections 35A, 35B, Schedule 15 and Schedule 20.","The intent of this Change Proposal is to combine, review and if appropriate, amend the requirements of Section 35A, Section 35B, Schedule 15 and Schedule 20 to improve transparency and efficiency in the data published by DNOs","Northern Powergrid","2018-07-11",null,null,"Standard Change Proposal","DCP 325 Change Proposal ","Under Development - Definition Stage",null,"-","-","ElectraLink Ltd","Live","Distribution Connection Use of System Agreement","DCP 325","Reviewing the requirements of Sections 35A, 35B, Schedule 15 and Schedule 20.","The intent of this Change Proposal is to combine, review and if appropriate, amend the requirements of Section 35A, Section 35B, Schedule 15 and Schedule 20 to improve transparency and efficiency in the data published by DNOs","Northern Powergrid","2018-07-11",null,null,"Standard Change Proposal","DCP 325 Change Proposal ","Under Development - Definition Stage",null,"-","-","ElectraLink Ltd","Live","Distribution Connection Use of System Agreement","DCP 325","Reviewing the requirements of Sections 35A, 35B, Schedule 15 and Schedule 20.","The intent of this Change Proposal is to combine, review and if appropriate, amend the requirements of Section 35A, Section 35B, Schedule 15 and Schedule 20 to improve transparency and efficiency in the data published by DNOs","Northern Powergrid","2018-07-11",null,null,"Standard Change Proposal","DCP 325 Change Proposal ","Under Development - Definition Stage",null,"-","-","ElectraLink Ltd","Live","Distribution Connection Use of System Agreement","DCP 325","Reviewing the requirements of Sections 35A, 35B, Schedule 15 and Schedule 20.","The intent of this Change Proposal is to combine, review and if appropriate, amend the requirements of Section 35A, Section 35B, Schedule 15 and Schedule 20 to improve transparency and efficiency in the data published by DNOs","Northern Powergrid","2018-07-11",null,null,"Standard Change Proposal","DCP 325 Change Proposal ","Under Development - Definition Stage",null,"-","-","ElectraLink Ltd","Live","Distribution Connection Use of System Agreement","DCP 325","Reviewing the requirements of Sections 35A, 35B, Schedule 15 and Schedule 20.","The intent of this Change Proposal is to combine, review and if appropriate, amend the requirements of Section 35A, Section 35B, Schedule 15 and Schedule 20 to improve transparency and efficiency in the data published by DNOs","Northern Powergrid","2018-07-11",null,null,"Standard Change Proposal","DCP 325 Change Proposal ","Under Development - Definition Stage",null,"-","-","ElectraLink Ltd","Live","Distribution Connection Use of System Agreement","DCP 325","Reviewing the requirements of Sections 35A, 35B, Schedule 15 and Schedule 20.","The intent of this Change Proposal is to combine, review and if appropriate, amend the requirements of Section 35A, Section 35B, Schedule 15 and Schedule 20 to improve transparency and efficiency in the data published by DNOs","Northern Powergrid","2018-07-11",null,null,"Standard Change Proposal","DCP 325 Change Proposal ","Under Development - Definition Stage",null,"-","-","ElectraLink Ltd","Live","Distribution Connection Use of System Agreement","DCP 325","Reviewing the requirements of Sections 35A, 35B, Schedule 15 and Schedule 20.","The intent of this Change Proposal is to combine, review and if appropriate, amend the requirements of Section 35A, Section 35B, Schedule 15 and Schedule 20 to improve transparency and efficiency in the data published by DNOs","Northern Powergrid","2018-07-11",null,null,"Standard Change Proposal","DCP 325 Change Proposal ","Under Development - Definition Stage",null,"-","-","ElectraLink Ltd","Live","Distribution Connection Use of System Agreement","DCP 325","Reviewing the requirements of Sections 35A, 35B, Schedule 15 and Schedule 20.","The intent of this Change Proposal is to combine, review and if appropriate, amend the requirements of Section 35A, Section 35B, Schedule 15 and Schedule 20 to improve transparency and efficiency in the data published by DNOs","Northern Powergrid","2018-07-11",null,null,"Standard Change Proposal","DCP 325 Change Proposal ","Under Development - Definition Stage",null,"-","-","ElectraLink Ltd","Live","Distribution Connection Use of System Agreement","DCP 325","Reviewing the requirements of Sections 35A, 35B, Schedule 15 and Schedule 20.","The intent of this Change Proposal is to combine, review and if appropriate, amend the requirements of Section 35A, Section 35B, Schedule 15 and Schedule 20 to improve transparency and efficiency in the data published by DNOs","Northern Powergrid","2018-07-11",null,null,"Standard Change Proposal","DCP 325 Change Proposal ","Under Development - Definition Stage",null,"-","-","ElectraLink Ltd","Live","Distribution Connection Use of System Agreement","DCP 325","Reviewing the requirements of Sections 35A, 35B, Schedule 15 and Schedule 20.","The intent of this Change Proposal is to combine, review and if appropriate, amend the requirements of Section 35A, Section 35B, Schedule 15 and Schedule 20 to improve transparency and efficiency in the data published by DNOs","Northern Powergrid","2018-07-11",null,null,"Standard Change Proposal","DCP 325 Change Proposal ","Under Development - Definition Stage",null,"-","-","ElectraLink Ltd","Live","Distribution Connection Use of System Agreement","DCP 325","Reviewing the requirements of Sections 35A, 35B, Schedule 15 and Schedule 20.","The intent of this Change Proposal is to combine, review and if appropriate, amend the requirements of Section 35A, Section 35B, Schedule 15 and Schedule 20 to improve transparency and efficiency in the data published by DNOs","Northern Powergrid","2018-07-11",null,null,"Standard Change Proposal","DCP 325 Change Proposal ","Under Development - Definition Stage",null,"-","-","ElectraLink Ltd","Live","Distribution Connection Use of System Agreement","DCP 325","Reviewing the requirements of Sections 35A, 35B, Schedule 15 and Schedule 20.","The intent of this Change Proposal is to combine, review and if appropriate, amend the requirements of Section 35A, Section 35B, Schedule 15 and Schedule 20 to improve transparency and efficiency in the data published by DNOs","Northern Powergrid","2018-07-11",null,null,"Standard Change Proposal","DCP 325 Change Proposal ","Under Development - Definition Stage",null,"-","-","ElectraLink Ltd","Live","Distribution Connection Use of System Agreement","DCP 325","Reviewing the requirements of Sections 35A, 35B, Schedule 15 and Schedule 20.","The intent of this Change Proposal is to combine, review and if appropriate, amend the requirements of Section 35A, Section 35B, Schedule 15 and Schedule 20 to improve transparency and efficiency in the data published by DNOs","Northern Powergrid","2018-07-11",null,null,"Standard Change Proposal","DCP 325 Change Proposal ","Under Development - Definition Stage",null,"-","-","ElectraLink Ltd","Live","Distribution Connection Use of System Agreement","DCP 325","Reviewing the requirements of Sections 35A, 35B, Schedule 15 and Schedule 20.","The intent of this Change Proposal is to combine, review and if appropriate, amend the requirements of Section 35A, Section 35B, Schedule 15 and Schedule 20 to improve transparency and efficiency in the data published by DNOs","Northern Powergrid","2018-07-11",null,null,"Standard Change Proposal","DCP 325 Change Proposal ","Under Development - Definition Stage",null,"-","-","ElectraLink Ltd","Live","Distribution Connection Use of System Agreement","DCP 325","Reviewing the requirements of Sections 35A, 35B, Schedule 15 and Schedule 20.","The intent of this Change Proposal is to combine, review and if appropriate, amend the requirements of Section 35A, Section 35B, Schedule 15 and Schedule 20 to improve transparency and efficiency in the data published by DNOs","Northern Powergrid","2018-07-11",null,null,"Standard Change Proposal","DCP 325 Change Proposal ","Under Development - Definition Stage",null,"-","-","ElectraLink Ltd","Live","Distribution Connection Use of System Agreement","DCP 325","Reviewing the requirements of Sections 35A, 35B, Schedule 15 and Schedule 20.","The intent of this Change Proposal is to combine, review and if appropriate, amend the requirements of Section 35A, Section 35B, Schedule 15 and Schedule 20 to improve transparency and efficiency in the data published by DNOs","Northern Powergrid","2018-07-11",null,null,"Standard Change Proposal","DCP 325 Change Proposal ","Under Development - Definition Stage",null,"-","-","ElectraLink Ltd","Live","Distribution Connection Use of System Agreement","DCP 325","Reviewing the requirements of Sections 35A, 35B, Schedule 15 and Schedule 20.","The intent of this Change Proposal is to combine, review and if appropriate, amend the requirements of Section 35A, Section 35B, Schedule 15 and Schedule 20 to improve transparency and efficiency in the data published by DNOs","Northern Powergrid","2018-07-11",null,null,"Standard Change Proposal","DCP 325 Change Proposal ","Under Development - Definition Stage",null,"-","-","ElectraLink Ltd","Live","Distribution Connection Use of System Agreement","DCP 325","Reviewing the requirements of Sections 35A, 35B, Schedule 15 and Schedule 20.","The intent of this Change Proposal is to combine, review and if appropriate, amend the requirements of Section 35A, Section 35B, Schedule 15 and Schedule 20 to improve transparency and efficiency in the data published by DNOs","Northern Powergrid","2018-07-11",null,null,"Standard Change Proposal","DCP 325 Change Proposal ","Under Development - Definition Stage",null,"-","-","ElectraLink Ltd","Live","Distribution Connection Use of System Agreement","DCP 325","Reviewing the requirements of Sections 35A, 35B, Schedule 15 and Schedule 20.","The intent of this Change Proposal is to combine, review and if appropriate, amend the requirements of Section 35A, Section 35B, Schedule 15 and Schedule 20 to improve transparency and efficiency in the data published by DNOs","Northern Powergrid","2018-07-11",null,null,"Standard Change Proposal","DCP 325 Change Proposal ","Under Development - Definition Stage",null,"-","-","ElectraLink Ltd","Live","Distribution Connection Use of System Agreement","DCP 325","Reviewing the requirements of Sections 35A, 35B, Schedule 15 and Schedule 20.","The intent of this Change Proposal is to combine, review and if appropriate, amend the requirements of Section 35A, Section 35B, Schedule 15 and Schedule 20 to improve transparency and efficiency in the data published by DNOs","Northern Powergrid","2018-07-11",null,null,"Standard Change Proposal","DCP 325 Change Proposal ","Under Development - Definition Stage",null,"-","-","ElectraLink Ltd","Live","Distribution Connection Use of System Agreement","DCP 325","Reviewing the requirements of Sections 35A, 35B, Schedule 15 and Schedule 20.","The intent of this Change Proposal is to combine, review and if appropriate, amend the requirements of Section 35A, Section 35B, Schedule 15 and Schedule 20 to improve transparency and efficiency in the data published by DNOs","Northern Powergrid","2018-07-11",null,null,"Standard Change Proposal","DCP 325 Change Proposal ","Under Development - Definition Stage",null,"-","-","ElectraLink Ltd","Live","Distribution Connection Use of System Agreement","DCP 325","Reviewing the requirements of Sections 35A, 35B, Schedule 15 and Schedule 20.","The intent of this Change Proposal is to combine, review and if appropriate, amend the requirements of Section 35A, Section 35B, Schedule 15 and Schedule 20 to improve transparency and efficiency in the data published by DNOs","Northern Powergrid","2018-07-11",null,null,"Standard Change Proposal","DCP 325 Change Proposal ","Under Development - Definition Stage",null,"-","-","ElectraLink Ltd","Live","Distribution Connection Use of System Agreement","DCP 325","Reviewing the requirements of Sections 35A, 35B, Schedule 15 and Schedule 20.","The intent of this Change Proposal is to combine, review and if appropriate, amend the requirements of Section 35A, Section 35B, Schedule 15 and Schedule 20 to improve transparency and efficiency in the data published by DNOs","Northern Powergrid","2018-07-11",null,null,"Standard Change Proposal","DCP 325 Change Proposal ","Under Development - Definition Stage",null,"-","-","ElectraLink Ltd","Live","Distribution Connection Use of System Agreement","DCP 325","Reviewing the requirements of Sections 35A, 35B, Schedule 15 and Schedule 20.","The intent of this Change Proposal is to combine, review and if appropriate, amend the requirements of Section 35A, Section 35B, Schedule 15 and Schedule 20 to improve transparency and efficiency in the data published by DNOs","Northern Powergrid","2018-07-11",null,null,"Standard Change Proposal","DCP 325 Change Proposal ","Under Development - Definition Stage",null,"-","-","ElectraLink Ltd","Live","Distribution Connection Use of System Agreement","DCP 325","Reviewing the requirements of Sections 35A, 35B, Schedule 15 and Schedule 20.","The intent of this Change Proposal is to combine, review and if appropriate, amend the requirements of Section 35A, Section 35B, Schedule 15 and Schedule 20 to improve transparency and efficiency in the data published by DNOs","Northern Powergrid","2018-07-11",null,null,"Standard Change Proposal","DCP 325 Change Proposal ","Under Development - Definition Stage",null,"-","-","ElectraLink Ltd","Live","Distribution Connection Use of System Agreement","DCP 325","Reviewing the requirements of Sections 35A, 35B, Schedule 15 and Schedule 20.","The intent of this Change Proposal is to combine, review and if appropriate, amend the requirements of Section 35A, Section 35B, Schedule 15 and Schedule 20 to improve transparency and efficiency in the data published by DNOs","Northern Powergrid","2018-07-11",null,null,"Standard Change Proposal","DCP 325 Change Proposal ","Under Development - Definition Stage",null,"-","-","ElectraLink Ltd","Live","Distribution Connection Use of System Agreement","DCP 325","Reviewing the requirements of Sections 35A, 35B, Schedule 15 and Schedule 20.","The intent of this Change Proposal is to combine, review and if appropriate, amend the requirements of Section 35A, Section 35B, Schedule 15 and Schedule 20 to improve transparency and efficiency in the data published by DNOs","Northern Powergrid","2018-07-11",null,null,"Standard Change Proposal","DCP 325 Change Proposal ","Under Development - Definition Stage",null,"-","-","ElectraLink Ltd","Live","Distribution Connection Use of System Agreement","DCP 325","Reviewing the requirements of Sections 35A, 35B, Schedule 15 and Schedule 20.","The intent of this Change Proposal is to combine, review and if appropriate, amend the requirements of Section 35A, Section 35B, Schedule 15 and Schedule 20 to improve transparency and efficiency in the data published by DNOs","Northern Powergrid","2018-07-11",null,null,"Standard Change Proposal","DCP 325 Change Proposal ","Under Development - Definition Stage",null,"-","-","ElectraLink Ltd","Live","Distribution Connection Use of System Agreement","DCP 325","Reviewing the requirements of Sections 35A, 35B, Schedule 15 and Schedule 20.","The intent of this Change Proposal is to combine, review and if appropriate, amend the requirements of Section 35A, Section 35B, Schedule 15 and Schedule 20 to improve transparency and efficiency in the data published by DNOs","Northern Powergrid","2018-07-11",null,null,"Standard Change Proposal","DCP 325 Change Proposal ","Under Development - Definition Stage",null,"-","-","ElectraLink Ltd","Live","Distribution Connection Use of System Agreement","DCP 325","Reviewing the requirements of Sections 35A, 35B, Schedule 15 and Schedule 20.","The intent of this Change Proposal is to combine, review and if appropriate, amend the requirements of Section 35A, Section 35B, Schedule 15 and Schedule 20 to improve transparency and efficiency in the data published by DNOs","Northern Powergrid","2018-07-11",null,null,"Standard Change Proposal","DCP 325 Change Proposal ","Under Development - Definition Stage",null,"-","-","ElectraLink Ltd","Live","Distribution Connection Use of System Agreement","DCP 325","Reviewing the requirements of Sections 35A, 35B, Schedule 15 and Schedule 20.","The intent of this Change Proposal is to combine, review and if appropriate, amend the requirements of Section 35A, Section 35B, Schedule 15 and Schedule 20 to improve transparency and efficiency in the data published by DNOs","Northern Powergrid","2018-07-11",null,null,"Standard Change Proposal","DCP 325 Change Proposal ","Under Development - Definition Stage",null,"-","-","ElectraLink Ltd","Live","Distribution Connection Use of System Agreement","DCP 325","Reviewing the requirements of Sections 35A, 35B, Schedule 15 and Schedule 20.","The intent of this Change Proposal is to combine, review and if appropriate, amend the requirements of Section 35A, Section 35B, Schedule 15 and Schedule 20 to improve transparency and efficiency in the data published by DNOs","Northern Powergrid","2018-07-11",null,null,"Standard Change Proposal","DCP 325 Change Proposal ","Under Development - Definition Stage",null,"-","-","ElectraLink Ltd","Live","Distribution Connection Use of System Agreement","DCP 325","Reviewing the requirements of Sections 35A, 35B, Schedule 15 and Schedule 20.","The intent of this Change Proposal is to combine, review and if appropriate, amend the requirements of Section 35A, Section 35B, Schedule 15 and Schedule 20 to improve transparency and efficiency in the data published by DNOs","Northern Powergrid","2018-07-11",null,null,"Standard Change Proposal","DCP 325 Change Proposal ","Under Development - Definition Stage",null,"-","-","ElectraLink Ltd","Live","Distribution Connection Use of System Agreement","DCP 325","Reviewing the requirements of Sections 35A, 35B, Schedule 15 and Schedule 20.","The intent of this Change Proposal is to combine, review and if appropriate, amend the requirements of Section 35A, Section 35B, Schedule 15 and Schedule 20 to improve transparency and efficiency in the data published by DNOs","Northern Powergrid","2018-07-11",null,null,"Standard Change Proposal","DCP 325 Change Proposal ","Under Development - Definition Stage",null,"-","-","ElectraLink Ltd","Live","Distribution Connection Use of System Agreement","DCP 325","Reviewing the requirements of Sections 35A, 35B, Schedule 15 and Schedule 20.","The intent of this Change Proposal is to combine, review and if appropriate, amend the requirements of Section 35A, Section 35B, Schedule 15 and Schedule 20 to improve transparency and efficiency in the data published by DNOs","Northern Powergrid","2018-07-11",null,null,"Standard Change Proposal","DCP 325 Change Proposal ","Under Development - Definition Stage",null,"-","-","ElectraLink Ltd","Live","Distribution Connection Use of System Agreement","DCP 325","Reviewing the requirements of Sections 35A, 35B, Schedule 15 and Schedule 20.","The intent of this Change Proposal is to combine, review and if appropriate, amend the requirements of Section 35A, Section 35B, Schedule 15 and Schedule 20 to improve transparency and efficiency in the data published by DNOs","Northern Powergrid","2018-07-11",null,null,"Standard Change Proposal","DCP 325 Change Proposal ","Under Development - Definition Stage",null,"-","-","ElectraLink Ltd","Live","Distribution Connection Use of System Agreement","DCP 325","Reviewing the requirements of Sections 35A, 35B, Schedule 15 and Schedule 20.","The intent of this Change Proposal is to combine, review and if appropriate, amend the requirements of Section 35A, Section 35B, Schedule 15 and Schedule 20 to improve transparency and efficiency in the data published by DNOs","Northern Powergrid","2018-07-11",null,null,"Standard Change Proposal","DCP 325 Change Proposal ","Under Development - Definition Stage",null,"-","-","ElectraLink Ltd","Live","Distribution Connection Use of System Agreement","DCP 325","Reviewing the requirements of Sections 35A, 35B, Schedule 15 and Schedule 20.","The intent of this Change Proposal is to combine, review and if appropriate, amend the requirements of Section 35A, Section 35B, Schedule 15 and Schedule 20 to improve transparency and efficiency in the data published by DNOs","Northern Powergrid","2018-07-11",null,null,"Standard Change Proposal","DCP 325 Change Proposal ","Under Development - Definition Stage",null,"-","-","ElectraLink Ltd","Live","Distribution Connection Use of System Agreement","DCP 325","Reviewing the requirements of Sections 35A, 35B, Schedule 15 and Schedule 20.","The intent of this Change Proposal is to combine, review and if appropriate, amend the requirements of Section 35A, Section 35B, Schedule 15 and Schedule 20 to improve transparency and efficiency in the data published by DNOs","Northern Powergrid","2018-07-11",null,null,"Standard Change Proposal","DCP 325 Change Proposal ","Under Development - Definition Stage",null,"-","-","ElectraLink Ltd","Live","Distribution Connection Use of System Agreement","DCP 325","Reviewing the requirements of Sections 35A, 35B, Schedule 15 and Schedule 20.","The intent of this Change Proposal is to combine, review and if appropriate, amend the requirements of Section 35A, Section 35B, Schedule 15 and Schedule 20 to improve transparency and efficiency in the data published by DNOs","Northern Powergrid","2018-07-11",null,null,"Standard Change Proposal","DCP 325 Change Proposal ","Under Development - Definition Stage",null,"-","-","ElectraLink Ltd","Live","Distribution Connection Use of System Agreement","DCP 325","Reviewing the requirements of Sections 35A, 35B, Schedule 15 and Schedule 20.","The intent of this Change Proposal is to combine, review and if appropriate, amend the requirements of Section 35A, Section 35B, Schedule 15 and Schedule 20 to improve transparency and efficiency in the data published by DNOs","Northern Powergrid","2018-07-11",null,null,"Standard Change Proposal","DCP 325 Change Proposal ","Under Development - Definition Stage",null,"-","-","ElectraLink Ltd","Live","Distribution Connection Use of System Agreement","DCP 325","Reviewing the requirements of Sections 35A, 35B, Schedule 15 and Schedule 20.","The intent of this Change Proposal is to combine, review and if appropriate, amend the requirements of Section 35A, Section 35B, Schedule 15 and Schedule 20 to improve transparency and efficiency in the data published by DNOs","Northern Powergrid","2018-07-11",null,null,"Standard Change Proposal","DCP 325 Change Proposal ","Under Development - Definition Stage",null,"-","-","ElectraLink Ltd","Live","Distribution Connection Use of System Agreement","DCP 325","Reviewing the requirements of Sections 35A, 35B, Schedule 15 and Schedule 20.","The intent of this Change Proposal is to combine, review and if appropriate, amend the requirements of Section 35A, Section 35B, Schedule 15 and Schedule 20 to improve transparency and efficiency in the data published by DNOs","Northern Powergrid","2018-07-11",null,null,"Standard Change Proposal","DCP 325 Change Proposal ","Under Development - Definition Stage",null,"-","-","ElectraLink Ltd","Live","Distribution Connection Use of System Agreement","DCP 325","Reviewing the requirements of Sections 35A, 35B, Schedule 15 and Schedule 20.","The intent of this Change Proposal is to combine, review and if appropriate, amend the requirements of Section 35A, Section 35B, Schedule 15 and Schedule 20 to improve transparency and efficiency in the data published by DNOs","Northern Powergrid","2018-07-11",null,null,"Standard Change Proposal","DCP 325 Change Proposal ","Under Development - Definition Stage",null,"-","-","ElectraLink Ltd","Live","Distribution Connection Use of System Agreement","DCP 325","Reviewing the requirements of Sections 35A, 35B, Schedule 15 and Schedule 20.","The intent of this Change Proposal is to combine, review and if appropriate, amend the requirements of Section 35A, Section 35B, Schedule 15 and Schedule 20 to improve transparency and efficiency in the data published by DNOs","Northern Powergrid","2018-07-11",null,null,"Standard Change Proposal","DCP 325 Change Proposal ","Under Development - Definition Stage",null,"-","-","ElectraLink Ltd","Live","Distribution Connection Use of System Agreement","DCP 325","Reviewing the requirements of Sections 35A, 35B, Schedule 15 and Schedule 20.","The intent of this Change Proposal is to combine, review and if appropriate, amend the requirements of Section 35A, Section 35B, Schedule 15 and Schedule 20 to improve transparency and efficiency in the data published by DNOs","Northern Powergrid","2018-07-11",null,null,"Standard Change Proposal","DCP 325 Change Proposal ","Under Development - Definition Stage",null,"-","-","ElectraLink Ltd","Live","Distribution Connection Use of System Agreement","DCP 325","Reviewing the requirements of Sections 35A, 35B, Schedule 15 and Schedule 20.","The intent of this Change Proposal is to combine, review and if appropriate, amend the requirements of Section 35A, Section 35B, Schedule 15 and Schedule 20 to improve transparency and efficiency in the data published by DNOs","Northern Powergrid","2018-07-11",null,null,"Standard Change Proposal","DCP 325 Change Proposal ","Under Development - Definition Stage",null,"-","-","ElectraLink Ltd","Live","Distribution Connection Use of System Agreement","DCP 325","Reviewing the requirements of Sections 35A, 35B, Schedule 15 and Schedule 20.","The intent of this Change Proposal is to combine, review and if appropriate, amend the requirements of Section 35A, Section 35B, Schedule 15 and Schedule 20 to improve transparency and efficiency in the data published by DNOs","Northern Powergrid","2018-07-11",null,null,"Standard Change Proposal","DCP 325 Change Proposal ","Under Development - Definition Stage",null,"-","-","ElectraLink Ltd","Live","Distribution Connection Use of System Agreement","DCP 325","Reviewing the requirements of Sections 35A, 35B, Schedule 15 and Schedule 20.","The intent of this Change Proposal is to combine, review and if appropriate, amend the requirements of Section 35A, Section 35B, Schedule 15 and Schedule 20 to improve transparency and efficiency in the data published by DNOs","Northern Powergrid","2018-07-11",null,null,"Standard Change Proposal","DCP 325 Change Proposal ","Under Development - Definition Stage",null,"-","-","ElectraLink Ltd","Live","Distribution Connection Use of System Agreement","DCP 325","Reviewing the requirements of Sections 35A, 35B, Schedule 15 and Schedule 20.","The intent of this Change Proposal is to combine, review and if appropriate, amend the requirements of Section 35A, Section 35B, Schedule 15 and Schedule 20 to improve transparency and efficiency in the data published by DNOs","Northern Powergrid","2018-07-11",null,null,"Standard Change Proposal","DCP 325 Change Proposal ","Under Development - Definition Stage",null,"-","-","ElectraLink Ltd","Live","Distribution Connection Use of System Agreement","DCP 325","Reviewing the requirements of Sections 35A, 35B, Schedule 15 and Schedule 20.","The intent of this Change Proposal is to combine, review and if appropriate, amend the requirements of Section 35A, Section 35B, Schedule 15 and Schedule 20 to improve transparency and efficiency in the data published by DNOs","Northern Powergrid","2018-07-11",null,null,"Standard Change Proposal","DCP 325 Change Proposal ","Under Development - Definition Stage",null,"-","-","ElectraLink Ltd","Live","Distribution Connection Use of System Agreement","DCP 325","Reviewing the requirements of Sections 35A, 35B, Schedule 15 and Schedule 20.","The intent of this Change Proposal is to combine, review and if appropriate, amend the requirements of Section 35A, Section 35B, Schedule 15 and Schedule 20 to improve transparency and efficiency in the data published by DNOs","Northern Powergrid","2018-07-11",null,null,"Standard Change Proposal","DCP 325 Change Proposal ","Under Development - Definition Stage",null,"-","-","ElectraLink Ltd","Live","Distribution Connection Use of System Agreement","DCP 325","Reviewing the requirements of Sections 35A, 35B, Schedule 15 and Schedule 20.","The intent of this Change Proposal is to combine, review and if appropriate, amend the requirements of Section 35A, Section 35B, Schedule 15 and Schedule 20 to improve transparency and efficiency in the data published by DNOs","Northern Powergrid","2018-07-11",null,null,"Standard Change Proposal","DCP 325 Change Proposal ","Under Development - Definition Stage",null,"-","-","ElectraLink Ltd","Live","Distribution Connection Use of System Agreement","DCP 325","Reviewing the requirements of Sections 35A, 35B, Schedule 15 and Schedule 20.","The intent of this Change Proposal is to combine, review and if appropriate, amend the requirements of Section 35A, Section 35B, Schedule 15 and Schedule 20 to improve transparency and efficiency in the data published by DNOs","Northern Powergrid","2018-07-11",null,null,"Standard Change Proposal","DCP 325 Change Proposal ","Under Development - Definition Stage",null,"-","-","ElectraLink Ltd","Live","Distribution Connection Use of System Agreement","DCP 325","Reviewing the requirements of Sections 35A, 35B, Schedule 15 and Schedule 20.","The intent of this Change Proposal is to combine, review and if appropriate, amend the requirements of Section 35A, Section 35B, Schedule 15 and Schedule 20 to improve transparency and efficiency in the data published by DNOs","Northern Powergrid","2018-07-11",null,null,"Standard Change Proposal","DCP 325 Change Proposal ","Under Development - Definition Stage",null,"-","-","ElectraLink Ltd","Live","Distribution Connection Use of System Agreement","DCP 325","Reviewing the requirements of Sections 35A, 35B, Schedule 15 and Schedule 20.","The intent of this Change Proposal is to combine, review and if appropriate, amend the requirements of Section 35A, Section 35B, Schedule 15 and Schedule 20 to improve transparency and efficiency in the data published by DNOs","Northern Powergrid","2018-07-11",null,null,"Standard Change Proposal","DCP 325 Change Proposal ","Under Development - Definition Stage",null,"-","-","ElectraLink Ltd","Live","Distribution Connection Use of System Agreement","DCP 325","Reviewing the requirements of Sections 35A, 35B, Schedule 15 and Schedule 20.","The intent of this Change Proposal is to combine, review and if appropriate, amend the requirements of Section 35A, Section 35B, Schedule 15 and Schedule 20 to improve transparency and efficiency in the data published by DNOs","Northern Powergrid","2018-07-11",null,null,"Standard Change Proposal","DCP 325 Change Proposal ","Under Development - Definition Stage",null,"-","-","ElectraLink Ltd","Live","Distribution Connection Use of System Agreement","DCP 325","Reviewing the requirements of Sections 35A, 35B, Schedule 15 and Schedule 20.","The intent of this Change Proposal is to combine, review and if appropriate, amend the requirements of Section 35A, Section 35B, Schedule 15 and Schedule 20 to improve transparency and efficiency in the data published by DNOs","Northern Powergrid","2018-07-11",null,null,"Standard Change Proposal","DCP 325 Change Proposal ","Under Development - Definition Stage",null,"-","-","ElectraLink Ltd","Live","Distribution Connection Use of System Agreement","DCP 325","Reviewing the requirements of Sections 35A, 35B, Schedule 15 and Schedule 20.","The intent of this Change Proposal is to combine, review and if appropriate, amend the requirements of Section 35A, Section 35B, Schedule 15 and Schedule 20 to improve transparency and efficiency in the data published by DNOs","Northern Powergrid","2018-07-11",null,null,"Standard Change Proposal","DCP 325 Change Proposal ","Under Development - Definition Stage",null,"-","-","ElectraLink Ltd","Live","Distribution Connection Use of System Agreement","DCP 325","Reviewing the requirements of Sections 35A, 35B, Schedule 15 and Schedule 20.","The intent of this Change Proposal is to combine, review and if appropriate, amend the requirements of Section 35A, Section 35B, Schedule 15 and Schedule 20 to improve transparency and efficiency in the data published by DNOs","Northern Powergrid","2018-07-11",null,null,"Standard Change Proposal","DCP 325 Change Proposal ","Under Development - Definition Stage",null,"-","-","ElectraLink Ltd","Live","Distribution Connection Use of System Agreement","DCP 325","Reviewing the requirements of Sections 35A, 35B, Schedule 15 and Schedule 20.","The intent of this Change Proposal is to combine, review and if appropriate, amend the requirements of Section 35A, Section 35B, Schedule 15 and Schedule 20 to improve transparency and efficiency in the data published by DNOs","Northern Powergrid","2018-07-11",null,null,"Standard Change Proposal","DCP 325 Change Proposal ","Under Development - Definition Stage",null,"-","-","ElectraLink Ltd","Live","Distribution Connection Use of System Agreement","DCP 325","Reviewing the requirements of Sections 35A, 35B, Schedule 15 and Schedule 20.","The intent of this Change Proposal is to combine, review and if appropriate, amend the requirements of Section 35A, Section 35B, Schedule 15 and Schedule 20 to improve transparency and efficiency in the data published by DNOs","Northern Powergrid","2018-07-11",null,null,"Standard Change Proposal","DCP 325 Change Proposal ","Under Development - Definition Stage",null,"-","-","ElectraLink Ltd","Live","Distribution Connection Use of System Agreement","DCP 325","Reviewing the requirements of Sections 35A, 35B, Schedule 15 and Schedule 20.","The intent of this Change Proposal is to combine, review and if appropriate, amend the requirements of Section 35A, Section 35B, Schedule 15 and Schedule 20 to improve transparency and efficiency in the data published by DNOs","Northern Powergrid","2018-07-11",null,null,"Standard Change Proposal","DCP 325 Change Proposal ","Under Development - Definition Stage",null,"-","-","ElectraLink Ltd","Live","Distribution Connection Use of System Agreement","DCP 325","Reviewing the requirements of Sections 35A, 35B, Schedule 15 and Schedule 20.","The intent of this Change Proposal is to combine, review and if appropriate, amend the requirements of Section 35A, Section 35B, Schedule 15 and Schedule 20 to improve transparency and efficiency in the data published by DNOs","Northern Powergrid","2018-07-11",null,null,"Standard Change Proposal","DCP 325 Change Proposal ","Under Development - Definition Stage",null,"-","-","ElectraLink Ltd","Live","Distribution Connection Use of System Agreement","DCP 325","Reviewing the requirements of Sections 35A, 35B, Schedule 15 and Schedule 20.","The intent of this Change Proposal is to combine, review and if appropriate, amend the requirements of Section 35A, Section 35B, Schedule 15 and Schedule 20 to improve transparency and efficiency in the data published by DNOs","Northern Powergrid","2018-07-11",null,null,"Standard Change Proposal","DCP 325 Change Proposal ","Under Development - Definition Stage",null,"-","-","ElectraLink Ltd","Live","Distribution Connection Use of System Agreement","DCP 325","Reviewing the requirements of Sections 35A, 35B, Schedule 15 and Schedule 20.","The intent of this Change Proposal is to combine, review and if appropriate, amend the requirements of Section 35A, Section 35B, Schedule 15 and Schedule 20 to improve transparency and efficiency in the data published by DNOs","Northern Powergrid","2018-07-11",null,null,"Standard Change Proposal","DCP 325 Change Proposal ","Under Development - Definition Stage",null,"-","-","ElectraLink Ltd","Live","Distribution Connection Use of System Agreement","DCP 325","Reviewing the requirements of Sections 35A, 35B, Schedule 15 and Schedule 20.","The intent of this Change Proposal is to combine, review and if appropriate, amend the requirements of Section 35A, Section 35B, Schedule 15 and Schedule 20 to improve transparency and efficiency in the data published by DNOs","Northern Powergrid","2018-07-11",null,null,"Standard Change Proposal","DCP 325 Change Proposal ","Under Development - Definition Stage",null,"-","-","ElectraLink Ltd","Live"]
["Connection and Use of System Code","CMP363 & CMP364","TNUoS Demand Residual charges for transmission connected sites with a mix of Final and non-Final Demand & Definition changes for CMP363","National Grid ESO","2021-02-11","Within Consultation","CMP363 seeks to clarify the TNUoS Demand Residual charging arrangements for transmission connected sites that have a mix of Final and non-Final Demand.\n\n[14/03/2022] 1 more Workgroup is needed (to review solution vs CMP343 decision, finalise Workgroup Report and hold Workgroup Vote) before Workgroup Report can be presented to Panel. Now that we have more certainty that CMP343 decision is due 31 March 2022, we have scheduled this final Workgroup for 27 April 2022 and seek to present Workgroup Report to May 2022 Panel. Revised timeline was agreed at March 2022 Panel.\n\nCMP364 is to support CMP363 by changing Section 11 to add/amend/remove definitions as needed.\n\n[14/03/2022] 1 more Workgroup is needed (to review solution vs CMP343 decision, finalise Workgroup Report and hold Workgroup Vote) before Workgroup Report can be presented to Panel. Now that we have more certainty that CMP343 decision is due 31 March 2022, we have scheduled this final Workgroup for 27 April 2022 and seek to present Workgroup Report to May 2022 Panel. Revised timeline was agreed at March 2022 Panel.","None",null,"No ","No","No","TBC","TBC","2023-04-01","Yes","Yes","No ","No ","Yes","No ","No "]
["Connection and Use of System Code","CMP287","Improving TNUoS\nPredictability Through Increased\nNotice of Inputs Used in the\nTNUoS Tariff Setting Process.","Npower","2017-10-10","Under Development","Seeks to improve TNUoS predictability through increased notice of the Target Revenue (CMP286) and inputs (CMP287) used in the TNUoS Tariff Setting Process\n\nThis was de-prioritised by Panel whilst the Modifications to address Ofgem's Targeted Charging Review decision were being progressed. The Proposer sought re-prioritisation of this Modification at October 2021 Panel and Panel agreed to move the priority from Low to Medium as clear drive from the Proposer and the Proposer argues that the lower risk premiums (that Suppliers will include) will benefit consumers. Workgroups re-commenced on 7 December 2021.Workgroup Report will be presented to June 2022 Panel.\n\n[06/04/2022] 2nd Workgroup Consultation was issued on 6 April 2022 and will close 5pm on 9 May 2022.","STC",null,"No","No","No","TBC","TBC","TBC","Yes","Yes","No ",null,"Yes","No ","No "]
["Distribution Connection Use of System Agreement","DCP 268","DUoS Charging Using HH settlement data","Northern Powergrid","2016-03-14","Agreed for Implementation","This CP seeks to facilitate a transition to half-hourly (HH) settlement for non-half hourly (NHH) customers by moving to a time band charging basis, based on the HH (profiled) data used in settlement.","BSC - P339",null,"Standard Change Proposal",null,null,"2018-05-16","2019-04-08","2021-04-01"]
["Distribution Connection Use of System Agreement","DCP 350 ","Creation of Embedded Capacity Registers","UK Power Reserves Ltd","2019-07-17","Awaiting Authority Consent","The change seeks to require each DNO and IDNO to create a public register of all sites that use their networks and influence the operation of the GB power market. The Register would contain details of each connected site and would be kept up to date by each DNO and IDNO. ",null,null,"Standard Change Proposal",null,null,"2020-05-05","-"]
["Distribution Connection Use of System Agreement","DCP 382","2021-22 Electricity Theft Detection Incentive Scheme (ETDIS) Timings","British Gas","2021-02-09","Awaiting Authority Consent","DCP 382 seeks to amend the Electricity Theft Detection Incentive Scheme (ETDIS) timings for the Scheme Year 2021-22. The start date for the Scheme Year would be retrospectively amended from 01 February 2021 to 01 April 2021, and the Scheme Year duration reduced from 14 to 12 months.","REC ",null,"No ","No ","Yes ","2021-03-17",null,"2021-04-01",null,"Yes "]
["Distribution Connection Use of System Agreement","DCP 395","Allocation of Smart Meter Comunication Licence costs within LDNO Tariffs","The Electricity Network Company Limited","2021-10-05","Within Consultation","To increase the cost reflectivity of LDNO tariffs by appropriately allocating costs associated with the smart meter communication licence to LDNO tariffs.","None",null,"No","No","No",null,null,null,null,null,null,null,"Yes "]
["Grid Code","GC0146","GC0146: Solutions for frequency control of Power Park Modules","Orsted","2020-05-12","Under Development","This modification is proposed to modify the existing requirement for frequency control at Power Park Modules (PPM) level and allow flexibility for Users to be able to choose a control solution at BM Unit level. The proposal does not seek to modify the current frequency response, but only the way the response is achieved.\n\n[05/04/2022] Timeline extended so that Workgroup meetings reconvene in June. ","None",null,"No","No","No","TBD","TBD","TBD","Yes","No","No","No","No","No","No"]
["Retail Energy Code","R0016","Resolution of Bilateral Erroneous Transfers","British Gas","2021-11-17","Under Development","Where an Erroneous Transfer involves more than two Suppliers these are resolved via email and telephone. The proposer has identified inconsistencies and inefficiencies in the resolution of these Bilateral Erroneous Transfers. These inconsistencies can result in delayed resolution or the need for Contract Manager involvement to progress a resolution. \nThe Change Proposer has proposed introducing a designated queue in SDEP specific to Bilateral Erroneous Transfers, where three or more Suppliers could access a single Bilateral communication in order to resolve Bilateral Erroneous Transfers, in a more consistent and efficient manner.","None","No","No","Yes","No",null,null,"TBD","No","Yes","Yes","No","No","No","No"]
["Retail Energy Code","R0025","Service Provider Performance Charges (ERDS, GRDS, DCC)","Code Manager","2022-01-04","Under Development","The performance of REC Service Providers is essential to the proper functioning of the market. In particular, underperformance related to Service Level Agreements (SLAs) through agreed service definitions and also underperformance related to change requests, including the timeliness of impact assessments and the timeliness of changes being made by planned release dates, have been identified as key areas that would benefit from incentivising performance. \nService Providers not meeting their respective SLAs, particularly relating to user support, response times and service availability, can have consequential impacts on the wider market. An incentive-based performance regime can therefore be used to encourage REC Service Providers to be responsive to the needs of its users and deliver good consumer outcomes in line with their service definitions. ","None","No","No","Yes","No",null,null,"TBD","No","No","No","No","Yes","Yes","No","Central Switching Service Provider (DCC)\nSwitching Operator Service Provider (DCC)\nCSS Certificate Authority (DCC)\nElectricity Retail Data Agents (DNOs)\nGas Retail Data Agents (GTs)"]
["Retail Energy Code","R0039","Revised Implementation Date for R0011","LCCC","2022-03-25","Under Development","This Change Proposal has been raised to consider a change to the implementation date of Change Proposal R0011 - Reporting of Additional EMR Backing Data to Suppliers.","None","No","No","Yes","Yes",null,null,"TBD","Yes","Yes","No","No","No","No","No","Capacity Providers"]
["Smart Energy Code","SECMP0046","Allow DNOs to control Electric Vehicle chargers connected to Smart Meter infrastructure","SSEN","2018-02-21","Under Development","This modification proposes changes to the SEC to enable electricity Distribution Network Operators to use Smart Meter infrastructure to modify Electric Vehicle charging load within a household. This is in order to avoid the risk of overloading low voltage circuits from secondary substations to properties, and therefore avoid power outages.","Yes",null,"No","No","No","TBD","TBD","TBD"]
["Smart Energy Code","MP102B","Power Outage Alerts triggered by an OTA firmware upgrade - enduring solution","SSEN","2019-12-18","Under Development","Experience has shown that implementing an Over the Air (OTA) firmware update on some Electricity Smart Metering Equipment (ESMEs) generates a Power Outage Alert (POA). This is because when some ESMEs activate a new firmware version it results in an interruption of the power supply to the Communications Hub (CH) (power to the CH is supplied by the ESME). If the power supply for the CH is interrupted for more than three minutes, then the CH must send a POA (the AD1 Alert). The Data Communications Company (DCC) then sends the AD1 Alert to the relevant Distribution Network Operator (DNO), who can’t tell whether there is a real issue with the power to the premises or whether it was just a firmware upgrade to the ESME. As DNOs need to respond to each POA, a POA initiated by an OTA firmware update will cause a DNO to put in place systems to check every POA to understand if it relates to a genuine power outage. Investigations during the Refinement Process of MP102 ‘Power Outage Alerts triggered by an OTA firmware upgrade’ found the scale of the issue affecting existing meters much greater than initially envisaged. This could result in a lengthy lead time for implementation where meter Manufacturers could potentially still produce Devices that cause erroneous Power Outage Alerts (POAs). Therefore, the Working Group agreed that there should be two separate solutions to address the issue;\n• MP102A - a Technical Specifications document change for meter Manufacturers to abide by for ESME produced after implementation, and\n• MP102B - an enduring solution for meters that are currently installed.","N/A",null,"No","TBD","No","TBD","TBD","TBD"]
["Smart Energy Code","MP152","Consumption on Smart Polyphase Electricity Meters","Drax Group PLC","2021-01-29","Under Development","Polyphase meters are electrical meters used for measuring 3 phase electricity supply. Polyphase meters are sometimes used in scenarios where each phase is used for a specific purpose e.g. for heating and/or Electric Vehicle charging.\nCurrently smart polyphase meters only provide profile consumption data as a combined value across the three phases. Therefore, the tariffs offered to those consumers who have polyphase metering equipment is applied to the cumulative consumption of all three phases combined, rather than individual phase data.\nAlthough, it is understood that the electricity meter itself supports the measurement of each phase, the Smart Energy Code (SEC) and DCC systems do not currently support functionality that would allow the individual phase data to be retrieved.","N/A",null,"N/A","Yes","No","TBD","TBD","TBD"]
["Smart Energy Code","MP169","Managing SEC Obligations and the Consumer's Right to refuse a Smart Meter","SSE","2021-06-15","Under Development","The consumer has a right to refuse a Smart Meter. Suppliers are unable to comply with consumer requests to install a smart meter in ‘dumb’ mode. The SEC does not allow for the Devices on the Smart Metering Inventory to be either installed and not commissioned (this is a transient state and not an enduring one) or to fit the meters without also fitting the DCC provided Communications Hub (as reference above in Gas and Electricity Supply Licence Condition 54.9). There is no concept, by design, of fitting a smart meter in ‘dumb’ mode.","N/A",null,"N/A","Yes","No","TBD","TBD","TBD"]
["Smart Energy Code","DP190","Standard Event and Alert Screens on SMETS2 Meters","SMS PLC","2021-11-22","Under Development","There is currently no common industry process for displaying recorded faults on SMETS2 Electricity and Gas Meters, despite there being a common set of GBCS Event and Alert Codes.\nWithout a clear record of faults on SMETS2 Electricity and Gas Meters, there is a risk that faulty Meters which have been returned to the Device Manufacturers will be reset and redeployed to the field, to be installed at Premises without the underlying fault being resolved.","N/A",null,"N/A","TBD","No","TBD","TBD","TBD"]
["Uniform Network Code","0798S","Enablement of Exit Assignment process at Interconnectors","National Grid NTS","2022-01-07","Awaiting Authority Consent","This Modification amends the European Interconnection Document to remove the barrier between UNC and CAM NC compliance allowing full implementation of UNC 0755S and makes a minor change to clarify the Legal Text.","None",null,"No","Yes","No","2022-03-17","2022-03-17","TBC"]
["Uniform Network Code","0786S","Amendment of the framework for the Bacton exit pressure service to interconnectors","National Grid","2021-10-12","Agreed for Implementation","This is an enabling modification which will allow National Grid to provide a consistent pressure service to interconnectors off-taking gas at Bacton.","None",null,"No","Yes","No","2022-02-17"]
["Uniform Network Code","0759S","Enhancements to NTS Within-Day Firm Entry and Exit Capacity Allocations","National Grid NTS","2021-03-08","Agreed for Implementation","This self-governance modification seeks to enhance the existing schedule of allocations for within-day NTS Firm Capacity products to allow Users greater access and flexibility to purchase NTS Capacity.","None",null,"No","No","No","2021-06-17","2021-06-17","tbc",null,null,null,null,null,"Yes",null,null,"XRN 5393"]
["Uniform Network Code","0674","Performance Assurance Techniques and Controls","ScottishPower","2018-11-07","Within Consultation","This modification seeks to provide an effective framework for the governance of industry performance that gives industry participants mutual assurance in the accuracy of settlement volume allocation.","IGT",null,"No","No","No","2022-06-16",null,null,null,null,null,"Yes",null,"Yes"]
["DSC","XRN 4990","Transfer of Sites with Low Read Submission Performance from Class 2 and 3 into Class 4 (MOD0664)","SSE","2019-08-01","Under Development","The solution will create an obligation for shippers to transfer the poorest performing supply points in class 2 and 3 (in terms of read submission performance) into class 4. Read submission performance will be measured at supply point level, with those supply points falling below a specified benchmark for a consecutive period being transferred to class 4. If after a period of time, where a shipper does not move supply points that have not read the read obligation, the CDSP will automatically move those supply points to class 4.","N/A",null,"N/A","N/A",null,"N/A","N/A",null,"N/A","N/A","No","Yes","No","No"]
["DSC","XRN 5180","Inner Tolerance Validation for replacement reads and read insertions","CDSP","2020-07-28","Agreed for Implementation","The read validation logic needs to be amended such that if either of the 2 periods (when a read is replaced or a read is inserted between 2 reads) need an override flag and one has been provided, the read should be accepted.\nThere would also be changes to UNCVR (UNC Validation Rules) document to update the respective rules on inner tolerances for such instances.","N/A",null,"N/A","N/A",null,"N/A","N/A",null,"N/A","N/A","No","Yes","N/A","Yes"]
["DSC","XRN 5298","H100 Fife Project - Phase 1 (Initial Assessment)","SGN ","2021-01-18","Agreed for Implementation","SGN’s strategic ambition towards Net Zero includes a network innovation, ‘proof of concept’, project; H100 Fife. This project will see SGN injecting 100% hydrogen into a new, purpose-built network which will be located in parallel to the existing natural gas network. The H100 Fife Project is considered of national and strategic importance to demonstrating a capability to meet the UK Net Zero target ambition. ","N/A",null,"N/A","N/A",null,"N/A","N/A",null,"N/A","N/A","No","Yes","N/A","Yes"]
["DSC","XRN 5453","GSOS 2, 3 & 13 Payment Automation","SGN","2021-11-26","Under Development","To automate the GSOP 2, 3 & 13 payments currently made via the Adhoc Request to Bill (RTB) process will require the following changes:\nNew Invoice Type\nUtilise existing Charge Types\nNew Template in line with current FSG process\nNew AMT Interfaces\nNew PO Interfaces\nUpdate Supporting Information\nWe would look to Xoserve to provide solution options which could facilitate the timely payment of the GSOP’s listed within this Change Proposal and would expect that the following options be investigated as a minimum.\nA solution which could automate the current RTB process.\nA solution which would utilise similar functionality to the current Failure to Supply Gas process.\nA solution which could facilitate a daily submission. ","N/A",null,"N/A","N/A","N/A","N/A","N/A",null,"N/A","N/A","No","Yes","N/A","Yes"]
[]
[]
[]
[null,null,null," ",null," "," "," ",null," "," "," "," "," "," "," "," "," "," "," "," "," "," "," "," "]
[]
[]
["GEMSERV","iGT Uniform Network Code (IGT UNC)"]
[" ","Supply Point Administrator Agreement (SPAA)"]
[" ","Smart Energy Code (SEC)"]
["Joint Office of Gas Transporters","Uniform Network Code (UNC)"]
["National Grid Electricity Transmission plc","Connection and Use of System Code (CUSC)"]
[" ","Grid Code"]
[" ","System Operator – Transmission Owner Code (STC)"]

{"sheet":"Modification Matrix","index":2,"n_rows":36,"n_cols":6,"rows_kept":36,"cut":false,"hidden":true,"merged":[]}
["Modification Matrix"]
[]
["Total 'Live' Modifcations on CMR",{"$f":"COUNTA(report!C6:C397)","v":326}]
[]
["Current Status","Live Mods","%"]
["Under Development",{"$f":"COUNTIF(report!$F:$F,$A6)","v":171},{"$f":"+B6/$B$11","v":0.52293577981651373}]
["Within Consultation",{"$f":"COUNTIF(report!$F:$F,$A7)","v":29},{"$f":"+B7/$B$11","v":8.8685015290519878E-2}]
["Awaiting Authority Consent",{"$f":"COUNTIF(report!$F:$F,$A8)","v":31},{"$f":"+B8/$B$11","v":9.480122324159021E-2}]
["Agreed for Implementation",{"$f":"COUNTIF(report!$F:$F,$A9)","v":96},{"$f":"+B9/$B$11","v":0.29357798165137616}]
[]
[null,{"$f":"SUM(B6:B9)","v":327}]
[]
["Not assigned correctly",{"$f":"+B3-B11","v":-1}]
[]
[]
[]
[]
[]
[]
[]
[]
[]
["Code Name","Under Development","Within Consultation","Awaiting Authority Consent","Agreed for Implementation","Total"]
["Balancing and Settlement Code",{"$f":"COUNTIFS(report!$F:$F,B$23,report!$A:$A,$A24)","v":18},{"$f":"COUNTIFS(report!$F:$F,C$23,report!$A:$A,$A24)","v":6},{"$f":"COUNTIFS(report!$F:$F,D$23,report!$A:$A,$A24)","v":2},{"$f":"COUNTIFS(report!$F:$F,E$23,report!$A:$A,$A24)","v":14},{"$f":"SUM(B24:E24)","v":40}]
["Connection and Use of System Code",{"$f":"COUNTIFS(report!$F:$F,B$23,report!$A:$A,$A25)","v":18},{"$f":"COUNTIFS(report!$F:$F,C$23,report!$A:$A,$A25)","v":2},{"$f":"COUNTIFS(report!$F:$F,D$23,report!$A:$A,$A25)","v":9},{"$f":"COUNTIFS(report!$F:$F,E$23,report!$A:$A,$A25)","v":11},{"$f":"SUM(B25:E25)","v":40}]
["Distribution Code",{"$f":"COUNTIFS(report!$F:$F,B$23,report!$A:$A,$A26)","v":0},{"$f":"COUNTIFS(report!$F:$F,C$23,report!$A:$A,$A26)","v":0},{"$f":"COUNTIFS(report!$F:$F,D$23,report!$A:$A,$A26)","v":0},{"$f":"COUNTIFS(report!$F:$F,E$23,report!$A:$A,$A26)","v":1},1]
["Distribution Connection Use of System Agreement",{"$f":"COUNTIFS(report!$F:$F,B$23,report!$A:$A,$A27)","v":11},{"$f":"COUNTIFS(report!$F:$F,C$23,report!$A:$A,$A27)","v":6},{"$f":"COUNTIFS(report!$F:$F,D$23,report!$A:$A,$A27)","v":8},{"$f":"COUNTIFS(report!$F:$F,E$23,report!$A:$A,$A27)","v":13},38]
["DSC",{"$f":"COUNTIFS(report!$F:$F,B$23,report!$A:$A,$A28)","v":22},{"$f":"COUNTIFS(report!$F:$F,C$23,report!$A:$A,$A28)","v":6},{"$f":"COUNTIFS(report!$F:$F,D$23,report!$A:$A,$A28)","v":0},{"$f":"COUNTIFS(report!$F:$F,E$23,report!$A:$A,$A28)","v":25},53]
["Grid Code",{"$f":"COUNTIFS(report!$F:$F,B$23,report!$A:$A,$A29)","v":11},{"$f":"COUNTIFS(report!$F:$F,C$23,report!$A:$A,$A29)","v":0},{"$f":"COUNTIFS(report!$F:$F,D$23,report!$A:$A,$A29)","v":1},{"$f":"COUNTIFS(report!$F:$F,E$23,report!$A:$A,$A29)","v":0},12]
["iGT Uniform Network Code",{"$f":"COUNTIFS(report!$F:$F,B$23,report!$A:$A,$A30)","v":7},{"$f":"COUNTIFS(report!$F:$F,C$23,report!$A:$A,$A30)","v":0},{"$f":"COUNTIFS(report!$F:$F,D$23,report!$A:$A,$A30)","v":0},{"$f":"COUNTIFS(report!$F:$F,E$23,report!$A:$A,$A30)","v":1},8]
["Retail Energy Code",{"$f":"COUNTIFS(report!$F:$F,B$23,report!$A:$A,$A31)","v":28},{"$f":"COUNTIFS(report!$F:$F,C$23,report!$A:$A,$A31)","v":0},{"$f":"COUNTIFS(report!$F:$F,D$23,report!$A:$A,$A31)","v":0},{"$f":"COUNTIFS(report!$F:$F,E$23,report!$A:$A,$A31)","v":9},37]
["Smart Energy Code",{"$f":"COUNTIFS(report!$F:$F,B$23,report!$A:$A,$A32)","v":41},{"$f":"COUNTIFS(report!$F:$F,C$23,report!$A:$A,$A32)","v":4},{"$f":"COUNTIFS(report!$F:$F,D$23,report!$A:$A,$A32)","v":1},{"$f":"COUNTIFS(report!$F:$F,E$23,report!$A:$A,$A32)","v":7},53]
["System Operator – Transmission Owner Code",{"$f":"COUNTIFS(report!$F:$F,B$23,report!$A:$A,$A33)","v":4},{"$f":"COUNTIFS(report!$F:$F,C$23,report!$A:$A,$A33)","v":0},{"$f":"COUNTIFS(report!$F:$F,D$23,report!$A:$A,$A33)","v":0},{"$f":"COUNTIFS(report!$F:$F,E$23,report!$A:$A,$A33)","v":0},4]
["Uniform Network Code",{"$f":"COUNTIFS(report!$F:$F,B$23,report!$A:$A,$A34)","v":11},{"$f":"COUNTIFS(report!$F:$F,C$23,report!$A:$A,$A34)","v":5},{"$f":"COUNTIFS(report!$F:$F,D$23,report!$A:$A,$A34)","v":10},{"$f":"COUNTIFS(report!$F:$F,E$23,report!$A:$A,$A34)","v":15},41]
[]
[null,{"$f":"SUM(B24:B34)","v":171},{"$f":"SUM(C24:C34)","v":29},31,96,327]

{"sheet":"Validation List","index":3,"n_rows":6,"n_cols":2,"rows_kept":6,"cut":false,"hidden":true,"merged":[]}
[]
[]
[null,"Under Development"]
[null,"Within Consultation"]
[null,"Awaiting Authority Consent"]
[null,"Agreed for Implementation"]